Workbook

Sheet 地位別地域区分 (hidden)
B1: 道立総合研究機構 森林研究本部 林業試験場
B2: カラマツ地位別地域区分
K3: 作成：北海道立総合研究機構 森林研究本部 林業試験場 連絡先：〒079-0198美唄市光珠内町東山（0126－63－4164） 作成者：八坂通泰、滝谷美香、山田健四
K8: 本ソフトウェアの著作権は北海道立総合研究機構森林研究本部林業試験場に帰属します。本ソフトウェアの使用による損害等については一切その責任を負いません。本ソフトウェアの改変は禁止します。

Sheet 下刈り支援ツール_新規造林
H2: 入力 箇所 | L2: 出力 結果
B3: ① | C3: 植生タイプ | H3: 広葉草本 | I3: 型 | K3: 下刈り完了の 目安の高さ(cm) | L3: =INDEX($X$42:$Z$61,MATCH($H$3&$H$4,$X$42:$X$61&$Y$42:$Y$61,0),3) -> 196
B4: ② | C4: 下刈り完了の条件： 梢端部が被覆されていない植栽木の本数割合を何%にする？ | H4: 90 | I4: % | K4: 下刈り必要年数 | L4: =IF(MIN(V43:V49)-1<0,"-",MIN(V43:V49)-1) -> 4
B5: ③ | C5: 地位指数(基準林齢：10年) | H5: 8 | I5: m
B6: ④ | C6: 下刈り対象木の範囲： 樹高の高い順から数えて、上位何%までを下刈り対象とする？ | H6: 90 | I6: %
B7: ⑤ | C7: 植栽時の平均苗長 | H7: 45 | I7: cm
C15: 植生タイプ | E15: 条件１ | F15: 条件2 | G15: 平均苗長 | H15: SI_10
C16: 広葉草本 | E16: 70 | F16: 70 | G16: 30 | H16: 6
C17: イネ・ カヤツリグサ | E17: 75 | F17: 75 | G17: 35 | H17: 6.5
C18: 高茎草本 | E18: 80 | F18: 80 | G18: 40 | H18: 7
C19: 混交 | E19: 85 | F19: 85 | G19: 45 | H19: 7.5
E20: 90 | F20: 90 | G20: 50 | H20: 8
G21: 55 | H21: 8.5
G22: 60 | H22: 9
H23: 9.5
H24: 10
H25: 10.5
H26: 11
H27: 11.5
H28: 12
H29: 12.5
H30: 13
H31: 13.5
H32: 14
C34: Richards | D34: Estimate | J34: 係数 for Scale parameter of CL | M34: 係数 for Shape parameter of CL
C35: a | D35: 27.884916 | J35: (Intercept) | K35: -0.17782 | M35: 切片 | N35: 6.68502
C36: b | D36: 0.068134 | J36: age | K36: -0.09069 | M36: scale_m | N36: 1.92846
C37: c | D37: 1.633178 | J37: UpperH_N100_m | K37: 0.94487 | M37: age | N37: -1.35018
C38: AIC | D38: 242.4 | M38: age10_SI | N38: -0.12494
F39: SI | G39: 植栽木の樹高_cm | H39: 差 | Q39: =H6 -> 90 | R39: %
F40: =H5 -> 8 | G40: =(H7*1.2) -> 54 | H40: =$G$40-F42 -> 27.24 | K40: 平均樹高 | M40: 係数 | Q40: 上位〇〇%目の樹高_m
B41: age | C41: age+1 | D41: Ri_H | E41: age10H/Ht | F41: デフォルト上層木高_m | G41: 補正上層木高_m | H41: 補正上層木高_m | K41: Wieble_scale | L41: Wieble_scale cm | M41: Wieble_shape | O41: age | P41: age+1 | Q41: 下刈り目安の樹高_m | R41: 下刈り目安の樹高_cm | T41: 下刈り完了の目安の樹高(cm) | U41: クリア 条件1 | V41: クリア 条件2 | X41: タイプ | Y41: 露出確率 % | Z41: 目安となる高さ cm
B42: =C42-1 -> 0 | C42: 1 | D42: =100*($D$35*(1-EXP(-1*$D$36*C42))^($D$37)) -> 32.81 | E42: =$D$52/D42 -> 29.89 | F42: =(F$40/$E42)*100 -> 26.76 | G42: =(F42+$H$40)/100 -> 0.54 | K42: =$K$35+$K$36*$B42+$K$37*$G42 -> 0.332 | M42: =$N$35+$N$36*$K42+$N$37*$B42+$N$38*$F$40 -> 6.327 | O42: =P42-1 -> 0 | P42: 1 | Q42: =0+K42*(-1*LN($H$6/100))^(1/M42) -> 0.23 | T42: =$L$3 -> 196 | X42: 広葉草本 | Y42: 70 | Z42: 122
B43: 1 | C43: 2 | D43: =100*($D$35*(1-EXP(-1*$D$36*C43))^($D$37)) -> 96.36 | E43: 10.18 | F43: =(F$40/$E43)*100 -> 78.60 | G43: =(F43+$H$40)/100 -> 1.06 | H43: =G43*100 -> 106 | K43: =$K$35+$K$36*$B43+$K$37*$G43 -> 0.732 | L43: =K43*100 -> 73 | M43: =$N$35+$N$36*$K43+$N$37*$B43+$N$38*$F$40 -> 5.746 | O43: 1 | P43: 2 | Q43: 0.49 | R43: =Q43*100 -> 49 | T43: 196 | U43: =IF(R43>T43,1,0) -> 0 | V43: =IF(U43=0,"",U43*B43) ->  | X43: 広葉草本 | Y43: 75 | Z43: 136
B44: 2 | C44: 3 | D44: 177.02 | E44: 5.54 | F44: 144.39 | G44: 1.72 | H44: 172 | K44: 1.262 | L44: 126 | M44: 5.420 | O44: 2 | P44: 3 | Q44: 0.83 | R44: 83 | T44: 196 | U44: =IF(R44>T44,1,0) -> 0 | V44: =IF(U44=0,"",U44*B44) ->  | X44: 広葉草本 | Y44: 80 | Z44: 151
B45: 3 | C45: 4 | D45: 268.45 | E45: 3.65 | F45: 218.97 | G45: 2.46 | H45: 246 | K45: 1.876 | L45: 188 | M45: 5.254 | O45: 3 | P45: 4 | Q45: 1.22 | R45: 122 | T45: 196 | U45: 0 | X45: 広葉草本 | Y45: 85 | Z45: 170
B46: 4 | C46: 5 | D46: 366.61 | E46: 2.68 | F46: 299.04 | G46: 3.26 | H46: 326 | K46: 2.542 | L46: 254 | M46: 5.188 | O46: 4 | P46: 5 | Q46: 1.65 | R46: 165 | T46: 196 | U46: 0 | X46: 広葉草本 | Y46: 90 | Z46: 196
B47: 5 | C47: 6 | D47: 468.66 | E47: 2.09 | F47: 382.29 | G47: 4.10 | H47: 410 | K47: 3.238 | L47: 324 | M47: 5.179 | O47: 5 | P47: 6 | Q47: 2.10 | R47: 210 | T47: 196 | U47: 1 | V47: 5 | X47: イネ・ カヤツリグサ | Y47: 70 | Z47: 105
B48: 6 | C48: 7 | D48: 572.54 | E48: 1.71 | F48: 467.03 | G48: 4.94 | H48: 494 | K48: 3.948 | L48: 395 | M48: 5.198 | O48: 6 | P48: 7 | Q48: 2.56 | R48: 256 | T48: 196 | U48: 1 | V48: 6 | X48: イネ・ カヤツリグサ | Y48: 75 | Z48: 110
B49: 7 | C49: 8 | D49: 676.72 | E49: 1.45 | F49: 552.00 | G49: 5.79 | H49: 579 | K49: 4.660 | L49: 466 | M49: 5.222 | O49: 7 | P49: 8 | Q49: 3.03 | R49: 303 | T49: 196 | U49: 1 | V49: 7 | X49: イネ・ カヤツリグサ | Y49: 80 | Z49: 116
B50: 8 | C50: 9 | D50: 780.02 | E50: 1.26 | F50: 636.27 | G50: 6.64 | H50: 664 | K50: 5.366 | L50: 537 | M50: 5.232 | O50: 8 | P50: 9 | Q50: 3.49 | R50: 349 | T50: 196 | X50: イネ・ カヤツリグサ | Y50: 85 | Z50: 124
B51: 9 | C51: 10 | D51: 881.57 | E51: 1.11 | F51: 719.11 | G51: 7.46 | H51: 746 | K51: 6.058 | L51: 606 | M51: 5.216 | O51: 9 | P51: 10 | Q51: 3.94 | R51: 394 | T51: 196 | X51: イネ・ カヤツリグサ | Y51: 90 | Z51: 134
B52: 10 | C52: 11 | D52: 980.74 | E52: 1.00 | F52: 800.00 | G52: 8.27 | H52: 827 | K52: 6.732 | L52: 673 | M52: 5.165 | O52: 10 | P52: 11 | Q52: 4.35 | R52: 435 | T52: 196 | X52: 高茎草本 | Y52: 70 | Z52: 157
X53: 高茎草本 | Y53: 75 | Z53: 171
X54: 高茎草本 | Y54: 80 | Z54: 187
X55: 高茎草本 | Y55: 85 | Z55: 206
X56: 高茎草本 | Y56: 90 | Z56: 231
X57: 混交 | Y57: 70 | Z57: 88
X58: 混交 | Y58: 75 | Z58: 96
X59: 混交 | Y59: 80 | Z59: 106
X60: 混交 | Y60: 85 | Z60: 118
X61: 混交 | Y61: 90 | Z61: 134

Sheet 下刈り支援ツール_データあり
H1: 樹高データがある場合
H2: 入力 箇所 | L2: 出力 結果
B3: ① | C3: 上層木の平均樹高（上層高） （樹高の大きい上位100本/haに相当する立木の平均樹高) | H3: 224 | I3: cm | K3: 地位指数 （基準林齢：10年） | L3: =(H3/100)*(9.81/R30) -> 8.2
B4: ② | C4: 林齢 | H4: 3 | I4: 年 | K4: 下刈り完了の 目安の高さ(cm) | L4: =INDEX($AI$38:$AK$57,MATCH($H$5&$H$6,$AI$38:$AI$57&$AJ$38:$AJ$57,0),3) -> 196
B5: ③ | C5: 植生タイプ | H5: 広葉草本 | I5: 型 | K5: 下刈り必要年数 | L5: =IF(MIN(AG38:AG44)-1<0,"-",MIN(AG38:AG45)-1) -> 4
B6: ④ | C6: 下刈り完了の条件： 梢端部が被覆されていない植栽木の本数割合を何%にする？ | H6: 90 | I6: %
B7: ⑤ | C7: 下刈り対象木の範囲： 樹高の高い順から数えて、上位何%までを下刈り対象とする？ | H7: 80 | I7: %
C13: 植生タイプ | E13: 条件１ | F13: 条件2 | G13: 平均苗長 | H13: SI_10
C14: 広葉草本 | E14: 70 | F14: 70 | G14: 30 | H14: 6
C15: イネ・ カヤツリグサ | E15: 75 | F15: 75 | G15: 35 | H15: 6.5
C16: 高茎草本 | E16: 80 | F16: 80 | G16: 40 | H16: 7
C17: 混交 | E17: 85 | F17: 85 | G17: 45 | H17: 7.5
E18: 90 | F18: 90 | G18: 50 | H18: 8
G19: 55 | H19: 8.5
G20: 60 | H20: 9
H21: 9.5
H22: 10
H23: 10.5
H24: 11
H25: 11.5
H26: 12
N29: Richards | O29: Estimate | U29: 係数 for Scale parameter of CL | X29: 係数 for Shape parameter of CL
N30: a | O30: 27.884916 | Q30: Ht: | R30: =O30*(1-EXP(-1*O31*(H4+1)))^(O32) -> 2.684464021 | U30: (Intercept) | V30: -0.17782 | X30: 切片 | Y30: 6.68502
N31: b | O31: 0.068134 | U31: age | V31: -0.09069 | X31: scale_m | Y31: 1.92846
N32: c | O32: 1.633178 | U32: UpperH_N100_m | V32: 0.94487 | X32: age | Y32: -1.35018
N33: AIC | O33: 242.4 | X33: age10_SI | Y33: -0.12494
Q34: SI | AB34: =H7 -> 80 | AC34: %
Q35: =L3 -> 8.185768118 | V35: 平均樹高 | X35: 係数 | AB35: 上位〇〇%目の樹高_m
B36: age | C36: UpperH | D36: age | E36: age+1 | F36: Ri_H | G36: age10H/Ht | H36: 上層木高_m | K36: ageリスト | M36: age | N36: age+1 | O36: Ri_H | P36: age10H/Ht | Q36: デフォルト上層木高_m | S36: age | T36: age+1 | V36: Wieble_scale | W36: Wieble_scale cm | X36: Wieble_shape | Z36: age | AA36: age+1 | AB36: 下刈り目安の樹高_m | AC36: 下刈り目安の樹高_cm | AE36: 下刈り完了の目安の樹高(cm) | AF36: クリア 条件1 | AG36: クリア 条件2 | AI36: タイプ | AJ36: 露出確率 % | AK36: 目安となる高さ cm
M37: 0 | AE37: =$L$4 -> 196
B38: =H4 -> 3 | C38: =H3 -> 224.0 | D38: 2 | E38: =D38+1 -> 3 | F38: =100*($O$30*(1-EXP(-1*$O$31*E38))^($O$32)) -> 177.02 | G38: =$F$46/F38 -> 5.54 | H38: =($Q$35/$G38) -> 1.48 | I38: =H38*100 -> 147.7471212 | K38: 2 | M38: 2 | N38: =M38+1 -> 3 | O38: =100*($O$30*(1-EXP(-1*$O$31*N38))^($O$32)) -> 177.02 | P38: =$O$48/O38 -> 5.54 | Q38: =($Q$35/$P38) -> 1.48 | S38: 2 | T38: =S38+1 -> 3 | V38: =$V$30+$V$31*$M38+$V$32*($Q38) -> 1.037 | W38: =V38*100 -> 104 | X38: =$Y$30+$Y$31*$V38+$Y$32*$M38+$Y$33*$Q$35 -> 4.961 | Z38: 2 | AA38: =Z38+1 -> 3 | AB38: =0+V38*(-1*LN($H$7/100))^(1/X38) -> 0.77 | AC38: =AB38*100 -> 77 | AE38: 196 | AF38: =IF(AC38>AE38,1,0) -> 0 | AG38: =IF(AF38=0,"",AF38*M38) ->  | AI38: 広葉草本 | AJ38: 70 | AK38: 122
D39: =D38+1 -> 3 | E39: 4 | F39: 268.45 | G39: 3.65 | H39: 2.24 | I39: 224.0591087 | K39: 3 | M39: 3 | N39: 4 | O39: 268.45 | P39: 3.65 | Q39: 2.24 | S39: 3 | T39: 4 | V39: 1.667 | W39: 167 | X39: 4.827 | Z39: 3 | AA39: 4 | AB39: 1.22 | AC39: 122 | AE39: 196 | AF39: 0 | AI39: 広葉草本 | AJ39: 75 | AK39: 136
D40: 4 | E40: 5 | F40: 366.61 | G40: 2.68 | H40: 3.06 | I40: 305.9874729 | K40: 4 | M40: =M39+1 -> 4 | N40: 5 | O40: 366.61 | P40: 2.68 | Q40: 3.06 | S40: =S39+1 -> 4 | T40: 5 | V40: 2.351 | W40: 235 | X40: 4.795 | Z40: =Z39+1 -> 4 | AA40: 5 | AB40: 1.72 | AC40: 172 | AE40: 196 | AF40: 0 | AI40: 広葉草本 | AJ40: 80 | AK40: 151
D41: 5 | E41: 6 | F41: 468.66 | G41: 2.09 | H41: 3.91 | I41: 391.1679371 | K41: 5 | M41: 5 | N41: 6 | O41: 468.66 | P41: 2.09 | Q41: 3.91 | S41: 5 | T41: 6 | V41: 3.065 | W41: 306 | X41: 4.822 | Z41: 5 | AA41: 6 | AB41: 2.25 | AC41: 225 | AE41: 196 | AF41: 1 | AG41: 5 | AI41: 広葉草本 | AJ41: 85 | AK41: 170
D42: 6 | E42: 7 | F42: 572.54 | G42: 1.71 | H42: 4.78 | I42: 477.8745557 | K42: 6 | M42: 6 | N42: 7 | O42: 572.54 | P42: 1.71 | Q42: 4.78 | S42: 6 | T42: 7 | V42: 3.793 | W42: 379 | X42: 4.877 | Z42: 6 | AA42: 7 | AB42: 2.79 | AC42: 279 | AE42: 196 | AF42: 1 | AG42: 6 | AI42: 広葉草本 | AJ42: 90 | AK42: 196
D43: 7 | E43: 8 | F43: 676.72 | G43: 1.45 | H43: 5.65 | I43: 564.8212108 | M43: 7 | N43: 8 | O43: 676.72 | P43: 1.45 | Q43: 5.65 | S43: 7 | T43: 8 | V43: 4.524 | W43: 452 | X43: 4.936 | Z43: 7 | AA43: 8 | AB43: 3.34 | AC43: 334 | AE43: 196 | AF43: 1 | AG43: 7 | AI43: イネ・ カヤツリグサ | AJ43: 70 | AK43: 105
D44: 8 | E44: 9 | F44: 780.02 | G44: 1.26 | H44: 6.51 | I44: 651.0411491 | M44: 8 | N44: 9 | O44: 780.02 | P44: 1.26 | Q44: 6.51 | S44: 8 | T44: 9 | V44: 5.248 | W44: 525 | X44: 4.982 | Z44: 8 | AA44: 9 | AB44: 3.88 | AC44: 388 | AE44: 196 | AF44: 1 | AG44: 8 | AI44: イネ・ カヤツリグサ | AJ44: 75 | AK44: 110
D45: 9 | E45: 10 | F45: 881.57 | G45: 1.11 | H45: 7.36 | I45: 735.8073612 | M45: 9 | N45: 10 | O45: 881.57 | P45: 1.11 | Q45: 7.36 | S45: 9 | T45: 10 | V45: 5.958 | W45: 596 | X45: 5.001 | Z45: 9 | AA45: 10 | AB45: 4.41 | AC45: 441 | AE45: 196 | AF45: 1 | AG45: 9 | AI45: イネ・ カヤツリグサ | AJ45: 80 | AK45: 116
D46: 10 | E46: 11 | F46: 980.74 | G46: 1.00 | H46: 8.19 | I46: 818.5768118 | M46: 10 | N46: 11 | O46: 980.74 | P46: 1.00 | Q46: 8.19 | S46: 10 | T46: 11 | V46: 6.650 | W46: 665 | X46: 4.984 | AB46: 4.92 | AC46: 492 | AE46: 196 | AI46: イネ・ カヤツリグサ | AJ46: 85 | AK46: 124
M47: =N47-1 -> 9 | N47: 10 | O47: 881.57 | P47: 1.11 | Q47: 7.36 | V47: 5.958 | W47: 596 | X47: 5.001 | AB47: 4.41 | AC47: 441 | AE47: 196 | AI47: イネ・ カヤツリグサ | AJ47: 90 | AK47: 134
M48: =N48-1 -> 10 | N48: 11 | O48: 980.74 | P48: 1.00 | Q48: 8.19 | V48: 6.650 | W48: 665 | X48: 4.984 | AB48: 4.92 | AC48: 492 | AE48: 196 | AI48: 高茎草本 | AJ48: 70 | AK48: 157
AI49: 高茎草本 | AJ49: 75 | AK49: 171
AI50: 高茎草本 | AJ50: 80 | AK50: 187
AI51: 高茎草本 | AJ51: 85 | AK51: 206
AI52: 高茎草本 | AJ52: 90 | AK52: 231
AI53: 混交 | AJ53: 70 | AK53: 88
AI54: 混交 | AJ54: 75 | AK54: 96
AI55: 混交 | AJ55: 80 | AK55: 106
AI56: 混交 | AJ56: 85 | AK56: 118
AI57: 混交 | AJ57: 90 | AK57: 134

Sheet 地位指数（基準10年）
B1: Richards | D1: 年次 | E1: base | F1: SI_8 | G1: SI_9 | H1: SI_10 | I1: SI_11 | J1: SI_12 | S1: 林齢 | T1: 上層高
B2: Estimate | D2: 2 | E2: =$B$3*(1-EXP(-$B$4*D2))^$B$5 -> 1.628003195 | F2: =8*$E2/$E$10 -> 1.330141237 | G2: =9*$E2/$E$10 -> 1.496408892 | H2: =10*$E2/$E$10 -> 1.662676546 | I2: =11*$E2/$E$10 -> 1.828944201 | J2: =12*$E2/$E$10 -> 1.995211855 | Q2: 林齢 | R2: 10 | S2: 2 | T2: =$R$5*E2/$E$10 -> 1.5 | W2: 入力セル
A3: a | B3: 30.103108 | D3: 3 | E3: 2.640870818 | F3: 2.157693048 | G3: 2.427404679 | H3: 2.69711631 | I3: 2.966827941 | J3: 3.236539572 | Q3: 上層高 | R3: 9 | S3: 3 | T3: 2.4 | W3: ※上層高には１ヘクタール当たり上位100本の平均値を入力してください。
A4: b | B4: 0.053535 | D4: 4 | E4: 3.687490793 | F4: 3.01282183 | G4: 3.389424559 | H4: 3.766027287 | I4: 4.142630016 | J4: 4.519232745 | S4: 4 | T4: 3.4
A5: c | B5: 1.275406 | D5: 5 | E5: 4.743497911 | F5: 3.875620268 | G5: 4.360072802 | H5: 4.844525335 | I5: 5.328977869 | J5: 5.813430402 | Q5: 地位指数 | R5: =R3*$E$10/(B3*(1-EXP(-B4*R2))^B5) -> 9 | S5: 5 | T5: 4.4 | W5: ※黄色のセルに地位指数（10年次の上層高）が表示されます。
D6: 6 | E6: 5.794112472 | F6: 4.73401278 | G6: 5.325764378 | H6: 5.917515975 | I6: 6.509267573 | J6: 7.10101917 | S6: 6 | T6: 5.3
D7: 7 | E7: 6.829719022 | F7: 5.58014317 | G7: 6.277661066 | H7: 6.975178962 | I7: 7.672696858 | J7: 8.370214755 | S7: 7 | T7: 6.3 | W7: ※このシートで計算した地位指数は，下刈り支援ツールの10年次地位指数で使用します。
D8: 8 | E8: 7.843845953 | F8: 6.408723885 | G8: 7.20981437 | H8: 8.010904856 | I8: 8.811995341 | J8: 9.613085827 | S8: 8 | T8: 7.2
D9: 9 | E9: 8.832086509 | F9: 7.216154435 | G9: 8.118173739 | H9: 9.020193044 | I9: 9.922212348 | J9: 10.82423165 | S9: 9 | T9: 8.1
D10: 10 | E10: 9.791460633 | F10: 8 | G10: 9 | H10: 10 | I10: 11 | J10: 12 | S10: 10 | T10: 9

Sheet 地位指数
B1: 道立総合研究機構 森林研究本部 林業試験場
B2: クリーンラーチ地位指数曲線 | F2: 林齢 | G2: 40 | H2: （年） | K2: 入力セル | P2: グラフ用データ
B3: 自動作成シート | F3: 上層高 | G3: 18 | H3: （ｍ） | J3: ※上層高には１ヘクタール当たり上位100本の平均値を入力してください。 | P3: 18 | Q3: 20 | R3: 22 | S3: 24 | T3: 26 | U3: 28 | V3: 30 | W3: 推定値
O4: 1 | P4: =P$3*($DA$5*(1-EXP(-$DA$6*($O4+1)))^$DA$7)/$DA$8 -> 0.6896115809 | Q4: =Q$3*($DA$5*(1-EXP(-$DA$6*($O4+1)))^$DA$7)/$DA$8 -> 0.7662350898 | R4: 0.8428585988 | S4: 0.9194821078 | T4: 0.9961056168 | U4: 1.072729126 | V4: 1.149352635 | W4: =$C$8*($DA$5*(1-EXP(-$DA$6*($O4+1)))^$DA$7)/$DA$8 -> 0.6896115809
J5: ※黄色のセルに地位指数（40年生時の上層高）が表示されます。 | O5: 5 | P5: =P$3*($DA$5*(1-EXP(-$DA$6*($O5+1)))^$DA$7)/$DA$8 -> 3.353974175 | Q5: 3.726637973 | R5: 4.09930177 | S5: 4.471965567 | T5: 4.844629364 | U5: 5.217293162 | V5: 5.589956959 | W5: =$C$8*($DA$5*(1-EXP(-$DA$6*($O5+1)))^$DA$7)/$DA$8 -> 3.353974175 | DA5: 27.884916
O6: 10 | P6: 7.01868744 | Q6: 7.7985416 | R6: 8.57839576 | S6: 9.35824992 | T6: 10.13810408 | U6: 10.91795824 | V6: 11.6978124 | W6: 7.01868744 | AD6: 16 | AE6: 17 | AF6: 18 | AG6: 19 | AH6: 20 | AI6: 21 | AJ6: 22 | AK6: 23 | AL6: 24 | AM6: 25 | AN6: 26 | AO6: 27 | AP6: 28 | AQ6: 29 | AR6: 30 | AS6: 31 | AT6: 32 | AU6: 33 | AV6: 34 | AW6: 35 | AX6: 36 | AY6: 37 | AZ6: 38 | BA6: 39 | BB6: 40 | BC6: 41 | BD6: 42 | BE6: 43 | BF6: 44 | BG6: 45 | DA6: 0.068134
B7: 計算結果 | O7: 15 | P7: 10.22021599 | Q7: 11.35579555 | R7: 12.4913751 | S7: 13.62695466 | T7: 14.76253421 | U7: 15.89811377 | V7: 17.03369332 | W7: 10.22021599 | CN7: =+CF8 -> 47 | CO7: =+BX8 -> 31 | CP7: =+BP8 -> 15 | CQ7: =+BI8 -> 1 | CR7: 林齢 | DA7: 1.633178
B8: 地位指数 | C8: =$G$3*$DA$8/(DA5*(1-EXP(-DA6*(G2+1)))^DA7) -> 18.0 | O8: 20 | P8: 12.77157335 | Q8: 14.19063706 | R8: 15.60970077 | S8: 17.02876447 | T8: 18.44782818 | U8: 19.86689188 | V8: 21.28595559 | W8: 12.77157335 | AD8: =+収穫予測!$G11 -> 2 | AE8: =+収穫予測!$G12 -> 4 | AF8: =+収穫予測!$G13 -> 6 | AG8: =+収穫予測!$G14 -> 8 | AH8: =+収穫予測!$G15 -> 10 | AI8: =+収穫予測!$G16 -> 12 | AJ8: =+収穫予測!$G17 -> 14 | AK8: =+収穫予測!$G18 -> 16 | AL8: =+収穫予測!$G19 -> 18 | AM8: =+収穫予測!$G20 -> 20 | AN8: =+収穫予測!$G21 -> 22 | AO8: =+収穫予測!$G22 -> 24 | AP8: =+収穫予測!$G23 -> 26 | AQ8: =+収穫予測!$G24 -> 28 | AR8: =+収穫予測!$G25 -> 30 | AS8: =+収穫予測!$G26 -> 32 | AT8: =+収穫予測!$G27 -> 34 | AU8: =+収穫予測!$G28 -> 36 | AV8: =+収穫予測!$G29 -> 38 | AW8: =+収穫予測!$G30 -> 40 | AX8: =+収穫予測!$G31 -> 42 | AY8: =+収穫予測!$G32 -> 44 | AZ8: =+収穫予測!$G33 -> 46 | BA8: =+収穫予測!$G34 -> 48 | BB8: =+収穫予測!$G35 -> 50 | BC8: =+収穫予測!$G36 -> 52 | BD8: =+収穫予測!$G37 -> 54 | BE8: =+収穫予測!$G38 -> 56 | BF8: =+収穫予測!$G39 -> 58 | BG8: =+収穫予測!$G40 -> 60 | BI8: =+(0+AD8)/2 -> 1 | BJ8: =+(AD8+AE8)/2 -> 3 | BK8: =+(AE8+AF8)/2 -> 5 | BL8: 7 | BM8: 9 | BN8: 11 | BO8: 13 | BP8: 15 | BQ8: 17 | BR8: 19 | BS8: 21 | BT8: 23 | BU8: 25 | BV8: 27 | BW8: 29 | BX8: 31 | BY8: 33 | BZ8: 35 | CA8: 37 | CB8: 39 | CC8: 41 | CD8: 43 | CE8: 45 | CF8: 47 | CG8: 49 | CH8: 51 | CI8: 53 | CJ8: 55 | CK8: 57 | CL8: 59 | CN8: =+CL8 -> 59 | CO8: =+CE8 -> 45 | CP8: =+BW8 -> 29 | CQ8: =+BO8 -> 13 | CR8: =+収穫予測!N11 -> 10 | DA8: =$DA$5*(1-EXP(-$DA$6*(40+1)))^$DA$7 -> 25.15
B9: 林齢 | C9: 上層高 | D9: 林齢 | E9: 上層高 | F9: 林齢 | G9: 上層高 | H9: 林齢 | I9: 上層高 | J9: 林齢 | K9: 上層高 | L9: 林齢 | M9: 上層高 | O9: 25 | P9: 14.71777743 | Q9: 16.35308603 | R9: 17.98839463 | S9: 19.62370324 | T9: 21.25901184 | U9: 22.89432044 | V9: 24.52962904 | W9: 14.71777743 | AC9: =SUM(AD9:BG9) -> 0 | AD9: =+収穫予測!H11 -> 0 | AE9: =+収穫予測!H12 -> 0 | AF9: =+収穫予測!$H13 -> 0 | AG9: =+収穫予測!$H14 -> 0 | AH9: =+収穫予測!$H15 -> 0 | AI9: =+収穫予測!$H16 -> 0 | AJ9: =+収穫予測!$H17 -> 0 | AK9: =+収穫予測!$H18 -> 0 | AL9: =+収穫予測!$H19 -> 0 | AM9: =+収穫予測!$H20 -> 0 | AN9: =+収穫予測!$H21 -> 0 | AO9: =+収穫予測!$H22 -> 0 | AP9: =+収穫予測!$H23 -> 0 | AQ9: =+収穫予測!$H24 -> 0 | AR9: =+収穫予測!$H25 -> 0 | AS9: =+収穫予測!$H26 -> 0 | AT9: =+収穫予測!$H27 -> 0 | AU9: =+収穫予測!$H28 -> 0 | AV9: =+収穫予測!$H29 -> 0 | AW9: =+収穫予測!$H30 -> 0 | AX9: =+収穫予測!$H31 -> 0 | AY9: =+収穫予測!$H32 -> 0 | AZ9: =+収穫予測!$H33 -> 0 | BA9: =+収穫予測!$H34 -> 0 | BB9: =+収穫予測!$H35 -> 0 | BC9: =+収穫予測!$H36 -> 0 | BD9: =+収穫予測!$H37 -> 0 | BE9: =+収穫予測!$H38 -> 0 | BF9: =+収穫予測!$H39 -> 0 | BG9: =+収穫予測!$H40 -> 0 | BI9: =ROUND((SUM(AD9:$BG9)/収穫予測!$G$6)*0.1,0) -> 0 | BJ9: =ROUND((SUM(AE9:$BG9)/収穫予測!$G$6)*0.1,0) -> 0 | BK9: =ROUND((SUM(AF9:$BG9)/収穫予測!$G$6)*0.1,0) -> 0 | BL9: =ROUND((SUM(AG9:$BG9)/収穫予測!$G$6)*0.1,0) -> 0 | BM9: =ROUND((SUM(AH9:$BG9)/収穫予測!$G$6)*0.1,0) -> 0 | BN9: =ROUND((SUM(AI9:$BG9)/収穫予測!$G$6)*0.1,0) -> 0 | BO9: =ROUND((SUM(AJ9:$BG9)/収穫予測!$G$6)*0.1,0) -> 0 | BP9: =ROUND((SUM(AK9:$BG9)/収穫予測!$G$6)*0.1,0) -> 0 | BQ9: =ROUND((SUM(AL9:$BG9)/収穫予測!$G$6)*0.1,0) -> 0 | BR9: =ROUND((SUM(AM9:$BG9)/収穫予測!$G$6)*0.1,0) -> 0 | BS9: =ROUND((SUM(AN9:$BG9)/収穫予測!$G$6)*0.1,0) -> 0 | BT9: =ROUND((SUM(AO9:$BG9)/収穫予測!$G$6)*0.1,0) -> 0 | BU9: =ROUND((SUM(AP9:$BG9)/収穫予測!$G$6)*0.1,0) -> 0 | BV9: =ROUND((SUM(AQ9:$BG9)/収穫予測!$G$6)*0.1,0) -> 0 | BW9: =ROUND((SUM(AR9:$BG9)/収穫予測!$G$6)*0.1,0) -> 0 | BX9: =ROUND((SUM(AS9:$BG9)/収穫予測!$G$6)*0.1,0) -> 0 | BY9: =ROUND((SUM(AT9:$BG9)/収穫予測!$G$6)*0.1,0) -> 0 | BZ9: =ROUND((SUM(AU9:$BG9)/収穫予測!$G$6)*0.1,0) -> 0 | CA9: =ROUND((SUM(AV9:$BG9)/収穫予測!$G$6)*0.1,0) -> 0 | CB9: =ROUND((SUM(AW9:$BG9)/収穫予測!$G$6)*0.1,0) -> 0 | CC9: =ROUND((SUM(AX9:$BG9)/収穫予測!$G$6)*0.1,0) -> 0 | CD9: =ROUND((SUM(AY9:$BG9)/収穫予測!$G$6)*0.1,0) -> 0 | CE9: =ROUND((SUM(AZ9:$BG9)/収穫予測!$G$6)*0.1,0) -> 0 | CF9: =ROUND((SUM(BA9:$BG9)/収穫予測!$G$6)*0.1,0) -> 0 | CG9: =ROUND((SUM(BB9:$BG9)/収穫予測!$G$6)*0.1,0) -> 0 | CH9: =ROUND((SUM(BC9:$BG9)/収穫予測!$G$6)*0.1,0) -> 0 | CI9: =ROUND((SUM(BD9:$BG9)/収穫予測!$G$6)*0.1,0) -> 0 | CJ9: =ROUND((SUM(BE9:$BG9)/収穫予測!$G$6)*0.1,0) -> 0 | CK9: =ROUND((SUM(BF9:$BG9)/収穫予測!$G$6)*0.1,0) -> 0 | CL9: =ROUND((SUM(BG9:$BG9)/収穫予測!$G$6)*0.1,0) -> 0 | CM9: 1 | CN9: =IF($CM9>$BI$9,"",IF($CM9<=$CL$9,$CL$8,IF($CM9<=$CK$9,$CK$8,IF($CM9<=$CJ$9,$CJ$8,IF($CM9<=$CI$9,$CI$8,IF($CM9<=$CH$9,$CH$8,IF($CM9<=$CG$9,$CG$8,IF($CM9<=$CF$9,$CF$8,)))))))) ->  | CO9: =IF($CM9<=$CE$9,$CE$8,IF($CM9<$CD$9,$CD$8,IF($CM9<=$CC$9,$CC$8,IF($CM9<=$CB$9,$CB$8,IF($CM9<=$CA$9,$CA$8,IF($CM9<=$BZ$9,$BZ$8,IF($CM9<=$BY$9,$BY$8,IF($CM9<=$BX$9,$BX$8,)))))))) -> 0 | CP9: =IF($CM9<=$BW$9,$BW$8,IF($CM9<=$BV$9,$BV$8,IF($CM9<=$BU$9,$BU$8,IF($CM9<=$BT$9,$BT$8,IF($CM9<=$BS$9,$BS$8,IF($CM9<=$BR$9,$BR$8,IF($CM9<=$BQ$9,$BQ$8,IF($CM9<=$BP$9,$BP$8,)))))))) -> 0 | CQ9: =IF($CM9<=$BO$9,$BO$8,IF($CM9<=$BN$9,$BN$8,IF($CM9<=$BM$9,$BM$8,IF($CM9<=$BL$9,$BL$8,IF($CM9<=$BK$9,$BK$8,IF($CM9<=$BJ$9,$BJ$8,IF($CM9<=$BI$9,$BI$8,""))))))) ->  | CR9: =IF(MAX(CN9:CQ9)=0,"",MAX(CN9:CQ9)) -> 
B10: 1 | C10: =$C$8*($DA$5*(1-EXP(-$DA$6*(B10+1)))^$DA$7)/$DA$8 -> 0.69 | D10: 16 | E10: =$C$8*($DA$5*(1-EXP(-$DA$6*(D10+1)))^$DA$7)/$DA$8 -> 10.78 | F10: 31 | G10: =$C$8*($DA$5*(1-EXP(-$DA$6*(F10+1)))^$DA$7)/$DA$8 -> 16.41 | H10: 46 | I10: =$C$8*($DA$5*(1-EXP(-$DA$6*(H10+1)))^$DA$7)/$DA$8 -> 18.65 | J10: 61 | K10: =$C$8*($DA$5*(1-EXP(-$DA$6*(J10+1)))^$DA$7)/$DA$8 -> 19.48 | L10: 76 | M10: =$C$8*($DA$5*(1-EXP(-$DA$6*(L10+1)))^$DA$7)/$DA$8 -> 19.78 | O10: 30 | P10: 16.16639411 | Q10: 17.96266012 | R10: 19.75892613 | S10: 21.55519215 | T10: 23.35145816 | U10: 25.14772417 | V10: 26.94399018 | W10: 16.16639411 | CM10: 2 | CN10: =IF($CM10>$BI$9,"",IF($CM10<=$CL$9,$CL$8,IF($CM10<=$CK$9,$CK$8,IF($CM10<=$CJ$9,$CJ$8,IF($CM10<=$CI$9,$CI$8,IF($CM10<=$CH$9,$CH$8,IF($CM10<=$CG$9,$CG$8,IF($CM10<=$CF$9,$CF$8,)))))))) ->  | CO10: =IF($CM10<=$CE$9,$CE$8,IF($CM10<$CD$9,$CD$8,IF($CM10<=$CC$9,$CC$8,IF($CM10<=$CB$9,$CB$8,IF($CM10<=$CA$9,$CA$8,IF($CM10<=$BZ$9,$BZ$8,IF($CM10<=$BY$9,$BY$8,IF($CM10<=$BX$9,$BX$8,)))))))) -> 0 | CP10: =IF($CM10<=$BW$9,$BW$8,IF($CM10<=$BV$9,$BV$8,IF($CM10<=$BU$9,$BU$8,IF($CM10<=$BT$9,$BT$8,IF($CM10<=$BS$9,$BS$8,IF($CM10<=$BR$9,$BR$8,IF($CM10<=$BQ$9,$BQ$8,IF($CM10<=$BP$9,$BP$8,)))))))) -> 0 | CQ10: =IF($CM10<=$BO$9,$BO$8,IF($CM10<=$BN$9,$BN$8,IF($CM10<=$BM$9,$BM$8,IF($CM10<=$BL$9,$BL$8,IF($CM10<=$BK$9,$BK$8,IF($CM10<=$BJ$9,$BJ$8,IF($CM10<=$BI$9,$BI$8,""))))))) ->  | CR10: =IF(MAX(CN10:CQ10)=0,"",MAX(CN10:CQ10)) -> 
B11: =B10+1 -> 2 | C11: =$C$8*($DA$5*(1-EXP(-$DA$6*(B11+1)))^$DA$7)/$DA$8 -> 1.27 | D11: =D10+1 -> 17 | E11: 11.32 | F11: =F10+1 -> 32 | G11: =$C$8*($DA$5*(1-EXP(-$DA$6*(F11+1)))^$DA$7)/$DA$8 -> 16.63 | H11: =H10+1 -> 47 | I11: 18.73 | J11: =J10+1 -> 62 | K11: 19.51 | L11: =L10+1 -> 77 | M11: =$C$8*($DA$5*(1-EXP(-$DA$6*(L11+1)))^$DA$7)/$DA$8 -> 19.80 | O11: 35 | P11: 17.22860133 | Q11: 19.14289037 | R11: 21.0571794 | S11: 22.97146844 | T11: 24.88575748 | U11: 26.80004651 | V11: 28.71433555 | W11: 17.22860133 | CM11: 3 | CO11: 0 | CP11: =IF($CM11<=$BW$9,$BW$8,IF($CM11<=$BV$9,$BV$8,IF($CM11<=$BU$9,$BU$8,IF($CM11<=$BT$9,$BT$8,IF($CM11<=$BS$9,$BS$8,IF($CM11<=$BR$9,$BR$8,IF($CM11<=$BQ$9,$BQ$8,IF($CM11<=$BP$9,$BP$8,)))))))) -> 0
B12: 3 | C12: 1.92 | D12: 18 | E12: 11.83 | F12: 33 | G12: =$C$8*($DA$5*(1-EXP(-$DA$6*(F12+1)))^$DA$7)/$DA$8 -> 16.84 | H12: 48 | I12: 18.81 | J12: 63 | K12: 19.54 | L12: 78 | M12: =$C$8*($DA$5*(1-EXP(-$DA$6*(L12+1)))^$DA$7)/$DA$8 -> 19.81 | O12: 40 | P12: 18 | Q12: 20 | R12: 22 | S12: 24 | T12: 26 | U12: 28 | V12: 30 | W12: 18 | CM12: 4 | CO12: 0 | CP12: 0
B13: 4 | C13: 2.62 | D13: 19 | E13: 12.31 | F13: 34 | G13: =$C$8*($DA$5*(1-EXP(-$DA$6*(F13+1)))^$DA$7)/$DA$8 -> 17.04 | H13: 49 | I13: 18.89 | J13: 64 | K13: 19.57 | L13: 79 | M13: =$C$8*($DA$5*(1-EXP(-$DA$6*(L13+1)))^$DA$7)/$DA$8 -> 19.82 | O13: 45 | P13: 18.55663181 | Q13: 20.61847979 | R13: 22.68032776 | S13: 24.74217574 | T13: 26.80402372 | U13: 28.8658717 | V13: 30.92771968 | W13: 18.55663181 | CM13: 5 | CO13: 0 | CP13: 0
B14: 5 | C14: 3.35 | D14: 20 | E14: 12.77 | F14: 35 | G14: =$C$8*($DA$5*(1-EXP(-$DA$6*(F14+1)))^$DA$7)/$DA$8 -> 17.23 | H14: 50 | I14: 18.96 | J14: 65 | K14: 19.59 | L14: 80 | M14: =$C$8*($DA$5*(1-EXP(-$DA$6*(L14+1)))^$DA$7)/$DA$8 -> 19.83 | O14: 50 | P14: 18.95654948 | Q14: 21.06283276 | R14: 23.16911603 | S14: 25.27539931 | T14: 27.38168258 | U14: 29.48796586 | V14: 31.59424913 | W14: 18.95654948 | CM14: 6 | CO14: 0 | CP14: 0
B15: 6 | C15: 4.10 | D15: 21 | E15: 13.21 | F15: 36 | G15: =$C$8*($DA$5*(1-EXP(-$DA$6*(F15+1)))^$DA$7)/$DA$8 -> 17.40 | H15: 51 | I15: 19.02 | J15: 66 | K15: 19.62 | L15: 81 | M15: =$C$8*($DA$5*(1-EXP(-$DA$6*(L15+1)))^$DA$7)/$DA$8 -> 19.83 | O15: 55 | P15: 19.24301652 | Q15: 21.38112947 | R15: 23.51924242 | S15: 25.65735536 | T15: 27.79546831 | U15: 29.93358126 | V15: 32.0716942 | W15: 19.24301652 | CM15: 7 | CO15: 0 | CP15: 0
B16: 7 | C16: 4.84 | D16: 22 | E16: 13.62 | F16: 37 | G16: =$C$8*($DA$5*(1-EXP(-$DA$6*(F16+1)))^$DA$7)/$DA$8 -> 17.57 | H16: 52 | I16: 19.08 | J16: 67 | K16: 19.64 | L16: 82 | M16: =$C$8*($DA$5*(1-EXP(-$DA$6*(L16+1)))^$DA$7)/$DA$8 -> 19.84 | O16: 60 | P16: 19.44779114 | Q16: 21.60865683 | R16: 23.76952251 | S16: 25.93038819 | T16: 28.09125387 | U16: 30.25211956 | V16: 32.41298524 | W16: 19.44779114 | CM16: 8 | CO16: 0 | CP16: 0
B17: 8 | C17: 5.58 | D17: 23 | E17: 14.01 | F17: 38 | G17: =$C$8*($DA$5*(1-EXP(-$DA$6*(F17+1)))^$DA$7)/$DA$8 -> 17.72 | H17: 53 | I17: 19.14 | J17: 68 | K17: 19.66 | L17: 83 | M17: =$C$8*($DA$5*(1-EXP(-$DA$6*(L17+1)))^$DA$7)/$DA$8 -> 19.85 | O17: 65 | P17: 19.59395699 | Q17: 21.77106333 | R17: 23.94816966 | S17: 26.12527599 | T17: 28.30238232 | U17: 30.47948866 | V17: 32.65659499 | W17: 19.59395699 | CM17: 9 | CO17: 0 | CP17: 0
B18: 9 | C18: 6.31 | D18: 24 | E18: 14.37 | F18: 39 | G18: =$C$8*($DA$5*(1-EXP(-$DA$6*(F18+1)))^$DA$7)/$DA$8 -> 17.87 | H18: 54 | I18: 19.19 | J18: 69 | K18: 19.68 | L18: 84 | M18: =$C$8*($DA$5*(1-EXP(-$DA$6*(L18+1)))^$DA$7)/$DA$8 -> 19.86 | O18: 70 | P18: 19.69818189 | Q18: 21.88686877 | R18: 24.07555565 | S18: 26.26424253 | T18: 28.4529294 | U18: 30.64161628 | V18: 32.83030316 | W18: 19.69818189 | CM18: 10 | CO18: 0 | CP18: 0
B19: 10 | C19: =$C$8*($DA$5*(1-EXP(-$DA$6*(B19+1)))^$DA$7)/$DA$8 -> 7.02 | D19: 25 | E19: 14.72 | F19: 40 | G19: =$C$8*($DA$5*(1-EXP(-$DA$6*(F19+1)))^$DA$7)/$DA$8 -> 18.00 | H19: 55 | I19: 19.24 | J19: 70 | K19: 19.70 | L19: 85 | M19: =$C$8*($DA$5*(1-EXP(-$DA$6*(L19+1)))^$DA$7)/$DA$8 -> 19.86 | O19: 75 | P19: 19.7724468 | Q19: 21.96938534 | R19: 24.16632387 | S19: 26.36326241 | T19: 28.56020094 | U19: 30.75713947 | V19: 32.95407801 | W19: 19.7724468 | CM19: 11 | CO19: 0 | CP19: 0
B20: 11 | C20: 7.71 | D20: 26 | E20: 15.04 | F20: 41 | G20: =$C$8*($DA$5*(1-EXP(-$DA$6*(F20+1)))^$DA$7)/$DA$8 -> 18.13 | H20: 56 | I20: 19.29 | J20: 71 | K20: 19.72 | L20: 86 | M20: =$C$8*($DA$5*(1-EXP(-$DA$6*(L20+1)))^$DA$7)/$DA$8 -> 19.87 | O20: 80 | P20: 19.82533688 | Q20: 22.02815209 | R20: 24.2309673 | S20: 26.43378251 | T20: 28.63659771 | U20: 30.83941292 | V20: 33.04222813 | W20: 19.82533688 | CM20: 12 | CO20: 0 | CP20: 0
B21: 12 | C21: 8.37 | D21: 27 | E21: 15.35 | F21: 42 | G21: =$C$8*($DA$5*(1-EXP(-$DA$6*(F21+1)))^$DA$7)/$DA$8 -> 18.24 | H21: 57 | I21: 19.33 | J21: 72 | K21: 19.73 | L21: 87 | M21: =$C$8*($DA$5*(1-EXP(-$DA$6*(L21+1)))^$DA$7)/$DA$8 -> 19.87 | CM21: 13 | CO21: 0 | CP21: 0
B22: 13 | C22: 9.02 | D22: 28 | E22: 15.64 | F22: 43 | G22: =$C$8*($DA$5*(1-EXP(-$DA$6*(F22+1)))^$DA$7)/$DA$8 -> 18.36 | H22: 58 | I22: 19.37 | J22: 73 | K22: 19.75 | L22: 88 | M22: =$C$8*($DA$5*(1-EXP(-$DA$6*(L22+1)))^$DA$7)/$DA$8 -> 19.88 | CM22: 14 | CO22: 0 | CP22: 0
B23: 14 | C23: 9.63 | D23: 29 | E23: 15.91 | F23: 44 | G23: =$C$8*($DA$5*(1-EXP(-$DA$6*(F23+1)))^$DA$7)/$DA$8 -> 18.46 | H23: 59 | I23: 19.41 | J23: 74 | K23: 19.76 | L23: 89 | M23: =$C$8*($DA$5*(1-EXP(-$DA$6*(L23+1)))^$DA$7)/$DA$8 -> 19.89 | CM23: 15 | CO23: 0 | CP23: 0
B24: 15 | C24: 10.22 | D24: 30 | E24: 16.17 | F24: 45 | G24: =$C$8*($DA$5*(1-EXP(-$DA$6*(F24+1)))^$DA$7)/$DA$8 -> 18.56 | H24: 60 | I24: 19.45 | J24: 75 | K24: 19.77 | L24: 90 | M24: =$C$8*($DA$5*(1-EXP(-$DA$6*(L24+1)))^$DA$7)/$DA$8 -> 19.89 | CM24: 16 | CO24: 0 | CP24: 0
CM25: 17 | CO25: 0 | CP25: 0
CM26: 18 | CO26: 0 | CP26: 0
CM27: 19 | CO27: 0 | CP27: 0
CM28: 20 | CO28: 0 | CP28: 0
CM29: 21 | CO29: 0 | CP29: 0
CM30: 22 | CO30: 0 | CP30: 0
CM31: 23 | CO31: 0 | CP31: 0
CM32: 24 | CO32: 0 | CP32: 0
CM33: 25 | CO33: 0 | CP33: 0
CM34: 26 | CO34: 0 | CP34: 0
CM35: 27 | CO35: 0 | CP35: 0
CM36: 28 | CO36: 0 | CP36: 0
CM37: 29 | CO37: 0 | CP37: 0
CM38: 30 | CO38: 0 | CP38: 0
CM39: 31 | CO39: 0 | CP39: 0
CM40: 32 | CO40: 0 | CP40: 0
CM41: 33 | CO41: 0 | CP41: 0
CM42: 34 | CO42: 0 | CP42: 0
CM43: 35 | CO43: 0 | CP43: 0
CM44: 36 | CO44: 0 | CP44: 0
CM45: 37 | CO45: 0 | CP45: 0
CM46: 38 | CO46: 0 | CP46: 0
CM47: 39 | CO47: 0 | CP47: 0
CM48: 40 | CO48: 0 | CP48: 0
CM49: 41 | CO49: 0 | CP49: 0
CM50: 42 | CO50: 0 | CP50: 0
CM51: 43 | CO51: 0 | CP51: 0
CM52: 44 | CO52: 0 | CP52: 0
CM53: 45 | CO53: 0 | CP53: 0
CM54: 46 | CO54: 0 | CP54: 0
CM55: 47 | CO55: 0 | CP55: 0
CM56: 48 | CO56: 0 | CP56: 0
CM57: 49 | CO57: 0 | CP57: 0
CM58: 50 | CO58: 0 | CP58: 0
CM59: 51 | CO59: 0 | CP59: 0
CM60: 52 | CO60: 0 | CP60: 0
CM61: 53 | CO61: 0 | CP61: 0
CM62: 54 | CO62: 0 | CP62: 0
CM63: 55 | CO63: 0 | CP63: 0
CM64: 56 | CO64: 0 | CP64: 0
CM65: 57 | CO65: 0 | CP65: 0
CM66: 58 | CO66: 0 | CP66: 0
CM67: 59 | CO67: 0 | CP67: 0
CM68: 60 | CO68: 0 | CP68: 0
CM69: 61 | CO69: 0 | CP69: 0
CM70: 62 | CO70: 0 | CP70: 0
CM71: 63 | CO71: 0 | CP71: 0
CM72: 64 | CO72: 0 | CP72: 0
CM73: 65 | CO73: 0 | CP73: 0
CM74: 66 | CN74: =IF($CM74>$BI$9,"",IF($CM74<=$CL$9,$CL$8,IF($CM74<=$CK$9,$CK$8,IF($CM74<=$CJ$9,$CJ$8,IF($CM74<=$CI$9,$CI$8,IF($CM74<=$CH$9,$CH$8,IF($CM74<=$CG$9,$CG$8,IF($CM74<=$CF$9,$CF$8,)))))))) ->  | CO74: =IF($CM74<=$CE$9,$CE$8,IF($CM74<$CD$9,$CD$8,IF($CM74<=$CC$9,$CC$8,IF($CM74<=$CB$9,$CB$8,IF($CM74<=$CA$9,$CA$8,IF($CM74<=$BZ$9,$BZ$8,IF($CM74<=$BY$9,$BY$8,IF($CM74<=$BX$9,$BX$8,)))))))) -> 0 | CP74: 0 | CQ74: =IF($CM74<=$BO$9,$BO$8,IF($CM74<=$BN$9,$BN$8,IF($CM74<=$BM$9,$BM$8,IF($CM74<=$BL$9,$BL$8,IF($CM74<=$BK$9,$BK$8,IF($CM74<=$BJ$9,$BJ$8,IF($CM74<=$BI$9,$BI$8,""))))))) ->  | CR74: =IF(MAX(CN74:CQ74)=0,"",MAX(CN74:CQ74)) -> 
CM75: 67 | CO75: 0 | CP75: =IF($CM75<=$BW$9,$BW$8,IF($CM75<=$BV$9,$BV$8,IF($CM75<=$BU$9,$BU$8,IF($CM75<=$BT$9,$BT$8,IF($CM75<=$BS$9,$BS$8,IF($CM75<=$BR$9,$BR$8,IF($CM75<=$BQ$9,$BQ$8,IF($CM75<=$BP$9,$BP$8,)))))))) -> 0
CM76: 68 | CO76: 0 | CP76: 0
CM77: 69 | CO77: 0 | CP77: 0
CM78: 70 | CO78: 0 | CP78: 0
CM79: 71 | CO79: 0 | CP79: 0
CM80: 72 | CO80: 0 | CP80: 0
CM81: 73 | CO81: 0 | CP81: 0
CM82: 74 | CO82: 0 | CP82: 0
CM83: 75 | CO83: 0 | CP83: 0
CM84: 76 | CO84: 0 | CP84: 0
CM85: 77 | CO85: 0 | CP85: 0
CM86: 78 | CO86: 0 | CP86: 0
CM87: 79 | CO87: 0 | CP87: 0
CM88: 80 | CO88: 0 | CP88: 0
CM89: 81 | CO89: 0 | CP89: 0
CM90: 82 | CO90: 0 | CP90: 0
CM91: 83 | CO91: 0 | CP91: 0
CM92: 84 | CO92: 0 | CP92: 0
CM93: 85 | CO93: 0 | CP93: 0
CM94: 86 | CO94: 0 | CP94: 0
CM95: 87 | CO95: 0 | CP95: 0
CM96: 88 | CO96: 0 | CP96: 0
CM97: 89 | CO97: 0 | CP97: 0
CM98: 90 | CO98: 0 | CP98: 0
CM99: 91 | CO99: 0 | CP99: 0
CM100: 92 | CO100: 0 | CP100: 0
CM101: 93 | CO101: 0 | CP101: 0
CM102: 94 | CO102: 0 | CP102: 0
CM103: 95 | CO103: 0 | CP103: 0
CM104: 96 | CO104: 0 | CP104: 0
CM105: 97 | CO105: 0 | CP105: 0
CM106: 98 | CO106: 0 | CP106: 0
CM107: 99 | CO107: 0 | CP107: 0
CM108: 100 | CO108: 0 | CP108: 0
CM109: 101 | CO109: 0 | CP109: 0
CM110: 102 | CO110: 0 | CP110: 0
CM111: 103 | CO111: 0 | CP111: 0
CM112: 104 | CO112: 0 | CP112: 0
CM113: 105 | CO113: 0 | CP113: 0
CM114: 106 | CO114: 0 | CP114: 0
CM115: 107 | CO115: 0 | CP115: 0
CM116: 108 | CO116: 0 | CP116: 0
CM117: 109 | CO117: 0 | CP117: 0
CM118: 110 | CO118: 0 | CP118: 0
CM119: 111 | CO119: 0 | CP119: 0
CM120: 112 | CO120: 0 | CP120: 0
CM121: 113 | CO121: 0 | CP121: 0
CM122: 114 | CO122: 0 | CP122: 0
CM123: 115 | CO123: 0 | CP123: 0
CM124: 116 | CO124: 0 | CP124: 0
CM125: 117 | CO125: 0 | CP125: 0
CM126: 118 | CO126: 0 | CP126: 0
CM127: 119 | CO127: 0 | CP127: 0
CM128: 120 | CO128: 0 | CP128: 0
CM129: 121 | CO129: 0 | CP129: 0
CM130: 122 | CO130: 0 | CP130: 0
CM131: 123 | CO131: 0 | CP131: 0
CM132: 124 | CO132: 0 | CP132: 0
CM133: 125 | CO133: 0 | CP133: 0
CM134: 126 | CO134: 0 | CP134: 0
CM135: 127 | CO135: 0 | CP135: 0
CM136: 128 | CO136: 0 | CP136: 0
CM137: 129 | CO137: 0 | CP137: 0
CM138: 130 | CN138: =IF($CM138>$BI$9,"",IF($CM138<=$CL$9,$CL$8,IF($CM138<=$CK$9,$CK$8,IF($CM138<=$CJ$9,$CJ$8,IF($CM138<=$CI$9,$CI$8,IF($CM138<=$CH$9,$CH$8,IF($CM138<=$CG$9,$CG$8,IF($CM138<=$CF$9,$CF$8,)))))))) ->  | CO138: =IF($CM138<=$CE$9,$CE$8,IF($CM138<$CD$9,$CD$8,IF($CM138<=$CC$9,$CC$8,IF($CM138<=$CB$9,$CB$8,IF($CM138<=$CA$9,$CA$8,IF($CM138<=$BZ$9,$BZ$8,IF($CM138<=$BY$9,$BY$8,IF($CM138<=$BX$9,$BX$8,)))))))) -> 0 | CP138: 0 | CQ138: =IF($CM138<=$BO$9,$BO$8,IF($CM138<=$BN$9,$BN$8,IF($CM138<=$BM$9,$BM$8,IF($CM138<=$BL$9,$BL$8,IF($CM138<=$BK$9,$BK$8,IF($CM138<=$BJ$9,$BJ$8,IF($CM138<=$BI$9,$BI$8,""))))))) ->  | CR138: =IF(MAX(CN138:CQ138)=0,"",MAX(CN138:CQ138)) -> 
CM139: 131 | CO139: 0 | CP139: =IF($CM139<=$BW$9,$BW$8,IF($CM139<=$BV$9,$BV$8,IF($CM139<=$BU$9,$BU$8,IF($CM139<=$BT$9,$BT$8,IF($CM139<=$BS$9,$BS$8,IF($CM139<=$BR$9,$BR$8,IF($CM139<=$BQ$9,$BQ$8,IF($CM139<=$BP$9,$BP$8,)))))))) -> 0
CM140: 132 | CO140: 0 | CP140: 0
CM141: 133 | CO141: 0 | CP141: 0
CM142: 134 | CO142: 0 | CP142: 0
CM143: 135 | CO143: 0 | CP143: 0
CM144: 136 | CO144: 0 | CP144: 0
CM145: 137 | CO145: 0 | CP145: 0
CM146: 138 | CO146: 0 | CP146: 0
CM147: 139 | CO147: 0 | CP147: 0
CM148: 140 | CO148: 0 | CP148: 0
CM149: 141 | CO149: 0 | CP149: 0
CM150: 142 | CO150: 0 | CP150: 0
CM151: 143 | CO151: 0 | CP151: 0
CM152: 144 | CO152: 0 | CP152: 0
CM153: 145 | CO153: 0 | CP153: 0
CM154: 146 | CO154: 0 | CP154: 0
CM155: 147 | CO155: 0 | CP155: 0
CM156: 148 | CO156: 0 | CP156: 0
CM157: 149 | CO157: 0 | CP157: 0
CM158: 150 | CO158: 0 | CP158: 0
CM159: 151 | CO159: 0 | CP159: 0
CM160: 152 | CO160: 0 | CP160: 0
CM161: 153 | CO161: 0 | CP161: 0
CM162: 154 | CO162: 0 | CP162: 0
CM163: 155 | CO163: 0 | CP163: 0
CM164: 156 | CO164: 0 | CP164: 0
CM165: 157 | CO165: 0 | CP165: 0
CM166: 158 | CO166: 0 | CP166: 0
CM167: 159 | CO167: 0 | CP167: 0
CM168: 160 | CO168: 0 | CP168: 0
CM169: 161 | CO169: 0 | CP169: 0
CM170: 162 | CO170: 0 | CP170: 0
CM171: 163 | CO171: 0 | CP171: 0
CM172: 164 | CO172: 0 | CP172: 0
CM173: 165 | CO173: 0 | CP173: 0
CM174: 166 | CO174: 0 | CP174: 0
CM175: 167 | CO175: 0 | CP175: 0
CM176: 168 | CO176: 0 | CP176: 0
CM177: 169 | CO177: 0 | CP177: 0
CM178: 170 | CO178: 0 | CP178: 0
CM179: 171 | CO179: 0 | CP179: 0
CM180: 172 | CO180: 0 | CP180: 0
CM181: 173 | CO181: 0 | CP181: 0
CM182: 174 | CO182: 0 | CP182: 0
CM183: 175 | CO183: 0 | CP183: 0
CM184: 176 | CO184: 0 | CP184: 0
CM185: 177 | CO185: 0 | CP185: 0
CM186: 178 | CO186: 0 | CP186: 0
CM187: 179 | CO187: 0 | CP187: 0
CM188: 180 | CO188: 0 | CP188: 0
CM189: 181 | CO189: 0 | CP189: 0
CM190: 182 | CO190: 0 | CP190: 0
CM191: 183 | CO191: 0 | CP191: 0
CM192: 184 | CO192: 0 | CP192: 0
CM193: 185 | CO193: 0 | CP193: 0
CM194: 186 | CO194: 0 | CP194: 0
CM195: 187 | CO195: 0 | CP195: 0
CM196: 188 | CO196: 0 | CP196: 0
CM197: 189 | CO197: 0 | CP197: 0
CM198: 190 | CO198: 0 | CP198: 0
CM199: 191 | CO199: 0 | CP199: 0
CM200: 192 | CO200: 0 | CP200: 0
... 108 more rows

Sheet 収穫予測
B1: 道立総合研究機構 森林研究本部 林業試験場
B2: 立木データ | F2: 林分データ | O2: 入力セル | AK2: 作成年月日 | AL2: 2018-01-10 | AP2: 0 | AQ2: 1 | AR2: データなし | AS2: 入力方法1 | AT2: 2
B3: 胸高直径 | C3: データなし | F3: 地位指数 | G3: 24 | AK3: 場所 | AL3: 美唄市 | AP3: 1 | AQ3: 2 | AR3: データあり | AS3: 入力方法2 | AU3: 容積密度 | AW3: 拡大係数 | BA3: 地下部・地上部比
B4: 樹高 | C4: データなし | F4: 植栽本数 | G4: 1500 | H4: 本/ha | N4: データありの地位指数 | P4: =+IF(C3="データなし","",IF(OR(C4="データなし",C5="入力方法2"),Sheet1!U222,Sheet1!U221)) ->  | W4: =+F3 -> 地位指数 | Z4: =+G3 -> 24 | AB4: =+F4 -> 植栽本数 | AD4: =+G4 -> 1500 | AE4: =+H4 -> 本/ha | AK4: 氏名 | AL4: 林業試験場 | AU4: 0.404 | AV4: t/m3 | AW4: 1.325 | AX4: (1.50と1.15の平均値） | BA4: 0.29 | BD4: 編集可能
B5: 入力方法 | C5: 入力方法1 | F5: 林齢 | G5: 30 | H5: 年生 | S5: 収穫予測
F6: 調査面積 | G6: 0.04 | H6: ha | N6: ※樹高データないときは推定値 | U6: 主副林木（間伐前） | AA6: 主林木（間伐後） | AD6: 副林木（間伐木） | AI6: 総収穫 | AK6: 幹材積連年成長量 | AL6: 幹材積年平均成長量 | AO6: 主林木CO2貯蔵量 | AW6: 主林木CO2吸収量 | AZ6: 主副林木CO2貯蔵量 | BC6: 主副林木CO2吸収量
U7: 平均 | W7: ha当たり | AA7: ha当たり | AD7: ha当たり | AO7: ha当たり | AW7: ha当たり／年 | AZ7: ha当たり | BC7: ha当たり／年
B8: 入力方法１ | F8: 入力方法２ | N8: 間伐スケジュール | S8: 林齢 | T8: 上層 高 | U8: 幹 材積 | V8: 胸高 直径 | W8: 立木本数 | X8: 幹 材積 | Y8: 収量比数 | Z8: 形状 比 | AA8: 立木本数 | AB8: 幹材積 | AC8: 収量比数 | AD8: 立木 本数 | AE8: 本数 比率 | AF8: 幹 材積 | AG8: 幹材積比率 | AH8: 胸高 直径 | AI8: 幹材積副林木 | AJ8: 主副林木幹材積 | AK8: 主副合計 | AL8: 主林木 | AM8: 主副合計 | AN8: 総収量 | AO8: 地上部 | AU8: 地下部 | AV8: 合計 | AW8: 地上部 | AX8: 地下部 | AY8: 合計 | AZ8: 地上部 | BA8: 地下部 | BB8: 合計 | BC8: 地上部 | BD8: 地下部 | BE8: 合計
B9: 立木 | C9: 胸高直径 | D9: 樹高 | F9: 胸高直径階 | H9: 立木 | N9: 林齢 | O9: 本数間伐率（％）
B10: No. | C10: cm | D10: m | F10: cm以上 | G10: cm未満 | H10: 本数 | J10: 間伐有無 | K10: 回数 | N10: 年 | O10: 全層 | P10: 上層 | Q10: 下層 | S10: 年 | T10: m | U10: m３ | V10: cm | W10: 本 | X10: m３ | Y10: Ry | Z10: H/D | AA10: 本 | AB10: m３ | AC10: Ry | AD10: 本 | AE10: % | AF10: m３ | AG10: % | AH10: cm | AI10: m３ | AK10: m３ | AL10: m３ | AO10: t-CO2 | AW10: t-CO2 | AZ10: t-CO2 | BC10: t-CO2
B11: 1 | C11: 47 | D11: 25 | F11: 0 | G11: =+$AT$2 -> 2 | J11: =IF(O11+P11+Q11=0,"",1) ->  | K11: =+IF(J11="","",SUM(J$11:J11)) ->  | M11: =SUM(O11:Q11) -> 0 | N11: =IF(Sheet1!E9="","",Sheet1!E9) -> 10 | S11: =IF(N11>40,"",Sheet1!N9) -> 10 | T11: =IF(S11="","",Sheet1!O9) -> 9.4 | U11: =IFERROR(IF(S11="","",Sheet1!P9),"") -> 0.042 | V11: =IFERROR(IF(S11="","",Sheet1!Q9),"") -> 10.1 | W11: =IFERROR(IF(S11="","",Sheet1!R9),"") -> 1440 | X11: =IFERROR(IF(S11="","",Sheet1!S9),"") -> 60 | Y11: =IFERROR(IF(S11="","",Sheet1!AA9),"") -> 0.54 | Z11: =IF(Y11="","",IFERROR(100*(0.9668*T11- 1.6905)/V11,"")) -> 73 | AA11: =+IF(S11="","",IF(SUM(O11:Q11)=0,"",Sheet1!T9)) ->  | AB11: =+IF(S11="","",IF(SUM(O11:Q11)=0,"",Sheet1!U9)) ->  | AC11: =+IF(S11="","",IF(SUM(O11:Q11)=0,"",Sheet1!AB9)) ->  | AD11: =IF(Sheet1!W9=0,"",IF(S11="","",Sheet1!W9)) ->  | AE11: =IF(Sheet1!Y9=0,"",IF(S11="","",Sheet1!Y9)) ->  | AF11: =IF(ISERROR(Sheet1!X9),"",IF(Sheet1!X9=0,"",IF(S11="","",Sheet1!X9))) ->  | AG11: =IF(ISERROR(Sheet1!Z9),"",IF(Sheet1!Z9=0,"",IF(S11="","",Sheet1!Z9))) ->  | AH11: =+IF(S11="","",Sheet1!V9) ->  | AI11: =IF(AF11="","",SUM(AF$11:AF11)) ->  | AJ11: =+IF(S11="","",X11) -> 60 | AK11: =+IF(S11="","",IF(AJ12="","",(AJ12-AJ11)/(S12-S11))) -> 14.5 | AL11: =+IF(AD11="","",AB11/S11) ->  | AM11: =+IF(T11="","",IF(S11="","",X11/S11)) -> 6.0 | AN11: =IF(T11="","",IF(S11="","",AJ11/S11)) -> 6.0 | AO11: =IF(T11="","",+$X11*$AU$4*$AW$4*0.5*3.67) -> 59 | AU11: =+IF(T11="","",$X11*$AU$4*$AW$4*$BA$4*0.5*3.67) -> 17 | AV11: =+IF(T11="","",AO11+AU11) -> 76 | AW11: =+IF(T11="","",(AO12-AO11)/(S12-S11)) -> 14.3 | AX11: =+IF(T11="","",(AU12-AU11)/(S12-S11)) -> 4.1 | AY11: =+IF(T11="","",AW11+AX11) -> 18.4 | AZ11: =+IF(T11="","",$AJ11*$AU$4*$AW$4*0.5*3.67) -> 59 | BA11: =+IF(T11="","",$AJ11*$AU$4*$AW$4*$BA$4*0.5*3.67) -> 17 | BB11: =+IF(T11="","",AZ11+BA11) -> 76 | BC11: =+IF(T11="","",(AZ12-AZ11)/(S12-S11)) -> 14.3 | BD11: =+IF(T11="","",(BA12-BA11)/(S12-S11)) -> 4.1 | BE11: =+IF(T11="","",BC11+BD11) -> 18.4
B12: 2 | C12: 40 | D12: 28 | F12: =+F11+$AT$2 -> 2 | G12: =+G11+$AT$2 -> 4 | K12: =+IF(J12="","",SUM(J$11:J12)) ->  | M12: =SUM(O12:Q12) -> 0 | N12: =IF(Sheet1!E10="","",Sheet1!E10) -> 11 | S12: =IF(N12>40,"",Sheet1!N10) -> 11 | T12: =IF(S12="","",Sheet1!O10) -> 10.3 | U12: =IFERROR(IF(S12="","",Sheet1!P10),"") -> 0.052 | V12: =IFERROR(IF(S12="","",Sheet1!Q10),"") -> 10.9 | W12: =IFERROR(IF(S12="","",Sheet1!R10),"") -> 1430 | X12: =IFERROR(IF(S12="","",Sheet1!S10),"") -> 75 | Y12: =IFERROR(IF(S12="","",Sheet1!AA10),"") -> 0.59 | Z12: =IF(Y12="","",IFERROR(100*(0.9668*T12- 1.6905)/V12,"")) -> 76 | AA12: =+IF(S12="","",IF(SUM(O12:Q12)=0,"",Sheet1!T10)) ->  | AB12: =+IF(S12="","",IF(SUM(O12:Q12)=0,"",Sheet1!U10)) ->  | AC12: =+IF(S12="","",IF(SUM(O12:Q12)=0,"",Sheet1!AB10)) ->  | AD12: =IF(Sheet1!W10=0,"",IF(S12="","",Sheet1!W10)) ->  | AE12: =IF(Sheet1!Y10=0,"",IF(S12="","",Sheet1!Y10)) ->  | AF12: =IF(ISERROR(Sheet1!X10),"",IF(Sheet1!X10=0,"",IF(S12="","",Sheet1!X10))) ->  | AG12: =IF(ISERROR(Sheet1!Z10),"",IF(Sheet1!Z10=0,"",IF(S12="","",Sheet1!Z10))) ->  | AH12: =+IF(S12="","",Sheet1!V10) ->  | AI12: =IF(AF12="","",SUM(AF$11:AF12)) ->  | AJ12: =+IF(T12="","",IF(S12="","",X12+SUM(AF$11:AF11))) -> 75 | AK12: 15.4 | AM12: =+IF(T12="","",IF(S12="","",X12/S12)) -> 6.8 | AN12: =IF(T12="","",IF(S12="","",AJ12/S12)) -> 6.8 | AO12: =IF(T12="","",+$X12*$AU$4*$AW$4*0.5*3.67) -> 73 | AU12: =+IF(T12="","",$X12*$AU$4*$AW$4*$BA$4*0.5*3.67) -> 21 | AV12: =+IF(T12="","",AO12+AU12) -> 94 | AW12: =+IF(T12="","",(AO13-AO12)/(S13-S12)) -> 15.1 | AX12: =+IF(T12="","",(AU13-AU12)/(S13-S12)) -> 4.4 | AY12: =+IF(T12="","",AW12+AX12) -> 19.5 | AZ12: =+IF(T12="","",$AJ12*$AU$4*$AW$4*0.5*3.67) -> 73 | BA12: =+IF(T12="","",$AJ12*$AU$4*$AW$4*$BA$4*0.5*3.67) -> 21 | BB12: =+IF(T12="","",AZ12+BA12) -> 94 | BC12: =+IF(T12="","",(AZ13-AZ12)/(S13-S12)) -> 15.1 | BD12: =+IF(T12="","",(BA13-BA12)/(S13-S12)) -> 4.4 | BE12: =+IF(T12="","",BC12+BD12) -> 19.5
B13: 3 | C13: 40 | D13: 24 | F13: 4 | G13: 6 | K13: =+IF(J13="","",SUM(J$11:J13)) ->  | M13: 0 | N13: =IF(Sheet1!E11="","",Sheet1!E11) -> 12 | S13: =IF(N13>40,"",Sheet1!N11) -> 12 | T13: =IF(S13="","",Sheet1!O11) -> 11.2 | U13: =IFERROR(IF(S13="","",Sheet1!P11),"") -> 0.063 | V13: =IFERROR(IF(S13="","",Sheet1!Q11),"") -> 11.6 | W13: =IFERROR(IF(S13="","",Sheet1!R11),"") -> 1420 | X13: =IFERROR(IF(S13="","",Sheet1!S11),"") -> 90 | Y13: =IFERROR(IF(S13="","",Sheet1!AA11),"") -> 0.64 | Z13: 78 | AA13: =+IF(S13="","",IF(SUM(O13:Q13)=0,"",Sheet1!T11)) ->  | AB13: =+IF(S13="","",IF(SUM(O13:Q13)=0,"",Sheet1!U11)) ->  | AC13: =+IF(S13="","",IF(SUM(O13:Q13)=0,"",Sheet1!AB11)) ->  | AD13: =IF(Sheet1!W11=0,"",IF(S13="","",Sheet1!W11)) ->  | AE13: =IF(Sheet1!Y11=0,"",IF(S13="","",Sheet1!Y11)) ->  | AF13: =IF(ISERROR(Sheet1!X11),"",IF(Sheet1!X11=0,"",IF(S13="","",Sheet1!X11))) ->  | AG13: =IF(ISERROR(Sheet1!Z11),"",IF(Sheet1!Z11=0,"",IF(S13="","",Sheet1!Z11))) ->  | AH13: =+IF(S13="","",Sheet1!V11) ->  | AI13: =IF(AF13="","",SUM(AF$11:AF13)) ->  | AJ13: =+IF(T13="","",IF(S13="","",X13+SUM(AF$11:AF12))) -> 90 | AK13: 16.0 | AM13: 7.5 | AN13: 7.5 | AO13: 88 | AU13: 26 | AV13: 114 | AW13: 15.7 | AX13: 4.5 | AY13: 20.2 | AZ13: 88 | BA13: 26 | BB13: 114 | BC13: 15.7 | BD13: 4.5 | BE13: 20.2
B14: 4 | C14: 38 | D14: 21 | F14: 6 | G14: 8 | K14: =+IF(J14="","",SUM(J$11:J14)) ->  | M14: 0 | N14: =IF(Sheet1!E12="","",Sheet1!E12) -> 13 | S14: =IF(N14>40,"",Sheet1!N12) -> 13 | T14: =IF(S14="","",Sheet1!O12) -> 12.0 | U14: =IFERROR(IF(S14="","",Sheet1!P12),"") -> 0.076 | V14: =IFERROR(IF(S14="","",Sheet1!Q12),"") -> 12.3 | W14: =IFERROR(IF(S14="","",Sheet1!R12),"") -> 1400 | X14: =IFERROR(IF(S14="","",Sheet1!S12),"") -> 106 | Y14: =IFERROR(IF(S14="","",Sheet1!AA12),"") -> 0.67 | Z14: =IF(Y14="","",IFERROR(100*(0.9668*T14- 1.6905)/V14,"")) -> 81 | AA14: =+IF(S14="","",IF(SUM(O14:Q14)=0,"",Sheet1!T12)) ->  | AB14: =+IF(S14="","",IF(SUM(O14:Q14)=0,"",Sheet1!U12)) ->  | AC14: =+IF(S14="","",IF(SUM(O14:Q14)=0,"",Sheet1!AB12)) ->  | AD14: =IF(Sheet1!W12=0,"",IF(S14="","",Sheet1!W12)) ->  | AE14: =IF(Sheet1!Y12=0,"",IF(S14="","",Sheet1!Y12)) ->  | AF14: =IF(ISERROR(Sheet1!X12),"",IF(Sheet1!X12=0,"",IF(S14="","",Sheet1!X12))) ->  | AG14: =IF(ISERROR(Sheet1!Z12),"",IF(Sheet1!Z12=0,"",IF(S14="","",Sheet1!Z12))) ->  | AH14: =+IF(S14="","",Sheet1!V12) ->  | AI14: =IF(AF14="","",SUM(AF$11:AF14)) ->  | AJ14: =+IF(T14="","",IF(S14="","",X14+SUM(AF$11:AF13))) -> 106 | AK14: 16.3 | AM14: 8.1 | AN14: 8.1 | AO14: 104 | AU14: 30 | AV14: 134 | AW14: 16.0 | AX14: 4.6 | AY14: 20.6 | AZ14: 104 | BA14: 30 | BB14: 134 | BC14: 16.0 | BD14: 4.6 | BE14: 20.6
B15: 5 | C15: 36 | D15: 22 | F15: 8 | G15: 10 | K15: =+IF(J15="","",SUM(J$11:J15)) ->  | M15: 0 | N15: =IF(Sheet1!E13="","",Sheet1!E13) -> 14 | S15: =IF(N15>40,"",Sheet1!N13) -> 14 | T15: =IF(S15="","",Sheet1!O13) -> 12.8 | U15: =IFERROR(IF(S15="","",Sheet1!P13),"") -> 0.089 | V15: =IFERROR(IF(S15="","",Sheet1!Q13),"") -> 12.9 | W15: =IFERROR(IF(S15="","",Sheet1!R13),"") -> 1380 | X15: =IFERROR(IF(S15="","",Sheet1!S13),"") -> 122 | Y15: =IFERROR(IF(S15="","",Sheet1!AA13),"") -> 0.70 | Z15: =IF(Y15="","",IFERROR(100*(0.9668*T15- 1.6905)/V15,"")) -> 83 | AA15: =+IF(S15="","",IF(SUM(O15:Q15)=0,"",Sheet1!T13)) ->  | AB15: =+IF(S15="","",IF(SUM(O15:Q15)=0,"",Sheet1!U13)) ->  | AC15: =+IF(S15="","",IF(SUM(O15:Q15)=0,"",Sheet1!AB13)) ->  | AD15: =IF(Sheet1!W13=0,"",IF(S15="","",Sheet1!W13)) ->  | AE15: =IF(Sheet1!Y13=0,"",IF(S15="","",Sheet1!Y13)) ->  | AF15: =IF(ISERROR(Sheet1!X13),"",IF(Sheet1!X13=0,"",IF(S15="","",Sheet1!X13))) ->  | AG15: =IF(ISERROR(Sheet1!Z13),"",IF(Sheet1!Z13=0,"",IF(S15="","",Sheet1!Z13))) ->  | AH15: =+IF(S15="","",Sheet1!V13) ->  | AI15: =IF(AF15="","",SUM(AF$11:AF15)) ->  | AJ15: =+IF(T15="","",IF(S15="","",X15+SUM(AF$11:AF14))) -> 122 | AK15: 16.5 | AM15: 8.7 | AN15: 8.7 | AO15: 120 | AU15: 35 | AV15: 155 | AW15: 16.2 | AX15: 4.7 | AY15: 20.8 | AZ15: 120 | BA15: 35 | BB15: 155 | BC15: 16.2 | BD15: 4.7 | BE15: 20.8
B16: 6 | C16: 36 | D16: 26 | F16: 10 | G16: 12 | K16: =+IF(J16="","",SUM(J$11:J16)) ->  | M16: 0 | N16: =IF(Sheet1!E14="","",Sheet1!E14) -> 15 | S16: =IF(N16>40,"",Sheet1!N14) -> 15 | T16: =IF(S16="","",Sheet1!O14) -> 13.6 | U16: =IFERROR(IF(S16="","",Sheet1!P14),"") -> 0.101 | V16: =IFERROR(IF(S16="","",Sheet1!Q14),"") -> 13.5 | W16: =IFERROR(IF(S16="","",Sheet1!R14),"") -> 1370 | X16: =IFERROR(IF(S16="","",Sheet1!S14),"") -> 139 | Y16: =IFERROR(IF(S16="","",Sheet1!AA14),"") -> 0.73 | Z16: 85 | AA16: =+IF(S16="","",IF(SUM(O16:Q16)=0,"",Sheet1!T14)) ->  | AB16: =+IF(S16="","",IF(SUM(O16:Q16)=0,"",Sheet1!U14)) ->  | AC16: =+IF(S16="","",IF(SUM(O16:Q16)=0,"",Sheet1!AB14)) ->  | AD16: =IF(Sheet1!W14=0,"",IF(S16="","",Sheet1!W14)) ->  | AE16: =IF(Sheet1!Y14=0,"",IF(S16="","",Sheet1!Y14)) ->  | AF16: =IF(ISERROR(Sheet1!X14),"",IF(Sheet1!X14=0,"",IF(S16="","",Sheet1!X14))) ->  | AG16: =IF(ISERROR(Sheet1!Z14),"",IF(Sheet1!Z14=0,"",IF(S16="","",Sheet1!Z14))) ->  | AH16: =+IF(S16="","",Sheet1!V14) ->  | AI16: =IF(AF16="","",SUM(AF$11:AF16)) ->  | AJ16: =+IF(T16="","",IF(S16="","",X16+SUM(AF$11:AF15))) -> 139 | AK16: 16.4 | AM16: 9.2 | AN16: 9.2 | AO16: 136 | AU16: 39 | AV16: 176 | AW16: 16.1 | AX16: 4.7 | AY16: 20.8 | AZ16: 136 | BA16: 39 | BB16: 176 | BC16: 16.1 | BD16: 4.7 | BE16: 20.8
B17: 7 | C17: 35 | D17: 23 | F17: 12 | G17: 14 | K17: =+IF(J17="","",SUM(J$11:J17)) ->  | M17: 0 | N17: =IF(Sheet1!E15="","",Sheet1!E15) -> 16 | S17: =IF(N17>40,"",Sheet1!N15) -> 16 | T17: =IF(S17="","",Sheet1!O15) -> 14.4 | U17: =IFERROR(IF(S17="","",Sheet1!P15),"") -> 0.115 | V17: =IFERROR(IF(S17="","",Sheet1!Q15),"") -> 14.0 | W17: =IFERROR(IF(S17="","",Sheet1!R15),"") -> 1350 | X17: =IFERROR(IF(S17="","",Sheet1!S15),"") -> 155 | Y17: =IFERROR(IF(S17="","",Sheet1!AA15),"") -> 0.76 | Z17: 87 | AA17: =+IF(S17="","",IF(SUM(O17:Q17)=0,"",Sheet1!T15)) ->  | AB17: =+IF(S17="","",IF(SUM(O17:Q17)=0,"",Sheet1!U15)) ->  | AC17: =+IF(S17="","",IF(SUM(O17:Q17)=0,"",Sheet1!AB15)) ->  | AD17: =IF(Sheet1!W15=0,"",IF(S17="","",Sheet1!W15)) ->  | AE17: =IF(Sheet1!Y15=0,"",IF(S17="","",Sheet1!Y15)) ->  | AF17: =IF(ISERROR(Sheet1!X15),"",IF(Sheet1!X15=0,"",IF(S17="","",Sheet1!X15))) ->  | AG17: =IF(ISERROR(Sheet1!Z15),"",IF(Sheet1!Z15=0,"",IF(S17="","",Sheet1!Z15))) ->  | AH17: =+IF(S17="","",Sheet1!V15) ->  | AI17: =IF(AF17="","",SUM(AF$11:AF17)) ->  | AJ17: =+IF(T17="","",IF(S17="","",X17+SUM(AF$11:AF16))) -> 155 | AK17: 16.2 | AM17: 9.7 | AN17: 9.7 | AO17: 152 | AU17: 44 | AV17: 196 | AW17: 15.9 | AX17: 4.6 | AY17: 20.6 | AZ17: 152 | BA17: 44 | BB17: 196 | BC17: 15.9 | BD17: 4.6 | BE17: 20.6
B18: 8 | C18: 34 | D18: 23 | F18: 14 | G18: 16 | K18: =+IF(J18="","",SUM(J$11:J18)) ->  | M18: 0 | N18: =IF(Sheet1!E16="","",Sheet1!E16) -> 17 | S18: =IF(N18>40,"",Sheet1!N16) -> 17 | T18: =IF(S18="","",Sheet1!O16) -> 15.1 | U18: =IFERROR(IF(S18="","",Sheet1!P16),"") -> 0.129 | V18: =IFERROR(IF(S18="","",Sheet1!Q16),"") -> 14.5 | W18: =IFERROR(IF(S18="","",Sheet1!R16),"") -> 1330 | X18: =IFERROR(IF(S18="","",Sheet1!S16),"") -> 171 | Y18: =IFERROR(IF(S18="","",Sheet1!AA16),"") -> 0.78 | Z18: 89 | AA18: =+IF(S18="","",IF(SUM(O18:Q18)=0,"",Sheet1!T16)) ->  | AB18: =+IF(S18="","",IF(SUM(O18:Q18)=0,"",Sheet1!U16)) ->  | AC18: =+IF(S18="","",IF(SUM(O18:Q18)=0,"",Sheet1!AB16)) ->  | AD18: =IF(Sheet1!W16=0,"",IF(S18="","",Sheet1!W16)) ->  | AE18: =IF(Sheet1!Y16=0,"",IF(S18="","",Sheet1!Y16)) ->  | AF18: =IF(ISERROR(Sheet1!X16),"",IF(Sheet1!X16=0,"",IF(S18="","",Sheet1!X16))) ->  | AG18: =IF(ISERROR(Sheet1!Z16),"",IF(Sheet1!Z16=0,"",IF(S18="","",Sheet1!Z16))) ->  | AH18: =+IF(S18="","",Sheet1!V16) ->  | AI18: =IF(AF18="","",SUM(AF$11:AF18)) ->  | AJ18: =+IF(T18="","",IF(S18="","",X18+SUM(AF$11:AF17))) -> 171 | AK18: 16.0 | AM18: 10.1 | AN18: 10.1 | AO18: 168 | AU18: 49 | AV18: 217 | AW18: 15.7 | AX18: 4.6 | AY18: 20.2 | AZ18: 168 | BA18: 49 | BB18: 217 | BC18: 15.7 | BD18: 4.6 | BE18: 20.2
B19: 9 | C19: 33 | D19: 24 | F19: 16 | G19: 18 | K19: =+IF(J19="","",SUM(J$11:J19)) ->  | M19: 0 | N19: =IF(Sheet1!E17="","",Sheet1!E17) -> 18 | S19: =IF(N19>40,"",Sheet1!N17) -> 18 | T19: =IF(S19="","",Sheet1!O17) -> 15.8 | U19: =IFERROR(IF(S19="","",Sheet1!P17),"") -> 0.142 | V19: =IFERROR(IF(S19="","",Sheet1!Q17),"") -> 15.0 | W19: =IFERROR(IF(S19="","",Sheet1!R17),"") -> 1320 | X19: =IFERROR(IF(S19="","",Sheet1!S17),"") -> 187 | Y19: =IFERROR(IF(S19="","",Sheet1!AA17),"") -> 0.80 | Z19: 90 | AA19: =+IF(S19="","",IF(SUM(O19:Q19)=0,"",Sheet1!T17)) ->  | AB19: =+IF(S19="","",IF(SUM(O19:Q19)=0,"",Sheet1!U17)) ->  | AC19: =+IF(S19="","",IF(SUM(O19:Q19)=0,"",Sheet1!AB17)) ->  | AD19: =IF(Sheet1!W17=0,"",IF(S19="","",Sheet1!W17)) ->  | AE19: =IF(Sheet1!Y17=0,"",IF(S19="","",Sheet1!Y17)) ->  | AF19: =IF(ISERROR(Sheet1!X17),"",IF(Sheet1!X17=0,"",IF(S19="","",Sheet1!X17))) ->  | AG19: =IF(ISERROR(Sheet1!Z17),"",IF(Sheet1!Z17=0,"",IF(S19="","",Sheet1!Z17))) ->  | AH19: =+IF(S19="","",Sheet1!V17) ->  | AI19: =IF(AF19="","",SUM(AF$11:AF19)) ->  | AJ19: =+IF(T19="","",IF(S19="","",X19+SUM(AF$11:AF18))) -> 187 | AK19: 15.6 | AM19: 10.4 | AN19: 10.4 | AO19: 184 | AU19: 53 | AV19: 237 | AW19: 15.3 | AX19: 4.4 | AY19: 19.8 | AZ19: 184 | BA19: 53 | BB19: 237 | BC19: 15.3 | BD19: 4.4 | BE19: 19.8
B20: 10 | C20: 32 | D20: 23 | F20: 18 | G20: 20 | J20: 1 | K20: =+IF(J20="","",SUM(J$11:J20)) -> 1 | M20: 30 | N20: =IF(Sheet1!E18="","",Sheet1!E18) -> 19 | O20: 30 | S20: =IF(N20>40,"",Sheet1!N18) -> 19 | T20: =IF(S20="","",Sheet1!O18) -> 16.4 | U20: =IFERROR(IF(S20="","",Sheet1!P18),"") -> 0.156 | V20: =IFERROR(IF(S20="","",Sheet1!Q18),"") -> 15.5 | W20: =IFERROR(IF(S20="","",Sheet1!R18),"") -> 1300 | X20: =IFERROR(IF(S20="","",Sheet1!S18),"") -> 203 | Y20: =IFERROR(IF(S20="","",Sheet1!AA18),"") -> 0.81 | Z20: 92 | AA20: =+IF(S20="","",IF(SUM(O20:Q20)=0,"",Sheet1!T18)) -> 930 | AB20: =+IF(S20="","",IF(SUM(O20:Q20)=0,"",Sheet1!U18)) -> 155 | AC20: =+IF(S20="","",IF(SUM(O20:Q20)=0,"",Sheet1!AB18)) -> 0.68 | AD20: =IF(Sheet1!W18=0,"",IF(S20="","",Sheet1!W18)) -> 370 | AE20: =IF(Sheet1!Y18=0,"",IF(S20="","",Sheet1!Y18)) -> 28 | AF20: =IF(ISERROR(Sheet1!X18),"",IF(Sheet1!X18=0,"",IF(S20="","",Sheet1!X18))) -> 48 | AG20: =IF(ISERROR(Sheet1!Z18),"",IF(Sheet1!Z18=0,"",IF(S20="","",Sheet1!Z18))) -> 24 | AH20: =+IF(S20="","",Sheet1!V18) -> 15.3 | AI20: =IF(AF20="","",SUM(AF$11:AF20)) -> 48 | AJ20: =+IF(T20="","",IF(S20="","",X20+SUM(AF$11:AF19))) -> 203 | AK20: 13.5 | AL20: 8.1 | AM20: 10.7 | AN20: 10.7 | AO20: 199 | AU20: 58 | AV20: 257 | AW20: -33.9 | AX20: -9.8 | AY20: -43.8 | AZ20: 199 | BA20: 58 | BB20: 257 | BC20: 13.3 | BD20: 3.8 | BE20: 17.1
B21: 11 | C21: 31 | D21: 17 | F21: 20 | G21: 22 | K21: =+IF(J21="","",SUM(J$11:J21)) ->  | M21: 0 | N21: =IF(Sheet1!E19="","",Sheet1!E19) -> 20 | S21: =IF(N21>40,"",Sheet1!N19) -> 20 | T21: =IF(S21="","",Sheet1!O19) -> 17.0 | U21: =IFERROR(IF(S21="","",Sheet1!P19),"") -> 0.181 | V21: =IFERROR(IF(S21="","",Sheet1!Q19),"") -> 16.7 | W21: =IFERROR(IF(S21="","",Sheet1!R19),"") -> 930 | X21: =IFERROR(IF(S21="","",Sheet1!S19),"") -> 168 | Y21: =IFERROR(IF(S21="","",Sheet1!AA19),"") -> 0.70 | Z21: 88 | AA21: =+IF(S21="","",IF(SUM(O21:Q21)=0,"",Sheet1!T19)) ->  | AB21: =+IF(S21="","",IF(SUM(O21:Q21)=0,"",Sheet1!U19)) ->  | AC21: =+IF(S21="","",IF(SUM(O21:Q21)=0,"",Sheet1!AB19)) ->  | AD21: =IF(Sheet1!W19=0,"",IF(S21="","",Sheet1!W19)) ->  | AE21: =IF(Sheet1!Y19=0,"",IF(S21="","",Sheet1!Y19)) ->  | AF21: =IF(ISERROR(Sheet1!X19),"",IF(Sheet1!X19=0,"",IF(S21="","",Sheet1!X19))) ->  | AG21: =IF(ISERROR(Sheet1!Z19),"",IF(Sheet1!Z19=0,"",IF(S21="","",Sheet1!Z19))) ->  | AH21: =+IF(S21="","",Sheet1!V19) ->  | AI21: =IF(AF21="","",SUM(AF$11:AF21)) ->  | AJ21: =+IF(T21="","",IF(S21="","",X21+SUM(AF$11:AF20))) -> 216 | AK21: 13.9 | AM21: 8.4 | AN21: 10.8 | AO21: 165 | AU21: 48 | AV21: 213 | AW21: 13.6 | AX21: 4.0 | AY21: 17.6 | AZ21: 213 | BA21: 62 | BB21: 274 | BC21: 13.6 | BD21: 4.0 | BE21: 17.6
B22: 12 | C22: 28 | D22: 21 | F22: 22 | G22: 24 | K22: =+IF(J22="","",SUM(J$11:J22)) ->  | M22: 0 | N22: =IF(Sheet1!E20="","",Sheet1!E20) -> 21 | S22: =IF(N22>40,"",Sheet1!N20) -> 21 | T22: =IF(S22="","",Sheet1!O20) -> 17.6 | U22: =IFERROR(IF(S22="","",Sheet1!P20),"") -> 0.196 | V22: =IFERROR(IF(S22="","",Sheet1!Q20),"") -> 17.2 | W22: =IFERROR(IF(S22="","",Sheet1!R20),"") -> 930 | X22: =IFERROR(IF(S22="","",Sheet1!S20),"") -> 182 | Y22: =IFERROR(IF(S22="","",Sheet1!AA20),"") -> 0.72 | Z22: 89 | AA22: =+IF(S22="","",IF(SUM(O22:Q22)=0,"",Sheet1!T20)) ->  | AB22: =+IF(S22="","",IF(SUM(O22:Q22)=0,"",Sheet1!U20)) ->  | AC22: =+IF(S22="","",IF(SUM(O22:Q22)=0,"",Sheet1!AB20)) ->  | AD22: =IF(Sheet1!W20=0,"",IF(S22="","",Sheet1!W20)) ->  | AE22: =IF(Sheet1!Y20=0,"",IF(S22="","",Sheet1!Y20)) ->  | AF22: =IF(ISERROR(Sheet1!X20),"",IF(Sheet1!X20=0,"",IF(S22="","",Sheet1!X20))) ->  | AG22: =IF(ISERROR(Sheet1!Z20),"",IF(Sheet1!Z20=0,"",IF(S22="","",Sheet1!Z20))) ->  | AH22: =+IF(S22="","",Sheet1!V20) ->  | AI22: =IF(AF22="","",SUM(AF$11:AF22)) ->  | AJ22: =+IF(T22="","",IF(S22="","",X22+SUM(AF$11:AF21))) -> 230 | AK22: 13.7 | AM22: 8.7 | AN22: 11.0 | AO22: 179 | AU22: 52 | AV22: 231 | AW22: 13.4 | AX22: 3.9 | AY22: 17.3 | AZ22: 226 | BA22: 66 | BB22: 292 | BC22: 13.4 | BD22: 3.9 | BE22: 17.3
B23: 13 | F23: 24 | G23: 26 | K23: =+IF(J23="","",SUM(J$11:J23)) ->  | M23: 0 | N23: =IF(Sheet1!E21="","",Sheet1!E21) -> 22 | S23: =IF(N23>40,"",Sheet1!N21) -> 22 | T23: =IF(S23="","",Sheet1!O21) -> 18.2 | U23: =IFERROR(IF(S23="","",Sheet1!P21),"") -> 0.211 | V23: =IFERROR(IF(S23="","",Sheet1!Q21),"") -> 17.5 | W23: =IFERROR(IF(S23="","",Sheet1!R21),"") -> 930 | X23: =IFERROR(IF(S23="","",Sheet1!S21),"") -> 196 | Y23: =IFERROR(IF(S23="","",Sheet1!AA21),"") -> 0.74 | Z23: 91 | AA23: =+IF(S23="","",IF(SUM(O23:Q23)=0,"",Sheet1!T21)) ->  | AB23: =+IF(S23="","",IF(SUM(O23:Q23)=0,"",Sheet1!U21)) ->  | AC23: =+IF(S23="","",IF(SUM(O23:Q23)=0,"",Sheet1!AB21)) ->  | AD23: =IF(Sheet1!W21=0,"",IF(S23="","",Sheet1!W21)) ->  | AE23: =IF(Sheet1!Y21=0,"",IF(S23="","",Sheet1!Y21)) ->  | AF23: =IF(ISERROR(Sheet1!X21),"",IF(Sheet1!X21=0,"",IF(S23="","",Sheet1!X21))) ->  | AG23: =IF(ISERROR(Sheet1!Z21),"",IF(Sheet1!Z21=0,"",IF(S23="","",Sheet1!Z21))) ->  | AH23: =+IF(S23="","",Sheet1!V21) ->  | AI23: =IF(AF23="","",SUM(AF$11:AF23)) ->  | AJ23: =+IF(T23="","",IF(S23="","",X23+SUM(AF$11:AF22))) -> 244 | AK23: 13.3 | AM23: 8.9 | AN23: 11.1 | AO23: 192 | AU23: 56 | AV23: 248 | AW23: 13.1 | AX23: 3.8 | AY23: 16.9 | AZ23: 240 | BA23: 69 | BB23: 309 | BC23: 13.1 | BD23: 3.8 | BE23: 16.9
B24: 14 | F24: 26 | G24: 28 | K24: =+IF(J24="","",SUM(J$11:J24)) ->  | M24: 0 | N24: =IF(Sheet1!E22="","",Sheet1!E22) -> 23 | S24: =IF(N24>40,"",Sheet1!N22) -> 23 | T24: =IF(S24="","",Sheet1!O22) -> 18.7 | U24: =IFERROR(IF(S24="","",Sheet1!P22),"") -> 0.225 | V24: =IFERROR(IF(S24="","",Sheet1!Q22),"") -> 17.9 | W24: =IFERROR(IF(S24="","",Sheet1!R22),"") -> 930 | X24: =IFERROR(IF(S24="","",Sheet1!S22),"") -> 209 | Y24: =IFERROR(IF(S24="","",Sheet1!AA22),"") -> 0.75 | Z24: 91 | AA24: =+IF(S24="","",IF(SUM(O24:Q24)=0,"",Sheet1!T22)) ->  | AB24: =+IF(S24="","",IF(SUM(O24:Q24)=0,"",Sheet1!U22)) ->  | AC24: =+IF(S24="","",IF(SUM(O24:Q24)=0,"",Sheet1!AB22)) ->  | AD24: =IF(Sheet1!W22=0,"",IF(S24="","",Sheet1!W22)) ->  | AE24: =IF(Sheet1!Y22=0,"",IF(S24="","",Sheet1!Y22)) ->  | AF24: =IF(ISERROR(Sheet1!X22),"",IF(Sheet1!X22=0,"",IF(S24="","",Sheet1!X22))) ->  | AG24: =IF(ISERROR(Sheet1!Z22),"",IF(Sheet1!Z22=0,"",IF(S24="","",Sheet1!Z22))) ->  | AH24: =+IF(S24="","",Sheet1!V22) ->  | AI24: =IF(AF24="","",SUM(AF$11:AF24)) ->  | AJ24: =+IF(T24="","",IF(S24="","",X24+SUM(AF$11:AF23))) -> 257 | AK24: 13.0 | AM24: 9.1 | AN24: 11.2 | AO24: 205 | AU24: 60 | AV24: 265 | AW24: 12.8 | AX24: 3.7 | AY24: 16.5 | AZ24: 253 | BA24: 73 | BB24: 326 | BC24: 12.8 | BD24: 3.7 | BE24: 16.5
B25: 15 | F25: 28 | G25: 30 | K25: =+IF(J25="","",SUM(J$11:J25)) ->  | M25: 0 | N25: =IF(Sheet1!E23="","",Sheet1!E23) -> 24 | S25: =IF(N25>40,"",Sheet1!N23) -> 24 | T25: =IF(S25="","",Sheet1!O23) -> 19.2 | U25: =IFERROR(IF(S25="","",Sheet1!P23),"") -> 0.239 | V25: =IFERROR(IF(S25="","",Sheet1!Q23),"") -> 18.2 | W25: =IFERROR(IF(S25="","",Sheet1!R23),"") -> 930 | X25: =IFERROR(IF(S25="","",Sheet1!S23),"") -> 222 | Y25: =IFERROR(IF(S25="","",Sheet1!AA23),"") -> 0.77 | Z25: 92 | AA25: =+IF(S25="","",IF(SUM(O25:Q25)=0,"",Sheet1!T23)) ->  | AB25: =+IF(S25="","",IF(SUM(O25:Q25)=0,"",Sheet1!U23)) ->  | AC25: =+IF(S25="","",IF(SUM(O25:Q25)=0,"",Sheet1!AB23)) ->  | AD25: =IF(Sheet1!W23=0,"",IF(S25="","",Sheet1!W23)) ->  | AE25: =IF(Sheet1!Y23=0,"",IF(S25="","",Sheet1!Y23)) ->  | AF25: =IF(ISERROR(Sheet1!X23),"",IF(Sheet1!X23=0,"",IF(S25="","",Sheet1!X23))) ->  | AG25: =IF(ISERROR(Sheet1!Z23),"",IF(Sheet1!Z23=0,"",IF(S25="","",Sheet1!Z23))) ->  | AH25: =+IF(S25="","",Sheet1!V23) ->  | AI25: =IF(AF25="","",SUM(AF$11:AF25)) ->  | AJ25: =+IF(T25="","",IF(S25="","",X25+SUM(AF$11:AF24))) -> 270 | AK25: 12.7 | AM25: 9.3 | AN25: 11.3 | AO25: 218 | AU25: 63 | AV25: 282 | AW25: 12.4 | AX25: 3.6 | AY25: 16.0 | AZ25: 265 | BA25: 77 | BB25: 342 | BC25: 12.4 | BD25: 3.6 | BE25: 16.0
B26: 16 | F26: 30 | G26: 32 | K26: =+IF(J26="","",SUM(J$11:J26)) ->  | M26: 0 | N26: =IF(Sheet1!E24="","",Sheet1!E24) -> 25 | S26: =IF(N26>40,"",Sheet1!N24) -> 25 | T26: =IF(S26="","",Sheet1!O24) -> 19.6 | U26: =IFERROR(IF(S26="","",Sheet1!P24),"") -> 0.253 | V26: =IFERROR(IF(S26="","",Sheet1!Q24),"") -> 18.5 | W26: =IFERROR(IF(S26="","",Sheet1!R24),"") -> 930 | X26: =IFERROR(IF(S26="","",Sheet1!S24),"") -> 235 | Y26: =IFERROR(IF(S26="","",Sheet1!AA24),"") -> 0.78 | Z26: 93 | AA26: =+IF(S26="","",IF(SUM(O26:Q26)=0,"",Sheet1!T24)) ->  | AB26: =+IF(S26="","",IF(SUM(O26:Q26)=0,"",Sheet1!U24)) ->  | AC26: =+IF(S26="","",IF(SUM(O26:Q26)=0,"",Sheet1!AB24)) ->  | AD26: =IF(Sheet1!W24=0,"",IF(S26="","",Sheet1!W24)) ->  | AE26: =IF(Sheet1!Y24=0,"",IF(S26="","",Sheet1!Y24)) ->  | AF26: =IF(ISERROR(Sheet1!X24),"",IF(Sheet1!X24=0,"",IF(S26="","",Sheet1!X24))) ->  | AG26: =IF(ISERROR(Sheet1!Z24),"",IF(Sheet1!Z24=0,"",IF(S26="","",Sheet1!Z24))) ->  | AH26: =+IF(S26="","",Sheet1!V24) ->  | AI26: =IF(AF26="","",SUM(AF$11:AF26)) ->  | AJ26: =+IF(T26="","",IF(S26="","",X26+SUM(AF$11:AF25))) -> 283 | AK26: 12.3 | AM26: 9.4 | AN26: 11.3 | AO26: 231 | AU26: 67 | AV26: 298 | AW26: 12.1 | AX26: 3.5 | AY26: 15.6 | AZ26: 278 | BA26: 81 | BB26: 358 | BC26: 12.1 | BD26: 3.5 | BE26: 15.6
B27: 17 | F27: 32 | G27: 34 | K27: =+IF(J27="","",SUM(J$11:J27)) ->  | M27: 0 | N27: =IF(Sheet1!E25="","",Sheet1!E25) -> 26 | S27: =IF(N27>40,"",Sheet1!N25) -> 26 | T27: =IF(S27="","",Sheet1!O25) -> 20.1 | U27: =IFERROR(IF(S27="","",Sheet1!P25),"") -> 0.266 | V27: =IFERROR(IF(S27="","",Sheet1!Q25),"") -> 18.8 | W27: =IFERROR(IF(S27="","",Sheet1!R25),"") -> 930 | X27: =IFERROR(IF(S27="","",Sheet1!S25),"") -> 247 | Y27: =IFERROR(IF(S27="","",Sheet1!AA25),"") -> 0.79 | Z27: 94 | AA27: =+IF(S27="","",IF(SUM(O27:Q27)=0,"",Sheet1!T25)) ->  | AB27: =+IF(S27="","",IF(SUM(O27:Q27)=0,"",Sheet1!U25)) ->  | AC27: =+IF(S27="","",IF(SUM(O27:Q27)=0,"",Sheet1!AB25)) ->  | AD27: =IF(Sheet1!W25=0,"",IF(S27="","",Sheet1!W25)) ->  | AE27: =IF(Sheet1!Y25=0,"",IF(S27="","",Sheet1!Y25)) ->  | AF27: =IF(ISERROR(Sheet1!X25),"",IF(Sheet1!X25=0,"",IF(S27="","",Sheet1!X25))) ->  | AG27: =IF(ISERROR(Sheet1!Z25),"",IF(Sheet1!Z25=0,"",IF(S27="","",Sheet1!Z25))) ->  | AH27: =+IF(S27="","",Sheet1!V25) ->  | AI27: =IF(AF27="","",SUM(AF$11:AF27)) ->  | AJ27: =+IF(T27="","",IF(S27="","",X27+SUM(AF$11:AF26))) -> 295 | AK27: 11.9 | AM27: 9.5 | AN27: 11.4 | AO27: 243 | AU27: 70 | AV27: 313 | AW27: 11.7 | AX27: 3.4 | AY27: 15.1 | AZ27: 290 | BA27: 84 | BB27: 374 | BC27: 11.7 | BD27: 3.4 | BE27: 15.1
B28: 18 | F28: 34 | G28: 36 | K28: =+IF(J28="","",SUM(J$11:J28)) ->  | M28: 0 | N28: =IF(Sheet1!E26="","",Sheet1!E26) -> 27 | S28: =IF(N28>40,"",Sheet1!N26) -> 27 | T28: =IF(S28="","",Sheet1!O26) -> 20.5 | U28: =IFERROR(IF(S28="","",Sheet1!P26),"") -> 0.279 | V28: =IFERROR(IF(S28="","",Sheet1!Q26),"") -> 19.2 | W28: =IFERROR(IF(S28="","",Sheet1!R26),"") -> 930 | X28: =IFERROR(IF(S28="","",Sheet1!S26),"") -> 259 | Y28: =IFERROR(IF(S28="","",Sheet1!AA26),"") -> 0.80 | Z28: 95 | AA28: =+IF(S28="","",IF(SUM(O28:Q28)=0,"",Sheet1!T26)) ->  | AB28: =+IF(S28="","",IF(SUM(O28:Q28)=0,"",Sheet1!U26)) ->  | AC28: =+IF(S28="","",IF(SUM(O28:Q28)=0,"",Sheet1!AB26)) ->  | AD28: =IF(Sheet1!W26=0,"",IF(S28="","",Sheet1!W26)) ->  | AE28: =IF(Sheet1!Y26=0,"",IF(S28="","",Sheet1!Y26)) ->  | AF28: =IF(ISERROR(Sheet1!X26),"",IF(Sheet1!X26=0,"",IF(S28="","",Sheet1!X26))) ->  | AG28: =IF(ISERROR(Sheet1!Z26),"",IF(Sheet1!Z26=0,"",IF(S28="","",Sheet1!Z26))) ->  | AH28: =+IF(S28="","",Sheet1!V26) ->  | AI28: =IF(AF28="","",SUM(AF$11:AF28)) ->  | AJ28: =+IF(T28="","",IF(S28="","",X28+SUM(AF$11:AF27))) -> 307 | AK28: 11.5 | AM28: 9.6 | AN28: 11.4 | AO28: 254 | AU28: 74 | AV28: 328 | AW28: 11.3 | AX28: 3.3 | AY28: 14.6 | AZ28: 302 | BA28: 87 | BB28: 389 | BC28: 11.3 | BD28: 3.3 | BE28: 14.6
B29: 19 | F29: 36 | G29: 38 | K29: =+IF(J29="","",SUM(J$11:J29)) ->  | M29: 0 | N29: =IF(Sheet1!E27="","",Sheet1!E27) -> 28 | S29: =IF(N29>40,"",Sheet1!N27) -> 28 | T29: =IF(S29="","",Sheet1!O27) -> 20.9 | U29: =IFERROR(IF(S29="","",Sheet1!P27),"") -> 0.291 | V29: =IFERROR(IF(S29="","",Sheet1!Q27),"") -> 19.4 | W29: =IFERROR(IF(S29="","",Sheet1!R27),"") -> 930 | X29: =IFERROR(IF(S29="","",Sheet1!S27),"") -> 271 | Y29: =IFERROR(IF(S29="","",Sheet1!AA27),"") -> 0.81 | Z29: 95 | AA29: =+IF(S29="","",IF(SUM(O29:Q29)=0,"",Sheet1!T27)) ->  | AB29: =+IF(S29="","",IF(SUM(O29:Q29)=0,"",Sheet1!U27)) ->  | AC29: =+IF(S29="","",IF(SUM(O29:Q29)=0,"",Sheet1!AB27)) ->  | AD29: =IF(Sheet1!W27=0,"",IF(S29="","",Sheet1!W27)) ->  | AE29: =IF(Sheet1!Y27=0,"",IF(S29="","",Sheet1!Y27)) ->  | AF29: =IF(ISERROR(Sheet1!X27),"",IF(Sheet1!X27=0,"",IF(S29="","",Sheet1!X27))) ->  | AG29: =IF(ISERROR(Sheet1!Z27),"",IF(Sheet1!Z27=0,"",IF(S29="","",Sheet1!Z27))) ->  | AH29: =+IF(S29="","",Sheet1!V27) ->  | AI29: =IF(AF29="","",SUM(AF$11:AF29)) ->  | AJ29: =+IF(T29="","",IF(S29="","",X29+SUM(AF$11:AF28))) -> 319 | AK29: 11.1 | AM29: 9.7 | AN29: 11.4 | AO29: 266 | AU29: 77 | AV29: 343 | AW29: 10.9 | AX29: 3.2 | AY29: 14.1 | AZ29: 313 | BA29: 91 | BB29: 404 | BC29: 10.9 | BD29: 3.2 | BE29: 14.1
B30: 20 | F30: 38 | G30: 40 | K30: =+IF(J30="","",SUM(J$11:J30)) ->  | M30: 0 | N30: =IF(Sheet1!E28="","",Sheet1!E28) -> 29 | S30: =IF(N30>40,"",Sheet1!N28) -> 29 | T30: =IF(S30="","",Sheet1!O28) -> 21.2 | U30: =IFERROR(IF(S30="","",Sheet1!P28),"") -> 0.303 | V30: =IFERROR(IF(S30="","",Sheet1!Q28),"") -> 19.7 | W30: =IFERROR(IF(S30="","",Sheet1!R28),"") -> 930 | X30: =IFERROR(IF(S30="","",Sheet1!S28),"") -> 282 | Y30: =IFERROR(IF(S30="","",Sheet1!AA28),"") -> 0.82 | Z30: 96 | AA30: =+IF(S30="","",IF(SUM(O30:Q30)=0,"",Sheet1!T28)) ->  | AB30: =+IF(S30="","",IF(SUM(O30:Q30)=0,"",Sheet1!U28)) ->  | AC30: =+IF(S30="","",IF(SUM(O30:Q30)=0,"",Sheet1!AB28)) ->  | AD30: =IF(Sheet1!W28=0,"",IF(S30="","",Sheet1!W28)) ->  | AE30: =IF(Sheet1!Y28=0,"",IF(S30="","",Sheet1!Y28)) ->  | AF30: =IF(ISERROR(Sheet1!X28),"",IF(Sheet1!X28=0,"",IF(S30="","",Sheet1!X28))) ->  | AG30: =IF(ISERROR(Sheet1!Z28),"",IF(Sheet1!Z28=0,"",IF(S30="","",Sheet1!Z28))) ->  | AH30: =+IF(S30="","",Sheet1!V28) ->  | AI30: =IF(AF30="","",SUM(AF$11:AF30)) ->  | AJ30: =+IF(T30="","",IF(S30="","",X30+SUM(AF$11:AF29))) -> 330 | AK30: 10.7 | AM30: 9.7 | AN30: 11.4 | AO30: 277 | AU30: 80 | AV30: 357 | AW30: 10.5 | AX30: 3.1 | AY30: 13.6 | AZ30: 324 | BA30: 94 | BB30: 418 | BC30: 10.5 | BD30: 3.1 | BE30: 13.6
B31: 21 | F31: 40 | G31: 42 | K31: =+IF(J31="","",SUM(J$11:J31)) ->  | M31: 0 | N31: =IF(Sheet1!E29="","",Sheet1!E29) -> 30 | S31: =IF(N31>40,"",Sheet1!N29) -> 30 | T31: =IF(S31="","",Sheet1!O29) -> 21.6 | U31: =IFERROR(IF(S31="","",Sheet1!P29),"") -> 0.314 | V31: =IFERROR(IF(S31="","",Sheet1!Q29),"") -> 19.9 | W31: =IFERROR(IF(S31="","",Sheet1!R29),"") -> 930 | X31: =IFERROR(IF(S31="","",Sheet1!S29),"") -> 292 | Y31: =IFERROR(IF(S31="","",Sheet1!AA29),"") -> 0.83 | Z31: 96 | AA31: =+IF(S31="","",IF(SUM(O31:Q31)=0,"",Sheet1!T29)) ->  | AB31: =+IF(S31="","",IF(SUM(O31:Q31)=0,"",Sheet1!U29)) ->  | AC31: =+IF(S31="","",IF(SUM(O31:Q31)=0,"",Sheet1!AB29)) ->  | AD31: =IF(Sheet1!W29=0,"",IF(S31="","",Sheet1!W29)) ->  | AE31: =IF(Sheet1!Y29=0,"",IF(S31="","",Sheet1!Y29)) ->  | AF31: =IF(ISERROR(Sheet1!X29),"",IF(Sheet1!X29=0,"",IF(S31="","",Sheet1!X29))) ->  | AG31: =IF(ISERROR(Sheet1!Z29),"",IF(Sheet1!Z29=0,"",IF(S31="","",Sheet1!Z29))) ->  | AH31: =+IF(S31="","",Sheet1!V29) ->  | AI31: =IF(AF31="","",SUM(AF$11:AF31)) ->  | AJ31: =+IF(T31="","",IF(S31="","",X31+SUM(AF$11:AF30))) -> 340 | AK31: 10.3 | AM31: 9.7 | AN31: 11.3 | AO31: 287 | AU31: 83 | AV31: 371 | AW31: 10.2 | AX31: 2.9 | AY31: 13.1 | AZ31: 334 | BA31: 97 | BB31: 431 | BC31: 10.2 | BD31: 2.9 | BE31: 13.1
B32: 22 | F32: 42 | G32: 44 | K32: =+IF(J32="","",SUM(J$11:J32)) ->  | M32: 0 | N32: =IF(Sheet1!E30="","",Sheet1!E30) -> 31 | S32: =IF(N32>40,"",Sheet1!N30) -> 31 | T32: =IF(S32="","",Sheet1!O30) -> 21.9 | U32: =IFERROR(IF(S32="","",Sheet1!P30),"") -> 0.326 | V32: =IFERROR(IF(S32="","",Sheet1!Q30),"") -> 20.2 | W32: =IFERROR(IF(S32="","",Sheet1!R30),"") -> 930 | X32: =IFERROR(IF(S32="","",Sheet1!S30),"") -> 303 | Y32: =IFERROR(IF(S32="","",Sheet1!AA30),"") -> 0.84 | Z32: 97 | AA32: =+IF(S32="","",IF(SUM(O32:Q32)=0,"",Sheet1!T30)) ->  | AB32: =+IF(S32="","",IF(SUM(O32:Q32)=0,"",Sheet1!U30)) ->  | AC32: =+IF(S32="","",IF(SUM(O32:Q32)=0,"",Sheet1!AB30)) ->  | AD32: =IF(Sheet1!W30=0,"",IF(S32="","",Sheet1!W30)) ->  | AE32: =IF(Sheet1!Y30=0,"",IF(S32="","",Sheet1!Y30)) ->  | AF32: =IF(ISERROR(Sheet1!X30),"",IF(Sheet1!X30=0,"",IF(S32="","",Sheet1!X30))) ->  | AG32: =IF(ISERROR(Sheet1!Z30),"",IF(Sheet1!Z30=0,"",IF(S32="","",Sheet1!Z30))) ->  | AH32: =+IF(S32="","",Sheet1!V30) ->  | AI32: =IF(AF32="","",SUM(AF$11:AF32)) ->  | AJ32: =+IF(T32="","",IF(S32="","",X32+SUM(AF$11:AF31))) -> 351 | AK32: 10.0 | AM32: 9.8 | AN32: 11.3 | AO32: 297 | AU32: 86 | AV32: 384 | AW32: 9.8 | AX32: 2.8 | AY32: 12.6 | AZ32: 345 | BA32: 100 | BB32: 445 | BC32: 9.8 | BD32: 2.8 | BE32: 12.6
B33: 23 | F33: 44 | G33: 46 | K33: =+IF(J33="","",SUM(J$11:J33)) ->  | M33: 0 | N33: =IF(Sheet1!E31="","",Sheet1!E31) -> 32 | S33: =IF(N33>40,"",Sheet1!N31) -> 32 | T33: =IF(S33="","",Sheet1!O31) -> 22.2 | U33: =IFERROR(IF(S33="","",Sheet1!P31),"") -> 0.336 | V33: =IFERROR(IF(S33="","",Sheet1!Q31),"") -> 20.4 | W33: =IFERROR(IF(S33="","",Sheet1!R31),"") -> 930 | X33: =IFERROR(IF(S33="","",Sheet1!S31),"") -> 313 | Y33: =IFERROR(IF(S33="","",Sheet1!AA31),"") -> 0.85 | Z33: 97 | AA33: =+IF(S33="","",IF(SUM(O33:Q33)=0,"",Sheet1!T31)) ->  | AB33: =+IF(S33="","",IF(SUM(O33:Q33)=0,"",Sheet1!U31)) ->  | AC33: =+IF(S33="","",IF(SUM(O33:Q33)=0,"",Sheet1!AB31)) ->  | AD33: =IF(Sheet1!W31=0,"",IF(S33="","",Sheet1!W31)) ->  | AE33: =IF(Sheet1!Y31=0,"",IF(S33="","",Sheet1!Y31)) ->  | AF33: =IF(ISERROR(Sheet1!X31),"",IF(Sheet1!X31=0,"",IF(S33="","",Sheet1!X31))) ->  | AG33: =IF(ISERROR(Sheet1!Z31),"",IF(Sheet1!Z31=0,"",IF(S33="","",Sheet1!Z31))) ->  | AH33: =+IF(S33="","",Sheet1!V31) ->  | AI33: =IF(AF33="","",SUM(AF$11:AF33)) ->  | AJ33: =+IF(T33="","",IF(S33="","",X33+SUM(AF$11:AF32))) -> 361 | AK33: 9.6 | AM33: 9.8 | AN33: 11.3 | AO33: 307 | AU33: 89 | AV33: 396 | AW33: 9.4 | AX33: 2.7 | AY33: 12.1 | AZ33: 354 | BA33: 103 | BB33: 457 | BC33: 9.4 | BD33: 2.7 | BE33: 12.1
B34: 24 | F34: 46 | G34: 48 | K34: =+IF(J34="","",SUM(J$11:J34)) ->  | M34: 0 | N34: =IF(Sheet1!E32="","",Sheet1!E32) -> 33 | S34: =IF(N34>40,"",Sheet1!N32) -> 33 | T34: =IF(S34="","",Sheet1!O32) -> 22.5 | U34: =IFERROR(IF(S34="","",Sheet1!P32),"") -> 0.347 | V34: =IFERROR(IF(S34="","",Sheet1!Q32),"") -> 20.5 | W34: =IFERROR(IF(S34="","",Sheet1!R32),"") -> 930 | X34: =IFERROR(IF(S34="","",Sheet1!S32),"") -> 322 | Y34: =IFERROR(IF(S34="","",Sheet1!AA32),"") -> 0.86 | Z34: 97 | AA34: =+IF(S34="","",IF(SUM(O34:Q34)=0,"",Sheet1!T32)) ->  | AB34: =+IF(S34="","",IF(SUM(O34:Q34)=0,"",Sheet1!U32)) ->  | AC34: =+IF(S34="","",IF(SUM(O34:Q34)=0,"",Sheet1!AB32)) ->  | AD34: =IF(Sheet1!W32=0,"",IF(S34="","",Sheet1!W32)) ->  | AE34: =IF(Sheet1!Y32=0,"",IF(S34="","",Sheet1!Y32)) ->  | AF34: =IF(ISERROR(Sheet1!X32),"",IF(Sheet1!X32=0,"",IF(S34="","",Sheet1!X32))) ->  | AG34: =IF(ISERROR(Sheet1!Z32),"",IF(Sheet1!Z32=0,"",IF(S34="","",Sheet1!Z32))) ->  | AH34: =+IF(S34="","",Sheet1!V32) ->  | AI34: =IF(AF34="","",SUM(AF$11:AF34)) ->  | AJ34: =+IF(T34="","",IF(S34="","",X34+SUM(AF$11:AF33))) -> 370 | AK34: 9.2 | AM34: 9.8 | AN34: 11.2 | AO34: 317 | AU34: 92 | AV34: 408 | AW34: 9.1 | AX34: 2.6 | AY34: 11.7 | AZ34: 364 | BA34: 106 | BB34: 469 | BC34: 9.1 | BD34: 2.6 | BE34: 11.7
B35: 25 | F35: 48 | G35: 50 | K35: =+IF(J35="","",SUM(J$11:J35)) ->  | M35: 0 | N35: =IF(Sheet1!E33="","",Sheet1!E33) -> 34 | S35: =IF(N35>40,"",Sheet1!N33) -> 34 | T35: =IF(S35="","",Sheet1!O33) -> 22.7 | U35: =IFERROR(IF(S35="","",Sheet1!P33),"") -> 0.356 | V35: =IFERROR(IF(S35="","",Sheet1!Q33),"") -> 20.7 | W35: =IFERROR(IF(S35="","",Sheet1!R33),"") -> 930 | X35: =IFERROR(IF(S35="","",Sheet1!S33),"") -> 332 | Y35: =IFERROR(IF(S35="","",Sheet1!AA33),"") -> 0.86 | Z35: 98 | AA35: =+IF(S35="","",IF(SUM(O35:Q35)=0,"",Sheet1!T33)) ->  | AB35: =+IF(S35="","",IF(SUM(O35:Q35)=0,"",Sheet1!U33)) ->  | AC35: =+IF(S35="","",IF(SUM(O35:Q35)=0,"",Sheet1!AB33)) ->  | AD35: =IF(Sheet1!W33=0,"",IF(S35="","",Sheet1!W33)) ->  | AE35: =IF(Sheet1!Y33=0,"",IF(S35="","",Sheet1!Y33)) ->  | AF35: =IF(ISERROR(Sheet1!X33),"",IF(Sheet1!X33=0,"",IF(S35="","",Sheet1!X33))) ->  | AG35: =IF(ISERROR(Sheet1!Z33),"",IF(Sheet1!Z33=0,"",IF(S35="","",Sheet1!Z33))) ->  | AH35: =+IF(S35="","",Sheet1!V33) ->  | AI35: =IF(AF35="","",SUM(AF$11:AF35)) ->  | AJ35: =+IF(T35="","",IF(S35="","",X35+SUM(AF$11:AF34))) -> 380 | AK35: 8.9 | AM35: 9.8 | AN35: 11.2 | AO35: 326 | AU35: 94 | AV35: 420 | AW35: 8.7 | AX35: 2.5 | AY35: 11.2 | AZ35: 373 | BA35: 108 | BB35: 481 | BC35: 8.7 | BD35: 2.5 | BE35: 11.2
B36: 26 | F36: 50 | G36: 52 | K36: =+IF(J36="","",SUM(J$11:J36)) ->  | M36: 0 | N36: =IF(Sheet1!E34="","",Sheet1!E34) -> 35 | S36: =IF(N36>40,"",Sheet1!N34) -> 35 | T36: =IF(S36="","",Sheet1!O34) -> 23.0 | U36: =IFERROR(IF(S36="","",Sheet1!P34),"") -> 0.366 | V36: =IFERROR(IF(S36="","",Sheet1!Q34),"") -> 20.9 | W36: =IFERROR(IF(S36="","",Sheet1!R34),"") -> 930 | X36: =IFERROR(IF(S36="","",Sheet1!S34),"") -> 340 | Y36: =IFERROR(IF(S36="","",Sheet1!AA34),"") -> 0.87 | Z36: 98 | AA36: =+IF(S36="","",IF(SUM(O36:Q36)=0,"",Sheet1!T34)) ->  | AB36: =+IF(S36="","",IF(SUM(O36:Q36)=0,"",Sheet1!U34)) ->  | AC36: =+IF(S36="","",IF(SUM(O36:Q36)=0,"",Sheet1!AB34)) ->  | AD36: =IF(Sheet1!W34=0,"",IF(S36="","",Sheet1!W34)) ->  | AE36: =IF(Sheet1!Y34=0,"",IF(S36="","",Sheet1!Y34)) ->  | AF36: =IF(ISERROR(Sheet1!X34),"",IF(Sheet1!X34=0,"",IF(S36="","",Sheet1!X34))) ->  | AG36: =IF(ISERROR(Sheet1!Z34),"",IF(Sheet1!Z34=0,"",IF(S36="","",Sheet1!Z34))) ->  | AH36: =+IF(S36="","",Sheet1!V34) ->  | AI36: =IF(AF36="","",SUM(AF$11:AF36)) ->  | AJ36: =+IF(T36="","",IF(S36="","",X36+SUM(AF$11:AF35))) -> 388 | AK36: 8.5 | AM36: 9.7 | AN36: 11.1 | AO36: 334 | AU36: 97 | AV36: 431 | AW36: 8.4 | AX36: 2.4 | AY36: 10.8 | AZ36: 382 | BA36: 111 | BB36: 492 | BC36: 8.4 | BD36: 2.4 | BE36: 10.8
B37: 27 | F37: 52 | G37: 54 | K37: =+IF(J37="","",SUM(J$11:J37)) ->  | M37: 0 | N37: =IF(Sheet1!E35="","",Sheet1!E35) -> 36 | S37: =IF(N37>40,"",Sheet1!N35) -> 36 | T37: =IF(S37="","",Sheet1!O35) -> 23.2 | U37: =IFERROR(IF(S37="","",Sheet1!P35),"") -> 0.375 | V37: =IFERROR(IF(S37="","",Sheet1!Q35),"") -> 21.1 | W37: =IFERROR(IF(S37="","",Sheet1!R35),"") -> 930 | X37: =IFERROR(IF(S37="","",Sheet1!S35),"") -> 349 | Y37: =IFERROR(IF(S37="","",Sheet1!AA35),"") -> 0.88 | Z37: 98 | AA37: =+IF(S37="","",IF(SUM(O37:Q37)=0,"",Sheet1!T35)) ->  | AB37: =+IF(S37="","",IF(SUM(O37:Q37)=0,"",Sheet1!U35)) ->  | AC37: =+IF(S37="","",IF(SUM(O37:Q37)=0,"",Sheet1!AB35)) ->  | AD37: =IF(Sheet1!W35=0,"",IF(S37="","",Sheet1!W35)) ->  | AE37: =IF(Sheet1!Y35=0,"",IF(S37="","",Sheet1!Y35)) ->  | AF37: =IF(ISERROR(Sheet1!X35),"",IF(Sheet1!X35=0,"",IF(S37="","",Sheet1!X35))) ->  | AG37: =IF(ISERROR(Sheet1!Z35),"",IF(Sheet1!Z35=0,"",IF(S37="","",Sheet1!Z35))) ->  | AH37: =+IF(S37="","",Sheet1!V35) ->  | AI37: =IF(AF37="","",SUM(AF$11:AF37)) ->  | AJ37: =+IF(T37="","",IF(S37="","",X37+SUM(AF$11:AF36))) -> 397 | AK37: 8.2 | AM37: 9.7 | AN37: 11.0 | AO37: 343 | AU37: 99 | AV37: 442 | AW37: 8.0 | AX37: 2.3 | AY37: 10.4 | AZ37: 390 | BA37: 113 | BB37: 503 | BC37: 8.0 | BD37: 2.3 | BE37: 10.4
B38: 28 | F38: 54 | G38: 56 | K38: =+IF(J38="","",SUM(J$11:J38)) ->  | M38: 0 | N38: =IF(Sheet1!E36="","",Sheet1!E36) -> 37 | S38: =IF(N38>40,"",Sheet1!N36) -> 37 | T38: =IF(S38="","",Sheet1!O36) -> 23.4 | U38: =IFERROR(IF(S38="","",Sheet1!P36),"") -> 0.384 | V38: =IFERROR(IF(S38="","",Sheet1!Q36),"") -> 21.2 | W38: =IFERROR(IF(S38="","",Sheet1!R36),"") -> 930 | X38: =IFERROR(IF(S38="","",Sheet1!S36),"") -> 357 | Y38: =IFERROR(IF(S38="","",Sheet1!AA36),"") -> 0.88 | Z38: 99 | AA38: =+IF(S38="","",IF(SUM(O38:Q38)=0,"",Sheet1!T36)) ->  | AB38: =+IF(S38="","",IF(SUM(O38:Q38)=0,"",Sheet1!U36)) ->  | AC38: =+IF(S38="","",IF(SUM(O38:Q38)=0,"",Sheet1!AB36)) ->  | AD38: =IF(Sheet1!W36=0,"",IF(S38="","",Sheet1!W36)) ->  | AE38: =IF(Sheet1!Y36=0,"",IF(S38="","",Sheet1!Y36)) ->  | AF38: =IF(ISERROR(Sheet1!X36),"",IF(Sheet1!X36=0,"",IF(S38="","",Sheet1!X36))) ->  | AG38: =IF(ISERROR(Sheet1!Z36),"",IF(Sheet1!Z36=0,"",IF(S38="","",Sheet1!Z36))) ->  | AH38: =+IF(S38="","",Sheet1!V36) ->  | AI38: =IF(AF38="","",SUM(AF$11:AF38)) ->  | AJ38: =+IF(T38="","",IF(S38="","",X38+SUM(AF$11:AF37))) -> 405 | AK38: 7.9 | AM38: 9.7 | AN38: 11.0 | AO38: 351 | AU38: 102 | AV38: 452 | AW38: 7.7 | AX38: 2.2 | AY38: 10.0 | AZ38: 398 | BA38: 115 | BB38: 513 | BC38: 7.7 | BD38: 2.2 | BE38: 10.0
B39: 29 | F39: 56 | G39: 58 | K39: =+IF(J39="","",SUM(J$11:J39)) ->  | M39: 0 | N39: =IF(Sheet1!E37="","",Sheet1!E37) -> 38 | S39: =IF(N39>40,"",Sheet1!N37) -> 38 | T39: =IF(S39="","",Sheet1!O37) -> 23.6 | U39: =IFERROR(IF(S39="","",Sheet1!P37),"") -> 0.392 | V39: =IFERROR(IF(S39="","",Sheet1!Q37),"") -> 21.4 | W39: =IFERROR(IF(S39="","",Sheet1!R37),"") -> 930 | X39: =IFERROR(IF(S39="","",Sheet1!S37),"") -> 365 | Y39: =IFERROR(IF(S39="","",Sheet1!AA37),"") -> 0.89 | Z39: 99 | AA39: =+IF(S39="","",IF(SUM(O39:Q39)=0,"",Sheet1!T37)) ->  | AB39: =+IF(S39="","",IF(SUM(O39:Q39)=0,"",Sheet1!U37)) ->  | AC39: =+IF(S39="","",IF(SUM(O39:Q39)=0,"",Sheet1!AB37)) ->  | AD39: =IF(Sheet1!W37=0,"",IF(S39="","",Sheet1!W37)) ->  | AE39: =IF(Sheet1!Y37=0,"",IF(S39="","",Sheet1!Y37)) ->  | AF39: =IF(ISERROR(Sheet1!X37),"",IF(Sheet1!X37=0,"",IF(S39="","",Sheet1!X37))) ->  | AG39: =IF(ISERROR(Sheet1!Z37),"",IF(Sheet1!Z37=0,"",IF(S39="","",Sheet1!Z37))) ->  | AH39: =+IF(S39="","",Sheet1!V37) ->  | AI39: =IF(AF39="","",SUM(AF$11:AF39)) ->  | AJ39: =+IF(T39="","",IF(S39="","",X39+SUM(AF$11:AF38))) -> 413 | AK39: 7.6 | AM39: 9.6 | AN39: 10.9 | AO39: 358 | AU39: 104 | AV39: 462 | AW39: 7.4 | AX39: 2.2 | AY39: 9.6 | AZ39: 406 | BA39: 118 | BB39: 523 | BC39: 7.4 | BD39: 2.2 | BE39: 9.6
B40: 30 | F40: 58 | G40: 60 | K40: =+IF(J40="","",SUM(J$11:J40)) ->  | M40: 0 | N40: =IF(Sheet1!E38="","",Sheet1!E38) -> 39 | S40: =IF(N40>40,"",Sheet1!N38) -> 39 | T40: =IF(S40="","",Sheet1!O38) -> 23.8 | U40: =IFERROR(IF(S40="","",Sheet1!P38),"") -> 0.401 | V40: =IFERROR(IF(S40="","",Sheet1!Q38),"") -> 21.6 | W40: =IFERROR(IF(S40="","",Sheet1!R38),"") -> 930 | X40: =IFERROR(IF(S40="","",Sheet1!S38),"") -> 373 | Y40: =IFERROR(IF(S40="","",Sheet1!AA38),"") -> 0.89 | Z40: 99 | AA40: =+IF(S40="","",IF(SUM(O40:Q40)=0,"",Sheet1!T38)) ->  | AB40: =+IF(S40="","",IF(SUM(O40:Q40)=0,"",Sheet1!U38)) ->  | AC40: =+IF(S40="","",IF(SUM(O40:Q40)=0,"",Sheet1!AB38)) ->  | AD40: =IF(Sheet1!W38=0,"",IF(S40="","",Sheet1!W38)) ->  | AE40: =IF(Sheet1!Y38=0,"",IF(S40="","",Sheet1!Y38)) ->  | AF40: =IF(ISERROR(Sheet1!X38),"",IF(Sheet1!X38=0,"",IF(S40="","",Sheet1!X38))) ->  | AG40: =IF(ISERROR(Sheet1!Z38),"",IF(Sheet1!Z38=0,"",IF(S40="","",Sheet1!Z38))) ->  | AH40: =+IF(S40="","",Sheet1!V38) ->  | AI40: =IF(AF40="","",SUM(AF$11:AF40)) ->  | AJ40: =+IF(T40="","",IF(S40="","",X40+SUM(AF$11:AF39))) -> 421 | AK40: 7.3 | AM40: 9.6 | AN40: 10.8 | AO40: 366 | AU40: 106 | AV40: 472 | AW40: 7.1 | AX40: 2.1 | AY40: 9.2 | AZ40: 413 | BA40: 120 | BB40: 533 | BC40: 7.1 | BD40: 2.1 | BE40: 9.2
B41: 31 | K41: =+IF(J41="","",SUM(J$11:J41)) ->  | M41: 0 | N41: =IF(Sheet1!E39="","",Sheet1!E39) -> 40 | S41: =IF(N41>40,"",Sheet1!N39) -> 40 | T41: =IF(S41="","",Sheet1!O39) -> 24.0 | U41: =IFERROR(IF(S41="","",Sheet1!P39),"") -> 0.408 | V41: =IFERROR(IF(S41="","",Sheet1!Q39),"") -> 21.7 | W41: =IFERROR(IF(S41="","",Sheet1!R39),"") -> 930 | X41: =IFERROR(IF(S41="","",Sheet1!S39),"") -> 380 | Y41: =IFERROR(IF(S41="","",Sheet1!AA39),"") -> 0.90 | Z41: 99 | AA41: =+IF(S41="","",IF(SUM(O41:Q41)=0,"",Sheet1!T39)) ->  | AB41: =+IF(S41="","",IF(SUM(O41:Q41)=0,"",Sheet1!U39)) ->  | AC41: =+IF(S41="","",IF(SUM(O41:Q41)=0,"",Sheet1!AB39)) ->  | AD41: =IF(Sheet1!W39=0,"",IF(S41="","",Sheet1!W39)) ->  | AE41: =IF(Sheet1!Y39=0,"",IF(S41="","",Sheet1!Y39)) ->  | AF41: =IF(ISERROR(Sheet1!X39),"",IF(Sheet1!X39=0,"",IF(S41="","",Sheet1!X39))) ->  | AG41: =IF(ISERROR(Sheet1!Z39),"",IF(Sheet1!Z39=0,"",IF(S41="","",Sheet1!Z39))) ->  | AH41: =+IF(S41="","",Sheet1!V39) ->  | AI41: =IF(AF41="","",SUM(AF$11:AF41)) ->  | AJ41: =+IF(T41="","",IF(S41="","",X41+SUM(AF$11:AF40))) -> 428 | AM41: 9.5 | AN41: 10.7 | AO41: 373 | AU41: 108 | AV41: 481 | AW41: 9.3 | AX41: 2.7 | AY41: 12.0 | AZ41: 420 | BA41: 122 | BB41: 542 | BC41: 10.5 | BD41: 3.0 | BE41: 13.6
B42: 32 | K42: =+IF(J42="","",SUM(J$11:J42)) ->  | M42: 0
B43: 33 | K43: =+IF(J43="","",SUM(J$11:J43)) ->  | M43: 0
B44: 34 | K44: =+IF(J44="","",SUM(J$11:J44)) ->  | M44: 0
B45: 35 | K45: =+IF(J45="","",SUM(J$11:J45)) ->  | M45: 0
B46: 36 | K46: =+IF(J46="","",SUM(J$11:J46)) ->  | M46: 0
B47: 37 | S47: ・クリーンラーチの収穫予測は，40年生までとなります。41年以上は計算に反映されません。
B48: 38 | J48: =SUM(J11:J46) -> 1 | S48: ・立木データは胸高直径の大きい順に入力してください。
B49: 39 | J49: 回数 | K49: =+S8 -> 林齢 | L49: 間伐率 | M49: 直径 | S49: ・対象林分の地位指数（40年生時の上層高），植栽本数が不明の場合は地域の標準的な値を選択してください。
B50: 40 | J50: 1 | K50: =IF(J50>J$48,"",VLOOKUP(J50,$K$11:$AH$46,4,0)) -> 19 | L50: =IF(J50>J$48,"",VLOOKUP(J50,$K$11:$AH$46,3,0)) -> 30 | M50: =IF(J50>J$48,"",VLOOKUP(J50,$K$11:$AH$46,12,0)) -> 15.49230769 | S50: ・データありの地位指数は、樹高データがないときは推定値です。
B51: 41 | J51: 2 | S51: ・地位指数はⅠ等地24，Ⅱ等地21，Ⅲ等地18を目安として選択してください。
B52: 42 | J52: 3 | S52: ・立木データがある場合は林齢（10年生～）、調査面積を入力してください。無い場合は空欄にしてください。
B53: 43 | J53: 4 | S53: ・立木データが300以上ある場合は入力方法2を使用してください。
B54: 44 | J54: 5 | S54: ・皆伐を入力する場合は全層の列に100を入力してください。
B55: 45 | J55: 6 | S55: ・CO2貯蔵量および吸収量の算定には（独）森林総合研究所公表の容積密度、拡大係数、地上部・地下部比を使用しました。
B56: 46 | J56: 7 | S56: ・拡大係数は20年生以下の1.50と21年生以上の1.15の平均値1.325を用いました。
B57: 47 | J57: 8
B58: 48
B59: 49
B60: 50 | J60: 15 | K60: 1000
B61: 51 | J61: 16 | K61: 1250
B62: 52 | J62: 17 | K62: 1500
B63: 53 | J63: 18 | K63: 1750
B64: 54 | J64: 19 | K64: 2000
B65: 55 | J65: 20 | K65: 2250
B66: 56 | J66: 21 | K66: 2500
B67: 57 | J67: 22 | K67: 2750
B68: 58 | J68: 23 | K68: 3000
B69: 59 | J69: 24
B70: 60 | J70: 25
B71: 61 | J71: 26
B72: 62 | J72: 27
B73: 63 | J73: 28
B74: 64 | J74: 29
B75: 65 | J75: 30
B76: 66 | J76: 31
B77: 67 | J77: 32
B78: 68
B79: 69
B80: 70
B81: 71
B82: 72
B83: 73
B84: 74
B85: 75
B86: 76
B87: 77
B88: 78
B89: 79
B90: 80
B91: 81
B92: 82
B93: 83
B94: 84
B95: 85
B96: 86
B97: 87
B98: 88
B99: 89
B100: 90
B101: 91
B102: 92
B103: 93
B104: 94
B105: 95
B106: 96
B107: 97
B108: 98
B109: 99
B110: 100
B111: 101
B112: 102
B113: 103
B114: 104
B115: 105
B116: 106
B117: 107
B118: 108
B119: 109
B120: 110
B121: 111
B122: 112
B123: 113
B124: 114
B125: 115
B126: 116
B127: 117
B128: 118
B129: 119
B130: 120
B131: 121
B132: 122
B133: 123
B134: 124
B135: 125
B136: 126
B137: 127
B138: 128
B139: 129
B140: 130
B141: 131
B142: 132
B143: 133
B144: 134
B145: 135
B146: 136
B147: 137
B148: 138
B149: 139
B150: 140
B151: 141
B152: 142
B153: 143
B154: 144
B155: 145
B156: 146
B157: 147
B158: 148
B159: 149
B160: 150
B161: 151
B162: 152
B163: 153
B164: 154
B165: 155
B166: 156
B167: 157
B168: 158
B169: 159
B170: 160
B171: 161
B172: 162
B173: 163
B174: 164
B175: 165
B176: 166
B177: 167
B178: 168
B179: 169
B180: 170
B181: 171
B182: 172
B183: 173
B184: 174
B185: 175
B186: 176
B187: 177
B188: 178
B189: 179
B190: 180
B191: 181
B192: 182
B193: 183
B194: 184
B195: 185
B196: 186
B197: 187
B198: 188
B199: 189
B200: 190
... 110 more rows

Sheet 施業体系図
A1: 道立総合研究機構 森林研究本部 林業試験場
B2: =+収穫予測!W4 -> 地位指数 | C2: =+収穫予測!Z4 -> 24 | O2: =+収穫予測!AK2 -> 作成年月日 | Q2: =+収穫予測!AL2 -> 2018-01-10
O3: =+収穫予測!AK3 -> 場所 | Q3: =+収穫予測!AL3 -> 美唄市
O4: =+収穫予測!AK4 -> 氏名 | Q4: =+収穫予測!AL4 -> 林業試験場
C28: 林齢（年） | D28: =IF(ISERROR(VLOOKUP(1,Sheet4!$AB$2:$AD$37,2,FALSE)),"",VLOOKUP(1,Sheet4!$AB$2:$AD$37,2,FALSE)) -> 19 | E28: =IF(ISERROR(VLOOKUP(2,Sheet4!$AB$2:$AD$37,2,FALSE)),"",VLOOKUP(2,Sheet4!$AB$2:$AD$37,2,FALSE)) ->  | F28: =IF(ISERROR(VLOOKUP(3,Sheet4!$AB$2:$AD$37,2,FALSE)),"",VLOOKUP(3,Sheet4!$AB$2:$AD$37,2,FALSE)) ->  | G28: =IF(ISERROR(VLOOKUP(4,Sheet4!$AB$2:$AD$37,2,FALSE)),"",VLOOKUP(4,Sheet4!$AB$2:$AD$37,2,FALSE)) ->  | H28: =IF(ISERROR(VLOOKUP(5,Sheet4!$AB$2:$AD$37,2,FALSE)),"",VLOOKUP(5,Sheet4!$AB$2:$AD$37,2,FALSE)) ->  | I28: =IF(ISERROR(VLOOKUP(6,Sheet4!$AB$2:$AD$37,2,FALSE)),"",VLOOKUP(6,Sheet4!$AB$2:$AD$37,2,FALSE)) ->  | J28: =IF(ISERROR(VLOOKUP(7,Sheet4!$AB$2:$AD$37,2,FALSE)),"",VLOOKUP(7,Sheet4!$AB$2:$AD$37,2,FALSE)) ->  | K28: =IF(ISERROR(VLOOKUP(8,Sheet4!$AB$2:$AD$37,2,FALSE)),"",VLOOKUP(8,Sheet4!$AB$2:$AD$37,2,FALSE)) ->  | L28: =IF(ISERROR(VLOOKUP(9,Sheet4!$AB$2:$AD$37,2,FALSE)),"",VLOOKUP(9,Sheet4!$AB$2:$AD$37,2,FALSE)) ->  | M28: =IF(ISERROR(VLOOKUP(10,Sheet4!$AB$2:$AD$37,2,FALSE)),"",VLOOKUP(10,Sheet4!$AB$2:$AD$37,2,FALSE)) ->  | N28: =IF(ISERROR(VLOOKUP(11,Sheet4!$AB$2:$AD$37,2,FALSE)),"",VLOOKUP(11,Sheet4!$AB$2:$AD$37,2,FALSE)) ->  | O28: =IF(ISERROR(VLOOKUP(12,Sheet4!$AB$2:$AD$37,2,FALSE)),"",VLOOKUP(12,Sheet4!$AB$2:$AD$37,2,FALSE)) ->  | P28: =IF(ISERROR(VLOOKUP(13,Sheet4!$AB$2:$AD$37,2,FALSE)),"",VLOOKUP(13,Sheet4!$AB$2:$AD$37,2,FALSE)) ->  | Q28: =IF(ISERROR(VLOOKUP(14,Sheet4!$AB$2:$AD$37,2,FALSE)),"",VLOOKUP(14,Sheet4!$AB$2:$AD$37,2,FALSE)) ->  | R28: =IF(ISERROR(VLOOKUP(15,Sheet4!$AB$2:$AD$37,2,FALSE)),"",VLOOKUP(1,Sheet4!$AB$2:$AD$37,2,FALSE)) -> 
B29: 間伐前 | C29: 上層高（m） | D29: =IF(D$28="","",VLOOKUP(D$28,収穫予測!$S$11:$AH$46,2,)) -> 16.4 | E29: =IF(E$28="","",VLOOKUP(E$28,収穫予測!$S$11:$AH$46,2,)) ->  | F29: =IF(F$28="","",VLOOKUP(F$28,収穫予測!$S$11:$AH$46,2,)) ->  | G29: =IF(G$28="","",VLOOKUP(G$28,収穫予測!$S$11:$AH$46,2,)) ->  | H29: =IF(H$28="","",VLOOKUP(H$28,収穫予測!$S$11:$AH$46,2,)) ->  | I29: =IF(I$28="","",VLOOKUP(I$28,収穫予測!$S$11:$AH$46,2,)) ->  | J29: =IF(J$28="","",VLOOKUP(J$28,収穫予測!$S$11:$AH$46,2,)) ->  | K29: =IF(K$28="","",VLOOKUP(K$28,収穫予測!$S$11:$AH$46,2,)) ->  | L29: =IF(L$28="","",VLOOKUP(L$28,収穫予測!$S$11:$AH$46,2,)) ->  | M29: =IF(M$28="","",VLOOKUP(M$28,収穫予測!$S$11:$AH$46,2,)) ->  | N29: =IF(N$28="","",VLOOKUP(N$28,収穫予測!$S$11:$AH$46,2,)) ->  | O29: =IF(O$28="","",VLOOKUP(O$28,収穫予測!$S$11:$AH$46,2,)) ->  | P29: =IF(P$28="","",VLOOKUP(P$28,収穫予測!$S$11:$AH$46,2,)) ->  | Q29: =IF(Q$28="","",VLOOKUP(Q$28,収穫予測!$S$11:$AH$46,2,)) ->  | R29: =IF(R$28="","",VLOOKUP(R$28,収穫予測!$S$11:$AH$46,2,)) -> 
C30: 平均直径（cm） | D30: =IF(D$28="","",VLOOKUP(D$28,収穫予測!$S$11:$AH$46,4,)) -> 15.5 | E30: =IF(E$28="","",VLOOKUP(E$28,収穫予測!$S$11:$AH$46,4,)) ->  | F30: =IF(F$28="","",VLOOKUP(F$28,収穫予測!$S$11:$AH$46,4,)) ->  | G30: =IF(G$28="","",VLOOKUP(G$28,収穫予測!$S$11:$AH$46,4,)) ->  | H30: =IF(H$28="","",VLOOKUP(H$28,収穫予測!$S$11:$AH$46,4,)) ->  | I30: =IF(I$28="","",VLOOKUP(I$28,収穫予測!$S$11:$AH$46,4,)) ->  | J30: =IF(J$28="","",VLOOKUP(J$28,収穫予測!$S$11:$AH$46,4,)) ->  | K30: =IF(K$28="","",VLOOKUP(K$28,収穫予測!$S$11:$AH$46,4,)) ->  | L30: =IF(L$28="","",VLOOKUP(L$28,収穫予測!$S$11:$AH$46,4,)) ->  | M30: =IF(M$28="","",VLOOKUP(M$28,収穫予測!$S$11:$AH$46,4,)) ->  | N30: =IF(N$28="","",VLOOKUP(N$28,収穫予測!$S$11:$AH$46,4,)) ->  | O30: =IF(O$28="","",VLOOKUP(O$28,収穫予測!$S$11:$AH$46,4,)) ->  | P30: =IF(P$28="","",VLOOKUP(P$28,収穫予測!$S$11:$AH$46,4,)) ->  | Q30: =IF(Q$28="","",VLOOKUP(Q$28,収穫予測!$S$11:$AH$46,4,)) ->  | R30: =IF(R$28="","",VLOOKUP(R$28,収穫予測!$S$11:$AH$46,4,)) -> 
C31: 立木本数（/ha） | D31: =IF(D$28="","",VLOOKUP(D$28,収穫予測!$S$11:$AH$46,5,)) -> 1300 | E31: =IF(E$28="","",VLOOKUP(E$28,収穫予測!$S$11:$AH$46,5,)) ->  | F31: =IF(F$28="","",VLOOKUP(F$28,収穫予測!$S$11:$AH$46,5,)) ->  | G31: =IF(G$28="","",VLOOKUP(G$28,収穫予測!$S$11:$AH$46,5,)) ->  | H31: =IF(H$28="","",VLOOKUP(H$28,収穫予測!$S$11:$AH$46,5,)) ->  | I31: =IF(I$28="","",VLOOKUP(I$28,収穫予測!$S$11:$AH$46,5,)) ->  | J31: =IF(J$28="","",VLOOKUP(J$28,収穫予測!$S$11:$AH$46,5,)) ->  | K31: =IF(K$28="","",VLOOKUP(K$28,収穫予測!$S$11:$AH$46,5,)) ->  | L31: =IF(L$28="","",VLOOKUP(L$28,収穫予測!$S$11:$AH$46,5,)) ->  | M31: =IF(M$28="","",VLOOKUP(M$28,収穫予測!$S$11:$AH$46,5,)) ->  | N31: =IF(N$28="","",VLOOKUP(N$28,収穫予測!$S$11:$AH$46,5,)) ->  | O31: =IF(O$28="","",VLOOKUP(O$28,収穫予測!$S$11:$AH$46,5,)) ->  | P31: =IF(P$28="","",VLOOKUP(P$28,収穫予測!$S$11:$AH$46,5,)) ->  | Q31: =IF(Q$28="","",VLOOKUP(Q$28,収穫予測!$S$11:$AH$46,5,)) ->  | R31: =IF(R$28="","",VLOOKUP(R$28,収穫予測!$S$11:$AH$46,5,)) -> 
C32: 材積（m3） | D32: =IF(D$28="","",VLOOKUP(D$28,収穫予測!$S$11:$AH$46,6,)) -> 203 | E32: =IF(E$28="","",VLOOKUP(E$28,収穫予測!$S$11:$AH$46,6,)) ->  | F32: =IF(F$28="","",VLOOKUP(F$28,収穫予測!$S$11:$AH$46,6,)) ->  | G32: =IF(G$28="","",VLOOKUP(G$28,収穫予測!$S$11:$AH$46,6,)) ->  | H32: =IF(H$28="","",VLOOKUP(H$28,収穫予測!$S$11:$AH$46,6,)) ->  | I32: =IF(I$28="","",VLOOKUP(I$28,収穫予測!$S$11:$AH$46,6,)) ->  | J32: =IF(J$28="","",VLOOKUP(J$28,収穫予測!$S$11:$AH$46,6,)) ->  | K32: =IF(K$28="","",VLOOKUP(K$28,収穫予測!$S$11:$AH$46,6,)) ->  | L32: =IF(L$28="","",VLOOKUP(L$28,収穫予測!$S$11:$AH$46,6,)) ->  | M32: =IF(M$28="","",VLOOKUP(M$28,収穫予測!$S$11:$AH$46,6,)) ->  | N32: =IF(N$28="","",VLOOKUP(N$28,収穫予測!$S$11:$AH$46,6,)) ->  | O32: =IF(O$28="","",VLOOKUP(O$28,収穫予測!$S$11:$AH$46,6,)) ->  | P32: =IF(P$28="","",VLOOKUP(P$28,収穫予測!$S$11:$AH$46,6,)) ->  | Q32: =IF(Q$28="","",VLOOKUP(Q$28,収穫予測!$S$11:$AH$46,6,)) ->  | R32: =IF(R$28="","",VLOOKUP(R$28,収穫予測!$S$11:$AH$46,6,)) -> 
B33: 除間伐 | C33: 回数（回） | D33: =IF(D28="","",VLOOKUP(D28,Sheet4!$AA2:$AB37,2)) -> 1 | E33: =IF(E28="","",VLOOKUP(E28,Sheet4!$AA2:$AB37,2)) ->  | F33: =IF(F28="","",VLOOKUP(F28,Sheet4!$AA2:$AB37,2)) ->  | G33: =IF(G28="","",VLOOKUP(G28,Sheet4!$AA2:$AB37,2)) ->  | H33: =IF(H28="","",VLOOKUP(H28,Sheet4!$AA2:$AB37,2)) ->  | I33: =IF(I28="","",VLOOKUP(I28,Sheet4!$AA2:$AB37,2)) ->  | J33: =IF(J28="","",VLOOKUP(J28,Sheet4!$AA2:$AB37,2)) ->  | K33: =IF(K28="","",VLOOKUP(K28,Sheet4!$AA2:$AB37,2)) ->  | L33: =IF(L28="","",VLOOKUP(L28,Sheet4!$AA2:$AB37,2)) ->  | M33: =IF(M28="","",VLOOKUP(M28,Sheet4!$AA2:$AB37,2)) ->  | N33: =IF(N28="","",VLOOKUP(N28,Sheet4!$AA2:$AB37,2)) ->  | O33: =IF(O28="","",VLOOKUP(O28,Sheet4!$AA2:$AB37,2)) ->  | P33: =IF(P28="","",VLOOKUP(P28,Sheet4!$AA2:$AB37,2)) ->  | Q33: =IF(Q28="","",VLOOKUP(Q28,Sheet4!$AA2:$AB37,2)) -> 
C34: 本数（本） | D34: =IF(D$28="","",VLOOKUP(D$28,収穫予測!$S$11:$AH$46,12,)) -> 370 | E34: =IF(E$28="","",VLOOKUP(E$28,収穫予測!$S$11:$AH$46,12,)) ->  | F34: =IF(F$28="","",VLOOKUP(F$28,収穫予測!$S$11:$AH$46,12,)) ->  | G34: =IF(G$28="","",VLOOKUP(G$28,収穫予測!$S$11:$AH$46,12,)) ->  | H34: =IF(H$28="","",VLOOKUP(H$28,収穫予測!$S$11:$AH$46,12,)) ->  | I34: =IF(I$28="","",VLOOKUP(I$28,収穫予測!$S$11:$AH$46,12,)) ->  | J34: =IF(J$28="","",VLOOKUP(J$28,収穫予測!$S$11:$AH$46,12,)) ->  | K34: =IF(K$28="","",VLOOKUP(K$28,収穫予測!$S$11:$AH$46,12,)) ->  | L34: =IF(L$28="","",VLOOKUP(L$28,収穫予測!$S$11:$AH$46,12,)) ->  | M34: =IF(M$28="","",VLOOKUP(M$28,収穫予測!$S$11:$AH$46,12,)) ->  | N34: =IF(N$28="","",VLOOKUP(N$28,収穫予測!$S$11:$AH$46,12,)) ->  | O34: =IF(O$28="","",VLOOKUP(O$28,収穫予測!$S$11:$AH$46,12,)) ->  | P34: =IF(P$28="","",VLOOKUP(P$28,収穫予測!$S$11:$AH$46,12,)) ->  | Q34: =IF(Q$28="","",VLOOKUP(Q$28,収穫予測!$S$11:$AH$46,12,)) -> 
C35: 本数率（％） | D35: =IF(D$28="","",VLOOKUP(D$28,収穫予測!$S$11:$AH$46,13,)) -> 28 | E35: =IF(E$28="","",VLOOKUP(E$28,収穫予測!$S$11:$AH$46,13,)) ->  | F35: =IF(F$28="","",VLOOKUP(F$28,収穫予測!$S$11:$AH$46,13,)) ->  | G35: =IF(G$28="","",VLOOKUP(G$28,収穫予測!$S$11:$AH$46,13,)) ->  | H35: =IF(H$28="","",VLOOKUP(H$28,収穫予測!$S$11:$AH$46,13,)) ->  | I35: =IF(I$28="","",VLOOKUP(I$28,収穫予測!$S$11:$AH$46,13,)) ->  | J35: =IF(J$28="","",VLOOKUP(J$28,収穫予測!$S$11:$AH$46,13,)) ->  | K35: =IF(K$28="","",VLOOKUP(K$28,収穫予測!$S$11:$AH$46,13,)) ->  | L35: =IF(L$28="","",VLOOKUP(L$28,収穫予測!$S$11:$AH$46,13,)) ->  | M35: =IF(M$28="","",VLOOKUP(M$28,収穫予測!$S$11:$AH$46,13,)) ->  | N35: =IF(N$28="","",VLOOKUP(N$28,収穫予測!$S$11:$AH$46,13,)) ->  | O35: =IF(O$28="","",VLOOKUP(O$28,収穫予測!$S$11:$AH$46,13,)) ->  | P35: =IF(P$28="","",VLOOKUP(P$28,収穫予測!$S$11:$AH$46,13,)) ->  | Q35: =IF(Q$28="","",VLOOKUP(Q$28,収穫予測!$S$11:$AH$46,13,)) -> 
C36: 材積（m3） | D36: =IF(D$28="","",VLOOKUP(D$28,収穫予測!$S$11:$AH$46,14,)) -> 48 | E36: =IF(E$28="","",VLOOKUP(E$28,収穫予測!$S$11:$AH$46,14,)) ->  | F36: =IF(F$28="","",VLOOKUP(F$28,収穫予測!$S$11:$AH$46,14,)) ->  | G36: =IF(G$28="","",VLOOKUP(G$28,収穫予測!$S$11:$AH$46,14,)) ->  | H36: =IF(H$28="","",VLOOKUP(H$28,収穫予測!$S$11:$AH$46,14,)) ->  | I36: =IF(I$28="","",VLOOKUP(I$28,収穫予測!$S$11:$AH$46,14,)) ->  | J36: =IF(J$28="","",VLOOKUP(J$28,収穫予測!$S$11:$AH$46,14,)) ->  | K36: =IF(K$28="","",VLOOKUP(K$28,収穫予測!$S$11:$AH$46,14,)) ->  | L36: =IF(L$28="","",VLOOKUP(L$28,収穫予測!$S$11:$AH$46,14,)) ->  | M36: =IF(M$28="","",VLOOKUP(M$28,収穫予測!$S$11:$AH$46,14,)) ->  | N36: =IF(N$28="","",VLOOKUP(N$28,収穫予測!$S$11:$AH$46,14,)) ->  | O36: =IF(O$28="","",VLOOKUP(O$28,収穫予測!$S$11:$AH$46,14,)) ->  | P36: =IF(P$28="","",VLOOKUP(P$28,収穫予測!$S$11:$AH$46,14,)) ->  | Q36: =IF(Q$28="","",VLOOKUP(Q$28,収穫予測!$S$11:$AH$46,14,)) -> 

Sheet 胸高直径別立木本数
A1: 道立総合研究機構 森林研究本部 林業試験場 | AA1: =+収穫予測!AK2 -> 作成年月日 | AC1: =+収穫予測!AL2 -> 2018-01-10
A2: 胸高直径別立木本数 | AA2: =+収穫予測!AK3 -> 場所 | AC2: =+収穫予測!AL3 -> 美唄市
F3: =+収穫予測!W4 -> 地位指数 | H3: =+収穫予測!Z4 -> 24 | J3: 直径階 | L3: 2 | M3: cm | AA3: =+収穫予測!AK4 -> 氏名 | AC3: =+収穫予測!AL4 -> 林業試験場
B4: 間伐前胸高直径
B5: cm以上 | C5: =+Sheet1!AE8 -> 0 | D5: =+Sheet1!AF8 -> 2 | E5: =+Sheet1!AG8 -> 4 | F5: =+Sheet1!AH8 -> 6 | G5: =+Sheet1!AI8 -> 8 | H5: =+Sheet1!AJ8 -> 10 | I5: =+Sheet1!AK8 -> 12 | J5: =+Sheet1!AL8 -> 14 | K5: =+Sheet1!AM8 -> 16 | L5: =+Sheet1!AN8 -> 18 | M5: =+Sheet1!AO8 -> 20 | N5: =+Sheet1!AP8 -> 22 | O5: =+Sheet1!AQ8 -> 24 | P5: =+Sheet1!AR8 -> 26 | Q5: =+Sheet1!AS8 -> 28 | R5: =+Sheet1!AT8 -> 30 | S5: =+Sheet1!AU8 -> 32 | T5: =+Sheet1!AV8 -> 34 | U5: =+Sheet1!AW8 -> 36 | V5: =+Sheet1!AX8 -> 38 | W5: =+Sheet1!AY8 -> 40 | X5: =+Sheet1!AZ8 -> 42 | Y5: =+Sheet1!BA8 -> 44 | Z5: =+Sheet1!BB8 -> 46 | AA5: =+Sheet1!BC8 -> 48 | AB5: =+Sheet1!BD8 -> 50 | AC5: =+Sheet1!BE8 -> 52 | AD5: =+Sheet1!BF8 -> 54 | AE5: =+Sheet1!BG8 -> 56 | AF5: 2
B6: cm未満 | C6: =+Sheet1!AF8 -> 2 | D6: =+Sheet1!AG8 -> 4 | E6: =+Sheet1!AH8 -> 6 | F6: =+Sheet1!AI8 -> 8 | G6: =+Sheet1!AJ8 -> 10 | H6: =+Sheet1!AK8 -> 12 | I6: =+Sheet1!AL8 -> 14 | J6: =+Sheet1!AM8 -> 16 | K6: =+Sheet1!AN8 -> 18 | L6: =+Sheet1!AO8 -> 20 | M6: =+Sheet1!AP8 -> 22 | N6: =+Sheet1!AQ8 -> 24 | O6: =+Sheet1!AR8 -> 26 | P6: =+Sheet1!AS8 -> 28 | Q6: =+Sheet1!AT8 -> 30 | R6: =+Sheet1!AU8 -> 32 | S6: =+Sheet1!AV8 -> 34 | T6: =+Sheet1!AW8 -> 36 | U6: =+Sheet1!AX8 -> 38 | V6: =+Sheet1!AY8 -> 40 | W6: =+Sheet1!AZ8 -> 42 | X6: =+Sheet1!BA8 -> 44 | Y6: =+Sheet1!BB8 -> 46 | Z6: =+Sheet1!BC8 -> 48 | AA6: =+Sheet1!BD8 -> 50 | AB6: =+Sheet1!BE8 -> 52 | AC6: =+Sheet1!BF8 -> 54 | AD6: =+Sheet1!BG8 -> 56 | AE6: 以上 | AF6: 3 | AJ6: 2 | AK6: 4 | AL6: 6 | AM6: 8 | AN6: 10 | AO6: 12 | AP6: 14 | AQ6: 16 | AR6: 18 | AS6: 20 | AT6: 22 | AU6: 24 | AV6: 26 | AW6: 28 | AX6: 30 | AY6: 32 | AZ6: 34 | BA6: 36 | BB6: 38 | BC6: 40 | BD6: 42 | BE6: 44 | BF6: 46 | BG6: 48 | BH6: 50 | BI6: 52 | BJ6: 54 | BK6: 56 | BL6: 以上
A7: 林 | B7: =+収穫予測!S11 -> 10 | C7: =+Sheet1!AE169 -> 0 | D7: =+Sheet1!AF169 -> 0 | E7: =+Sheet1!AG169 -> 0 | F7: =+Sheet1!AH169 -> 310 | G7: =+Sheet1!AI169 -> 380 | H7: =+Sheet1!AJ169 -> 400 | I7: =+Sheet1!AK169 -> 320 | J7: =+Sheet1!AL169 -> 30 | K7: =+Sheet1!AM169 -> 0 | L7: =+Sheet1!AN169 -> 0 | M7: =+Sheet1!AO169 -> 0 | N7: =+Sheet1!AP169 -> 0 | O7: =+Sheet1!AQ169 -> 0 | P7: =+Sheet1!AR169 -> 0 | Q7: =+Sheet1!AS169 -> 0 | R7: =+Sheet1!AT169 -> 0 | S7: =+Sheet1!AU169 -> 0 | T7: =+Sheet1!AV169 -> 0 | U7: =+Sheet1!AW169 -> 0 | V7: =+Sheet1!AX169 -> 0 | W7: =+Sheet1!AY169 -> 0 | X7: =+Sheet1!AZ169 -> 0 | Y7: =+Sheet1!BA169 -> 0 | Z7: =+Sheet1!BB169 -> 0 | AA7: =+Sheet1!BC169 -> 0 | AB7: =+Sheet1!BD169 -> 0 | AC7: =+Sheet1!BE169 -> 0 | AD7: =+Sheet1!BF169 -> 0 | AE7: =+Sheet1!BG169 -> 0 | AF7: 4 | AH7: =SUM(C7:AE7) -> 1,440 | AJ7: 0 | AK7: 0 | AL7: 0 | AM7: 0 | AN7: 0 | AO7: 0 | AP7: 0 | AQ7: 120 | AR7: 160 | AS7: 150 | AT7: 140 | AU7: 130 | AV7: 80 | AW7: 70 | AX7: 20 | AY7: 0 | AZ7: 0 | BA7: 0 | BB7: 0 | BC7: 0 | BD7: 0 | BE7: 0 | BF7: 0 | BG7: 0 | BH7: 0 | BI7: 0 | BJ7: 0 | BK7: 0 | BL7: 0
B8: =+収穫予測!S12 -> 11 | C8: =+Sheet1!AE170 -> 0 | D8: =+Sheet1!AF170 -> 0 | E8: =+Sheet1!AG170 -> 0 | F8: =+Sheet1!AH170 -> 200 | G8: =+Sheet1!AI170 -> 350 | H8: =+Sheet1!AJ170 -> 370 | I8: =+Sheet1!AK170 -> 340 | J8: =+Sheet1!AL170 -> 170 | K8: =+Sheet1!AM170 -> 0 | L8: =+Sheet1!AN170 -> 0 | M8: =+Sheet1!AO170 -> 0 | N8: =+Sheet1!AP170 -> 0 | O8: =+Sheet1!AQ170 -> 0 | P8: =+Sheet1!AR170 -> 0 | Q8: =+Sheet1!AS170 -> 0 | R8: =+Sheet1!AT170 -> 0 | S8: =+Sheet1!AU170 -> 0 | T8: =+Sheet1!AV170 -> 0 | U8: =+Sheet1!AW170 -> 0 | V8: =+Sheet1!AX170 -> 0 | W8: =+Sheet1!AY170 -> 0 | X8: =+Sheet1!AZ170 -> 0 | Y8: =+Sheet1!BA170 -> 0 | Z8: =+Sheet1!BB170 -> 0 | AA8: =+Sheet1!BC170 -> 0 | AB8: =+Sheet1!BD170 -> 0 | AC8: =+Sheet1!BE170 -> 0 | AD8: =+Sheet1!BF170 -> 0 | AE8: =+Sheet1!BG170 -> 0 | AJ8: 0 | AK8: 0 | AL8: 0 | AM8: 0 | AN8: 0 | AO8: 0 | AP8: 0 | AQ8: 40 | AR8: 50 | AS8: 40 | AT8: 40 | AU8: 40 | AV8: 30 | AW8: 20 | AX8: 0 | AY8: 0 | AZ8: 0 | BA8: 0 | BB8: 0 | BC8: 0 | BD8: 0 | BE8: 0 | BF8: 0 | BG8: 0 | BH8: 0 | BI8: 0 | BJ8: 0 | BK8: 0 | BL8: 0
A9: 齢 | B9: =+収穫予測!S13 -> 12 | C9: =+Sheet1!AE171 -> 0 | D9: =+Sheet1!AF171 -> 0 | E9: =+Sheet1!AG171 -> 0 | F9: =+Sheet1!AH171 -> 120 | G9: =+Sheet1!AI171 -> 310 | H9: =+Sheet1!AJ171 -> 350 | I9: =+Sheet1!AK171 -> 340 | J9: =+Sheet1!AL171 -> 260 | K9: =+Sheet1!AM171 -> 40 | L9: =+Sheet1!AN171 -> 0 | M9: =+Sheet1!AO171 -> 0 | N9: =+Sheet1!AP171 -> 0 | O9: =+Sheet1!AQ171 -> 0 | P9: =+Sheet1!AR171 -> 0 | Q9: =+Sheet1!AS171 -> 0 | R9: =+Sheet1!AT171 -> 0 | S9: =+Sheet1!AU171 -> 0 | T9: =+Sheet1!AV171 -> 0 | U9: =+Sheet1!AW171 -> 0 | V9: =+Sheet1!AX171 -> 0 | W9: =+Sheet1!AY171 -> 0 | X9: =+Sheet1!AZ171 -> 0 | Y9: =+Sheet1!BA171 -> 0 | Z9: =+Sheet1!BB171 -> 0 | AA9: =+Sheet1!BC171 -> 0 | AB9: =+Sheet1!BD171 -> 0 | AC9: =+Sheet1!BE171 -> 0 | AD9: =+Sheet1!BF171 -> 0 | AE9: =+Sheet1!BG171 -> 0 | AQ9: =+AQ7*0.3 -> 36 | AR9: =+AR7*0.3 -> 48 | AS9: 45 | AT9: 42 | AU9: 39 | AV9: 24 | AW9: 21
B10: =+収穫予測!S14 -> 13 | C10: =+Sheet1!AE172 -> 0 | D10: =+Sheet1!AF172 -> 0 | E10: =+Sheet1!AG172 -> 0 | F10: =+Sheet1!AH172 -> 50 | G10: =+Sheet1!AI172 -> 280 | H10: =+Sheet1!AJ172 -> 330 | I10: =+Sheet1!AK172 -> 330 | J10: =+Sheet1!AL172 -> 280 | K10: =+Sheet1!AM172 -> 130 | L10: =+Sheet1!AN172 -> 0 | M10: =+Sheet1!AO172 -> 0 | N10: =+Sheet1!AP172 -> 0 | O10: =+Sheet1!AQ172 -> 0 | P10: =+Sheet1!AR172 -> 0 | Q10: =+Sheet1!AS172 -> 0 | R10: =+Sheet1!AT172 -> 0 | S10: =+Sheet1!AU172 -> 0 | T10: =+Sheet1!AV172 -> 0 | U10: =+Sheet1!AW172 -> 0 | V10: =+Sheet1!AX172 -> 0 | W10: =+Sheet1!AY172 -> 0 | X10: =+Sheet1!AZ172 -> 0 | Y10: =+Sheet1!BA172 -> 0 | Z10: =+Sheet1!BB172 -> 0 | AA10: =+Sheet1!BC172 -> 0 | AB10: =+Sheet1!BD172 -> 0 | AC10: =+Sheet1!BE172 -> 0 | AD10: =+Sheet1!BF172 -> 0 | AE10: =+Sheet1!BG172 -> 0 | AJ10: 2 | AK10: 4 | AL10: 6 | AM10: 8 | AN10: 10 | AO10: 12 | AP10: 14 | AQ10: 16 | AR10: 18 | AS10: 20 | AT10: 22 | AU10: 24 | AV10: 26 | AW10: 28 | AX10: 30 | AY10: 32 | AZ10: 34 | BA10: 36 | BB10: 38 | BC10: 40 | BD10: 42 | BE10: 44 | BF10: 46 | BG10: 48 | BH10: 50 | BI10: 52 | BJ10: 54 | BK10: 56 | BL10: 58
A11: （年） | B11: =+収穫予測!S15 -> 14 | C11: =+Sheet1!AE173 -> 0 | D11: =+Sheet1!AF173 -> 0 | E11: =+Sheet1!AG173 -> 0 | F11: =+Sheet1!AH173 -> 0 | G11: =+Sheet1!AI173 -> 250 | H11: =+Sheet1!AJ173 -> 300 | I11: =+Sheet1!AK173 -> 320 | J11: =+Sheet1!AL173 -> 280 | K11: =+Sheet1!AM173 -> 210 | L11: =+Sheet1!AN173 -> 20 | M11: =+Sheet1!AO173 -> 0 | N11: =+Sheet1!AP173 -> 0 | O11: =+Sheet1!AQ173 -> 0 | P11: =+Sheet1!AR173 -> 0 | Q11: =+Sheet1!AS173 -> 0 | R11: =+Sheet1!AT173 -> 0 | S11: =+Sheet1!AU173 -> 0 | T11: =+Sheet1!AV173 -> 0 | U11: =+Sheet1!AW173 -> 0 | V11: =+Sheet1!AX173 -> 0 | W11: =+Sheet1!AY173 -> 0 | X11: =+Sheet1!AZ173 -> 0 | Y11: =+Sheet1!BA173 -> 0 | Z11: =+Sheet1!BB173 -> 0 | AA11: =+Sheet1!BC173 -> 0 | AB11: =+Sheet1!BD173 -> 0 | AC11: =+Sheet1!BE173 -> 0 | AD11: =+Sheet1!BF173 -> 0 | AE11: =+Sheet1!BG173 -> 0 | AQ11: 40 | AR11: 50 | AS11: 40 | AT11: 40 | AU11: 40 | AV11: 30 | AW11: 20
B12: =+収穫予測!S16 -> 15 | C12: =+Sheet1!AE174 -> 0 | D12: =+Sheet1!AF174 -> 0 | E12: =+Sheet1!AG174 -> 0 | F12: =+Sheet1!AH174 -> 0 | G12: =+Sheet1!AI174 -> 190 | H12: =+Sheet1!AJ174 -> 280 | I12: =+Sheet1!AK174 -> 300 | J12: =+Sheet1!AL174 -> 290 | K12: =+Sheet1!AM174 -> 230 | L12: =+Sheet1!AN174 -> 80 | M12: =+Sheet1!AO174 -> 0 | N12: =+Sheet1!AP174 -> 0 | O12: =+Sheet1!AQ174 -> 0 | P12: =+Sheet1!AR174 -> 0 | Q12: =+Sheet1!AS174 -> 0 | R12: =+Sheet1!AT174 -> 0 | S12: =+Sheet1!AU174 -> 0 | T12: =+Sheet1!AV174 -> 0 | U12: =+Sheet1!AW174 -> 0 | V12: =+Sheet1!AX174 -> 0 | W12: =+Sheet1!AY174 -> 0 | X12: =+Sheet1!AZ174 -> 0 | Y12: =+Sheet1!BA174 -> 0 | Z12: =+Sheet1!BB174 -> 0 | AA12: =+Sheet1!BC174 -> 0 | AB12: =+Sheet1!BD174 -> 0 | AC12: =+Sheet1!BE174 -> 0 | AD12: =+Sheet1!BF174 -> 0 | AE12: =+Sheet1!BG174 -> 0
B13: =+収穫予測!S17 -> 16 | C13: =+Sheet1!AE175 -> 0 | D13: =+Sheet1!AF175 -> 0 | E13: =+Sheet1!AG175 -> 0 | F13: =+Sheet1!AH175 -> 0 | G13: =+Sheet1!AI175 -> 130 | H13: =+Sheet1!AJ175 -> 270 | I13: =+Sheet1!AK175 -> 280 | J13: =+Sheet1!AL175 -> 280 | K13: =+Sheet1!AM175 -> 240 | L13: =+Sheet1!AN175 -> 140 | M13: =+Sheet1!AO175 -> 10 | N13: =+Sheet1!AP175 -> 0 | O13: =+Sheet1!AQ175 -> 0 | P13: =+Sheet1!AR175 -> 0 | Q13: =+Sheet1!AS175 -> 0 | R13: =+Sheet1!AT175 -> 0 | S13: =+Sheet1!AU175 -> 0 | T13: =+Sheet1!AV175 -> 0 | U13: =+Sheet1!AW175 -> 0 | V13: =+Sheet1!AX175 -> 0 | W13: =+Sheet1!AY175 -> 0 | X13: =+Sheet1!AZ175 -> 0 | Y13: =+Sheet1!BA175 -> 0 | Z13: =+Sheet1!BB175 -> 0 | AA13: =+Sheet1!BC175 -> 0 | AB13: =+Sheet1!BD175 -> 0 | AC13: =+Sheet1!BE175 -> 0 | AD13: =+Sheet1!BF175 -> 0 | AE13: =+Sheet1!BG175 -> 0
B14: =+収穫予測!S18 -> 17 | C14: =+Sheet1!AE176 -> 0 | D14: =+Sheet1!AF176 -> 0 | E14: =+Sheet1!AG176 -> 0 | F14: =+Sheet1!AH176 -> 0 | G14: =+Sheet1!AI176 -> 80 | H14: =+Sheet1!AJ176 -> 250 | I14: =+Sheet1!AK176 -> 270 | J14: =+Sheet1!AL176 -> 280 | K14: =+Sheet1!AM176 -> 240 | L14: =+Sheet1!AN176 -> 170 | M14: =+Sheet1!AO176 -> 40 | N14: =+Sheet1!AP176 -> 0 | O14: =+Sheet1!AQ176 -> 0 | P14: =+Sheet1!AR176 -> 0 | Q14: =+Sheet1!AS176 -> 0 | R14: =+Sheet1!AT176 -> 0 | S14: =+Sheet1!AU176 -> 0 | T14: =+Sheet1!AV176 -> 0 | U14: =+Sheet1!AW176 -> 0 | V14: =+Sheet1!AX176 -> 0 | W14: =+Sheet1!AY176 -> 0 | X14: =+Sheet1!AZ176 -> 0 | Y14: =+Sheet1!BA176 -> 0 | Z14: =+Sheet1!BB176 -> 0 | AA14: =+Sheet1!BC176 -> 0 | AB14: =+Sheet1!BD176 -> 0 | AC14: =+Sheet1!BE176 -> 0 | AD14: =+Sheet1!BF176 -> 0 | AE14: =+Sheet1!BG176 -> 0
B15: =+収穫予測!S19 -> 18 | C15: =+Sheet1!AE177 -> 0 | D15: =+Sheet1!AF177 -> 0 | E15: =+Sheet1!AG177 -> 0 | F15: =+Sheet1!AH177 -> 0 | G15: =+Sheet1!AI177 -> 30 | H15: =+Sheet1!AJ177 -> 250 | I15: =+Sheet1!AK177 -> 260 | J15: =+Sheet1!AL177 -> 270 | K15: =+Sheet1!AM177 -> 240 | L15: =+Sheet1!AN177 -> 190 | M15: =+Sheet1!AO177 -> 80 | N15: =+Sheet1!AP177 -> 0 | O15: =+Sheet1!AQ177 -> 0 | P15: =+Sheet1!AR177 -> 0 | Q15: =+Sheet1!AS177 -> 0 | R15: =+Sheet1!AT177 -> 0 | S15: =+Sheet1!AU177 -> 0 | T15: =+Sheet1!AV177 -> 0 | U15: =+Sheet1!AW177 -> 0 | V15: =+Sheet1!AX177 -> 0 | W15: =+Sheet1!AY177 -> 0 | X15: =+Sheet1!AZ177 -> 0 | Y15: =+Sheet1!BA177 -> 0 | Z15: =+Sheet1!BB177 -> 0 | AA15: =+Sheet1!BC177 -> 0 | AB15: =+Sheet1!BD177 -> 0 | AC15: =+Sheet1!BE177 -> 0 | AD15: =+Sheet1!BF177 -> 0 | AE15: =+Sheet1!BG177 -> 0
B16: =+収穫予測!S20 -> 19 | C16: =+Sheet1!AE178 -> 0 | D16: =+Sheet1!AF178 -> 0 | E16: =+Sheet1!AG178 -> 0 | F16: =+Sheet1!AH178 -> 0 | G16: =+Sheet1!AI178 -> 0 | H16: =+Sheet1!AJ178 -> 220 | I16: =+Sheet1!AK178 -> 260 | J16: =+Sheet1!AL178 -> 260 | K16: =+Sheet1!AM178 -> 240 | L16: =+Sheet1!AN178 -> 190 | M16: =+Sheet1!AO178 -> 120 | N16: =+Sheet1!AP178 -> 10 | O16: =+Sheet1!AQ178 -> 0 | P16: =+Sheet1!AR178 -> 0 | Q16: =+Sheet1!AS178 -> 0 | R16: =+Sheet1!AT178 -> 0 | S16: =+Sheet1!AU178 -> 0 | T16: =+Sheet1!AV178 -> 0 | U16: =+Sheet1!AW178 -> 0 | V16: =+Sheet1!AX178 -> 0 | W16: =+Sheet1!AY178 -> 0 | X16: =+Sheet1!AZ178 -> 0 | Y16: =+Sheet1!BA178 -> 0 | Z16: =+Sheet1!BB178 -> 0 | AA16: =+Sheet1!BC178 -> 0 | AB16: =+Sheet1!BD178 -> 0 | AC16: =+Sheet1!BE178 -> 0 | AD16: =+Sheet1!BF178 -> 0 | AE16: =+Sheet1!BG178 -> 0
B17: =+収穫予測!S21 -> 20 | C17: =+Sheet1!AE179 -> 0 | D17: =+Sheet1!AF179 -> 0 | E17: =+Sheet1!AG179 -> 0 | F17: =+Sheet1!AH179 -> 0 | G17: =+Sheet1!AI179 -> 0 | H17: =+Sheet1!AJ179 -> 60 | I17: =+Sheet1!AK179 -> 160 | J17: =+Sheet1!AL179 -> 190 | K17: =+Sheet1!AM179 -> 180 | L17: =+Sheet1!AN179 -> 170 | M17: =+Sheet1!AO179 -> 130 | N17: =+Sheet1!AP179 -> 40 | O17: =+Sheet1!AQ179 -> 0 | P17: =+Sheet1!AR179 -> 0 | Q17: =+Sheet1!AS179 -> 0 | R17: =+Sheet1!AT179 -> 0 | S17: =+Sheet1!AU179 -> 0 | T17: =+Sheet1!AV179 -> 0 | U17: =+Sheet1!AW179 -> 0 | V17: =+Sheet1!AX179 -> 0 | W17: =+Sheet1!AY179 -> 0 | X17: =+Sheet1!AZ179 -> 0 | Y17: =+Sheet1!BA179 -> 0 | Z17: =+Sheet1!BB179 -> 0 | AA17: =+Sheet1!BC179 -> 0 | AB17: =+Sheet1!BD179 -> 0 | AC17: =+Sheet1!BE179 -> 0 | AD17: =+Sheet1!BF179 -> 0 | AE17: =+Sheet1!BG179 -> 0
B18: =+収穫予測!S22 -> 21 | C18: =+Sheet1!AE180 -> 0 | D18: =+Sheet1!AF180 -> 0 | E18: =+Sheet1!AG180 -> 0 | F18: =+Sheet1!AH180 -> 0 | G18: =+Sheet1!AI180 -> 0 | H18: =+Sheet1!AJ180 -> 30 | I18: =+Sheet1!AK180 -> 160 | J18: =+Sheet1!AL180 -> 180 | K18: =+Sheet1!AM180 -> 180 | L18: =+Sheet1!AN180 -> 170 | M18: =+Sheet1!AO180 -> 140 | N18: =+Sheet1!AP180 -> 70 | O18: =+Sheet1!AQ180 -> 0 | P18: =+Sheet1!AR180 -> 0 | Q18: =+Sheet1!AS180 -> 0 | R18: =+Sheet1!AT180 -> 0 | S18: =+Sheet1!AU180 -> 0 | T18: =+Sheet1!AV180 -> 0 | U18: =+Sheet1!AW180 -> 0 | V18: =+Sheet1!AX180 -> 0 | W18: =+Sheet1!AY180 -> 0 | X18: =+Sheet1!AZ180 -> 0 | Y18: =+Sheet1!BA180 -> 0 | Z18: =+Sheet1!BB180 -> 0 | AA18: =+Sheet1!BC180 -> 0 | AB18: =+Sheet1!BD180 -> 0 | AC18: =+Sheet1!BE180 -> 0 | AD18: =+Sheet1!BF180 -> 0 | AE18: =+Sheet1!BG180 -> 0
B19: =+収穫予測!S23 -> 22 | C19: =+Sheet1!AE181 -> 0 | D19: =+Sheet1!AF181 -> 0 | E19: =+Sheet1!AG181 -> 0 | F19: =+Sheet1!AH181 -> 0 | G19: =+Sheet1!AI181 -> 0 | H19: =+Sheet1!AJ181 -> 10 | I19: =+Sheet1!AK181 -> 160 | J19: =+Sheet1!AL181 -> 170 | K19: =+Sheet1!AM181 -> 180 | L19: =+Sheet1!AN181 -> 170 | M19: =+Sheet1!AO181 -> 140 | N19: =+Sheet1!AP181 -> 90 | O19: =+Sheet1!AQ181 -> 10 | P19: =+Sheet1!AR181 -> 0 | Q19: =+Sheet1!AS181 -> 0 | R19: =+Sheet1!AT181 -> 0 | S19: =+Sheet1!AU181 -> 0 | T19: =+Sheet1!AV181 -> 0 | U19: =+Sheet1!AW181 -> 0 | V19: =+Sheet1!AX181 -> 0 | W19: =+Sheet1!AY181 -> 0 | X19: =+Sheet1!AZ181 -> 0 | Y19: =+Sheet1!BA181 -> 0 | Z19: =+Sheet1!BB181 -> 0 | AA19: =+Sheet1!BC181 -> 0 | AB19: =+Sheet1!BD181 -> 0 | AC19: =+Sheet1!BE181 -> 0 | AD19: =+Sheet1!BF181 -> 0 | AE19: =+Sheet1!BG181 -> 0
B20: =+収穫予測!S24 -> 23 | C20: =+Sheet1!AE182 -> 0 | D20: =+Sheet1!AF182 -> 0 | E20: =+Sheet1!AG182 -> 0 | F20: =+Sheet1!AH182 -> 0 | G20: =+Sheet1!AI182 -> 0 | H20: =+Sheet1!AJ182 -> 0 | I20: =+Sheet1!AK182 -> 140 | J20: =+Sheet1!AL182 -> 170 | K20: =+Sheet1!AM182 -> 180 | L20: =+Sheet1!AN182 -> 160 | M20: =+Sheet1!AO182 -> 150 | N20: =+Sheet1!AP182 -> 110 | O20: =+Sheet1!AQ182 -> 20 | P20: =+Sheet1!AR182 -> 0 | Q20: =+Sheet1!AS182 -> 0 | R20: =+Sheet1!AT182 -> 0 | S20: =+Sheet1!AU182 -> 0 | T20: =+Sheet1!AV182 -> 0 | U20: =+Sheet1!AW182 -> 0 | V20: =+Sheet1!AX182 -> 0 | W20: =+Sheet1!AY182 -> 0 | X20: =+Sheet1!AZ182 -> 0 | Y20: =+Sheet1!BA182 -> 0 | Z20: =+Sheet1!BB182 -> 0 | AA20: =+Sheet1!BC182 -> 0 | AB20: =+Sheet1!BD182 -> 0 | AC20: =+Sheet1!BE182 -> 0 | AD20: =+Sheet1!BF182 -> 0 | AE20: =+Sheet1!BG182 -> 0
B21: =+収穫予測!S25 -> 24 | C21: =+Sheet1!AE183 -> 0 | D21: =+Sheet1!AF183 -> 0 | E21: =+Sheet1!AG183 -> 0 | F21: =+Sheet1!AH183 -> 0 | G21: =+Sheet1!AI183 -> 0 | H21: =+Sheet1!AJ183 -> 0 | I21: =+Sheet1!AK183 -> 120 | J21: =+Sheet1!AL183 -> 160 | K21: =+Sheet1!AM183 -> 180 | L21: =+Sheet1!AN183 -> 170 | M21: =+Sheet1!AO183 -> 150 | N21: =+Sheet1!AP183 -> 110 | O21: =+Sheet1!AQ183 -> 40 | P21: =+Sheet1!AR183 -> 0 | Q21: =+Sheet1!AS183 -> 0 | R21: =+Sheet1!AT183 -> 0 | S21: =+Sheet1!AU183 -> 0 | T21: =+Sheet1!AV183 -> 0 | U21: =+Sheet1!AW183 -> 0 | V21: =+Sheet1!AX183 -> 0 | W21: =+Sheet1!AY183 -> 0 | X21: =+Sheet1!AZ183 -> 0 | Y21: =+Sheet1!BA183 -> 0 | Z21: =+Sheet1!BB183 -> 0 | AA21: =+Sheet1!BC183 -> 0 | AB21: =+Sheet1!BD183 -> 0 | AC21: =+Sheet1!BE183 -> 0 | AD21: =+Sheet1!BF183 -> 0 | AE21: =+Sheet1!BG183 -> 0
B22: =+収穫予測!S26 -> 25 | C22: =+Sheet1!AE184 -> 0 | D22: =+Sheet1!AF184 -> 0 | E22: =+Sheet1!AG184 -> 0 | F22: =+Sheet1!AH184 -> 0 | G22: =+Sheet1!AI184 -> 0 | H22: =+Sheet1!AJ184 -> 0 | I22: =+Sheet1!AK184 -> 90 | J22: =+Sheet1!AL184 -> 170 | K22: =+Sheet1!AM184 -> 170 | L22: =+Sheet1!AN184 -> 170 | M22: =+Sheet1!AO184 -> 150 | N22: =+Sheet1!AP184 -> 120 | O22: =+Sheet1!AQ184 -> 60 | P22: =+Sheet1!AR184 -> 0 | Q22: =+Sheet1!AS184 -> 0 | R22: =+Sheet1!AT184 -> 0 | S22: =+Sheet1!AU184 -> 0 | T22: =+Sheet1!AV184 -> 0 | U22: =+Sheet1!AW184 -> 0 | V22: =+Sheet1!AX184 -> 0 | W22: =+Sheet1!AY184 -> 0 | X22: =+Sheet1!AZ184 -> 0 | Y22: =+Sheet1!BA184 -> 0 | Z22: =+Sheet1!BB184 -> 0 | AA22: =+Sheet1!BC184 -> 0 | AB22: =+Sheet1!BD184 -> 0 | AC22: =+Sheet1!BE184 -> 0 | AD22: =+Sheet1!BF184 -> 0 | AE22: =+Sheet1!BG184 -> 0
B23: =+収穫予測!S27 -> 26 | C23: =+Sheet1!AE185 -> 0 | D23: =+Sheet1!AF185 -> 0 | E23: =+Sheet1!AG185 -> 0 | F23: =+Sheet1!AH185 -> 0 | G23: =+Sheet1!AI185 -> 0 | H23: =+Sheet1!AJ185 -> 0 | I23: =+Sheet1!AK185 -> 70 | J23: =+Sheet1!AL185 -> 170 | K23: =+Sheet1!AM185 -> 170 | L23: =+Sheet1!AN185 -> 160 | M23: =+Sheet1!AO185 -> 160 | N23: =+Sheet1!AP185 -> 120 | O23: =+Sheet1!AQ185 -> 70 | P23: =+Sheet1!AR185 -> 10 | Q23: =+Sheet1!AS185 -> 0 | R23: =+Sheet1!AT185 -> 0 | S23: =+Sheet1!AU185 -> 0 | T23: =+Sheet1!AV185 -> 0 | U23: =+Sheet1!AW185 -> 0 | V23: =+Sheet1!AX185 -> 0 | W23: =+Sheet1!AY185 -> 0 | X23: =+Sheet1!AZ185 -> 0 | Y23: =+Sheet1!BA185 -> 0 | Z23: =+Sheet1!BB185 -> 0 | AA23: =+Sheet1!BC185 -> 0 | AB23: =+Sheet1!BD185 -> 0 | AC23: =+Sheet1!BE185 -> 0 | AD23: =+Sheet1!BF185 -> 0 | AE23: =+Sheet1!BG185 -> 0
B24: =+収穫予測!S28 -> 27 | C24: =+Sheet1!AE186 -> 0 | D24: =+Sheet1!AF186 -> 0 | E24: =+Sheet1!AG186 -> 0 | F24: =+Sheet1!AH186 -> 0 | G24: =+Sheet1!AI186 -> 0 | H24: =+Sheet1!AJ186 -> 0 | I24: =+Sheet1!AK186 -> 50 | J24: =+Sheet1!AL186 -> 170 | K24: =+Sheet1!AM186 -> 170 | L24: =+Sheet1!AN186 -> 160 | M24: =+Sheet1!AO186 -> 150 | N24: =+Sheet1!AP186 -> 130 | O24: =+Sheet1!AQ186 -> 80 | P24: =+Sheet1!AR186 -> 20 | Q24: =+Sheet1!AS186 -> 0 | R24: =+Sheet1!AT186 -> 0 | S24: =+Sheet1!AU186 -> 0 | T24: =+Sheet1!AV186 -> 0 | U24: =+Sheet1!AW186 -> 0 | V24: =+Sheet1!AX186 -> 0 | W24: =+Sheet1!AY186 -> 0 | X24: =+Sheet1!AZ186 -> 0 | Y24: =+Sheet1!BA186 -> 0 | Z24: =+Sheet1!BB186 -> 0 | AA24: =+Sheet1!BC186 -> 0 | AB24: =+Sheet1!BD186 -> 0 | AC24: =+Sheet1!BE186 -> 0 | AD24: =+Sheet1!BF186 -> 0 | AE24: =+Sheet1!BG186 -> 0
B25: =+収穫予測!S29 -> 28 | C25: =+Sheet1!AE187 -> 0 | D25: =+Sheet1!AF187 -> 0 | E25: =+Sheet1!AG187 -> 0 | F25: =+Sheet1!AH187 -> 0 | G25: =+Sheet1!AI187 -> 0 | H25: =+Sheet1!AJ187 -> 0 | I25: =+Sheet1!AK187 -> 40 | J25: =+Sheet1!AL187 -> 160 | K25: =+Sheet1!AM187 -> 170 | L25: =+Sheet1!AN187 -> 160 | M25: =+Sheet1!AO187 -> 150 | N25: =+Sheet1!AP187 -> 130 | O25: =+Sheet1!AQ187 -> 90 | P25: =+Sheet1!AR187 -> 30 | Q25: =+Sheet1!AS187 -> 0 | R25: =+Sheet1!AT187 -> 0 | S25: =+Sheet1!AU187 -> 0 | T25: =+Sheet1!AV187 -> 0 | U25: =+Sheet1!AW187 -> 0 | V25: =+Sheet1!AX187 -> 0 | W25: =+Sheet1!AY187 -> 0 | X25: =+Sheet1!AZ187 -> 0 | Y25: =+Sheet1!BA187 -> 0 | Z25: =+Sheet1!BB187 -> 0 | AA25: =+Sheet1!BC187 -> 0 | AB25: =+Sheet1!BD187 -> 0 | AC25: =+Sheet1!BE187 -> 0 | AD25: =+Sheet1!BF187 -> 0 | AE25: =+Sheet1!BG187 -> 0
B26: =+収穫予測!S30 -> 29 | C26: =+Sheet1!AE188 -> 0 | D26: =+Sheet1!AF188 -> 0 | E26: =+Sheet1!AG188 -> 0 | F26: =+Sheet1!AH188 -> 0 | G26: =+Sheet1!AI188 -> 0 | H26: =+Sheet1!AJ188 -> 0 | I26: =+Sheet1!AK188 -> 20 | J26: =+Sheet1!AL188 -> 160 | K26: =+Sheet1!AM188 -> 170 | L26: =+Sheet1!AN188 -> 160 | M26: =+Sheet1!AO188 -> 150 | N26: =+Sheet1!AP188 -> 130 | O26: =+Sheet1!AQ188 -> 100 | P26: =+Sheet1!AR188 -> 40 | Q26: =+Sheet1!AS188 -> 0 | R26: =+Sheet1!AT188 -> 0 | S26: =+Sheet1!AU188 -> 0 | T26: =+Sheet1!AV188 -> 0 | U26: =+Sheet1!AW188 -> 0 | V26: =+Sheet1!AX188 -> 0 | W26: =+Sheet1!AY188 -> 0 | X26: =+Sheet1!AZ188 -> 0 | Y26: =+Sheet1!BA188 -> 0 | Z26: =+Sheet1!BB188 -> 0 | AA26: =+Sheet1!BC188 -> 0 | AB26: =+Sheet1!BD188 -> 0 | AC26: =+Sheet1!BE188 -> 0 | AD26: =+Sheet1!BF188 -> 0 | AE26: =+Sheet1!BG188 -> 0
B27: =+収穫予測!S31 -> 30 | C27: =+Sheet1!AE189 -> 0 | D27: =+Sheet1!AF189 -> 0 | E27: =+Sheet1!AG189 -> 0 | F27: =+Sheet1!AH189 -> 0 | G27: =+Sheet1!AI189 -> 0 | H27: =+Sheet1!AJ189 -> 0 | I27: =+Sheet1!AK189 -> 10 | J27: =+Sheet1!AL189 -> 150 | K27: =+Sheet1!AM189 -> 170 | L27: =+Sheet1!AN189 -> 160 | M27: =+Sheet1!AO189 -> 160 | N27: =+Sheet1!AP189 -> 130 | O27: =+Sheet1!AQ189 -> 90 | P27: =+Sheet1!AR189 -> 60 | Q27: =+Sheet1!AS189 -> 0 | R27: =+Sheet1!AT189 -> 0 | S27: =+Sheet1!AU189 -> 0 | T27: =+Sheet1!AV189 -> 0 | U27: =+Sheet1!AW189 -> 0 | V27: =+Sheet1!AX189 -> 0 | W27: =+Sheet1!AY189 -> 0 | X27: =+Sheet1!AZ189 -> 0 | Y27: =+Sheet1!BA189 -> 0 | Z27: =+Sheet1!BB189 -> 0 | AA27: =+Sheet1!BC189 -> 0 | AB27: =+Sheet1!BD189 -> 0 | AC27: =+Sheet1!BE189 -> 0 | AD27: =+Sheet1!BF189 -> 0 | AE27: =+Sheet1!BG189 -> 0
B28: =+収穫予測!S32 -> 31 | C28: =+Sheet1!AE190 -> 0 | D28: =+Sheet1!AF190 -> 0 | E28: =+Sheet1!AG190 -> 0 | F28: =+Sheet1!AH190 -> 0 | G28: =+Sheet1!AI190 -> 0 | H28: =+Sheet1!AJ190 -> 0 | I28: =+Sheet1!AK190 -> 0 | J28: =+Sheet1!AL190 -> 150 | K28: =+Sheet1!AM190 -> 160 | L28: =+Sheet1!AN190 -> 170 | M28: =+Sheet1!AO190 -> 150 | N28: =+Sheet1!AP190 -> 130 | O28: =+Sheet1!AQ190 -> 100 | P28: =+Sheet1!AR190 -> 60 | Q28: =+Sheet1!AS190 -> 10 | R28: =+Sheet1!AT190 -> 0 | S28: =+Sheet1!AU190 -> 0 | T28: =+Sheet1!AV190 -> 0 | U28: =+Sheet1!AW190 -> 0 | V28: =+Sheet1!AX190 -> 0 | W28: =+Sheet1!AY190 -> 0 | X28: =+Sheet1!AZ190 -> 0 | Y28: =+Sheet1!BA190 -> 0 | Z28: =+Sheet1!BB190 -> 0 | AA28: =+Sheet1!BC190 -> 0 | AB28: =+Sheet1!BD190 -> 0 | AC28: =+Sheet1!BE190 -> 0 | AD28: =+Sheet1!BF190 -> 0 | AE28: =+Sheet1!BG190 -> 0
B29: =+収穫予測!S33 -> 32 | C29: =+Sheet1!AE191 -> 0 | D29: =+Sheet1!AF191 -> 0 | E29: =+Sheet1!AG191 -> 0 | F29: =+Sheet1!AH191 -> 0 | G29: =+Sheet1!AI191 -> 0 | H29: =+Sheet1!AJ191 -> 0 | I29: =+Sheet1!AK191 -> 0 | J29: =+Sheet1!AL191 -> 130 | K29: =+Sheet1!AM191 -> 170 | L29: =+Sheet1!AN191 -> 160 | M29: =+Sheet1!AO191 -> 150 | N29: =+Sheet1!AP191 -> 140 | O29: =+Sheet1!AQ191 -> 100 | P29: =+Sheet1!AR191 -> 60 | Q29: =+Sheet1!AS191 -> 20 | R29: =+Sheet1!AT191 -> 0 | S29: =+Sheet1!AU191 -> 0 | T29: =+Sheet1!AV191 -> 0 | U29: =+Sheet1!AW191 -> 0 | V29: =+Sheet1!AX191 -> 0 | W29: =+Sheet1!AY191 -> 0 | X29: =+Sheet1!AZ191 -> 0 | Y29: =+Sheet1!BA191 -> 0 | Z29: =+Sheet1!BB191 -> 0 | AA29: =+Sheet1!BC191 -> 0 | AB29: =+Sheet1!BD191 -> 0 | AC29: =+Sheet1!BE191 -> 0 | AD29: =+Sheet1!BF191 -> 0 | AE29: =+Sheet1!BG191 -> 0
B30: =+収穫予測!S34 -> 33 | C30: =+Sheet1!AE192 -> 0 | D30: =+Sheet1!AF192 -> 0 | E30: =+Sheet1!AG192 -> 0 | F30: =+Sheet1!AH192 -> 0 | G30: =+Sheet1!AI192 -> 0 | H30: =+Sheet1!AJ192 -> 0 | I30: =+Sheet1!AK192 -> 0 | J30: =+Sheet1!AL192 -> 120 | K30: =+Sheet1!AM192 -> 160 | L30: =+Sheet1!AN192 -> 170 | M30: =+Sheet1!AO192 -> 150 | N30: =+Sheet1!AP192 -> 130 | O30: =+Sheet1!AQ192 -> 110 | P30: =+Sheet1!AR192 -> 70 | Q30: =+Sheet1!AS192 -> 20 | R30: =+Sheet1!AT192 -> 0 | S30: =+Sheet1!AU192 -> 0 | T30: =+Sheet1!AV192 -> 0 | U30: =+Sheet1!AW192 -> 0 | V30: =+Sheet1!AX192 -> 0 | W30: =+Sheet1!AY192 -> 0 | X30: =+Sheet1!AZ192 -> 0 | Y30: =+Sheet1!BA192 -> 0 | Z30: =+Sheet1!BB192 -> 0 | AA30: =+Sheet1!BC192 -> 0 | AB30: =+Sheet1!BD192 -> 0 | AC30: =+Sheet1!BE192 -> 0 | AD30: =+Sheet1!BF192 -> 0 | AE30: =+Sheet1!BG192 -> 0
B31: =+収穫予測!S35 -> 34 | C31: =+Sheet1!AE193 -> 0 | D31: =+Sheet1!AF193 -> 0 | E31: =+Sheet1!AG193 -> 0 | F31: =+Sheet1!AH193 -> 0 | G31: =+Sheet1!AI193 -> 0 | H31: =+Sheet1!AJ193 -> 0 | I31: =+Sheet1!AK193 -> 0 | J31: =+Sheet1!AL193 -> 110 | K31: =+Sheet1!AM193 -> 160 | L31: =+Sheet1!AN193 -> 160 | M31: =+Sheet1!AO193 -> 160 | N31: =+Sheet1!AP193 -> 130 | O31: =+Sheet1!AQ193 -> 110 | P31: =+Sheet1!AR193 -> 70 | Q31: =+Sheet1!AS193 -> 30 | R31: =+Sheet1!AT193 -> 0 | S31: =+Sheet1!AU193 -> 0 | T31: =+Sheet1!AV193 -> 0 | U31: =+Sheet1!AW193 -> 0 | V31: =+Sheet1!AX193 -> 0 | W31: =+Sheet1!AY193 -> 0 | X31: =+Sheet1!AZ193 -> 0 | Y31: =+Sheet1!BA193 -> 0 | Z31: =+Sheet1!BB193 -> 0 | AA31: =+Sheet1!BC193 -> 0 | AB31: =+Sheet1!BD193 -> 0 | AC31: =+Sheet1!BE193 -> 0 | AD31: =+Sheet1!BF193 -> 0 | AE31: =+Sheet1!BG193 -> 0
B32: =+収穫予測!S36 -> 35 | C32: =+Sheet1!AE194 -> 0 | D32: =+Sheet1!AF194 -> 0 | E32: =+Sheet1!AG194 -> 0 | F32: =+Sheet1!AH194 -> 0 | G32: =+Sheet1!AI194 -> 0 | H32: =+Sheet1!AJ194 -> 0 | I32: =+Sheet1!AK194 -> 0 | J32: =+Sheet1!AL194 -> 90 | K32: =+Sheet1!AM194 -> 170 | L32: =+Sheet1!AN194 -> 160 | M32: =+Sheet1!AO194 -> 150 | N32: =+Sheet1!AP194 -> 140 | O32: =+Sheet1!AQ194 -> 110 | P32: =+Sheet1!AR194 -> 70 | Q32: =+Sheet1!AS194 -> 40 | R32: =+Sheet1!AT194 -> 0 | S32: =+Sheet1!AU194 -> 0 | T32: =+Sheet1!AV194 -> 0 | U32: =+Sheet1!AW194 -> 0 | V32: =+Sheet1!AX194 -> 0 | W32: =+Sheet1!AY194 -> 0 | X32: =+Sheet1!AZ194 -> 0 | Y32: =+Sheet1!BA194 -> 0 | Z32: =+Sheet1!BB194 -> 0 | AA32: =+Sheet1!BC194 -> 0 | AB32: =+Sheet1!BD194 -> 0 | AC32: =+Sheet1!BE194 -> 0 | AD32: =+Sheet1!BF194 -> 0 | AE32: =+Sheet1!BG194 -> 0
B33: =+収穫予測!S37 -> 36 | C33: =+Sheet1!AE195 -> 0 | D33: =+Sheet1!AF195 -> 0 | E33: =+Sheet1!AG195 -> 0 | F33: =+Sheet1!AH195 -> 0 | G33: =+Sheet1!AI195 -> 0 | H33: =+Sheet1!AJ195 -> 0 | I33: =+Sheet1!AK195 -> 0 | J33: =+Sheet1!AL195 -> 80 | K33: =+Sheet1!AM195 -> 170 | L33: =+Sheet1!AN195 -> 160 | M33: =+Sheet1!AO195 -> 150 | N33: =+Sheet1!AP195 -> 140 | O33: =+Sheet1!AQ195 -> 110 | P33: =+Sheet1!AR195 -> 80 | Q33: =+Sheet1!AS195 -> 30 | R33: =+Sheet1!AT195 -> 10 | S33: =+Sheet1!AU195 -> 0 | T33: =+Sheet1!AV195 -> 0 | U33: =+Sheet1!AW195 -> 0 | V33: =+Sheet1!AX195 -> 0 | W33: =+Sheet1!AY195 -> 0 | X33: =+Sheet1!AZ195 -> 0 | Y33: =+Sheet1!BA195 -> 0 | Z33: =+Sheet1!BB195 -> 0 | AA33: =+Sheet1!BC195 -> 0 | AB33: =+Sheet1!BD195 -> 0 | AC33: =+Sheet1!BE195 -> 0 | AD33: =+Sheet1!BF195 -> 0 | AE33: =+Sheet1!BG195 -> 0
B34: =+収穫予測!S38 -> 37 | C34: =+Sheet1!AE196 -> 0 | D34: =+Sheet1!AF196 -> 0 | E34: =+Sheet1!AG196 -> 0 | F34: =+Sheet1!AH196 -> 0 | G34: =+Sheet1!AI196 -> 0 | H34: =+Sheet1!AJ196 -> 0 | I34: =+Sheet1!AK196 -> 0 | J34: =+Sheet1!AL196 -> 70 | K34: =+Sheet1!AM196 -> 160 | L34: =+Sheet1!AN196 -> 170 | M34: =+Sheet1!AO196 -> 150 | N34: =+Sheet1!AP196 -> 140 | O34: =+Sheet1!AQ196 -> 110 | P34: =+Sheet1!AR196 -> 80 | Q34: =+Sheet1!AS196 -> 40 | R34: =+Sheet1!AT196 -> 10 | S34: =+Sheet1!AU196 -> 0 | T34: =+Sheet1!AV196 -> 0 | U34: =+Sheet1!AW196 -> 0 | V34: =+Sheet1!AX196 -> 0 | W34: =+Sheet1!AY196 -> 0 | X34: =+Sheet1!AZ196 -> 0 | Y34: =+Sheet1!BA196 -> 0 | Z34: =+Sheet1!BB196 -> 0 | AA34: =+Sheet1!BC196 -> 0 | AB34: =+Sheet1!BD196 -> 0 | AC34: =+Sheet1!BE196 -> 0 | AD34: =+Sheet1!BF196 -> 0 | AE34: =+Sheet1!BG196 -> 0
B35: =+収穫予測!S39 -> 38 | C35: =+Sheet1!AE197 -> 0 | D35: =+Sheet1!AF197 -> 0 | E35: =+Sheet1!AG197 -> 0 | F35: =+Sheet1!AH197 -> 0 | G35: =+Sheet1!AI197 -> 0 | H35: =+Sheet1!AJ197 -> 0 | I35: =+Sheet1!AK197 -> 0 | J35: =+Sheet1!AL197 -> 60 | K35: =+Sheet1!AM197 -> 160 | L35: =+Sheet1!AN197 -> 160 | M35: =+Sheet1!AO197 -> 160 | N35: =+Sheet1!AP197 -> 140 | O35: =+Sheet1!AQ197 -> 110 | P35: =+Sheet1!AR197 -> 80 | Q35: =+Sheet1!AS197 -> 50 | R35: =+Sheet1!AT197 -> 10 | S35: =+Sheet1!AU197 -> 0 | T35: =+Sheet1!AV197 -> 0 | U35: =+Sheet1!AW197 -> 0 | V35: =+Sheet1!AX197 -> 0 | W35: =+Sheet1!AY197 -> 0 | X35: =+Sheet1!AZ197 -> 0 | Y35: =+Sheet1!BA197 -> 0 | Z35: =+Sheet1!BB197 -> 0 | AA35: =+Sheet1!BC197 -> 0 | AB35: =+Sheet1!BD197 -> 0 | AC35: =+Sheet1!BE197 -> 0 | AD35: =+Sheet1!BF197 -> 0 | AE35: =+Sheet1!BG197 -> 0
B36: =+収穫予測!S40 -> 39 | C36: =+Sheet1!AE198 -> 0 | D36: =+Sheet1!AF198 -> 0 | E36: =+Sheet1!AG198 -> 0 | F36: =+Sheet1!AH198 -> 0 | G36: =+Sheet1!AI198 -> 0 | H36: =+Sheet1!AJ198 -> 0 | I36: =+Sheet1!AK198 -> 0 | J36: =+Sheet1!AL198 -> 50 | K36: =+Sheet1!AM198 -> 160 | L36: =+Sheet1!AN198 -> 160 | M36: =+Sheet1!AO198 -> 160 | N36: =+Sheet1!AP198 -> 140 | O36: =+Sheet1!AQ198 -> 110 | P36: =+Sheet1!AR198 -> 90 | Q36: =+Sheet1!AS198 -> 40 | R36: =+Sheet1!AT198 -> 20 | S36: =+Sheet1!AU198 -> 0 | T36: =+Sheet1!AV198 -> 0 | U36: =+Sheet1!AW198 -> 0 | V36: =+Sheet1!AX198 -> 0 | W36: =+Sheet1!AY198 -> 0 | X36: =+Sheet1!AZ198 -> 0 | Y36: =+Sheet1!BA198 -> 0 | Z36: =+Sheet1!BB198 -> 0 | AA36: =+Sheet1!BC198 -> 0 | AB36: =+Sheet1!BD198 -> 0 | AC36: =+Sheet1!BE198 -> 0 | AD36: =+Sheet1!BF198 -> 0 | AE36: =+Sheet1!BG198 -> 0
B37: =+収穫予測!S41 -> 40 | C37: =+Sheet1!AE199 -> 0 | D37: =+Sheet1!AF199 -> 0 | E37: =+Sheet1!AG199 -> 0 | F37: =+Sheet1!AH199 -> 0 | G37: =+Sheet1!AI199 -> 0 | H37: =+Sheet1!AJ199 -> 0 | I37: =+Sheet1!AK199 -> 0 | J37: =+Sheet1!AL199 -> 40 | K37: =+Sheet1!AM199 -> 160 | L37: =+Sheet1!AN199 -> 160 | M37: =+Sheet1!AO199 -> 160 | N37: =+Sheet1!AP199 -> 140 | O37: =+Sheet1!AQ199 -> 110 | P37: =+Sheet1!AR199 -> 90 | Q37: =+Sheet1!AS199 -> 50 | R37: =+Sheet1!AT199 -> 20 | S37: =+Sheet1!AU199 -> 0 | T37: =+Sheet1!AV199 -> 0 | U37: =+Sheet1!AW199 -> 0 | V37: =+Sheet1!AX199 -> 0 | W37: =+Sheet1!AY199 -> 0 | X37: =+Sheet1!AZ199 -> 0 | Y37: =+Sheet1!BA199 -> 0 | Z37: =+Sheet1!BB199 -> 0 | AA37: =+Sheet1!BC199 -> 0 | AB37: =+Sheet1!BD199 -> 0 | AC37: =+Sheet1!BE199 -> 0 | AD37: =+Sheet1!BF199 -> 0 | AE37: =+Sheet1!BG199 -> 0
B38: =+収穫予測!S42 -> 0 | C38: =+Sheet1!AE200 -> 0 | D38: =+Sheet1!AF200 -> 0 | E38: =+Sheet1!AG200 -> 0 | F38: =+Sheet1!AH200 -> 0 | G38: =+Sheet1!AI200 -> 0 | H38: =+Sheet1!AJ200 -> 0 | I38: =+Sheet1!AK200 -> 0 | J38: =+Sheet1!AL200 -> 0 | K38: =+Sheet1!AM200 -> 0 | L38: =+Sheet1!AN200 -> 0 | M38: =+Sheet1!AO200 -> 0 | N38: =+Sheet1!AP200 -> 0 | O38: =+Sheet1!AQ200 -> 0 | P38: =+Sheet1!AR200 -> 0 | Q38: =+Sheet1!AS200 -> 0 | R38: =+Sheet1!AT200 -> 0 | S38: =+Sheet1!AU200 -> 0 | T38: =+Sheet1!AV200 -> 0 | U38: =+Sheet1!AW200 -> 0 | V38: =+Sheet1!AX200 -> 0 | W38: =+Sheet1!AY200 -> 0 | X38: =+Sheet1!AZ200 -> 0 | Y38: =+Sheet1!BA200 -> 0 | Z38: =+Sheet1!BB200 -> 0 | AA38: =+Sheet1!BC200 -> 0 | AB38: =+Sheet1!BD200 -> 0 | AC38: =+Sheet1!BE200 -> 0 | AD38: =+Sheet1!BF200 -> 0 | AE38: =+Sheet1!BG200 -> 0
B39: =+収穫予測!S43 -> 0 | C39: =+Sheet1!AE201 -> 0 | D39: =+Sheet1!AF201 -> 0 | E39: =+Sheet1!AG201 -> 0 | F39: =+Sheet1!AH201 -> 0 | G39: =+Sheet1!AI201 -> 0 | H39: =+Sheet1!AJ201 -> 0 | I39: =+Sheet1!AK201 -> 0 | J39: =+Sheet1!AL201 -> 0 | K39: =+Sheet1!AM201 -> 0 | L39: =+Sheet1!AN201 -> 0 | M39: =+Sheet1!AO201 -> 0 | N39: =+Sheet1!AP201 -> 0 | O39: =+Sheet1!AQ201 -> 0 | P39: =+Sheet1!AR201 -> 0 | Q39: =+Sheet1!AS201 -> 0 | R39: =+Sheet1!AT201 -> 0 | S39: =+Sheet1!AU201 -> 0 | T39: =+Sheet1!AV201 -> 0 | U39: =+Sheet1!AW201 -> 0 | V39: =+Sheet1!AX201 -> 0 | W39: =+Sheet1!AY201 -> 0 | X39: =+Sheet1!AZ201 -> 0 | Y39: =+Sheet1!BA201 -> 0 | Z39: =+Sheet1!BB201 -> 0 | AA39: =+Sheet1!BC201 -> 0 | AB39: =+Sheet1!BD201 -> 0 | AC39: =+Sheet1!BE201 -> 0 | AD39: =+Sheet1!BF201 -> 0 | AE39: =+Sheet1!BG201 -> 0
B40: =+収穫予測!S44 -> 0 | C40: =+Sheet1!AE202 -> 0 | D40: =+Sheet1!AF202 -> 0 | E40: =+Sheet1!AG202 -> 0 | F40: =+Sheet1!AH202 -> 0 | G40: =+Sheet1!AI202 -> 0 | H40: =+Sheet1!AJ202 -> 0 | I40: =+Sheet1!AK202 -> 0 | J40: =+Sheet1!AL202 -> 0 | K40: =+Sheet1!AM202 -> 0 | L40: =+Sheet1!AN202 -> 0 | M40: =+Sheet1!AO202 -> 0 | N40: =+Sheet1!AP202 -> 0 | O40: =+Sheet1!AQ202 -> 0 | P40: =+Sheet1!AR202 -> 0 | Q40: =+Sheet1!AS202 -> 0 | R40: =+Sheet1!AT202 -> 0 | S40: =+Sheet1!AU202 -> 0 | T40: =+Sheet1!AV202 -> 0 | U40: =+Sheet1!AW202 -> 0 | V40: =+Sheet1!AX202 -> 0 | W40: =+Sheet1!AY202 -> 0 | X40: =+Sheet1!AZ202 -> 0 | Y40: =+Sheet1!BA202 -> 0 | Z40: =+Sheet1!BB202 -> 0 | AA40: =+Sheet1!BC202 -> 0 | AB40: =+Sheet1!BD202 -> 0 | AC40: =+Sheet1!BE202 -> 0 | AD40: =+Sheet1!BF202 -> 0 | AE40: =+Sheet1!BG202 -> 0
B41: =+収穫予測!S45 -> 0 | C41: =+Sheet1!AE203 -> 0 | D41: =+Sheet1!AF203 -> 0 | E41: =+Sheet1!AG203 -> 0 | F41: =+Sheet1!AH203 -> 0 | G41: =+Sheet1!AI203 -> 0 | H41: =+Sheet1!AJ203 -> 0 | I41: =+Sheet1!AK203 -> 0 | J41: =+Sheet1!AL203 -> 0 | K41: =+Sheet1!AM203 -> 0 | L41: =+Sheet1!AN203 -> 0 | M41: =+Sheet1!AO203 -> 0 | N41: =+Sheet1!AP203 -> 0 | O41: =+Sheet1!AQ203 -> 0 | P41: =+Sheet1!AR203 -> 0 | Q41: =+Sheet1!AS203 -> 0 | R41: =+Sheet1!AT203 -> 0 | S41: =+Sheet1!AU203 -> 0 | T41: =+Sheet1!AV203 -> 0 | U41: =+Sheet1!AW203 -> 0 | V41: =+Sheet1!AX203 -> 0 | W41: =+Sheet1!AY203 -> 0 | X41: =+Sheet1!AZ203 -> 0 | Y41: =+Sheet1!BA203 -> 0 | Z41: =+Sheet1!BB203 -> 0 | AA41: =+Sheet1!BC203 -> 0 | AB41: =+Sheet1!BD203 -> 0 | AC41: =+Sheet1!BE203 -> 0 | AD41: =+Sheet1!BF203 -> 0 | AE41: =+Sheet1!BG203 -> 0
B42: =+収穫予測!S46 -> 0 | C42: =+Sheet1!AE204 -> 0 | D42: =+Sheet1!AF204 -> 0 | E42: =+Sheet1!AG204 -> 0 | F42: =+Sheet1!AH204 -> 0 | G42: =+Sheet1!AI204 -> 0 | H42: =+Sheet1!AJ204 -> 0 | I42: =+Sheet1!AK204 -> 0 | J42: =+Sheet1!AL204 -> 0 | K42: =+Sheet1!AM204 -> 0 | L42: =+Sheet1!AN204 -> 0 | M42: =+Sheet1!AO204 -> 0 | N42: =+Sheet1!AP204 -> 0 | O42: =+Sheet1!AQ204 -> 0 | P42: =+Sheet1!AR204 -> 0 | Q42: =+Sheet1!AS204 -> 0 | R42: =+Sheet1!AT204 -> 0 | S42: =+Sheet1!AU204 -> 0 | T42: =+Sheet1!AV204 -> 0 | U42: =+Sheet1!AW204 -> 0 | V42: =+Sheet1!AX204 -> 0 | W42: =+Sheet1!AY204 -> 0 | X42: =+Sheet1!AZ204 -> 0 | Y42: =+Sheet1!BA204 -> 0 | Z42: =+Sheet1!BB204 -> 0 | AA42: =+Sheet1!BC204 -> 0 | AB42: =+Sheet1!BD204 -> 0 | AC42: =+Sheet1!BE204 -> 0 | AD42: =+Sheet1!BF204 -> 0 | AE42: =+Sheet1!BG204 -> 0
B46: 間伐木胸高直径 | AI46: 径級別材積 | BM46: 間伐木材積計算
B47: cm以上 | C47: =+C5 -> 0 | D47: 2 | E47: 4 | F47: 6 | G47: 8 | H47: 10 | I47: 12 | J47: 14 | K47: 16 | L47: 18 | M47: 20 | N47: 22 | O47: 24 | P47: 26 | Q47: 28 | R47: 30 | S47: 32 | T47: 34 | U47: 36 | V47: 38 | W47: 40 | X47: 42 | Y47: 44 | Z47: 46 | AA47: 48 | AB47: 50 | AC47: 52 | AD47: 54 | AE47: 56 | AI47: 0 | AJ47: 2 | AK47: 4 | AL47: 6 | AM47: 8 | AN47: 10 | AO47: 12 | AP47: 14 | AQ47: 16 | AR47: 18 | AS47: 20 | AT47: 22 | AU47: 24 | AV47: 26 | AW47: 28 | AX47: 30 | AY47: 32 | AZ47: 34 | BA47: 36 | BB47: 38 | BC47: 40 | BD47: 42 | BE47: 44 | BF47: 46 | BG47: 48 | BH47: 50 | BI47: 52 | BJ47: 54 | BK47: 56 | BM47: 0 | BN47: 2 | BO47: 4 | BP47: 6 | BQ47: 8 | BR47: 10 | BS47: 12 | BT47: 14 | BU47: 16 | BV47: 18 | BW47: 20 | BX47: 22 | BY47: 24 | BZ47: 26 | CA47: 28 | CB47: 30 | CC47: 32 | CD47: 34 | CE47: 36 | CF47: 38 | CG47: 40 | CH47: 42 | CI47: 44 | CJ47: 46 | CK47: 48 | CL47: 50 | CM47: 52 | CN47: 54 | CO47: 56 | CQ47: 間伐材積調整
B48: cm未満 | C48: =+C6 -> 2 | D48: 4 | E48: 6 | F48: 8 | G48: 10 | H48: 12 | I48: 14 | J48: 16 | K48: 18 | L48: 20 | M48: 22 | N48: 24 | O48: 26 | P48: 28 | Q48: 30 | R48: 32 | S48: 34 | T48: 36 | U48: 38 | V48: 40 | W48: 42 | X48: 44 | Y48: 46 | Z48: 48 | AA48: 50 | AB48: 52 | AC48: 54 | AD48: 56 | AE48: 以上 | AI48: 2 | AJ48: 4 | AK48: 6 | AL48: 8 | AM48: 10 | AN48: 12 | AO48: 14 | AP48: 16 | AQ48: 18 | AR48: 20 | AS48: 22 | AT48: 24 | AU48: 26 | AV48: 28 | AW48: 30 | AX48: 32 | AY48: 34 | AZ48: 36 | BA48: 38 | BB48: 40 | BC48: 42 | BD48: 44 | BE48: 46 | BF48: 48 | BG48: 50 | BH48: 52 | BI48: 54 | BJ48: 56 | BK48: 以上 | BM48: 2 | BN48: 4 | BO48: 6 | BP48: 8 | BQ48: 10 | BR48: 12 | BS48: 14 | BT48: 16 | BU48: 18 | BV48: 20 | BW48: 22 | BX48: 24 | BY48: 26 | BZ48: 28 | CA48: 30 | CB48: 32 | CC48: 34 | CD48: 36 | CE48: 38 | CF48: 40 | CG48: 42 | CH48: 44 | CI48: 46 | CJ48: 48 | CK48: 50 | CL48: 52 | CM48: 54 | CN48: 56 | CO48: 以上 | CQ48: 1
A49: 林 | B49: =+収穫予測!N11 -> 10 | C49: =+Sheet1!AE89 -> 0 | D49: =+Sheet1!AF89 -> 0 | E49: =+Sheet1!AG89 -> 0 | F49: =+Sheet1!AH89 -> 0 | G49: =+Sheet1!AI89 -> 0 | H49: =+Sheet1!AJ89 -> 0 | I49: =+Sheet1!AK89 -> 0 | J49: =+Sheet1!AL89 -> 0 | K49: =+Sheet1!AM89 -> 0 | L49: =+Sheet1!AN89 -> 0 | M49: =+Sheet1!AO89 -> 0 | N49: =+Sheet1!AP89 -> 0 | O49: =+Sheet1!AQ89 -> 0 | P49: =+Sheet1!AR89 -> 0 | Q49: =+Sheet1!AS89 -> 0 | R49: =+Sheet1!AT89 -> 0 | S49: =+Sheet1!AU89 -> 0 | T49: =+Sheet1!AV89 -> 0 | U49: =+Sheet1!AW89 -> 0 | V49: =+Sheet1!AX89 -> 0 | W49: =+Sheet1!AY89 -> 0 | X49: =+Sheet1!AZ89 -> 0 | Y49: =+Sheet1!BA89 -> 0 | Z49: =+Sheet1!BB89 -> 0 | AA49: =+Sheet1!BC89 -> 0 | AB49: =+Sheet1!BD89 -> 0 | AC49: =+Sheet1!BE89 -> 0 | AD49: =+Sheet1!BF89 -> 0 | AE49: =+Sheet1!BG89 -> 0 | AI49: =+直径階分布の計算!FM11 -> 0.0001 | AJ49: =+直径階分布の計算!FN11 -> 0.0014 | AK49: =+直径階分布の計算!FO11 -> 0.0052 | AL49: =+直径階分布の計算!FP11 -> 0.01251779083 | AM49: =+直径階分布の計算!FQ11 -> 0.02352553447 | AN49: =+直径階分布の計算!FR11 -> 0.03824149361 | AO49: =+直径階分布の計算!FS11 -> 0.05668769629 | AP49: =+直径階分布の計算!FT11 -> 0.07887538724 | AQ49: =+直径階分布の計算!FU11 -> 0.1048108805 | AR49: =+直径階分布の計算!FV11 -> 0.1344979874 | AS49: =+直径階分布の計算!FW11 -> 0.1679391427 | AT49: =+直径階分布の計算!FX11 -> 0.205135973 | AU49: =+直径階分布の計算!FY11 -> 0.2460896064 | AV49: =+直径階分布の計算!FZ11 -> 0.2908008494 | AW49: =+直径階分布の計算!GA11 -> 0.339270294 | AX49: =+直径階分布の計算!GB11 -> 0.3914983842 | AY49: =+直径階分布の計算!GC11 -> 0.4474854599 | AZ49: =+直径階分布の計算!GD11 -> 0.5072317852 | BA49: =+直径階分布の計算!GE11 -> 0.5707375689 | BB49: =+直径階分布の計算!GF11 -> 0.638002978 | BC49: =+直径階分布の計算!GG11 -> 0.7090281476 | BD49: =+直径階分布の計算!GH11 -> 0.7838131883 | BE49: =+直径階分布の計算!GI11 -> 0.8623581914 | BF49: =+直径階分布の計算!GJ11 -> 0.9446632331 | BG49: =+直径階分布の計算!GK11 -> 1.030728377 | BH49: =+直径階分布の計算!GL11 -> 1.120553678 | BI49: =+直径階分布の計算!GM11 -> 1.214139182 | BJ49: =+直径階分布の計算!GN11 -> 1.311484928 | BK49: =+直径階分布の計算!GO11 -> 1.41259095 | BM49: =+C49*AI49 -> 0 | BN49: =+D49*AJ49 -> 0 | BO49: 0 | BP49: 0 | BQ49: 0 | BR49: 0 | BS49: 0 | BT49: 0 | BU49: 0 | BV49: 0 | BW49: 0 | BX49: 0 | BY49: 0 | BZ49: 0 | CA49: 0 | CB49: 0 | CC49: 0 | CD49: 0 | CE49: 0 | CF49: 0 | CG49: 0 | CH49: 0 | CI49: 0 | CJ49: 0 | CK49: 0 | CL49: 0 | CM49: 0 | CN49: 0 | CO49: 0 | CP49: =+B49 -> 10 | CQ49: =SUM(BM49:CO49)*$CQ$48 -> 0
B50: =+収穫予測!N12 -> 11 | C50: =+Sheet1!AE90 -> 0 | D50: =+Sheet1!AF90 -> 0 | E50: =+Sheet1!AG90 -> 0 | F50: =+Sheet1!AH90 -> 0 | G50: =+Sheet1!AI90 -> 0 | H50: =+Sheet1!AJ90 -> 0 | I50: =+Sheet1!AK90 -> 0 | J50: =+Sheet1!AL90 -> 0 | K50: =+Sheet1!AM90 -> 0 | L50: =+Sheet1!AN90 -> 0 | M50: =+Sheet1!AO90 -> 0 | N50: =+Sheet1!AP90 -> 0 | O50: =+Sheet1!AQ90 -> 0 | P50: =+Sheet1!AR90 -> 0 | Q50: =+Sheet1!AS90 -> 0 | R50: =+Sheet1!AT90 -> 0 | S50: =+Sheet1!AU90 -> 0 | T50: =+Sheet1!AV90 -> 0 | U50: =+Sheet1!AW90 -> 0 | V50: =+Sheet1!AX90 -> 0 | W50: =+Sheet1!AY90 -> 0 | X50: =+Sheet1!AZ90 -> 0 | Y50: =+Sheet1!BA90 -> 0 | Z50: =+Sheet1!BB90 -> 0 | AA50: =+Sheet1!BC90 -> 0 | AB50: =+Sheet1!BD90 -> 0 | AC50: =+Sheet1!BE90 -> 0 | AD50: =+Sheet1!BF90 -> 0 | AE50: =+Sheet1!BG90 -> 0 | AI50: =+直径階分布の計算!FM12 -> 0.0001 | AJ50: =+直径階分布の計算!FN12 -> 0.0014 | AK50: =+直径階分布の計算!FO12 -> 0.0053 | AL50: =+直径階分布の計算!FP12 -> 0.01311377631 | AM50: =+直径階分布の計算!FQ12 -> 0.02491732739 | AN50: =+直径階分布の計算!FR12 -> 0.04079001071 | AO50: =+直径階分布の計算!FS12 -> 0.06076140106 | AP50: =+直径階分布の計算!FT12 -> 0.08484668338 | AQ50: =+直径階分布の計算!FU12 -> 0.1130544207 | AR50: =+直径階分布の計算!FV12 -> 0.1453897993 | AS50: =+直径階分布の計算!FW12 -> 0.1818561401 | AT50: =+直径階分布の計算!FX12 -> 0.2224556671 | AU50: =+直径階分布の計算!FY12 -> 0.267189925 | AV50: =+直径階分布の計算!FZ12 -> 0.3160600199 | AW50: =+直径階分布の計算!GA12 -> 0.3690667646 | AX50: =+直径階分布の計算!GB12 -> 0.4262107695 | AY50: =+直径階分布の計算!GC12 -> 0.4874925021 | AZ50: =+直径階分布の計算!GD12 -> 0.5529123262 | BA50: =+直径階分布の計算!GE12 -> 0.6224705296 | BB50: =+直径階分布の計算!GF12 -> 0.6961673423 | BC50: =+直径階分布の計算!GG12 -> 0.7740029509 | BD50: =+直径階分布の計算!GH12 -> 0.8559775081 | BE50: =+直径階分布の計算!GI12 -> 0.9420911399 | BF50: =+直径階分布の計算!GJ12 -> 1.032343952 | BG50: =+直径階分布の計算!GK12 -> 1.126736032 | BH50: =+直径階分布の計算!GL12 -> 1.225267455 | BI50: =+直径階分布の計算!GM12 -> 1.327938284 | BJ50: =+直径階分布の計算!GN12 -> 1.434748576 | BK50: =+直径階分布の計算!GO12 -> 1.545698376 | BM50: =+C50*AI50 -> 0 | BN50: 0 | BO50: 0 | BP50: 0 | BQ50: 0 | BR50: 0 | BS50: 0 | BT50: 0 | BU50: 0 | BV50: 0 | BW50: 0 | BX50: 0 | BY50: 0 | BZ50: 0 | CA50: 0 | CB50: 0 | CC50: 0 | CD50: 0 | CE50: 0 | CF50: 0 | CG50: 0 | CH50: 0 | CI50: 0 | CJ50: 0 | CK50: 0 | CL50: 0 | CM50: 0 | CN50: 0 | CO50: 0 | CP50: =+B50 -> 11 | CQ50: =SUM(BM50:CO50)*$CQ$48 -> 0
A51: 齢 | B51: =+収穫予測!N13 -> 12 | C51: =+Sheet1!AE91 -> 0 | D51: =+Sheet1!AF91 -> 0 | E51: =+Sheet1!AG91 -> 0 | F51: =+Sheet1!AH91 -> 0 | G51: =+Sheet1!AI91 -> 0 | H51: =+Sheet1!AJ91 -> 0 | I51: =+Sheet1!AK91 -> 0 | J51: =+Sheet1!AL91 -> 0 | K51: =+Sheet1!AM91 -> 0 | L51: =+Sheet1!AN91 -> 0 | M51: =+Sheet1!AO91 -> 0 | N51: =+Sheet1!AP91 -> 0 | O51: =+Sheet1!AQ91 -> 0 | P51: =+Sheet1!AR91 -> 0 | Q51: =+Sheet1!AS91 -> 0 | R51: =+Sheet1!AT91 -> 0 | S51: =+Sheet1!AU91 -> 0 | T51: =+Sheet1!AV91 -> 0 | U51: =+Sheet1!AW91 -> 0 | V51: =+Sheet1!AX91 -> 0 | W51: =+Sheet1!AY91 -> 0 | X51: =+Sheet1!AZ91 -> 0 | Y51: =+Sheet1!BA91 -> 0 | Z51: =+Sheet1!BB91 -> 0 | AA51: =+Sheet1!BC91 -> 0 | AB51: =+Sheet1!BD91 -> 0 | AC51: =+Sheet1!BE91 -> 0 | AD51: =+Sheet1!BF91 -> 0 | AE51: =+Sheet1!BG91 -> 0 | AI51: =+直径階分布の計算!FM13 -> 0.0001 | AJ51: =+直径階分布の計算!FN13 -> 0.0014 | AK51: =+直径階分布の計算!FO13 -> 0.0054 | AL51: =+直径階分布の計算!FP13 -> 0.01362855051 | AM51: =+直径階分布の計算!FQ13 -> 0.0261640292 | AN51: =+直径階分布の計算!FR13 -> 0.04311664565 | AO51: =+直径階分布の計算!FS13 -> 0.06452465458 | AP51: =+直径階分布の計算!FT13 -> 0.09040781211 | AQ51: =+直径階分布の計算!FU13 -> 0.1207773061 | AR51: =+直径階分布の計算!FV13 -> 0.1556399338 | AS51: =+直径階分布の計算!FW13 -> 0.1950000593 | AT51: =+直径階分布の計算!FX13 -> 0.2388606104 | AU51: =+直径階分布の計算!FY13 -> 0.2872236244 | AV51: =+直径階分布の計算!FZ13 -> 0.3400905621 | AW51: =+直径階分布の計算!GA13 -> 0.3974624981 | AX51: =+直径階分布の計算!GB13 -> 0.4593402402 | AY51: =+直径階分布の計算!GC13 -> 0.5257244079 | AZ51: =+直径階分布の計算!GD13 -> 0.5966154834 | BA51: =+直径階分布の計算!GE13 -> 0.6720138484 | BB51: =+直径階分布の計算!GF13 -> 0.7519198084 | BC51: =+直径階分布の計算!GG13 -> 0.8363336112 | BD51: =+直径階分布の計算!GH13 -> 0.9252554595 | BE51: =+直径階分布の計算!GI13 -> 1.018685521 | BF51: =+直径階分布の計算!GJ13 -> 1.116623936 | BG51: =+直径階分布の計算!GK13 -> 1.219070821 | BH51: =+直径階分布の計算!GL13 -> 1.326026277 | BI51: =+直径階分布の計算!GM13 -> 1.437490388 | BJ51: =+直径階分布の計算!GN13 -> 1.553463227 | BK51: =+直径階分布の計算!GO13 -> 1.673944857 | BM51: 0 | BN51: 0 | BO51: 0 | BP51: 0 | BQ51: 0 | BR51: 0 | BS51: 0 | BT51: 0 | BU51: 0 | BV51: 0 | BW51: 0 | BX51: 0 | BY51: 0 | BZ51: 0 | CA51: 0 | CB51: 0 | CC51: 0 | CD51: 0 | CE51: 0 | CF51: 0 | CG51: 0 | CH51: 0 | CI51: 0 | CJ51: 0 | CK51: 0 | CL51: 0 | CM51: 0 | CN51: 0 | CO51: 0 | CP51: 12 | CQ51: 0
B52: =+収穫予測!N14 -> 13 | C52: =+Sheet1!AE92 -> 0 | D52: =+Sheet1!AF92 -> 0 | E52: =+Sheet1!AG92 -> 0 | F52: =+Sheet1!AH92 -> 0 | G52: =+Sheet1!AI92 -> 0 | H52: =+Sheet1!AJ92 -> 0 | I52: =+Sheet1!AK92 -> 0 | J52: =+Sheet1!AL92 -> 0 | K52: =+Sheet1!AM92 -> 0 | L52: =+Sheet1!AN92 -> 0 | M52: =+Sheet1!AO92 -> 0 | N52: =+Sheet1!AP92 -> 0 | O52: =+Sheet1!AQ92 -> 0 | P52: =+Sheet1!AR92 -> 0 | Q52: =+Sheet1!AS92 -> 0 | R52: =+Sheet1!AT92 -> 0 | S52: =+Sheet1!AU92 -> 0 | T52: =+Sheet1!AV92 -> 0 | U52: =+Sheet1!AW92 -> 0 | V52: =+Sheet1!AX92 -> 0 | W52: =+Sheet1!AY92 -> 0 | X52: =+Sheet1!AZ92 -> 0 | Y52: =+Sheet1!BA92 -> 0 | Z52: =+Sheet1!BB92 -> 0 | AA52: =+Sheet1!BC92 -> 0 | AB52: =+Sheet1!BD92 -> 0 | AC52: =+Sheet1!BE92 -> 0 | AD52: =+Sheet1!BF92 -> 0 | AE52: =+Sheet1!BG92 -> 0 | AI52: =+直径階分布の計算!FM14 -> 0.0001 | AJ52: =+直径階分布の計算!FN14 -> 0.0013 | AK52: =+直径階分布の計算!FO14 -> 0.0055 | AL52: =+直径階分布の計算!FP14 -> 0.01404865825 | AM52: =+直径階分布の計算!FQ14 -> 0.0272355841 | AN52: =+直径階分布の計算!FR14 -> 0.0451678145 | AO52: =+直径階分布の計算!FS14 -> 0.06789337155 | AP52: =+直径階分布の計算!FT14 -> 0.09543720082 | AQ52: =+直径階分布の計算!FU14 -> 0.1278134879 | AR52: =+直径階分布の計算!FV14 -> 0.1650308787 | AS52: =+直径階分布の計算!FW14 -> 0.2070949373 | AT52: =+直径階分布の計算!FX14 -> 0.2540094042 | AU52: =+直径階分布の計算!FY14 -> 0.3057768863 | AV52: =+直径階分布の計算!FZ14 -> 0.3623992553 | AW52: =+直径階分布の計算!GA14 -> 0.4238778896 | AX52: =+直径階分布の計算!GB14 -> 0.4902138268 | AY52: =+直径階分布の計算!GC14 -> 0.5614078625 | AZ52: =+直径階分布の計算!GD14 -> 0.6374606174 | BA52: =+直径階分布の計算!GE14 -> 0.7183725823 | BB52: =+直径階分布の計算!GF14 -> 0.8041441507 | BC52: =+直径階分布の計算!GG14 -> 0.8947756418 | BD52: =+直径階分布の計算!GH14 -> 0.9902673171 | BE52: =+直径階分布の計算!GI14 -> 1.090619393 | BF52: =+直径階分布の計算!GJ14 -> 1.195832049 | BG52: =+直径階分布の計算!GK14 -> 1.305905439 | BH52: =+直径階分布の計算!GL14 -> 1.420839689 | BI52: =+直径階分布の計算!GM14 -> 1.54063491 | BJ52: =+直径階分布の計算!GN14 -> 1.665291196 | BK52: =+直径階分布の計算!GO14 -> 1.794808628 | BM52: 0 | BN52: 0 | BO52: 0 | BP52: 0 | BQ52: 0 | BR52: 0 | BS52: 0 | BT52: 0 | BU52: 0 | BV52: 0 | BW52: 0 | BX52: 0 | BY52: 0 | BZ52: 0 | CA52: 0 | CB52: 0 | CC52: 0 | CD52: 0 | CE52: 0 | CF52: 0 | CG52: 0 | CH52: 0 | CI52: 0 | CJ52: 0 | CK52: 0 | CL52: 0 | CM52: 0 | CN52: 0 | CO52: 0 | CP52: 13 | CQ52: 0
A53: （年） | B53: =+収穫予測!N15 -> 14 | C53: =+Sheet1!AE93 -> 0 | D53: =+Sheet1!AF93 -> 0 | E53: =+Sheet1!AG93 -> 0 | F53: =+Sheet1!AH93 -> 0 | G53: =+Sheet1!AI93 -> 0 | H53: =+Sheet1!AJ93 -> 0 | I53: =+Sheet1!AK93 -> 0 | J53: =+Sheet1!AL93 -> 0 | K53: =+Sheet1!AM93 -> 0 | L53: =+Sheet1!AN93 -> 0 | M53: =+Sheet1!AO93 -> 0 | N53: =+Sheet1!AP93 -> 0 | O53: =+Sheet1!AQ93 -> 0 | P53: =+Sheet1!AR93 -> 0 | Q53: =+Sheet1!AS93 -> 0 | R53: =+Sheet1!AT93 -> 0 | S53: =+Sheet1!AU93 -> 0 | T53: =+Sheet1!AV93 -> 0 | U53: =+Sheet1!AW93 -> 0 | V53: =+Sheet1!AX93 -> 0 | W53: =+Sheet1!AY93 -> 0 | X53: =+Sheet1!AZ93 -> 0 | Y53: =+Sheet1!BA93 -> 0 | Z53: =+Sheet1!BB93 -> 0 | AA53: =+Sheet1!BC93 -> 0 | AB53: =+Sheet1!BD93 -> 0 | AC53: =+Sheet1!BE93 -> 0 | AD53: =+Sheet1!BF93 -> 0 | AE53: =+Sheet1!BG93 -> 0 | AI53: =+直径階分布の計算!FM15 -> 0.0001 | AJ53: =+直径階分布の計算!FN15 -> 0.0013 | AK53: =+直径階分布の計算!FO15 -> 0.0056 | AL53: =+直径階分布の計算!FP15 -> 0.01439742095 | AM53: =+直径階分布の計算!FQ15 -> 0.02817048148 | AN53: =+直径階分布の計算!FR15 -> 0.04699948845 | AO53: =+直径階分布の計算!FS15 -> 0.07094318101 | AP53: =+直径階分布の計算!FT15 -> 0.1000322451 | AQ53: =+直径階分布の計算!FU15 -> 0.1342842007 | AR53: =+直径階分布の計算!FV15 -> 0.1737097581 | AS53: =+直径階分布の計算!FW15 -> 0.2183158259 | AT53: =+直径階分布の計算!FX15 -> 0.2681070575 | AU53: =+直径階分布の計算!FY15 -> 0.3230867006 | AV53: =+直径階分布の計算!FZ15 -> 0.38325709 | AW53: =+直径階分布の計算!GA15 -> 0.4486199472 | AX53: =+直径階分布の計算!GB15 -> 0.5191765691 | AY53: =+直径階分布の計算!GC15 -> 0.5949279511 | AZ53: =+直径階分布の計算!GD15 -> 0.67587487 | BA53: =+直径階分布の計算!GE15 -> 0.7620179407 | BB53: =+直径階分布の計算!GF15 -> 0.8533576566 | BC53: =+直径階分布の計算!GG15 -> 0.9498944177 | BD53: =+直径階分布の計算!GH15 -> 1.051628552 | BE53: =+直径階分布の計算!GI15 -> 1.158560331 | BF53: =+直径階分布の計算!GJ15 -> 1.270689982 | BG53: =+直径階分布の計算!GK15 -> 1.388017694 | BH53: =+直径階分布の計算!GL15 -> 1.510543629 | BI53: =+直径階分布の計算!GM15 -> 1.638267926 | BJ53: =+直径階分布の計算!GN15 -> 1.771190702 | BK53: =+直径階分布の計算!GO15 -> 1.909312059 | BM53: 0 | BN53: 0 | BO53: 0 | BP53: 0 | BQ53: 0 | BR53: 0 | BS53: 0 | BT53: 0 | BU53: 0 | BV53: 0 | BW53: 0 | BX53: 0 | BY53: 0 | BZ53: 0 | CA53: 0 | CB53: 0 | CC53: 0 | CD53: 0 | CE53: 0 | CF53: 0 | CG53: 0 | CH53: 0 | CI53: 0 | CJ53: 0 | CK53: 0 | CL53: 0 | CM53: 0 | CN53: 0 | CO53: 0 | CP53: 14 | CQ53: 0
B54: =+収穫予測!N16 -> 15 | C54: =+Sheet1!AE94 -> 0 | D54: =+Sheet1!AF94 -> 0 | E54: =+Sheet1!AG94 -> 0 | F54: =+Sheet1!AH94 -> 0 | G54: =+Sheet1!AI94 -> 0 | H54: =+Sheet1!AJ94 -> 0 | I54: =+Sheet1!AK94 -> 0 | J54: =+Sheet1!AL94 -> 0 | K54: =+Sheet1!AM94 -> 0 | L54: =+Sheet1!AN94 -> 0 | M54: =+Sheet1!AO94 -> 0 | N54: =+Sheet1!AP94 -> 0 | O54: =+Sheet1!AQ94 -> 0 | P54: =+Sheet1!AR94 -> 0 | Q54: =+Sheet1!AS94 -> 0 | R54: =+Sheet1!AT94 -> 0 | S54: =+Sheet1!AU94 -> 0 | T54: =+Sheet1!AV94 -> 0 | U54: =+Sheet1!AW94 -> 0 | V54: =+Sheet1!AX94 -> 0 | W54: =+Sheet1!AY94 -> 0 | X54: =+Sheet1!AZ94 -> 0 | Y54: =+Sheet1!BA94 -> 0 | Z54: =+Sheet1!BB94 -> 0 | AA54: =+Sheet1!BC94 -> 0 | AB54: =+Sheet1!BD94 -> 0 | AC54: =+Sheet1!BE94 -> 0 | AD54: =+Sheet1!BF94 -> 0 | AE54: =+Sheet1!BG94 -> 0 | AI54: =+直径階分布の計算!FM16 -> 0.0001 | AJ54: =+直径階分布の計算!FN16 -> 0.0013 | AK54: =+直径階分布の計算!FO16 -> 0.0056 | AL54: =+直径階分布の計算!FP16 -> 0.0147029927 | AM54: =+直径階分布の計算!FQ16 -> 0.02901852482 | AN54: =+直径階分布の計算!FR16 -> 0.04868808103 | AO54: =+直径階分布の計算!FS16 -> 0.07378191387 | AP54: =+直径階分布の計算!FT16 -> 0.1043369201 | AQ54: =+直径階分布の計算!FU16 -> 0.1403742453 | AR54: =+直径階分布の計算!FV16 -> 0.1819068523 | AS54: =+直径階分布の計算!FW16 -> 0.2289431211 | AT54: =+直径階分布の計算!FX16 -> 0.2814887059 | AU54: =+直径階分布の計算!FY16 -> 0.3395475584 | AV54: =+直径階分布の計算!FZ16 -> 0.4031225233 | AW54: =+直径階分布の計算!GA16 -> 0.4722156997 | AX54: =+直径階分布の計算!GB16 -> 0.5468286704 | AY54: =+直径階分布の計算!GC16 -> 0.6269626515 | AZ54: =+直径階分布の計算!GD16 -> 0.7126185922 | BA54: =+直径階分布の計算!GE16 -> 0.8037972448 | BB54: =+直径階分布の計算!GF16 -> 0.9004992127 | BC54: =+直径階分布の計算!GG16 -> 1.002724986 | BD54: =+直径階分布の計算!GH16 -> 1.110474965 | BE54: =+直径階分布の計算!GI16 -> 1.223749485 | BF54: =+直径階分布の計算!GJ16 -> 1.342548821 | BG54: =+直径階分布の計算!GK16 -> 1.466873208 | BH54: =+直径階分布の計算!GL16 -> 1.596722843 | BI54: =+直径階分布の計算!GM16 -> 1.732097897 | BJ54: =+直径階分布の計算!GN16 -> 1.872998513 | BK54: =+直径階分布の計算!GO16 -> 2.019424816 | BM54: 0 | BN54: 0 | BO54: 0 | BP54: 0 | BQ54: 0 | BR54: 0 | BS54: 0 | BT54: 0 | BU54: 0 | BV54: 0 | BW54: 0 | BX54: 0 | BY54: 0 | BZ54: 0 | CA54: 0 | CB54: 0 | CC54: 0 | CD54: 0 | CE54: 0 | CF54: 0 | CG54: 0 | CH54: 0 | CI54: 0 | CJ54: 0 | CK54: 0 | CL54: 0 | CM54: 0 | CN54: 0 | CO54: 0 | CP54: 15 | CQ54: 0
B55: =+収穫予測!N17 -> 16 | C55: =+Sheet1!AE95 -> 0 | D55: =+Sheet1!AF95 -> 0 | E55: =+Sheet1!AG95 -> 0 | F55: =+Sheet1!AH95 -> 0 | G55: =+Sheet1!AI95 -> 0 | H55: =+Sheet1!AJ95 -> 0 | I55: =+Sheet1!AK95 -> 0 | J55: =+Sheet1!AL95 -> 0 | K55: =+Sheet1!AM95 -> 0 | L55: =+Sheet1!AN95 -> 0 | M55: =+Sheet1!AO95 -> 0 | N55: =+Sheet1!AP95 -> 0 | O55: =+Sheet1!AQ95 -> 0 | P55: =+Sheet1!AR95 -> 0 | Q55: =+Sheet1!AS95 -> 0 | R55: =+Sheet1!AT95 -> 0 | S55: =+Sheet1!AU95 -> 0 | T55: =+Sheet1!AV95 -> 0 | U55: =+Sheet1!AW95 -> 0 | V55: =+Sheet1!AX95 -> 0 | W55: =+Sheet1!AY95 -> 0 | X55: =+Sheet1!AZ95 -> 0 | Y55: =+Sheet1!BA95 -> 0 | Z55: =+Sheet1!BB95 -> 0 | AA55: =+Sheet1!BC95 -> 0 | AB55: =+Sheet1!BD95 -> 0 | AC55: =+Sheet1!BE95 -> 0 | AD55: =+Sheet1!BF95 -> 0 | AE55: =+Sheet1!BG95 -> 0 | AI55: =+直径階分布の計算!FM17 -> 0.0001 | AJ55: =+直径階分布の計算!FN17 -> 0.0013 | AK55: =+直径階分布の計算!FO17 -> 0.0056 | AL55: =+直径階分布の計算!FP17 -> 0.01493223928 | AM55: =+直径階分布の計算!FQ17 -> 0.02971409518 | AN55: =+直径階分布の計算!FR17 -> 0.05012407594 | AO55: =+直径階分布の計算!FS17 -> 0.0762446662 | AP55: =+直径階分布の計算!FT17 -> 0.1081194144 | AQ55: =+直径階分布の計算!FU17 -> 0.1457733699 | AR55: =+直径階分布の計算!FV17 -> 0.1892219308 | AS55: =+直径階分布の計算!FW17 -> 0.2384750724 | AT55: =+直径階分布の計算!FX17 -> 0.2935395364 | AU55: =+直径階分布の計算!FY17 -> 0.3544200416 | AV55: =+直径階分布の計算!FZ17 -> 0.4211199881 | AW55: =+直径階分布の計算!GA17 -> 0.4936418879 | AX55: =+直径階分布の計算!GB17 -> 0.5719876363 | AY55: =+直径階分布の計算!GC17 -> 0.6561586906 | AZ55: =+直径階分布の計算!GD17 -> 0.7461561894 | BA55: =+直径階分布の計算!GE17 -> 0.8419810348 | BB55: =+直径階分布の計算!GF17 -> 0.9436339515 | BC55: =+直径階分布の計算!GG17 -> 1.051115528 | BD55: =+直径階分布の計算!GH17 -> 1.164426246 | BE55: =+直径階分布の計算!GI17 -> 1.283566506 | BF55: =+直径階分布の計算!GJ17 -> 1.408536641 | BG55: =+直径階分布の計算!GK17 -> 1.539336934 | BH55: =+直径階分布の計算!GL17 -> 1.67596762 | BI55: =+直径階分布の計算!GM17 -> 1.818428905 | BJ55: =+直径階分布の計算!GN17 -> 1.966720963 | BK55: =+直径階分布の計算!GO17 -> 2.120843943 | BM55: 0 | BN55: 0 | BO55: 0 | BP55: 0 | BQ55: 0 | BR55: 0 | BS55: 0 | BT55: 0 | BU55: 0 | BV55: 0 | BW55: 0 | BX55: 0 | BY55: 0 | BZ55: 0 | CA55: 0 | CB55: 0 | CC55: 0 | CD55: 0 | CE55: 0 | CF55: 0 | CG55: 0 | CH55: 0 | CI55: 0 | CJ55: 0 | CK55: 0 | CL55: 0 | CM55: 0 | CN55: 0 | CO55: 0 | CP55: 16 | CQ55: 0
B56: =+収穫予測!N18 -> 17 | C56: =+Sheet1!AE96 -> 0 | D56: =+Sheet1!AF96 -> 0 | E56: =+Sheet1!AG96 -> 0 | F56: =+Sheet1!AH96 -> 0 | G56: =+Sheet1!AI96 -> 0 | H56: =+Sheet1!AJ96 -> 0 | I56: =+Sheet1!AK96 -> 0 | J56: =+Sheet1!AL96 -> 0 | K56: =+Sheet1!AM96 -> 0 | L56: =+Sheet1!AN96 -> 0 | M56: =+Sheet1!AO96 -> 0 | N56: =+Sheet1!AP96 -> 0 | O56: =+Sheet1!AQ96 -> 0 | P56: =+Sheet1!AR96 -> 0 | Q56: =+Sheet1!AS96 -> 0 | R56: =+Sheet1!AT96 -> 0 | S56: =+Sheet1!AU96 -> 0 | T56: =+Sheet1!AV96 -> 0 | U56: =+Sheet1!AW96 -> 0 | V56: =+Sheet1!AX96 -> 0 | W56: =+Sheet1!AY96 -> 0 | X56: =+Sheet1!AZ96 -> 0 | Y56: =+Sheet1!BA96 -> 0 | Z56: =+Sheet1!BB96 -> 0 | AA56: =+Sheet1!BC96 -> 0 | AB56: =+Sheet1!BD96 -> 0 | AC56: =+Sheet1!BE96 -> 0 | AD56: =+Sheet1!BF96 -> 0 | AE56: =+Sheet1!BG96 -> 0 | AI56: =+直径階分布の計算!FM18 -> 0.0001 | AJ56: =+直径階分布の計算!FN18 -> 0.0013 | AK56: =+直径階分布の計算!FO18 -> 0.0056 | AL56: =+直径階分布の計算!FP18 -> 0.01511215454 | AM56: =+直径階分布の計算!FQ18 -> 0.03030595517 | AN56: =+直径階分布の計算!FR18 -> 0.05138334866 | AO56: =+直径階分布の計算!FS18 -> 0.07843960002 | AP56: =+直径階分布の計算!FT18 -> 0.1115252574 | AQ56: =+直径階分布の計算!FU18 -> 0.1506694988 | AR56: =+直径階分布の計算!FV18 -> 0.1958903062 | AS56: =+直径階分布の計算!FW18 -> 0.2471993526 | AT56: =+直径階分布の計算!FX18 -> 0.3046045398 | AU56: =+直径階分布の計算!FY18 -> 0.3681114054 | AV56: =+直径階分布の計算!FZ18 -> 0.4377239443 | AW56: =+直径階分布の計算!GA18 -> 0.51344511 | AX56: =+直径階分布の計算!GB18 -> 0.5952771335 | AY56: =+直径階分布の計算!GC18 -> 0.6832217307 | AZ56: =+直径階分布の計算!GD18 -> 0.7772802432 | BA56: =+直径階分布の計算!GE18 -> 0.8774537349 | BB56: =+直径階分布の計算!GF18 -> 0.9837430603 | BC56: =+直径階分布の計算!GG18 -> 1.096148914 | BD56: =+直径階分布の計算!GH18 -> 1.214671864 | BE56: =+直径階分布の計算!GI18 -> 1.339312385 | BF56: =+直径階分布の計算!GJ18 -> 1.470070869 | BG56: =+直径階分布の計算!GK18 -> 1.606947649 | BH56: =+直径階分布の計算!GL18 -> 1.749943007 | BI56: =+直径階分布の計算!GM18 -> 1.899057182 | BJ56: =+直径階分布の計算!GN18 -> 2.054290381 | BK56: =+直径階分布の計算!GO18 -> 2.215642782 | BM56: 0 | BN56: 0 | BO56: 0 | BP56: 0 | BQ56: 0 | BR56: 0 | BS56: 0 | BT56: 0 | BU56: 0 | BV56: 0 | BW56: 0 | BX56: 0 | BY56: 0 | BZ56: 0 | CA56: 0 | CB56: 0 | CC56: 0 | CD56: 0 | CE56: 0 | CF56: 0 | CG56: 0 | CH56: 0 | CI56: 0 | CJ56: 0 | CK56: 0 | CL56: 0 | CM56: 0 | CN56: 0 | CO56: 0 | CP56: 17 | CQ56: 0
B57: =+収穫予測!N19 -> 18 | C57: =+Sheet1!AE97 -> 0 | D57: =+Sheet1!AF97 -> 0 | E57: =+Sheet1!AG97 -> 0 | F57: =+Sheet1!AH97 -> 0 | G57: =+Sheet1!AI97 -> 0 | H57: =+Sheet1!AJ97 -> 0 | I57: =+Sheet1!AK97 -> 0 | J57: =+Sheet1!AL97 -> 0 | K57: =+Sheet1!AM97 -> 0 | L57: =+Sheet1!AN97 -> 0 | M57: =+Sheet1!AO97 -> 0 | N57: =+Sheet1!AP97 -> 0 | O57: =+Sheet1!AQ97 -> 0 | P57: =+Sheet1!AR97 -> 0 | Q57: =+Sheet1!AS97 -> 0 | R57: =+Sheet1!AT97 -> 0 | S57: =+Sheet1!AU97 -> 0 | T57: =+Sheet1!AV97 -> 0 | U57: =+Sheet1!AW97 -> 0 | V57: =+Sheet1!AX97 -> 0 | W57: =+Sheet1!AY97 -> 0 | X57: =+Sheet1!AZ97 -> 0 | Y57: =+Sheet1!BA97 -> 0 | Z57: =+Sheet1!BB97 -> 0 | AA57: =+Sheet1!BC97 -> 0 | AB57: =+Sheet1!BD97 -> 0 | AC57: =+Sheet1!BE97 -> 0 | AD57: =+Sheet1!BF97 -> 0 | AE57: =+Sheet1!BG97 -> 0 | AI57: =+直径階分布の計算!FM19 -> 0.0001 | AJ57: =+直径階分布の計算!FN19 -> 0.0013 | AK57: =+直径階分布の計算!FO19 -> 0.0056 | AL57: =+直径階分布の計算!FP19 -> 0.01527201411 | AM57: =+直径階分布の計算!FQ19 -> 0.03084941213 | AN57: =+直径階分布の計算!FR19 -> 0.05255470155 | AO57: =+直径階分布の計算!FS19 -> 0.08049632654 | AP57: =+直径階分布の計算!FT19 -> 0.1147320967 | AQ57: =+直径階分布の計算!FU19 -> 0.1552954902 | AR57: =+直径階分布の計算!FV19 -> 0.2022071893 | AS57: =+直径階分布の計算!FW19 -> 0.2554806444 | AT57: =+直径階分布の計算!FX19 -> 0.3151249745 | AU57: =+直径階分布の計算!FY19 -> 0.3811465775 | AV57: =+直径階分布の計算!FZ19 -> 0.4535500739 | AW57: =+直径階分布の計算!GA19 -> 0.5323388827 | AX57: =+直径階分布の計算!GB19 -> 0.6175155879 | AY57: =+直径階分布の計算!GC19 -> 0.7090821788 | AZ57: =+直径階分布の計算!GD19 -> 0.8070402112 | BA57: =+直径階分布の計算!GE19 -> 0.9113909196 | BB57: =+直径階分布の計算!GF19 -> 1.022135296 | BC57: =+直径階分布の計算!GG19 -> 1.139274146 | BD57: =+直径階分布の計算!GH19 -> 1.262808132 | BE57: =+直径階分布の計算!GI19 -> 1.392737803 | BF57: =+直径階分布の計算!GJ19 -> 1.529063616 | BG57: =+直径階分布の計算!GK19 -> 1.671785958 | BH57: =+直径階分布の計算!GL19 -> 1.820905156 | BI57: =+直径階分布の計算!GM19 -> 1.976421489 | BJ57: =+直径階分布の計算!GN19 -> 2.138335199 | BK57: =+直径階分布の計算!GO19 -> 2.306646491 | BM57: 0 | BN57: 0 | BO57: 0 | BP57: 0 | BQ57: 0 | BR57: 0 | BS57: 0 | BT57: 0 | BU57: 0 | BV57: 0 | BW57: 0 | BX57: 0 | BY57: 0 | BZ57: 0 | CA57: 0 | CB57: 0 | CC57: 0 | CD57: 0 | CE57: 0 | CF57: 0 | CG57: 0 | CH57: 0 | CI57: 0 | CJ57: 0 | CK57: 0 | CL57: 0 | CM57: 0 | CN57: 0 | CO57: 0 | CP57: 18 | CQ57: 0
B58: =+収穫予測!N20 -> 19 | C58: =+Sheet1!AE98 -> 0 | D58: =+Sheet1!AF98 -> 0 | E58: =+Sheet1!AG98 -> 0 | F58: =+Sheet1!AH98 -> 0 | G58: =+Sheet1!AI98 -> 0 | H58: =+Sheet1!AJ98 -> 60 | I58: =+Sheet1!AK98 -> 80 | J58: =+Sheet1!AL98 -> 80 | K58: =+Sheet1!AM98 -> 70 | L58: =+Sheet1!AN98 -> 60 | M58: =+Sheet1!AO98 -> 20 | N58: =+Sheet1!AP98 -> 0 | O58: =+Sheet1!AQ98 -> 0 | P58: =+Sheet1!AR98 -> 0 | Q58: =+Sheet1!AS98 -> 0 | R58: =+Sheet1!AT98 -> 0 | S58: =+Sheet1!AU98 -> 0 | T58: =+Sheet1!AV98 -> 0 | U58: =+Sheet1!AW98 -> 0 | V58: =+Sheet1!AX98 -> 0 | W58: =+Sheet1!AY98 -> 0 | X58: =+Sheet1!AZ98 -> 0 | Y58: =+Sheet1!BA98 -> 0 | Z58: =+Sheet1!BB98 -> 0 | AA58: =+Sheet1!BC98 -> 0 | AB58: =+Sheet1!BD98 -> 0 | AC58: =+Sheet1!BE98 -> 0 | AD58: =+Sheet1!BF98 -> 0 | AE58: =+Sheet1!BG98 -> 0 | AI58: =+直径階分布の計算!FM20 -> 0.0001 | AJ58: =+直径階分布の計算!FN20 -> 0.0013 | AK58: =+直径階分布の計算!FO20 -> 0.0056 | AL58: =+直径階分布の計算!FP20 -> 0.01537305754 | AM58: =+直径階分布の計算!FQ20 -> 0.03126768629 | AN58: =+直径階分布の計算!FR20 -> 0.05351002873 | AO58: =+直径階分布の計算!FS20 -> 0.0822220033 | AP58: =+直径階分布の計算!FT20 -> 0.1174688987 | AQ58: =+直径階分布の計算!FU20 -> 0.159288644 | AR58: =+直径階分布の計算!FV20 -> 0.2077047262 | AS58: =+直径階分布の計算!FW20 -> 0.2627324473 | AT58: =+直径階分布の計算!FX20 -> 0.3243821962 | AU58: =+直径階分布の計算!FY20 -> 0.3926612708 | AV58: =+直径階分布の計算!FZ20 -> 0.4675749462 | AW58: =+直径階分布の計算!GA20 -> 0.5491271294 | AX58: =+直径階分布の計算!GB20 -> 0.6373207752 | AY58: =+直径階分布の計算!GC20 -> 0.7321581594 | AZ58: =+直径階分布の計算!GD20 -> 0.8336410633 | BA58: =+直径階分布の計算!GE20 -> 0.9417709006 | BB58: =+直径階分布の計算!GF20 -> 1.056548808 | BC58: =+直径階分布の計算!GG20 -> 1.177975709 | BD58: =+直径階分布の計算!GH20 -> 1.306052364 | BE58: =+直径階分布の計算!GI20 -> 1.4407794 | BF58: =+直径階分布の計算!GJ20 -> 1.582157344 | BG58: =+直径階分布の計算!GK20 -> 1.730186639 | BH58: =+直径階分布の計算!GL20 -> 1.884867661 | BI58: =+直径階分布の計算!GM20 -> 2.04620073 | BJ58: =+直径階分布の計算!GN20 -> 2.214186122 | BK58: =+直径階分布の計算!GO20 -> 2.388824076 | BM58: 0 | BN58: 0 | BO58: 0 | BP58: 0 | BQ58: =+G58*AM58 -> 0 | BR58: =+H58*AN58 -> 3.210601724 | BS58: =+I58*AO58 -> 6.577760264 | BT58: =+J58*AP58 -> 9.397511898 | BU58: =+K58*AQ58 -> 11.15020508 | BV58: =+L58*AR58 -> 12.46228357 | BW58: =+M58*AS58 -> 5.254648946 | BX58: =+N58*AT58 -> 0 | BY58: =+O58*AU58 -> 0 | BZ58: =+P58*AV58 -> 0 | CA58: =+Q58*AW58 -> 0 | CB58: =+R58*AX58 -> 0 | CC58: =+S58*AY58 -> 0 | CD58: =+T58*AZ58 -> 0 | CE58: =+U58*BA58 -> 0 | CF58: =+V58*BB58 -> 0 | CG58: =+W58*BC58 -> 0 | CH58: =+X58*BD58 -> 0 | CI58: =+Y58*BE58 -> 0 | CJ58: =+Z58*BF58 -> 0 | CK58: =+AA58*BG58 -> 0 | CL58: =+AB58*BH58 -> 0 | CM58: =+AC58*BI58 -> 0 | CN58: =+AD58*BJ58 -> 0 | CO58: =+AE58*BK58 -> 0 | CP58: 19 | CQ58: 48.05301149
B59: =+収穫予測!N21 -> 20 | C59: =+Sheet1!AE99 -> 0 | D59: =+Sheet1!AF99 -> 0 | E59: =+Sheet1!AG99 -> 0 | F59: =+Sheet1!AH99 -> 0 | G59: =+Sheet1!AI99 -> 0 | H59: =+Sheet1!AJ99 -> 0 | I59: =+Sheet1!AK99 -> 0 | J59: =+Sheet1!AL99 -> 0 | K59: =+Sheet1!AM99 -> 0 | L59: =+Sheet1!AN99 -> 0 | M59: =+Sheet1!AO99 -> 0 | N59: =+Sheet1!AP99 -> 0 | O59: =+Sheet1!AQ99 -> 0 | P59: =+Sheet1!AR99 -> 0 | Q59: =+Sheet1!AS99 -> 0 | R59: =+Sheet1!AT99 -> 0 | S59: =+Sheet1!AU99 -> 0 | T59: =+Sheet1!AV99 -> 0 | U59: =+Sheet1!AW99 -> 0 | V59: =+Sheet1!AX99 -> 0 | W59: =+Sheet1!AY99 -> 0 | X59: =+Sheet1!AZ99 -> 0 | Y59: =+Sheet1!BA99 -> 0 | Z59: =+Sheet1!BB99 -> 0 | AA59: =+Sheet1!BC99 -> 0 | AB59: =+Sheet1!BD99 -> 0 | AC59: =+Sheet1!BE99 -> 0 | AD59: =+Sheet1!BF99 -> 0 | AE59: =+Sheet1!BG99 -> 0 | AI59: =+直径階分布の計算!FM21 -> 0.0001 | AJ59: =+直径階分布の計算!FN21 -> 0.0013 | AK59: =+直径階分布の計算!FO21 -> 0.0053 | AL59: =+直径階分布の計算!FP21 -> 0.0147529465 | AM59: =+直径階分布の計算!FQ21 -> 0.03025488931 | AN59: =+直径階分布の計算!FR21 -> 0.05208670712 | AO59: =+直径階分布の計算!FS21 -> 0.08038484322 | AP59: =+直径階分布の計算!FT21 -> 0.1152229697 | AQ59: =+直径階分布の計算!FU21 -> 0.1566441234 | AR59: =+直径階分布の計算!FV21 -> 0.2046750612 | AS59: =+直径階分布の計算!FW21 -> 0.2593332687 | AT59: =+直径階分布の計算!FX21 -> 0.320630646 | AU59: =+直径階分布の計算!FY21 -> 0.3885755688 | AV59: =+直径階分布の計算!FZ21 -> 0.463174101 | AW59: =+直径階分布の計算!GA21 -> 0.5444307399 | AX59: =+直径階分布の計算!GB21 -> 0.6323488907 | AY59: =+直径階分布の計算!GC21 -> 0.7269311788 | AZ59: =+直径階分布の計算!GD21 -> 0.8281796607 | BA59: =+直径階分布の計算!GE21 -> 0.9360959703 | BB59: =+直径階分布の計算!GF21 -> 1.050681421 | BC59: =+直径階分布の計算!GG21 -> 1.171937083 | BD59: =+直径階分布の計算!GH21 -> 1.299863835 | BE59: =+直径階分布の計算!GI21 -> 1.434462403 | BF59: =+直径階分布の計算!GJ21 -> 1.575733399 | BG59: =+直径階分布の計算!GK21 -> 1.723677336 | BH59: =+直径階分布の計算!GL21 -> 1.878294649 | BI59: =+直径階分布の計算!GM21 -> 2.039585711 | BJ59: =+直径階分布の計算!GN21 -> 2.207550841 | BK59: =+直径階分布の計算!GO21 -> 2.382190315 | BM59: 0 | BN59: =+D59*AJ59 -> 0 | BO59: =+E59*AK59 -> 0 | BP59: =+F59*AL59 -> 0 | BQ59: 0 | BR59: 0 | BS59: 0 | BT59: 0 | BU59: 0 | BV59: 0 | BW59: 0 | BX59: 0 | BY59: 0 | BZ59: 0 | CA59: 0 | CB59: 0 | CC59: 0 | CD59: 0 | CE59: 0 | CF59: 0 | CG59: 0 | CH59: 0 | CI59: 0 | CJ59: 0 | CK59: 0 | CL59: 0 | CM59: 0 | CN59: 0 | CO59: 0 | CP59: 20 | CQ59: 0
B60: =+収穫予測!N22 -> 21 | C60: =+Sheet1!AE100 -> 0 | D60: =+Sheet1!AF100 -> 0 | E60: =+Sheet1!AG100 -> 0 | F60: =+Sheet1!AH100 -> 0 | G60: =+Sheet1!AI100 -> 0 | H60: =+Sheet1!AJ100 -> 0 | I60: =+Sheet1!AK100 -> 0 | J60: =+Sheet1!AL100 -> 0 | K60: =+Sheet1!AM100 -> 0 | L60: =+Sheet1!AN100 -> 0 | M60: =+Sheet1!AO100 -> 0 | N60: =+Sheet1!AP100 -> 0 | O60: =+Sheet1!AQ100 -> 0 | P60: =+Sheet1!AR100 -> 0 | Q60: =+Sheet1!AS100 -> 0 | R60: =+Sheet1!AT100 -> 0 | S60: =+Sheet1!AU100 -> 0 | T60: =+Sheet1!AV100 -> 0 | U60: =+Sheet1!AW100 -> 0 | V60: =+Sheet1!AX100 -> 0 | W60: =+Sheet1!AY100 -> 0 | X60: =+Sheet1!AZ100 -> 0 | Y60: =+Sheet1!BA100 -> 0 | Z60: =+Sheet1!BB100 -> 0 | AA60: =+Sheet1!BC100 -> 0 | AB60: =+Sheet1!BD100 -> 0 | AC60: =+Sheet1!BE100 -> 0 | AD60: =+Sheet1!BF100 -> 0 | AE60: =+Sheet1!BG100 -> 0 | AI60: =+直径階分布の計算!FM22 -> 0.0001 | AJ60: =+直径階分布の計算!FN22 -> 0.0013 | AK60: =+直径階分布の計算!FO22 -> 0.0053 | AL60: =+直径階分布の計算!FP22 -> 0.01483311197 | AM60: =+直径階分布の計算!FQ22 -> 0.03060110579 | AN60: =+直径階分布の計算!FR22 -> 0.05289158522 | AO60: =+直径階分布の計算!FS22 -> 0.08185449323 | AP60: =+直径階分布の計算!FT22 -> 0.1175711031 | AQ60: =+直径階分布の計算!FU22 -> 0.1600890191 | AR60: =+直径階分布の計算!FV22 -> 0.2094378967 | AS60: =+直径階分布の計算!FW22 -> 0.2656371452 | AT60: =+直径階分布の計算!FX22 -> 0.3286999901 | AU60: =+直径階分布の計算!FY22 -> 0.3986357489 | AV60: =+直径階分布の計算!FZ22 -> 0.4754511731 | AW60: =+直径階分布の計算!GA22 -> 0.5591512734 | AX60: =+直径階分布の計算!GB22 -> 0.6497398461 | AY60: =+直径階分布の計算!GC22 -> 0.7472198195 | AZ60: =+直径階分布の計算!GD22 -> 0.8515934886 | BA60: =+直径階分布の計算!GE22 -> 0.962862677 | BB60: =+直径階分布の計算!GF22 -> 1.081028852 | BC60: =+直径階分布の計算!GG22 -> 1.206093209 | BD60: =+直径階分布の計算!GH22 -> 1.338056728 | BE60: =+直径階分布の計算!GI22 -> 1.476920224 | BF60: =+直径階分布の計算!GJ22 -> 1.622684379 | BG60: =+直径階分布の計算!GK22 -> 1.775349766 | BH60: =+直径階分布の計算!GL22 -> 1.934916873 | BI60: =+直径階分布の計算!GM22 -> 2.101386116 | BJ60: =+直径階分布の計算!GN22 -> 2.274757853 | BK60: =+直径階分布の計算!GO22 -> 2.455032393 | BM60: 0 | BN60: 0 | BO60: 0 | BP60: 0 | BQ60: 0 | BR60: 0 | BS60: 0 | BT60: 0 | BU60: 0 | BV60: 0 | BW60: 0 | BX60: 0 | BY60: 0 | BZ60: 0 | CA60: 0 | CB60: 0 | CC60: 0 | CD60: 0 | CE60: 0 | CF60: 0 | CG60: 0 | CH60: 0 | CI60: 0 | CJ60: 0 | CK60: 0 | CL60: 0 | CM60: 0 | CN60: 0 | CO60: 0 | CP60: 21 | CQ60: 0
B61: =+収穫予測!N23 -> 22 | C61: =+Sheet1!AE101 -> 0 | D61: =+Sheet1!AF101 -> 0 | E61: =+Sheet1!AG101 -> 0 | F61: =+Sheet1!AH101 -> 0 | G61: =+Sheet1!AI101 -> 0 | H61: =+Sheet1!AJ101 -> 0 | I61: =+Sheet1!AK101 -> 0 | J61: =+Sheet1!AL101 -> 0 | K61: =+Sheet1!AM101 -> 0 | L61: =+Sheet1!AN101 -> 0 | M61: =+Sheet1!AO101 -> 0 | N61: =+Sheet1!AP101 -> 0 | O61: =+Sheet1!AQ101 -> 0 | P61: =+Sheet1!AR101 -> 0 | Q61: =+Sheet1!AS101 -> 0 | R61: =+Sheet1!AT101 -> 0 | S61: =+Sheet1!AU101 -> 0 | T61: =+Sheet1!AV101 -> 0 | U61: =+Sheet1!AW101 -> 0 | V61: =+Sheet1!AX101 -> 0 | W61: =+Sheet1!AY101 -> 0 | X61: =+Sheet1!AZ101 -> 0 | Y61: =+Sheet1!BA101 -> 0 | Z61: =+Sheet1!BB101 -> 0 | AA61: =+Sheet1!BC101 -> 0 | AB61: =+Sheet1!BD101 -> 0 | AC61: =+Sheet1!BE101 -> 0 | AD61: =+Sheet1!BF101 -> 0 | AE61: =+Sheet1!BG101 -> 0 | AI61: =+直径階分布の計算!FM23 -> 0.0001 | AJ61: =+直径階分布の計算!FN23 -> 0.0013 | AK61: =+直径階分布の計算!FO23 -> 0.0053 | AL61: =+直径階分布の計算!FP23 -> 0.01489350611 | AM61: =+直径階分布の計算!FQ23 -> 0.03089809186 | AN61: =+直径階分布の計算!FR23 -> 0.05360420832 | AO61: =+直径階分布の計算!FS23 -> 0.08317525274 | AP61: =+直径階分布の計算!FT23 -> 0.1197001143 | AQ61: =+直径階分布の計算!FU23 -> 0.1632309905 | AR61: =+直径階分布の計算!FV23 -> 0.2138004588 | AS61: =+直径階分布の計算!FW23 -> 0.2714298719 | AT61: =+直径階分布の計算!FX23 -> 0.3361337961 | AU61: =+直径階分布の計算!FY23 -> 0.4079225033 | AV61: =+直径階分布の計算!FZ23 -> 0.4868034422 | AW61: =+直径階分布の計算!GA23 -> 0.5727821446 | AX61: =+直径階分布の計算!GB23 -> 0.665862804 | AY61: =+直径階分布の計算!GC23 -> 0.7660486566 | AZ61: =+直径階分布の計算!GD23 -> 0.8733422397 | BA61: =+直径階分布の計算!GE23 -> 0.9877455704 | BB61: =+直径階分布の計算!GF23 -> 1.109260273 | BC61: =+直径階分布の計算!GG23 -> 1.237887668 | BD61: =+直径階分布の計算!GH23 -> 1.373628843 | BE61: =+直径階分布の計算!GI23 -> 1.516484699 | BF61: =+直径階分布の計算!GJ23 -> 1.666455991 | BG61: =+直径階分布の計算!GK23 -> 1.823543355 | BH61: =+直径階分布の計算!GL23 -> 1.987747331 | BI61: =+直径階分布の計算!GM23 -> 2.159068381 | BJ61: =+直径階分布の計算!GN23 -> 2.3375069 | BK61: =+直径階分布の計算!GO23 -> 2.523063233 | BM61: 0 | BN61: 0 | BO61: 0 | BP61: 0 | BQ61: 0 | BR61: 0 | BS61: 0 | BT61: 0 | BU61: 0 | BV61: 0 | BW61: 0 | BX61: 0 | BY61: 0 | BZ61: 0 | CA61: 0 | CB61: 0 | CC61: 0 | CD61: 0 | CE61: 0 | CF61: 0 | CG61: 0 | CH61: 0 | CI61: 0 | CJ61: 0 | CK61: 0 | CL61: 0 | CM61: 0 | CN61: 0 | CO61: 0 | CP61: 22 | CQ61: 0
B62: =+収穫予測!N24 -> 23 | C62: =+Sheet1!AE102 -> 0 | D62: =+Sheet1!AF102 -> 0 | E62: =+Sheet1!AG102 -> 0 | F62: =+Sheet1!AH102 -> 0 | G62: =+Sheet1!AI102 -> 0 | H62: =+Sheet1!AJ102 -> 0 | I62: =+Sheet1!AK102 -> 0 | J62: =+Sheet1!AL102 -> 0 | K62: =+Sheet1!AM102 -> 0 | L62: =+Sheet1!AN102 -> 0 | M62: =+Sheet1!AO102 -> 0 | N62: =+Sheet1!AP102 -> 0 | O62: =+Sheet1!AQ102 -> 0 | P62: =+Sheet1!AR102 -> 0 | Q62: =+Sheet1!AS102 -> 0 | R62: =+Sheet1!AT102 -> 0 | S62: =+Sheet1!AU102 -> 0 | T62: =+Sheet1!AV102 -> 0 | U62: =+Sheet1!AW102 -> 0 | V62: =+Sheet1!AX102 -> 0 | W62: =+Sheet1!AY102 -> 0 | X62: =+Sheet1!AZ102 -> 0 | Y62: =+Sheet1!BA102 -> 0 | Z62: =+Sheet1!BB102 -> 0 | AA62: =+Sheet1!BC102 -> 0 | AB62: =+Sheet1!BD102 -> 0 | AC62: =+Sheet1!BE102 -> 0 | AD62: =+Sheet1!BF102 -> 0 | AE62: =+Sheet1!BG102 -> 0 | AI62: =+直径階分布の計算!FM24 -> 0.0001 | AJ62: =+直径階分布の計算!FN24 -> 0.0013 | AK62: =+直径階分布の計算!FO24 -> 0.0052 | AL62: =+直径階分布の計算!FP24 -> 0.0149373358 | AM62: =+直径階分布の計算!FQ24 -> 0.03115216271 | AN62: =+直径階分布の計算!FR24 -> 0.05423478345 | AO62: =+直径階分布の計算!FS24 -> 0.08436192226 | AP62: =+直径階分布の計算!FT24 -> 0.1216300506 | AQ62: =+直径階分布の計算!FU24 -> 0.1660959542 | AR62: =+直径階分布の計算!FV24 -> 0.217795137 | AS62: =+直径階分布の計算!FW24 -> 0.2767509013 | AT62: =+直径階分布の計算!FX24 -> 0.3429791609 | AU62: =+直径階分布の計算!FY24 -> 0.4164911476 | AV62: =+直径階分布の計算!FZ24 -> 0.4972950124 | AW62: =+直径階分布の計算!GA24 -> 0.5853968121 | AX62: =+直径階分布の計算!GB24 -> 0.6808011407 | AY62: =+直径階分布の計算!GC24 -> 0.7835115454 | AZ62: =+直径階分布の計算!GD24 -> 0.893530808 | BA62: =+直径階分布の計算!GE24 -> 1.010861141 | BB62: =+直径階分布の計算!GF24 -> 1.135504326 | BC62: =+直径階分布の計算!GG24 -> 1.267461814 | BD62: =+直径階分布の計算!GH24 -> 1.406734797 | BE62: =+直径階分布の計算!GI24 -> 1.553324266 | BF62: =+直径階分布の計算!GJ24 -> 1.70723105 | BG62: =+直径階分布の計算!GK24 -> 1.868455846 | BH62: =+直径階分布の計算!GL24 -> 2.036999248 | BI62: =+直径階分布の計算!GM24 -> 2.212861763 | BJ62: =+直径階分布の計算!GN24 -> 2.396043828 | BK62: =+直径階分布の計算!GO24 -> 2.586545818 | BM62: 0 | BN62: 0 | BO62: 0 | BP62: 0 | BQ62: 0 | BR62: 0 | BS62: 0 | BT62: 0 | BU62: 0 | BV62: 0 | BW62: 0 | BX62: 0 | BY62: 0 | BZ62: 0 | CA62: 0 | CB62: 0 | CC62: 0 | CD62: 0 | CE62: 0 | CF62: 0 | CG62: 0 | CH62: 0 | CI62: 0 | CJ62: 0 | CK62: 0 | CL62: 0 | CM62: 0 | CN62: 0 | CO62: 0 | CP62: 23 | CQ62: 0
B63: =+収穫予測!N25 -> 24 | C63: =+Sheet1!AE103 -> 0 | D63: =+Sheet1!AF103 -> 0 | E63: =+Sheet1!AG103 -> 0 | F63: =+Sheet1!AH103 -> 0 | G63: =+Sheet1!AI103 -> 0 | H63: =+Sheet1!AJ103 -> 0 | I63: =+Sheet1!AK103 -> 0 | J63: =+Sheet1!AL103 -> 0 | K63: =+Sheet1!AM103 -> 0 | L63: =+Sheet1!AN103 -> 0 | M63: =+Sheet1!AO103 -> 0 | N63: =+Sheet1!AP103 -> 0 | O63: =+Sheet1!AQ103 -> 0 | P63: =+Sheet1!AR103 -> 0 | Q63: =+Sheet1!AS103 -> 0 | R63: =+Sheet1!AT103 -> 0 | S63: =+Sheet1!AU103 -> 0 | T63: =+Sheet1!AV103 -> 0 | U63: =+Sheet1!AW103 -> 0 | V63: =+Sheet1!AX103 -> 0 | W63: =+Sheet1!AY103 -> 0 | X63: =+Sheet1!AZ103 -> 0 | Y63: =+Sheet1!BA103 -> 0 | Z63: =+Sheet1!BB103 -> 0 | AA63: =+Sheet1!BC103 -> 0 | AB63: =+Sheet1!BD103 -> 0 | AC63: =+Sheet1!BE103 -> 0 | AD63: =+Sheet1!BF103 -> 0 | AE63: =+Sheet1!BG103 -> 0 | AI63: =+直径階分布の計算!FM25 -> 0.0001 | AJ63: =+直径階分布の計算!FN25 -> 0.0013 | AK63: =+直径階分布の計算!FO25 -> 0.0052 | AL63: =+直径階分布の計算!FP25 -> 0.01496726746 | AM63: =+直径階分布の計算!FQ25 -> 0.03136870253 | AN63: =+直径階分布の計算!FR25 -> 0.0547921463 | AO63: =+直径階分布の計算!FS25 -> 0.08542745074 | AP63: =+直径階分布の計算!FT25 -> 0.1233785922 | AQ63: =+直径階分布の計算!FU25 -> 0.1687069126 | AR63: =+直径階分布の計算!FV25 -> 0.2214508284 | AS63: =+直径階分布の計算!FW25 -> 0.2816355864 | AT63: =+直径階分布の計算!FX25 -> 0.3492784453 | AU63: =+直径階分布の計算!FY25 -> 0.4243915968 | AV63: =+直径階分布の計算!FZ25 -> 0.5069838942 | AW63: =+直径階分布の計算!GA25 -> 0.5970619204 | AX63: =+直径階分布の計算!GB25 -> 0.6946306708 | AY63: =+直径階分布の計算!GC25 -> 0.7996940038 | AZ63: =+直径階分布の計算!GD25 -> 0.9122549471 | BA63: =+直径階分布の計算!GE25 -> 1.032315909 | BB63: =+直径階分布の計算!GF25 -> 1.15987883 | BC63: =+直径階分布の計算!GG25 -> 1.29494529 | BD63: =+直径階分布の計算!GH25 -> 1.437516587 | BE63: =+直径階分布の計算!GI25 -> 1.587593803 | BF63: =+直径階分布の計算!GJ25 -> 1.745177838 | BG63: =+直径階分布の計算!GK25 -> 1.910269456 | BH63: =+直径階分布の計算!GL25 -> 2.082869303 | BI63: =+直径階分布の計算!GM25 -> 2.262977931 | BJ63: =+直径階分布の計算!GN25 -> 2.450595817 | BK63: =+直径階分布の計算!GO25 -> 2.645723371 | BM63: 0 | BN63: 0 | BO63: 0 | BP63: 0 | BQ63: 0 | BR63: 0 | BS63: 0 | BT63: 0 | BU63: 0 | BV63: 0 | BW63: 0 | BX63: 0 | BY63: 0 | BZ63: 0 | CA63: 0 | CB63: 0 | CC63: 0 | CD63: 0 | CE63: 0 | CF63: 0 | CG63: 0 | CH63: 0 | CI63: 0 | CJ63: 0 | CK63: 0 | CL63: 0 | CM63: 0 | CN63: 0 | CO63: 0 | CP63: 24 | CQ63: 0
B64: =+収穫予測!N26 -> 25 | C64: =+Sheet1!AE104 -> 0 | D64: =+Sheet1!AF104 -> 0 | E64: =+Sheet1!AG104 -> 0 | F64: =+Sheet1!AH104 -> 0 | G64: =+Sheet1!AI104 -> 0 | H64: =+Sheet1!AJ104 -> 0 | I64: =+Sheet1!AK104 -> 0 | J64: =+Sheet1!AL104 -> 0 | K64: =+Sheet1!AM104 -> 0 | L64: =+Sheet1!AN104 -> 0 | M64: =+Sheet1!AO104 -> 0 | N64: =+Sheet1!AP104 -> 0 | O64: =+Sheet1!AQ104 -> 0 | P64: =+Sheet1!AR104 -> 0 | Q64: =+Sheet1!AS104 -> 0 | R64: =+Sheet1!AT104 -> 0 | S64: =+Sheet1!AU104 -> 0 | T64: =+Sheet1!AV104 -> 0 | U64: =+Sheet1!AW104 -> 0 | V64: =+Sheet1!AX104 -> 0 | W64: =+Sheet1!AY104 -> 0 | X64: =+Sheet1!AZ104 -> 0 | Y64: =+Sheet1!BA104 -> 0 | Z64: =+Sheet1!BB104 -> 0 | AA64: =+Sheet1!BC104 -> 0 | AB64: =+Sheet1!BD104 -> 0 | AC64: =+Sheet1!BE104 -> 0 | AD64: =+Sheet1!BF104 -> 0 | AE64: =+Sheet1!BG104 -> 0 | AI64: =+直径階分布の計算!FM26 -> 0.0001 | AJ64: =+直径階分布の計算!FN26 -> 0.0013 | AK64: =+直径階分布の計算!FO26 -> 0.0052 | AL64: =+直径階分布の計算!FP26 -> 0.01498569807 | AM64: =+直径階分布の計算!FQ26 -> 0.0315527075 | AN64: =+直径階分布の計算!FR26 -> 0.05528467724 | AO64: =+直径階分布の計算!FS26 -> 0.08638432811 | AP64: =+直径階分布の計算!FT26 -> 0.124963027 | AQ64: =+直径階分布の計算!FU26 -> 0.1710866164 | AR64: =+直径階分布の計算!FV26 -> 0.2247963962 | AS64: =+直径階分布の計算!FW26 -> 0.286119541 | AT64: =+直径階分布の計算!FX26 -> 0.3550746455 | AU64: =+直径階分布の計算!FY26 -> 0.4316748551 | AV64: =+直径階分布の計算!FZ26 -> 0.5159297222 | AW64: =+直径階分布の計算!GA26 -> 0.6078463531 | AX64: =+直径階分布の計算!GB26 -> 0.7074301432 | AY64: =+直径階分布の計算!GC26 -> 0.8146852614 | AZ64: =+直径階分布の計算!GD26 -> 0.9296149802 | BA64: =+直径階分布の計算!GE26 -> 1.052221904 | BB64: =+直径階分布の計算!GF26 -> 1.18250813 | BC64: =+直径階分布の計算!GG26 -> 1.320475368 | BD64: =+直径階分布の計算!GH26 -> 1.466125025 | BE64: =+直径階分布の計算!GI26 -> 1.619458267 | BF64: =+直径階分布の計算!GJ26 -> 1.780476073 | BG64: =+直径階分布の計算!GK26 -> 1.949179268 | BH64: =+直径階分布の計算!GL26 -> 2.12556855 | BI64: =+直径階分布の計算!GM26 -> 2.30964452 | BJ64: =+直径階分布の計算!GN26 -> 2.501407691 | BK64: =+直径階分布の計算!GO26 -> 2.70085851 | BM64: 0 | BN64: 0 | BO64: 0 | BP64: 0 | BQ64: 0 | BR64: 0 | BS64: 0 | BT64: 0 | BU64: 0 | BV64: 0 | BW64: 0 | BX64: 0 | BY64: 0 | BZ64: 0 | CA64: 0 | CB64: 0 | CC64: 0 | CD64: 0 | CE64: 0 | CF64: 0 | CG64: 0 | CH64: 0 | CI64: 0 | CJ64: 0 | CK64: 0 | CL64: 0 | CM64: 0 | CN64: 0 | CO64: 0 | CP64: 25 | CQ64: 0
B65: =+収穫予測!N27 -> 26 | C65: =+Sheet1!AE105 -> 0 | D65: =+Sheet1!AF105 -> 0 | E65: =+Sheet1!AG105 -> 0 | F65: =+Sheet1!AH105 -> 0 | G65: =+Sheet1!AI105 -> 0 | H65: =+Sheet1!AJ105 -> 0 | I65: =+Sheet1!AK105 -> 0 | J65: =+Sheet1!AL105 -> 0 | K65: =+Sheet1!AM105 -> 0 | L65: =+Sheet1!AN105 -> 0 | M65: =+Sheet1!AO105 -> 0 | N65: =+Sheet1!AP105 -> 0 | O65: =+Sheet1!AQ105 -> 0 | P65: =+Sheet1!AR105 -> 0 | Q65: =+Sheet1!AS105 -> 0 | R65: =+Sheet1!AT105 -> 0 | S65: =+Sheet1!AU105 -> 0 | T65: =+Sheet1!AV105 -> 0 | U65: =+Sheet1!AW105 -> 0 | V65: =+Sheet1!AX105 -> 0 | W65: =+Sheet1!AY105 -> 0 | X65: =+Sheet1!AZ105 -> 0 | Y65: =+Sheet1!BA105 -> 0 | Z65: =+Sheet1!BB105 -> 0 | AA65: =+Sheet1!BC105 -> 0 | AB65: =+Sheet1!BD105 -> 0 | AC65: =+Sheet1!BE105 -> 0 | AD65: =+Sheet1!BF105 -> 0 | AE65: =+Sheet1!BG105 -> 0 | AI65: =+直径階分布の計算!FM27 -> 0.0001 | AJ65: =+直径階分布の計算!FN27 -> 0.0013 | AK65: =+直径階分布の計算!FO27 -> 0.0052 | AL65: =+直径階分布の計算!FP27 -> 0.01499458122 | AM65: =+直径階分布の計算!FQ27 -> 0.03170835909 | AN65: =+直径階分布の計算!FR27 -> 0.05571949643 | AO65: =+直径階分布の計算!FS27 -> 0.08724327306 | AP65: =+直径階分布の計算!FT27 -> 0.1263982998 | AQ65: =+直径階分布の計算!FU27 -> 0.1732548431 | AR65: =+直径階分布の計算!FV27 -> 0.2278570435 | AS65: =+直径階分布の計算!FW27 -> 0.2902339775 | AT65: =+直径階分布の計算!FX27 -> 0.3604055595 | AU65: =+直径階分布の計算!FY27 -> 0.4383858781 | AV65: =+直径階分布の計算!FZ27 -> 0.5241851775 | AW65: =+直径階分布の計算!GA27 -> 0.6178110826 | AX65: =+直径階分布の計算!GB27 -> 0.7192693847 | AY65: =+直径階分布の計算!GC27 -> 0.8285645611 | AZ65: =+直径階分布の計算!GD27 -> 0.9457001269 | BA65: =+直径階分布の計算!GE27 -> 1.07067888 | BB65: =+直径階分布の計算!GF27 -> 1.203503077 | BC65: =+直径階分布の計算!GG27 -> 1.344174553 | BD65: =+直径階分布の計算!GH27 -> 1.492694822 | BE65: =+直径階分布の計算!GI27 -> 1.649065138 | BF65: =+直径階分布の計算!GJ27 -> 1.813286555 | BG65: =+直径階分布の計算!GK27 -> 1.985359958 | BH65: =+直径階分布の計算!GL27 -> 2.165286102 | BI65: =+直径階分布の計算!GM27 -> 2.353065631 | BJ65: =+直径階分布の計算!GN27 -> 2.548699098 | BK65: =+直径階分布の計算!GO27 -> 2.752186984 | BM65: 0 | BN65: 0 | BO65: 0 | BP65: 0 | BQ65: 0 | BR65: 0 | BS65: 0 | BT65: 0 | BU65: 0 | BV65: 0 | BW65: 0 | BX65: 0 | BY65: 0 | BZ65: =+P65*AV65 -> 0 | CA65: 0 | CB65: 0 | CC65: 0 | CD65: 0 | CE65: 0 | CF65: 0 | CG65: 0 | CH65: 0 | CI65: 0 | CJ65: 0 | CK65: 0 | CL65: 0 | CM65: 0 | CN65: 0 | CO65: 0 | CP65: 26 | CQ65: 0
B66: =+収穫予測!N28 -> 27 | C66: =+Sheet1!AE106 -> 0 | D66: =+Sheet1!AF106 -> 0 | E66: =+Sheet1!AG106 -> 0 | F66: =+Sheet1!AH106 -> 0 | G66: =+Sheet1!AI106 -> 0 | H66: =+Sheet1!AJ106 -> 0 | I66: =+Sheet1!AK106 -> 0 | J66: =+Sheet1!AL106 -> 0 | K66: =+Sheet1!AM106 -> 0 | L66: =+Sheet1!AN106 -> 0 | M66: =+Sheet1!AO106 -> 0 | N66: =+Sheet1!AP106 -> 0 | O66: =+Sheet1!AQ106 -> 0 | P66: =+Sheet1!AR106 -> 0 | Q66: =+Sheet1!AS106 -> 0 | R66: =+Sheet1!AT106 -> 0 | S66: =+Sheet1!AU106 -> 0 | T66: =+Sheet1!AV106 -> 0 | U66: =+Sheet1!AW106 -> 0 | V66: =+Sheet1!AX106 -> 0 | W66: =+Sheet1!AY106 -> 0 | X66: =+Sheet1!AZ106 -> 0 | Y66: =+Sheet1!BA106 -> 0 | Z66: =+Sheet1!BB106 -> 0 | AA66: =+Sheet1!BC106 -> 0 | AB66: =+Sheet1!BD106 -> 0 | AC66: =+Sheet1!BE106 -> 0 | AD66: =+Sheet1!BF106 -> 0 | AE66: =+Sheet1!BG106 -> 0 | AI66: =+直径階分布の計算!FM28 -> 0.0001 | AJ66: =+直径階分布の計算!FN28 -> 0.0013 | AK66: =+直径階分布の計算!FO28 -> 0.0051 | AL66: =+直径階分布の計算!FP28 -> 0.01499565344 | AM66: =+直径階分布の計算!FQ28 -> 0.03183948792 | AN66: =+直径階分布の計算!FR28 -> 0.05610325556 | AO66: =+直径階分布の計算!FS28 -> 0.08801444514 | AP66: =+直径階分布の計算!FT28 -> 0.1276987384 | AQ66: =+直径階分布の計算!FU28 -> 0.1752307322 | AR66: =+直径階分布の計算!FV28 -> 0.2306573525 | AS66: =+直径階分布の計算!FW28 -> 0.2940095444 | AT66: =+直径階分布の計算!FX28 -> 0.3653085198 | AU66: =+直径階分布の計算!FY28 -> 0.4445692959 | AV66: =+直径階分布の計算!FZ28 -> 0.5318027982 | AW66: =+直径階分布の計算!GA28 -> 0.6270171628 | AX66: =+直径階分布の計算!GB28 -> 0.7302185719 | AY66: =+直径階分布の計算!GC28 -> 0.8414118065 | AZ66: =+直径階分布の計算!GD28 -> 0.9606006216 | BA66: =+直径階分布の計算!GE28 -> 1.087788007 | BB66: =+直径階分布の計算!GF28 -> 1.222976373 | BC66: =+直径階分布の計算!GG28 -> 1.366167683 | BD66: =+直径階分布の計算!GH28 -> 1.517363556 | BE66: =+直径階分布の計算!GI28 -> 1.676565332 | BF66: =+直径階分布の計算!GJ28 -> 1.843774138 | BG66: =+直径階分布の計算!GK28 -> 2.018990922 | BH66: =+直径階分布の計算!GL28 -> 2.202216491 | BI66: =+直径階分布の計算!GM28 -> 2.393451533 | BJ66: =+直径階分布の計算!GN28 -> 2.592696643 | BK66: =+直径階分布の計算!GO28 -> 2.799952332 | BM66: 0 | BN66: 0 | BO66: 0 | BP66: 0 | BQ66: 0 | BR66: 0 | BS66: 0 | BT66: 0 | BU66: 0 | BV66: 0 | BW66: 0 | BX66: 0 | BY66: 0 | BZ66: 0 | CA66: 0 | CB66: 0 | CC66: 0 | CD66: 0 | CE66: 0 | CF66: 0 | CG66: 0 | CH66: 0 | CI66: 0 | CJ66: 0 | CK66: 0 | CL66: 0 | CM66: 0 | CN66: 0 | CO66: 0 | CP66: 27 | CQ66: 0
B67: =+収穫予測!N29 -> 28 | C67: =+Sheet1!AE107 -> 0 | D67: =+Sheet1!AF107 -> 0 | E67: =+Sheet1!AG107 -> 0 | F67: =+Sheet1!AH107 -> 0 | G67: =+Sheet1!AI107 -> 0 | H67: =+Sheet1!AJ107 -> 0 | I67: =+Sheet1!AK107 -> 0 | J67: =+Sheet1!AL107 -> 0 | K67: =+Sheet1!AM107 -> 0 | L67: =+Sheet1!AN107 -> 0 | M67: =+Sheet1!AO107 -> 0 | N67: =+Sheet1!AP107 -> 0 | O67: =+Sheet1!AQ107 -> 0 | P67: =+Sheet1!AR107 -> 0 | Q67: =+Sheet1!AS107 -> 0 | R67: =+Sheet1!AT107 -> 0 | S67: =+Sheet1!AU107 -> 0 | T67: =+Sheet1!AV107 -> 0 | U67: =+Sheet1!AW107 -> 0 | V67: =+Sheet1!AX107 -> 0 | W67: =+Sheet1!AY107 -> 0 | X67: =+Sheet1!AZ107 -> 0 | Y67: =+Sheet1!BA107 -> 0 | Z67: =+Sheet1!BB107 -> 0 | AA67: =+Sheet1!BC107 -> 0 | AB67: =+Sheet1!BD107 -> 0 | AC67: =+Sheet1!BE107 -> 0 | AD67: =+Sheet1!BF107 -> 0 | AE67: =+Sheet1!BG107 -> 0 | AI67: =+直径階分布の計算!FM29 -> 0.0001 | AJ67: =+直径階分布の計算!FN29 -> 0.0014 | AK67: =+直径階分布の計算!FO29 -> 0.0051 | AL67: =+直径階分布の計算!FP29 -> 0.01499036405 | AM67: =+直径階分布の計算!FQ29 -> 0.03194938788 | AN67: =+直径階分布の計算!FR29 -> 0.05644177319 | AO67: =+直径階分布の計算!FS29 -> 0.0887068354 | AP67: =+直径階分布の計算!FT29 -> 0.1288771326 | AQ67: =+直径階分布の計算!FU29 -> 0.1770314835 | AR67: =+直径階分布の計算!FV29 -> 0.2332195354 | AS67: =+直径階分布の計算!FW29 -> 0.2974740609 | AT67: =+直径階分布の計算!FX29 -> 0.3698175426 | AU67: =+直径階分布の計算!FY29 -> 0.450265908 | AV67: =+直径階分布の計算!FZ29 -> 0.5388307509 | AW67: =+直径階分布の計算!GA29 -> 0.6355207092 | AX67: =+直径階分布の計算!GB29 -> 0.7403423488 | AY67: =+直径階分布の計算!GC29 -> 0.8533007492 | AZ67: =+直径階分布の計算!GD29 -> 0.9743999011 | BA67: =+直径階分布の計算!GE29 -> 1.103642983 | BB67: =+直径階分布の計算!GF29 -> 1.241032557 | BC67: =+直径階分布の計算!GG29 -> 1.386570712 | BD67: =+直径階分布の計算!GH29 -> 1.540259169 | BE67: =+直径階分布の計算!GI29 -> 1.702099356 | BF67: =+直径階分布の計算!GJ29 -> 1.87209247 | BG67: =+直径階分布の計算!GK29 -> 2.05023952 | BH67: =+直径階分布の計算!GL29 -> 2.236541365 | BI67: =+直径階分布の計算!GM29 -> 2.430998738 | BJ67: =+直径階分布の計算!GN29 -> 2.633612272 | BK67: =+直径階分布の計算!GO29 -> 2.844382511 | BM67: 0 | BN67: 0 | BO67: 0 | BP67: 0 | BQ67: 0 | BR67: 0 | BS67: 0 | BT67: 0 | BU67: 0 | BV67: 0 | BW67: 0 | BX67: 0 | BY67: 0 | BZ67: 0 | CA67: 0 | CB67: 0 | CC67: 0 | CD67: 0 | CE67: 0 | CF67: 0 | CG67: 0 | CH67: 0 | CI67: 0 | CJ67: 0 | CK67: 0 | CL67: 0 | CM67: 0 | CN67: 0 | CO67: 0 | CP67: 28 | CQ67: 0
B68: =+収穫予測!N30 -> 29 | C68: =+Sheet1!AE108 -> 0 | D68: =+Sheet1!AF108 -> 0 | E68: =+Sheet1!AG108 -> 0 | F68: =+Sheet1!AH108 -> 0 | G68: =+Sheet1!AI108 -> 0 | H68: =+Sheet1!AJ108 -> 0 | I68: =+Sheet1!AK108 -> 0 | J68: =+Sheet1!AL108 -> 0 | K68: =+Sheet1!AM108 -> 0 | L68: =+Sheet1!AN108 -> 0 | M68: =+Sheet1!AO108 -> 0 | N68: =+Sheet1!AP108 -> 0 | O68: =+Sheet1!AQ108 -> 0 | P68: =+Sheet1!AR108 -> 0 | Q68: =+Sheet1!AS108 -> 0 | R68: =+Sheet1!AT108 -> 0 | S68: =+Sheet1!AU108 -> 0 | T68: =+Sheet1!AV108 -> 0 | U68: =+Sheet1!AW108 -> 0 | V68: =+Sheet1!AX108 -> 0 | W68: =+Sheet1!AY108 -> 0 | X68: =+Sheet1!AZ108 -> 0 | Y68: =+Sheet1!BA108 -> 0 | Z68: =+Sheet1!BB108 -> 0 | AA68: =+Sheet1!BC108 -> 0 | AB68: =+Sheet1!BD108 -> 0 | AC68: =+Sheet1!BE108 -> 0 | AD68: =+Sheet1!BF108 -> 0 | AE68: =+Sheet1!BG108 -> 0 | AI68: =+直径階分布の計算!FM30 -> 0.0001 | AJ68: =+直径階分布の計算!FN30 -> 0.0014 | AK68: =+直径階分布の計算!FO30 -> 0.0051 | AL68: =+直径階分布の計算!FP30 -> 0.01497995797 | AM68: =+直径階分布の計算!FQ30 -> 0.03204097558 | AN68: =+直径階分布の計算!FR30 -> 0.05674029376 | AO68: =+直径階分布の計算!FS30 -> 0.08932864833 | AP68: =+直径階分布の計算!FT30 -> 0.1299452619 | AQ68: =+直径階分布の計算!FU30 -> 0.1786730552 | AR68: =+直径階分布の計算!FV30 -> 0.2355643243 | AS68: =+直径階分布の計算!FW30 -> 0.3006536226 | AT68: =+直径階分布の計算!FX30 -> 0.373964673 | AU68: =+直径階分布の計算!FY30 -> 0.4555142913 | AV68: =+直径階分布の計算!FZ30 -> 0.5453147247 | AW68: =+直径階分布の計算!GA30 -> 0.6433751014 | AX68: =+直径階分布の計算!GB30 -> 0.749702363 | AY68: =+直径階分布の計算!GC30 -> 0.864301881 | AZ68: =+直径階分布の計算!GD30 -> 0.9871778768 | BA68: =+直径階分布の計算!GE30 -> 1.118333713 | BB68: =+直径階分布の計算!GF30 -> 1.257772103 | BC68: =+直径階分布の計算!GG30 -> 1.405495256 | BD68: =+直径階分布の計算!GH30 -> 1.561504994 | BE68: =+直径階分布の計算!GI30 -> 1.725802829 | BF68: =+直径階分布の計算!GJ30 -> 1.898390029 | BG68: =+直径階分布の計算!GK30 -> 2.079267664 | BH68: =+直径階分布の計算!GL30 -> 2.268436643 | BI68: =+直径階分布の計算!GM30 -> 2.465897742 | BJ68: =+直径階分布の計算!GN30 -> 2.671651632 | BK68: =+直径階分布の計算!GO30 -> 2.88569889 | BM68: 0 | BN68: 0 | BO68: 0 | BP68: 0 | BQ68: 0 | BR68: 0 | BS68: 0 | BT68: 0 | BU68: 0 | BV68: 0 | BW68: 0 | BX68: 0 | BY68: 0 | BZ68: 0 | CA68: 0 | CB68: 0 | CC68: 0 | CD68: 0 | CE68: 0 | CF68: 0 | CG68: 0 | CH68: 0 | CI68: 0 | CJ68: 0 | CK68: 0 | CL68: 0 | CM68: 0 | CN68: 0 | CO68: 0 | CP68: 29 | CQ68: 0
B69: =+収穫予測!N31 -> 30 | C69: =+Sheet1!AE109 -> 0 | D69: =+Sheet1!AF109 -> 0 | E69: =+Sheet1!AG109 -> 0 | F69: =+Sheet1!AH109 -> 0 | G69: =+Sheet1!AI109 -> 0 | H69: =+Sheet1!AJ109 -> 0 | I69: =+Sheet1!AK109 -> 0 | J69: =+Sheet1!AL109 -> 0 | K69: =+Sheet1!AM109 -> 0 | L69: =+Sheet1!AN109 -> 0 | M69: =+Sheet1!AO109 -> 0 | N69: =+Sheet1!AP109 -> 0 | O69: =+Sheet1!AQ109 -> 0 | P69: =+Sheet1!AR109 -> 0 | Q69: =+Sheet1!AS109 -> 0 | R69: =+Sheet1!AT109 -> 0 | S69: =+Sheet1!AU109 -> 0 | T69: =+Sheet1!AV109 -> 0 | U69: =+Sheet1!AW109 -> 0 | V69: =+Sheet1!AX109 -> 0 | W69: =+Sheet1!AY109 -> 0 | X69: =+Sheet1!AZ109 -> 0 | Y69: =+Sheet1!BA109 -> 0 | Z69: =+Sheet1!BB109 -> 0 | AA69: =+Sheet1!BC109 -> 0 | AB69: =+Sheet1!BD109 -> 0 | AC69: =+Sheet1!BE109 -> 0 | AD69: =+Sheet1!BF109 -> 0 | AE69: =+Sheet1!BG109 -> 0 | AI69: =+直径階分布の計算!FM31 -> 0.0001 | AJ69: =+直径階分布の計算!FN31 -> 0.0014 | AK69: =+直径階分布の計算!FO31 -> 0.0050 | AL69: =+直径階分布の計算!FP31 -> 0.01496546638 | AM69: =+直径階分布の計算!FQ31 -> 0.03211674799 | AN69: =+直径階分布の計算!FR31 -> 0.05700338791 | AO69: =+直径階分布の計算!FS31 -> 0.08988711838 | AP69: =+直径階分布の計算!FT31 -> 0.1309136016 | AQ69: =+直径階分布の計算!FU31 -> 0.1801697311 | AR69: =+直径階分布の計算!FV31 -> 0.2377103722 | AS69: =+直径階分布の計算!FW31 -> 0.3035718088 | AT69: =+直径階分布の計算!FX31 -> 0.3777789689 | AU69: =+直径階分布の計算!FY31 -> 0.4603495334 | AV69: =+直径階分布の計算!FZ31 -> 0.5512963852 | AW69: =+直径階分布の計算!GA31 -> 0.6506291307 | AX69: =+直径階分布の計算!GB31 -> 0.7583550772 | AY69: =+直径階分布の計算!GC31 -> 0.8744798813 | AZ69: =+直径階分布の計算!GD31 -> 0.9990079892 | BA69: =+直径階分布の計算!GE31 -> 1.131942944 | BB69: =+直径階分布の計算!GF31 -> 1.273287604 | BC69: =+直径階分布の計算!GG31 -> 1.423044299 | BD69: =+直径階分布の計算!GH31 -> 1.581214948 | BE69: =+直径階分布の計算!GI31 -> 1.747801148 | BF69: =+直径階分布の計算!GJ31 -> 1.922804233 | BG69: =+直径階分布の計算!GK31 -> 2.106225332 | BH69: =+直径階分布の計算!GL31 -> 2.298065404 | BI69: =+直径階分布の計算!GM31 -> 2.498325269 | BJ69: =+直径階分布の計算!GN31 -> 2.707005633 | BK69: =+直径階分布の計算!GO31 -> 2.924107105 | BM69: 0 | BN69: 0 | BO69: 0 | BP69: 0 | BQ69: 0 | BR69: 0 | BS69: 0 | BT69: 0 | BU69: 0 | BV69: 0 | BW69: 0 | BX69: 0 | BY69: 0 | BZ69: 0 | CA69: 0 | CB69: 0 | CC69: 0 | CD69: 0 | CE69: 0 | CF69: 0 | CG69: 0 | CH69: 0 | CI69: 0 | CJ69: 0 | CK69: 0 | CL69: 0 | CM69: 0 | CN69: 0 | CO69: 0 | CP69: 30 | CQ69: 0
B70: =+収穫予測!N32 -> 31 | C70: =+Sheet1!AE110 -> 0 | D70: =+Sheet1!AF110 -> 0 | E70: =+Sheet1!AG110 -> 0 | F70: =+Sheet1!AH110 -> 0 | G70: =+Sheet1!AI110 -> 0 | H70: =+Sheet1!AJ110 -> 0 | I70: =+Sheet1!AK110 -> 0 | J70: =+Sheet1!AL110 -> 0 | K70: =+Sheet1!AM110 -> 0 | L70: =+Sheet1!AN110 -> 0 | M70: =+Sheet1!AO110 -> 0 | N70: =+Sheet1!AP110 -> 0 | O70: =+Sheet1!AQ110 -> 0 | P70: =+Sheet1!AR110 -> 0 | Q70: =+Sheet1!AS110 -> 0 | R70: =+Sheet1!AT110 -> 0 | S70: =+Sheet1!AU110 -> 0 | T70: =+Sheet1!AV110 -> 0 | U70: =+Sheet1!AW110 -> 0 | V70: =+Sheet1!AX110 -> 0 | W70: =+Sheet1!AY110 -> 0 | X70: =+Sheet1!AZ110 -> 0 | Y70: =+Sheet1!BA110 -> 0 | Z70: =+Sheet1!BB110 -> 0 | AA70: =+Sheet1!BC110 -> 0 | AB70: =+Sheet1!BD110 -> 0 | AC70: =+Sheet1!BE110 -> 0 | AD70: =+Sheet1!BF110 -> 0 | AE70: =+Sheet1!BG110 -> 0 | AI70: =+直径階分布の計算!FM32 -> 0.0001 | AJ70: =+直径階分布の計算!FN32 -> 0.0014 | AK70: =+直径階分布の計算!FO32 -> 0.0050 | AL70: =+直径階分布の計算!FP32 -> 0.0149477774 | AM70: =+直径階分布の計算!FQ32 -> 0.03217892473 | AN70: =+直径階分布の計算!FR32 -> 0.05723519046 | AO70: =+直径階分布の計算!FS32 -> 0.09038886808 | AP70: =+直径階分布の計算!FT32 -> 0.131791825 | AQ70: =+直径階分布の計算!FU32 -> 0.1815347914 | AR70: =+直径階分布の計算!FV32 -> 0.239675118 | AS70: =+直径階分布の計算!FW32 -> 0.3062507638 | AT70: =+直径階分布の計算!FX32 -> 0.3812878257 | AU70: =+直径階分布の計算!FY32 -> 0.4648048232 | AV70: =+直径階分布の計算!FZ32 -> 0.5568152566 | AW70: =+直径階分布の計算!GA32 -> 0.6573291965 | AX70: =+直径階分布の計算!GB32 -> 0.7663543056 | AY70: =+直径階分布の計算!GC32 -> 0.8838965176 | AZ70: =+直径階分布の計算!GD32 -> 1.009960497 | BA70: =+直径階分布の計算!GE32 -> 1.144549963 | BB70: =+直径階分布の計算!GF32 -> 1.287667915 | BC70: =+直径階分布の計算!GG32 -> 1.439316799 | BD70: =+直径階分布の計算!GH32 -> 1.599498631 | BE70: =+直径階分布の計算!GI32 -> 1.768215086 | BF70: =+直径階分布の計算!GJ32 -> 1.945467566 | BG70: =+直径階分布の計算!GK32 -> 2.131257258 | BH70: =+直径階分布の計算!GL32 -> 2.325585168 | BI70: =+直径階分布の計算!GM32 -> 2.528452158 | BJ70: =+直径階分布の計算!GN32 -> 2.739858968 | BK70: =+直径階分布の計算!GO32 -> 2.959806242 | BM70: 0 | BN70: 0 | BO70: 0 | BP70: 0 | BQ70: 0 | BR70: 0 | BS70: 0 | BT70: 0 | BU70: 0 | BV70: 0 | BW70: 0 | BX70: 0 | BY70: 0 | BZ70: 0 | CA70: 0 | CB70: 0 | CC70: 0 | CD70: 0 | CE70: 0 | CF70: 0 | CG70: 0 | CH70: 0 | CI70: 0 | CJ70: 0 | CK70: 0 | CL70: 0 | CM70: 0 | CN70: 0 | CO70: 0 | CP70: 31 | CQ70: 0
B71: =+収穫予測!N33 -> 32 | C71: =+Sheet1!AE111 -> 0 | D71: =+Sheet1!AF111 -> 0 | E71: =+Sheet1!AG111 -> 0 | F71: =+Sheet1!AH111 -> 0 | G71: =+Sheet1!AI111 -> 0 | H71: =+Sheet1!AJ111 -> 0 | I71: =+Sheet1!AK111 -> 0 | J71: =+Sheet1!AL111 -> 0 | K71: =+Sheet1!AM111 -> 0 | L71: =+Sheet1!AN111 -> 0 | M71: =+Sheet1!AO111 -> 0 | N71: =+Sheet1!AP111 -> 0 | O71: =+Sheet1!AQ111 -> 0 | P71: =+Sheet1!AR111 -> 0 | Q71: =+Sheet1!AS111 -> 0 | R71: =+Sheet1!AT111 -> 0 | S71: =+Sheet1!AU111 -> 0 | T71: =+Sheet1!AV111 -> 0 | U71: =+Sheet1!AW111 -> 0 | V71: =+Sheet1!AX111 -> 0 | W71: =+Sheet1!AY111 -> 0 | X71: =+Sheet1!AZ111 -> 0 | Y71: =+Sheet1!BA111 -> 0 | Z71: =+Sheet1!BB111 -> 0 | AA71: =+Sheet1!BC111 -> 0 | AB71: =+Sheet1!BD111 -> 0 | AC71: =+Sheet1!BE111 -> 0 | AD71: =+Sheet1!BF111 -> 0 | AE71: =+Sheet1!BG111 -> 0 | AI71: =+直径階分布の計算!FM33 -> 0.0001 | AJ71: =+直径階分布の計算!FN33 -> 0.0014 | AK71: =+直径階分布の計算!FO33 -> 0.0050 | AL71: =+直径階分布の計算!FP33 -> 0.01492762784 | AM71: =+直径階分布の計算!FQ33 -> 0.03222941557 | AN71: =+直径階分布の計算!FR33 -> 0.05743932553 | AO71: =+直径階分布の計算!FS33 -> 0.0908397711 | AP71: =+直径階分布の計算!FT33 -> 0.1325885842 | AQ71: =+直径階分布の計算!FU33 -> 0.1827801906 | AR71: =+直径階分布の計算!FV33 -> 0.2414743381 | AS71: =+直径階分布の計算!FW33 -> 0.308710604 | AT71: =+直径階分布の計算!FX33 -> 0.3845162146 | AU71: =+直径階分布の計算!FY33 -> 0.4689105008 | AV71: =+直径階分布の計算!FZ33 -> 0.5619075604 | AW71: =+直径階分布の計算!GA33 -> 0.6635179133 | AX71: =+直径階分布の計算!GB33 -> 0.7737495669 | AY71: =+直径階分布の計算!GC33 -> 0.8926087229 | AZ71: =+直径階分布の計算!GD33 -> 1.020100259 | BA71: =+直径階分布の計算!GE33 -> 1.156228062 | BB71: =+直径階分布の計算!GF33 -> 1.30099527 | BC71: =+直径階分布の計算!GG33 -> 1.454404443 | BD71: =+直径階分布の計算!GH33 -> 1.616457688 | BE71: =+直径階分布の計算!GI33 -> 1.787156759 | BF71: =+直径階分布の計算!GJ33 -> 1.966503123 | BG71: =+直径階分布の計算!GK33 -> 2.154498021 | BH71: =+直径階分布の計算!GL33 -> 2.351142508 | BI71: =+直径階分布の計算!GM33 -> 2.556437484 | BJ71: =+直径階分布の計算!GN33 -> 2.770383726 | BK71: =+直径階分布の計算!GO33 -> 2.992981906 | BM71: 0 | BN71: 0 | BO71: 0 | BP71: 0 | BQ71: 0 | BR71: 0 | BS71: 0 | BT71: 0 | BU71: 0 | BV71: 0 | BW71: 0 | BX71: 0 | BY71: 0 | BZ71: 0 | CA71: 0 | CB71: 0 | CC71: 0 | CD71: 0 | CE71: 0 | CF71: 0 | CG71: 0 | CH71: 0 | CI71: 0 | CJ71: 0 | CK71: 0 | CL71: 0 | CM71: 0 | CN71: 0 | CO71: 0 | CP71: 32 | CQ71: 0
B72: =+収穫予測!N34 -> 33 | C72: =+Sheet1!AE112 -> 0 | D72: =+Sheet1!AF112 -> 0 | E72: =+Sheet1!AG112 -> 0 | F72: =+Sheet1!AH112 -> 0 | G72: =+Sheet1!AI112 -> 0 | H72: =+Sheet1!AJ112 -> 0 | I72: =+Sheet1!AK112 -> 0 | J72: =+Sheet1!AL112 -> 0 | K72: =+Sheet1!AM112 -> 0 | L72: =+Sheet1!AN112 -> 0 | M72: =+Sheet1!AO112 -> 0 | N72: =+Sheet1!AP112 -> 0 | O72: =+Sheet1!AQ112 -> 0 | P72: =+Sheet1!AR112 -> 0 | Q72: =+Sheet1!AS112 -> 0 | R72: =+Sheet1!AT112 -> 0 | S72: =+Sheet1!AU112 -> 0 | T72: =+Sheet1!AV112 -> 0 | U72: =+Sheet1!AW112 -> 0 | V72: =+Sheet1!AX112 -> 0 | W72: =+Sheet1!AY112 -> 0 | X72: =+Sheet1!AZ112 -> 0 | Y72: =+Sheet1!BA112 -> 0 | Z72: =+Sheet1!BB112 -> 0 | AA72: =+Sheet1!BC112 -> 0 | AB72: =+Sheet1!BD112 -> 0 | AC72: =+Sheet1!BE112 -> 0 | AD72: =+Sheet1!BF112 -> 0 | AE72: =+Sheet1!BG112 -> 0 | AI72: =+直径階分布の計算!FM34 -> 0.0001 | AJ72: =+直径階分布の計算!FN34 -> 0.0014 | AK72: =+直径階分布の計算!FO34 -> 0.0050 | AL72: =+直径階分布の計算!FP34 -> 0.01490562732 | AM72: =+直径階分布の計算!FQ34 -> 0.0322698636 | AN72: =+直径階分布の計算!FR34 -> 0.05761897117 | AO72: =+直径階分布の計算!FS34 -> 0.09124504001 | AP72: =+直径階分布の計算!FT34 -> 0.1333116222 | AQ72: =+直径階分布の計算!FU34 -> 0.1839166946 | AR72: =+直径階分布の計算!FV34 -> 0.2431223118 | AS72: =+直径階分布の計算!FW34 -> 0.3109696099 | AT72: =+直径階分布の計算!FX34 -> 0.3874869039 | AU72: =+直径階分布の計算!FY34 -> 0.4726943076 | AV72: =+直径階分布の計算!FZ34 -> 0.5666064957 | AW72: =+直径階分布の計算!GA34 -> 0.6692344218 | AX72: =+直径階分布の計算!GB34 -> 0.7805864263 | AY72: =+直径階分布の計算!GC34 -> 0.9006689701 | AZ72: =+直径階分布の計算!GD34 -> 1.029487136 | BA72: =+直径階分布の計算!GE34 -> 1.167044975 | BB72: =+直径階分布の計算!GF34 -> 1.313345759 | BC72: =+直径階分布の計算!GG34 -> 1.468392155 | BD72: =+直径階分布の計算!GH34 -> 1.632186362 | BE72: =+直径階分布の計算!GI34 -> 1.804730208 | BF72: =+直径階分布の計算!GJ34 -> 1.986025225 | BG72: =+直径階分布の計算!GK34 -> 2.176072705 | BH72: =+直径階分布の計算!GL34 -> 2.374873749 | BI72: =+直径階分布の計算!GM34 -> 2.582429297 | BJ72: =+直径階分布の計算!GN34 -> 2.798740159 | BK72: =+直径階分布の計算!GO34 -> 3.023807036 | BM72: 0 | BN72: 0 | BO72: 0 | BP72: 0 | BQ72: 0 | BR72: 0 | BS72: 0 | BT72: 0 | BU72: 0 | BV72: 0 | BW72: 0 | BX72: 0 | BY72: 0 | BZ72: 0 | CA72: 0 | CB72: 0 | CC72: 0 | CD72: 0 | CE72: 0 | CF72: 0 | CG72: 0 | CH72: 0 | CI72: 0 | CJ72: 0 | CK72: 0 | CL72: 0 | CM72: 0 | CN72: 0 | CO72: 0 | CP72: 33 | CQ72: 0
B73: =+収穫予測!N35 -> 34 | C73: =+Sheet1!AE113 -> 0 | D73: =+Sheet1!AF113 -> 0 | E73: =+Sheet1!AG113 -> 0 | F73: =+Sheet1!AH113 -> 0 | G73: =+Sheet1!AI113 -> 0 | H73: =+Sheet1!AJ113 -> 0 | I73: =+Sheet1!AK113 -> 0 | J73: =+Sheet1!AL113 -> 0 | K73: =+Sheet1!AM113 -> 0 | L73: =+Sheet1!AN113 -> 0 | M73: =+Sheet1!AO113 -> 0 | N73: =+Sheet1!AP113 -> 0 | O73: =+Sheet1!AQ113 -> 0 | P73: =+Sheet1!AR113 -> 0 | Q73: =+Sheet1!AS113 -> 0 | R73: =+Sheet1!AT113 -> 0 | S73: =+Sheet1!AU113 -> 0 | T73: =+Sheet1!AV113 -> 0 | U73: =+Sheet1!AW113 -> 0 | V73: =+Sheet1!AX113 -> 0 | W73: =+Sheet1!AY113 -> 0 | X73: =+Sheet1!AZ113 -> 0 | Y73: =+Sheet1!BA113 -> 0 | Z73: =+Sheet1!BB113 -> 0 | AA73: =+Sheet1!BC113 -> 0 | AB73: =+Sheet1!BD113 -> 0 | AC73: =+Sheet1!BE113 -> 0 | AD73: =+Sheet1!BF113 -> 0 | AE73: =+Sheet1!BG113 -> 0 | AI73: =+直径階分布の計算!FM35 -> 0.0001 | AJ73: =+直径階分布の計算!FN35 -> 0.0014 | AK73: =+直径階分布の計算!FO35 -> 0.0049 | AL73: =+直径階分布の計算!FP35 -> 0.01488227897 | AM73: =+直径階分布の計算!FQ35 -> 0.03230168322 | AN73: =+直径階分布の計算!FR35 -> 0.05777691741 | AO73: =+直径階分布の計算!FS35 -> 0.09160930655 | AP73: =+直径階分布の計算!FT35 -> 0.1339678772 | AQ73: =+直径階分布の計算!FU35 -> 0.1849540109 | AR73: =+直径階分布の計算!FV35 -> 0.2446319773 | AS73: =+直径階分布の計算!FW35 -> 0.3130444102 | AT73: =+直径階分布の計算!FX35 -> 0.3902206722 | AU73: =+直径階分布の計算!FY35 -> 0.4761816304 | AV73: =+直径階分布の計算!FZ35 -> 0.5709425146 | AW73: =+直径階分布の計算!GA35 -> 0.6745146969 | AX73: =+直径階分布の計算!GB35 -> 0.7869068381 | AY73: =+直径階分布の計算!GC35 -> 0.9081256492 | AZ73: =+直径階分布の計算!GD35 -> 1.03817641 | BA73: =+直径階分布の計算!GE35 -> 1.177063332 | BB73: =+直径階分布の計算!GF35 -> 1.324789813 | BC73: =+直径階分布の計算!GG35 -> 1.481358628 | BD73: =+直径階分布の計算!GH35 -> 1.64677206 | BE73: =+直径階分布の計算!GI35 -> 1.82103201 | BF73: =+直径階分布の計算!GJ35 -> 2.004140072 | BG73: =+直径階分布の計算!GK35 -> 2.196097589 | BH73: =+直径階分布の計算!GL35 -> 2.396905707 | BI73: =+直径階分布の計算!GM35 -> 2.606565402 | BJ73: =+直径階分布の計算!GN35 -> 2.825077518 | BK73: =+直径階分布の計算!GO35 -> 3.052442783 | BM73: 0 | BN73: 0 | BO73: 0 | BP73: 0 | BQ73: 0 | BR73: 0 | BS73: 0 | BT73: 0 | BU73: 0 | BV73: 0 | BW73: 0 | BX73: 0 | BY73: 0 | BZ73: 0 | CA73: 0 | CB73: 0 | CC73: 0 | CD73: 0 | CE73: 0 | CF73: 0 | CG73: 0 | CH73: 0 | CI73: 0 | CJ73: 0 | CK73: 0 | CL73: 0 | CM73: 0 | CN73: 0 | CO73: 0 | CP73: 34 | CQ73: 0
B74: =+収穫予測!N36 -> 35 | C74: =+Sheet1!AE114 -> 0 | D74: =+Sheet1!AF114 -> 0 | E74: =+Sheet1!AG114 -> 0 | F74: =+Sheet1!AH114 -> 0 | G74: =+Sheet1!AI114 -> 0 | H74: =+Sheet1!AJ114 -> 0 | I74: =+Sheet1!AK114 -> 0 | J74: =+Sheet1!AL114 -> 0 | K74: =+Sheet1!AM114 -> 0 | L74: =+Sheet1!AN114 -> 0 | M74: =+Sheet1!AO114 -> 0 | N74: =+Sheet1!AP114 -> 0 | O74: =+Sheet1!AQ114 -> 0 | P74: =+Sheet1!AR114 -> 0 | Q74: =+Sheet1!AS114 -> 0 | R74: =+Sheet1!AT114 -> 0 | S74: =+Sheet1!AU114 -> 0 | T74: =+Sheet1!AV114 -> 0 | U74: =+Sheet1!AW114 -> 0 | V74: =+Sheet1!AX114 -> 0 | W74: =+Sheet1!AY114 -> 0 | X74: =+Sheet1!AZ114 -> 0 | Y74: =+Sheet1!BA114 -> 0 | Z74: =+Sheet1!BB114 -> 0 | AA74: =+Sheet1!BC114 -> 0 | AB74: =+Sheet1!BD114 -> 0 | AC74: =+Sheet1!BE114 -> 0 | AD74: =+Sheet1!BF114 -> 0 | AE74: =+Sheet1!BG114 -> 0 | AI74: =+直径階分布の計算!FM36 -> 0.0001 | AJ74: =+直径階分布の計算!FN36 -> 0.0014 | AK74: =+直径階分布の計算!FO36 -> 0.0049 | AL74: =+直径階分布の計算!FP36 -> 0.01485800928 | AM74: =+直径階分布の計算!FQ36 -> 0.03232612149 | AN74: =+直径階分布の計算!FR36 -> 0.05791566941 | AO74: =+直径階分布の計算!FS36 -> 0.09193677661 | AP74: =+直径階分布の計算!FT36 -> 0.1345636993 | AQ74: =+直径階分布の計算!FU36 -> 0.185901077 | AR74: =+直径階分布の計算!FV36 -> 0.2460153016 | AS74: =+直径階分布の計算!FW36 -> 0.3149504437 | AT74: =+直径階分布の計算!FX36 -> 0.3927368708 | AU74: =+直径階分布の計算!FY36 -> 0.4793961736 | AV74: =+直径階分布の計算!FZ36 -> 0.5749441157 | AW74: =+直径階分布の計算!GA36 -> 0.6793924708 | AX74: =+直径階分布の計算!GB36 -> 0.7927502082 | AY74: =+直径階分布の計算!GC36 -> 0.9150242793 | AZ74: =+直径階分布の計算!GD36 -> 1.046220155 | BA74: =+直径階分布の計算!GE36 -> 1.186342197 | BB74: =+直径階分布の計算!GF36 -> 1.335393929 | BC74: =+直径階分布の計算!GG36 -> 1.493378225 | BD74: =+直径階分布の計算!GH36 -> 1.660297454 | BE74: =+直径階分布の計算!GI36 -> 1.836153586 | BF74: =+直径階分布の計算!GJ36 -> 2.020948273 | BG74: =+直径階分布の計算!GK36 -> 2.214682909 | BH74: =+直径階分布の計算!GL36 -> 2.41735868 | BI74: =+直径階分布の計算!GM36 -> 2.6289766 | BJ74: =+直径階分布の計算!GN36 -> 2.849537545 | BK74: =+直径階分布の計算!GO36 -> 3.079042268 | BM74: 0 | BN74: 0 | BO74: 0 | BP74: 0 | BQ74: 0 | BR74: 0 | BS74: 0 | BT74: 0 | BU74: 0 | BV74: 0 | BW74: 0 | BX74: 0 | BY74: 0 | BZ74: 0 | CA74: 0 | CB74: 0 | CC74: 0 | CD74: 0 | CE74: 0 | CF74: 0 | CG74: 0 | CH74: 0 | CI74: 0 | CJ74: 0 | CK74: 0 | CL74: 0 | CM74: 0 | CN74: 0 | CO74: 0 | CP74: 35 | CQ74: 0
B75: =+収穫予測!N37 -> 36 | C75: =+Sheet1!AE115 -> 0 | D75: =+Sheet1!AF115 -> 0 | E75: =+Sheet1!AG115 -> 0 | F75: =+Sheet1!AH115 -> 0 | G75: =+Sheet1!AI115 -> 0 | H75: =+Sheet1!AJ115 -> 0 | I75: =+Sheet1!AK115 -> 0 | J75: =+Sheet1!AL115 -> 0 | K75: =+Sheet1!AM115 -> 0 | L75: =+Sheet1!AN115 -> 0 | M75: =+Sheet1!AO115 -> 0 | N75: =+Sheet1!AP115 -> 0 | O75: =+Sheet1!AQ115 -> 0 | P75: =+Sheet1!AR115 -> 0 | Q75: =+Sheet1!AS115 -> 0 | R75: =+Sheet1!AT115 -> 0 | S75: =+Sheet1!AU115 -> 0 | T75: =+Sheet1!AV115 -> 0 | U75: =+Sheet1!AW115 -> 0 | V75: =+Sheet1!AX115 -> 0 | W75: =+Sheet1!AY115 -> 0 | X75: =+Sheet1!AZ115 -> 0 | Y75: =+Sheet1!BA115 -> 0 | Z75: =+Sheet1!BB115 -> 0 | AA75: =+Sheet1!BC115 -> 0 | AB75: =+Sheet1!BD115 -> 0 | AC75: =+Sheet1!BE115 -> 0 | AD75: =+Sheet1!BF115 -> 0 | AE75: =+Sheet1!BG115 -> 0 | AI75: =+直径階分布の計算!FM37 -> 0.0001 | AJ75: =+直径階分布の計算!FN37 -> 0.0014 | AK75: =+直径階分布の計算!FO37 -> 0.0049 | AL75: =+直径階分布の計算!FP37 -> 0.01483316777 | AM75: =+直径階分布の計算!FQ37 -> 0.03234425182 | AN75: =+直径階分布の計算!FR37 -> 0.05803742875 | AO75: =+直径階分布の計算!FS37 -> 0.09223119177 | AP75: =+直径階分布の計算!FT37 -> 0.1351047842 | AQ75: =+直径階分布の計算!FU37 -> 0.1867659581 | AR75: =+直径階分布の計算!FV37 -> 0.2472831347 | AS75: =+直径階分布の計算!FW37 -> 0.3167017597 | AT75: =+直径階分布の計算!FX37 -> 0.3950531636 | AU75: =+直径階分布の計算!FY37 -> 0.4823596306 | AV75: =+直径階分布の計算!FZ37 -> 0.5786374356 | AW75: =+直径階分布の計算!GA37 -> 0.6838987381 | AX75: =+直径階分布の計算!GB37 -> 0.7981528032 | AY75: =+直径階分布の計算!GC37 -> 0.9214068132 | AZ75: =+直径階分布の計算!GD37 -> 1.053666421 | BA75: =+直径階分布の計算!GE37 -> 1.194936136 | BB75: =+直径階分布の計算!GF37 -> 1.3452196 | BC75: =+直径階分布の計算!GG37 -> 1.504519783 | BD75: =+直径階分布の計算!GH37 -> 1.672839136 | BE75: =+直径階分布の計算!GI37 -> 1.850179696 | BF75: =+直径階分布の計算!GJ37 -> 2.03654317 | BG75: =+直径階分布の計算!GK37 -> 2.231931001 | BH75: =+直径階分布の計算!GL37 -> 2.436344416 | BI75: =+直径階分布の計算!GM37 -> 2.649784463 | BJ75: =+直径階分布の計算!GN37 -> 2.872252048 | BK75: =+直径階分布の計算!GO37 -> 3.103747951 | BM75: 0 | BN75: 0 | BO75: 0 | BP75: 0 | BQ75: 0 | BR75: 0 | BS75: 0 | BT75: 0 | BU75: 0 | BV75: 0 | BW75: 0 | BX75: 0 | BY75: 0 | BZ75: 0 | CA75: 0 | CB75: 0 | CC75: 0 | CD75: 0 | CE75: 0 | CF75: 0 | CG75: 0 | CH75: 0 | CI75: 0 | CJ75: 0 | CK75: 0 | CL75: 0 | CM75: 0 | CN75: 0 | CO75: 0 | CP75: 36 | CQ75: 0
B76: =+収穫予測!N38 -> 37 | C76: =+Sheet1!AE116 -> 0 | D76: =+Sheet1!AF116 -> 0 | E76: =+Sheet1!AG116 -> 0 | F76: =+Sheet1!AH116 -> 0 | G76: =+Sheet1!AI116 -> 0 | H76: =+Sheet1!AJ116 -> 0 | I76: =+Sheet1!AK116 -> 0 | J76: =+Sheet1!AL116 -> 0 | K76: =+Sheet1!AM116 -> 0 | L76: =+Sheet1!AN116 -> 0 | M76: =+Sheet1!AO116 -> 0 | N76: =+Sheet1!AP116 -> 0 | O76: =+Sheet1!AQ116 -> 0 | P76: =+Sheet1!AR116 -> 0 | Q76: =+Sheet1!AS116 -> 0 | R76: =+Sheet1!AT116 -> 0 | S76: =+Sheet1!AU116 -> 0 | T76: =+Sheet1!AV116 -> 0 | U76: =+Sheet1!AW116 -> 0 | V76: =+Sheet1!AX116 -> 0 | W76: =+Sheet1!AY116 -> 0 | X76: =+Sheet1!AZ116 -> 0 | Y76: =+Sheet1!BA116 -> 0 | Z76: =+Sheet1!BB116 -> 0 | AA76: =+Sheet1!BC116 -> 0 | AB76: =+Sheet1!BD116 -> 0 | AC76: =+Sheet1!BE116 -> 0 | AD76: =+Sheet1!BF116 -> 0 | AE76: =+Sheet1!BG116 -> 0 | AI76: =+直径階分布の計算!FM38 -> 0.0001 | AJ76: =+直径階分布の計算!FN38 -> 0.0014 | AK76: =+直径階分布の計算!FO38 -> 0.0049 | AL76: =+直径階分布の計算!FP38 -> 0.01480804035 | AM76: =+直径階分布の計算!FQ38 -> 0.0323570003 | AN76: =+直径階分布の計算!FR38 -> 0.05814413558 | AO76: =+直径階分布の計算!FS38 -> 0.09249588986 | AP76: =+直径階分布の計算!FT38 -> 0.1355962552 | AQ76: =+直径階分布の計算!FU38 -> 0.1875559515 | AR76: =+直径階分布の計算!FV38 -> 0.248445338 | AS76: =+直径階分布の計算!FW38 -> 0.3183111742 | AT76: =+直径階分布の計算!FX38 -> 0.3971857113 | AU76: =+直径階分布の計算!FY38 -> 0.4850918969 | AV76: =+直径階分布の計算!FZ38 -> 0.5820464956 | AW76: =+直径階分布の計算!GA38 -> 0.688062036 | AX76: =+直径階分布の計算!GB38 -> 0.8031480665 | AY76: =+直径階分布の計算!GC38 -> 0.9273119907 | AZ76: =+直径階分布の計算!GD38 -> 1.060559636 | BA76: =+直径階分布の計算!GE38 -> 1.202895653 | BB76: =+直径階分布の計算!GF38 -> 1.354323796 | BC76: =+直径階分布の計算!GG38 -> 1.514847131 | BD76: =+直径階分布の計算!GH38 -> 1.684468183 | BE76: =+直径階分布の計算!GI38 -> 1.863189054 | BF76: =+直径階分布の計算!GJ38 -> 2.051011506 | BG76: =+直径階分布の計算!GK38 -> 2.247937027 | BH76: =+直径階分布の計算!GL38 -> 2.453966882 | BI76: =+直径階分布の計算!GM38 -> 2.669102156 | BJ76: =+直径階分布の計算!GN38 -> 2.89334378 | BK76: =+直径階分布の計算!GO38 -> 3.126692562 | BM76: 0 | BN76: 0 | BO76: 0 | BP76: 0 | BQ76: 0 | BR76: 0 | BS76: 0 | BT76: 0 | BU76: 0 | BV76: 0 | BW76: 0 | BX76: 0 | BY76: 0 | BZ76: 0 | CA76: 0 | CB76: 0 | CC76: 0 | CD76: 0 | CE76: 0 | CF76: 0 | CG76: 0 | CH76: 0 | CI76: 0 | CJ76: 0 | CK76: 0 | CL76: 0 | CM76: 0 | CN76: 0 | CO76: 0 | CP76: 37 | CQ76: 0
B77: =+収穫予測!N39 -> 38 | C77: =+Sheet1!AE117 -> 0 | D77: =+Sheet1!AF117 -> 0 | E77: =+Sheet1!AG117 -> 0 | F77: =+Sheet1!AH117 -> 0 | G77: =+Sheet1!AI117 -> 0 | H77: =+Sheet1!AJ117 -> 0 | I77: =+Sheet1!AK117 -> 0 | J77: =+Sheet1!AL117 -> 0 | K77: =+Sheet1!AM117 -> 0 | L77: =+Sheet1!AN117 -> 0 | M77: =+Sheet1!AO117 -> 0 | N77: =+Sheet1!AP117 -> 0 | O77: =+Sheet1!AQ117 -> 0 | P77: =+Sheet1!AR117 -> 0 | Q77: =+Sheet1!AS117 -> 0 | R77: =+Sheet1!AT117 -> 0 | S77: =+Sheet1!AU117 -> 0 | T77: =+Sheet1!AV117 -> 0 | U77: =+Sheet1!AW117 -> 0 | V77: =+Sheet1!AX117 -> 0 | W77: =+Sheet1!AY117 -> 0 | X77: =+Sheet1!AZ117 -> 0 | Y77: =+Sheet1!BA117 -> 0 | Z77: =+Sheet1!BB117 -> 0 | AA77: =+Sheet1!BC117 -> 0 | AB77: =+Sheet1!BD117 -> 0 | AC77: =+Sheet1!BE117 -> 0 | AD77: =+Sheet1!BF117 -> 0 | AE77: =+Sheet1!BG117 -> 0 | AI77: =+直径階分布の計算!FM39 -> 0.0001 | AJ77: =+直径階分布の計算!FN39 -> 0.0014 | AK77: =+直径階分布の計算!FO39 -> 0.0049 | AL77: =+直径階分布の計算!FP39 -> 0.0147828572 | AM77: =+直径階分布の計算!FQ39 -> 0.03236516044 | AN77: =+直径階分布の計算!FR39 -> 0.05823749096 | AO77: =+直径階分布の計算!FS39 -> 0.09273383492 | AP77: =+直径階分布の計算!FT39 -> 0.1360426995 | AQ77: =+直径階分布の計算!FU39 -> 0.1882776311 | AR77: =+直径階分布の計算!FV39 -> 0.2495108358 | AS77: =+直径階分布の計算!FW39 -> 0.3197903269 | AT77: =+直径階分布の計算!FX39 -> 0.3991492343 | AU77: =+直径階分布の計算!FY39 -> 0.4876111391 | AV77: =+直径階分布の計算!FZ39 -> 0.5851932741 | AW77: =+直径階分布の計算!GA39 -> 0.6919085204 | AX77: =+直径階分布の計算!GB39 -> 0.8077666976 | AY77: =+直径階分布の計算!GC39 -> 0.9327754205 | AZ77: =+直径階分布の計算!GD39 -> 1.066940684 | BA77: =+直径階分布の計算!GE39 -> 1.210267273 | BB77: =+直径階分布の計算!GF39 -> 1.362759051 | BC77: =+直径階分布の計算!GG39 -> 1.524419172 | BD77: =+直径階分布の計算!GH39 -> 1.695250236 | BE77: =+直径階分布の計算!GI39 -> 1.875254406 | BF77: =+直径階分布の計算!GJ39 -> 2.064433496 | BG77: =+直径階分布の計算!GK39 -> 2.262789038 | BH77: =+直径階分布の計算!GL39 -> 2.470322336 | BI77: =+直径階分布の計算!GM39 -> 2.687034503 | BJ77: =+直径階分布の計算!GN39 -> 2.912926501 | BK77: =+直径階分布の計算!GO39 -> 3.14799916 | BM77: 0 | BN77: 0 | BO77: 0 | BP77: 0 | BQ77: 0 | BR77: 0 | BS77: 0 | BT77: 0 | BU77: 0 | BV77: 0 | BW77: 0 | BX77: 0 | BY77: 0 | BZ77: 0 | CA77: 0 | CB77: 0 | CC77: 0 | CD77: 0 | CE77: 0 | CF77: 0 | CG77: 0 | CH77: 0 | CI77: 0 | CJ77: 0 | CK77: 0 | CL77: 0 | CM77: 0 | CN77: 0 | CO77: 0 | CP77: 38 | CQ77: 0
B78: =+収穫予測!N40 -> 39 | C78: =+Sheet1!AE118 -> 0 | D78: =+Sheet1!AF118 -> 0 | E78: =+Sheet1!AG118 -> 0 | F78: =+Sheet1!AH118 -> 0 | G78: =+Sheet1!AI118 -> 0 | H78: =+Sheet1!AJ118 -> 0 | I78: =+Sheet1!AK118 -> 0 | J78: =+Sheet1!AL118 -> 0 | K78: =+Sheet1!AM118 -> 0 | L78: =+Sheet1!AN118 -> 0 | M78: =+Sheet1!AO118 -> 0 | N78: =+Sheet1!AP118 -> 0 | O78: =+Sheet1!AQ118 -> 0 | P78: =+Sheet1!AR118 -> 0 | Q78: =+Sheet1!AS118 -> 0 | R78: =+Sheet1!AT118 -> 0 | S78: =+Sheet1!AU118 -> 0 | T78: =+Sheet1!AV118 -> 0 | U78: =+Sheet1!AW118 -> 0 | V78: =+Sheet1!AX118 -> 0 | W78: =+Sheet1!AY118 -> 0 | X78: =+Sheet1!AZ118 -> 0 | Y78: =+Sheet1!BA118 -> 0 | Z78: =+Sheet1!BB118 -> 0 | AA78: =+Sheet1!BC118 -> 0 | AB78: =+Sheet1!BD118 -> 0 | AC78: =+Sheet1!BE118 -> 0 | AD78: =+Sheet1!BF118 -> 0 | AE78: =+Sheet1!BG118 -> 0 | AI78: =+直径階分布の計算!FM40 -> 0.0001 | AJ78: =+直径階分布の計算!FN40 -> 0.0014 | AK78: =+直径階分布の計算!FO40 -> 0.0048 | AL78: =+直径階分布の計算!FP40 -> 0.01475780302 | AM78: =+直径階分布の計算!FQ40 -> 0.03236941428 | AN78: =+直径階分布の計算!FR40 -> 0.05831899177 | AO78: =+直径階分布の計算!FS40 -> 0.09294766868 | AP78: =+直径階分布の計算!FT40 -> 0.1364482398 | AQ78: =+直径階分布の計算!FU40 -> 0.1889369391 | AR78: =+直径階分布の計算!FV40 -> 0.250487731 | AS78: =+直径階分布の計算!FW40 -> 0.3211498227 | AT78: =+直径階分布の計算!FX40 -> 0.400957182 | AU78: =+直径階分布の計算!FY40 -> 0.4899339942 | AV78: =+直径階分布の計算!FZ40 -> 0.5880979382 | AW78: =+直径階分布の計算!GA40 -> 0.6954622322 | AX78: =+直径階分布の計算!GB40 -> 0.8120369541 | AY78: =+直径階分布の計算!GC40 -> 0.9378299207 | AZ78: =+直径階分布の計算!GD40 -> 1.072847287 | BA78: =+直径階分布の計算!GE40 -> 1.217093966 | BB78: =+直径階分布の計算!GF40 -> 1.370573924 | BC78: =+直径階分布の計算!GG40 -> 1.533290402 | BD78: =+直径階分布の計算!GH40 -> 1.70524607 | BE78: =+直径階分布の計算!GI40 -> 1.88644315 | BF78: =+直径階分布の計算!GJ40 -> 2.076883505 | BG78: =+直径階分布の計算!GK40 -> 2.276568709 | BH78: =+直径階分布の計算!GL40 -> 2.485500101 | BI78: =+直径階分布の計算!GM40 -> 2.703678826 | BJ78: =+直径階分布の計算!GN40 -> 2.931105872 | BK78: =+直径階分布の計算!GO40 -> 3.167782093 | BM78: 0 | BN78: 0 | BO78: 0 | BP78: 0 | BQ78: 0 | BR78: 0 | BS78: 0 | BT78: 0 | BU78: 0 | BV78: 0 | BW78: 0 | BX78: 0 | BY78: 0 | BZ78: 0 | CA78: 0 | CB78: 0 | CC78: 0 | CD78: 0 | CE78: 0 | CF78: 0 | CG78: 0 | CH78: 0 | CI78: 0 | CJ78: 0 | CK78: 0 | CL78: 0 | CM78: 0 | CN78: 0 | CO78: 0 | CP78: 39 | CQ78: 0
B79: =+収穫予測!N41 -> 40 | C79: =+Sheet1!AE119 -> 0 | D79: =+Sheet1!AF119 -> 0 | E79: =+Sheet1!AG119 -> 0 | F79: =+Sheet1!AH119 -> 0 | G79: =+Sheet1!AI119 -> 0 | H79: =+Sheet1!AJ119 -> 0 | I79: =+Sheet1!AK119 -> 0 | J79: =+Sheet1!AL119 -> 0 | K79: =+Sheet1!AM119 -> 0 | L79: =+Sheet1!AN119 -> 0 | M79: =+Sheet1!AO119 -> 0 | N79: =+Sheet1!AP119 -> 0 | O79: =+Sheet1!AQ119 -> 0 | P79: =+Sheet1!AR119 -> 0 | Q79: =+Sheet1!AS119 -> 0 | R79: =+Sheet1!AT119 -> 0 | S79: =+Sheet1!AU119 -> 0 | T79: =+Sheet1!AV119 -> 0 | U79: =+Sheet1!AW119 -> 0 | V79: =+Sheet1!AX119 -> 0 | W79: =+Sheet1!AY119 -> 0 | X79: =+Sheet1!AZ119 -> 0 | Y79: =+Sheet1!BA119 -> 0 | Z79: =+Sheet1!BB119 -> 0 | AA79: =+Sheet1!BC119 -> 0 | AB79: =+Sheet1!BD119 -> 0 | AC79: =+Sheet1!BE119 -> 0 | AD79: =+Sheet1!BF119 -> 0 | AE79: =+Sheet1!BG119 -> 0 | AI79: =+直径階分布の計算!FM41 -> 0.0001 | AJ79: =+直径階分布の計算!FN41 -> 0.0015 | AK79: =+直径階分布の計算!FO41 -> 0.0048 | AL79: =+直径階分布の計算!FP41 -> 0.01473301539 | AM79: =+直径階分布の計算!FQ41 -> 0.0323703266 | AN79: =+直径階分布の計算!FR41 -> 0.05838991692 | AO79: =+直径階分布の計算!FS41 -> 0.09313968423 | AP79: =+直径階分布の計算!FT41 -> 0.1368164899 | AQ79: =+直径階分布の計算!FU41 -> 0.1895391203 | AR79: =+直径階分布の計算!FV41 -> 0.2513832111 | AS79: =+直径階分布の計算!FW41 -> 0.3223991056 | AT79: =+直径階分布の計算!FX41 -> 0.402621569 | AU79: =+直径階分布の計算!FY41 -> 0.4920753617 | AV79: =+直径階分布の計算!FZ41 -> 0.5907785881 | AW79: =+直径階分布の計算!GA41 -> 0.6987447869 | AX79: =+直径階分布の計算!GB41 -> 0.8159842826 | AY79: =+直径階分布の計算!GC41 -> 0.9425050846 | AZ79: =+直径階分布の計算!GD41 -> 1.0783135 | BA79: =+直径階分布の計算!GE41 -> 1.223414565 | BB79: =+直径階分布の計算!GF41 -> 1.377812344 | BC79: =+直径階分布の計算!GG41 -> 1.541510159 | BD79: =+直径階分布の計算!GH41 -> 1.714510749 | BE79: =+直径階分布の計算!GI41 -> 1.896816391 | BF79: =+直径階分布の計算!GJ41 -> 2.088428996 | BG79: =+直径階分布の計算!GK41 -> 2.289350176 | BH79: =+直径階分布の計算!GL41 -> 2.499581307 | BI79: =+直径階分布の計算!GM41 -> 2.719123562 | BJ79: =+直径階分布の計算!GN41 -> 2.947977953 | BK79: =+直径階分布の計算!GO41 -> 3.186145357 | BM79: 0 | BN79: 0 | BO79: 0 | BP79: 0 | BQ79: 0 | BR79: 0 | BS79: 0 | BT79: 0 | BU79: 0 | BV79: 0 | BW79: 0 | BX79: 0 | BY79: 0 | BZ79: 0 | CA79: 0 | CB79: 0 | CC79: 0 | CD79: 0 | CE79: 0 | CF79: 0 | CG79: 0 | CH79: 0 | CI79: 0 | CJ79: 0 | CK79: 0 | CL79: 0 | CM79: 0 | CN79: 0 | CO79: 0 | CP79: 40 | CQ79: 0
B80: =+収穫予測!N42 -> 0 | C80: =+Sheet1!AE120 -> 0 | D80: =+Sheet1!AF120 -> 0 | E80: =+Sheet1!AG120 -> 0 | F80: =+Sheet1!AH120 -> 0 | G80: =+Sheet1!AI120 -> 0 | H80: =+Sheet1!AJ120 -> 0 | I80: =+Sheet1!AK120 -> 0 | J80: =+Sheet1!AL120 -> 0 | K80: =+Sheet1!AM120 -> 0 | L80: =+Sheet1!AN120 -> 0 | M80: =+Sheet1!AO120 -> 0 | N80: =+Sheet1!AP120 -> 0 | O80: =+Sheet1!AQ120 -> 0 | P80: =+Sheet1!AR120 -> 0 | Q80: =+Sheet1!AS120 -> 0 | R80: =+Sheet1!AT120 -> 0 | S80: =+Sheet1!AU120 -> 0 | T80: =+Sheet1!AV120 -> 0 | U80: =+Sheet1!AW120 -> 0 | V80: =+Sheet1!AX120 -> 0 | W80: =+Sheet1!AY120 -> 0 | X80: =+Sheet1!AZ120 -> 0 | Y80: =+Sheet1!BA120 -> 0 | Z80: =+Sheet1!BB120 -> 0 | AA80: =+Sheet1!BC120 -> 0 | AB80: =+Sheet1!BD120 -> 0 | AC80: =+Sheet1!BE120 -> 0 | AD80: =+Sheet1!BF120 -> 0 | AE80: =+Sheet1!BG120 -> 0 | AI80: =+直径階分布の計算!FM42 -> 0.0001 | AJ80: =+直径階分布の計算!FN42 ->  | AK80: =+直径階分布の計算!FO42 ->  | AL80: =+直径階分布の計算!FP42 ->  | AM80: =+直径階分布の計算!FQ42 ->  | AN80: =+直径階分布の計算!FR42 ->  | AO80: =+直径階分布の計算!FS42 ->  | AP80: =+直径階分布の計算!FT42 ->  | AQ80: =+直径階分布の計算!FU42 ->  | AR80: =+直径階分布の計算!FV42 ->  | AS80: =+直径階分布の計算!FW42 ->  | AT80: =+直径階分布の計算!FX42 ->  | AU80: =+直径階分布の計算!FY42 ->  | AV80: =+直径階分布の計算!FZ42 ->  | AW80: =+直径階分布の計算!GA42 ->  | AX80: =+直径階分布の計算!GB42 ->  | AY80: =+直径階分布の計算!GC42 ->  | AZ80: =+直径階分布の計算!GD42 ->  | BA80: =+直径階分布の計算!GE42 ->  | BB80: =+直径階分布の計算!GF42 ->  | BC80: =+直径階分布の計算!GG42 ->  | BD80: =+直径階分布の計算!GH42 ->  | BE80: =+直径階分布の計算!GI42 ->  | BF80: =+直径階分布の計算!GJ42 ->  | BG80: =+直径階分布の計算!GK42 ->  | BH80: =+直径階分布の計算!GL42 ->  | BI80: =+直径階分布の計算!GM42 ->  | BJ80: =+直径階分布の計算!GN42 ->  | BK80: =+直径階分布の計算!GO42 ->  | BM80: 0 | CP80: 0
B81: =+収穫予測!N43 -> 0 | C81: =+Sheet1!AE121 -> 0 | D81: =+Sheet1!AF121 -> 0 | E81: =+Sheet1!AG121 -> 0 | F81: =+Sheet1!AH121 -> 0 | G81: =+Sheet1!AI121 -> 0 | H81: =+Sheet1!AJ121 -> 0 | I81: =+Sheet1!AK121 -> 0 | J81: =+Sheet1!AL121 -> 0 | K81: =+Sheet1!AM121 -> 0 | L81: =+Sheet1!AN121 -> 0 | M81: =+Sheet1!AO121 -> 0 | N81: =+Sheet1!AP121 -> 0 | O81: =+Sheet1!AQ121 -> 0 | P81: =+Sheet1!AR121 -> 0 | Q81: =+Sheet1!AS121 -> 0 | R81: =+Sheet1!AT121 -> 0 | S81: =+Sheet1!AU121 -> 0 | T81: =+Sheet1!AV121 -> 0 | U81: =+Sheet1!AW121 -> 0 | V81: =+Sheet1!AX121 -> 0 | W81: =+Sheet1!AY121 -> 0 | X81: =+Sheet1!AZ121 -> 0 | Y81: =+Sheet1!BA121 -> 0 | Z81: =+Sheet1!BB121 -> 0 | AA81: =+Sheet1!BC121 -> 0 | AB81: =+Sheet1!BD121 -> 0 | AC81: =+Sheet1!BE121 -> 0 | AD81: =+Sheet1!BF121 -> 0 | AE81: =+Sheet1!BG121 -> 0 | AI81: =+直径階分布の計算!FM43 -> 0.0001 | AJ81: =+直径階分布の計算!FN43 ->  | AK81: =+直径階分布の計算!FO43 ->  | AL81: =+直径階分布の計算!FP43 ->  | AM81: =+直径階分布の計算!FQ43 ->  | AN81: =+直径階分布の計算!FR43 ->  | AO81: =+直径階分布の計算!FS43 ->  | AP81: =+直径階分布の計算!FT43 ->  | AQ81: =+直径階分布の計算!FU43 ->  | AR81: =+直径階分布の計算!FV43 ->  | AS81: =+直径階分布の計算!FW43 ->  | AT81: =+直径階分布の計算!FX43 ->  | AU81: =+直径階分布の計算!FY43 ->  | AV81: =+直径階分布の計算!FZ43 ->  | AW81: =+直径階分布の計算!GA43 ->  | AX81: =+直径階分布の計算!GB43 ->  | AY81: =+直径階分布の計算!GC43 ->  | AZ81: =+直径階分布の計算!GD43 ->  | BA81: =+直径階分布の計算!GE43 ->  | BB81: =+直径階分布の計算!GF43 ->  | BC81: =+直径階分布の計算!GG43 ->  | BD81: =+直径階分布の計算!GH43 ->  | BE81: =+直径階分布の計算!GI43 ->  | BF81: =+直径階分布の計算!GJ43 ->  | BG81: =+直径階分布の計算!GK43 ->  | BH81: =+直径階分布の計算!GL43 ->  | BI81: =+直径階分布の計算!GM43 ->  | BJ81: =+直径階分布の計算!GN43 ->  | BK81: =+直径階分布の計算!GO43 ->  | BM81: 0 | CP81: 0
B82: =+収穫予測!N44 -> 0 | C82: =+Sheet1!AE122 -> 0 | D82: =+Sheet1!AF122 -> 0 | E82: =+Sheet1!AG122 -> 0 | F82: =+Sheet1!AH122 -> 0 | G82: =+Sheet1!AI122 -> 0 | H82: =+Sheet1!AJ122 -> 0 | I82: =+Sheet1!AK122 -> 0 | J82: =+Sheet1!AL122 -> 0 | K82: =+Sheet1!AM122 -> 0 | L82: =+Sheet1!AN122 -> 0 | M82: =+Sheet1!AO122 -> 0 | N82: =+Sheet1!AP122 -> 0 | O82: =+Sheet1!AQ122 -> 0 | P82: =+Sheet1!AR122 -> 0 | Q82: =+Sheet1!AS122 -> 0 | R82: =+Sheet1!AT122 -> 0 | S82: =+Sheet1!AU122 -> 0 | T82: =+Sheet1!AV122 -> 0 | U82: =+Sheet1!AW122 -> 0 | V82: =+Sheet1!AX122 -> 0 | W82: =+Sheet1!AY122 -> 0 | X82: =+Sheet1!AZ122 -> 0 | Y82: =+Sheet1!BA122 -> 0 | Z82: =+Sheet1!BB122 -> 0 | AA82: =+Sheet1!BC122 -> 0 | AB82: =+Sheet1!BD122 -> 0 | AC82: =+Sheet1!BE122 -> 0 | AD82: =+Sheet1!BF122 -> 0 | AE82: =+Sheet1!BG122 -> 0 | AI82: =+直径階分布の計算!FM44 -> 0.0001 | AJ82: =+直径階分布の計算!FN44 ->  | AK82: =+直径階分布の計算!FO44 ->  | AL82: =+直径階分布の計算!FP44 ->  | AM82: =+直径階分布の計算!FQ44 ->  | AN82: =+直径階分布の計算!FR44 ->  | AO82: =+直径階分布の計算!FS44 ->  | AP82: =+直径階分布の計算!FT44 ->  | AQ82: =+直径階分布の計算!FU44 ->  | AR82: =+直径階分布の計算!FV44 ->  | AS82: =+直径階分布の計算!FW44 ->  | AT82: =+直径階分布の計算!FX44 ->  | AU82: =+直径階分布の計算!FY44 ->  | AV82: =+直径階分布の計算!FZ44 ->  | AW82: =+直径階分布の計算!GA44 ->  | AX82: =+直径階分布の計算!GB44 ->  | AY82: =+直径階分布の計算!GC44 ->  | AZ82: =+直径階分布の計算!GD44 ->  | BA82: =+直径階分布の計算!GE44 ->  | BB82: =+直径階分布の計算!GF44 ->  | BC82: =+直径階分布の計算!GG44 ->  | BD82: =+直径階分布の計算!GH44 ->  | BE82: =+直径階分布の計算!GI44 ->  | BF82: =+直径階分布の計算!GJ44 ->  | BG82: =+直径階分布の計算!GK44 ->  | BH82: =+直径階分布の計算!GL44 ->  | BI82: =+直径階分布の計算!GM44 ->  | BJ82: =+直径階分布の計算!GN44 ->  | BK82: =+直径階分布の計算!GO44 ->  | BM82: 0 | CP82: 0
B83: =+収穫予測!N45 -> 0 | C83: =+Sheet1!AE123 -> 0 | D83: =+Sheet1!AF123 -> 0 | E83: =+Sheet1!AG123 -> 0 | F83: =+Sheet1!AH123 -> 0 | G83: =+Sheet1!AI123 -> 0 | H83: =+Sheet1!AJ123 -> 0 | I83: =+Sheet1!AK123 -> 0 | J83: =+Sheet1!AL123 -> 0 | K83: =+Sheet1!AM123 -> 0 | L83: =+Sheet1!AN123 -> 0 | M83: =+Sheet1!AO123 -> 0 | N83: =+Sheet1!AP123 -> 0 | O83: =+Sheet1!AQ123 -> 0 | P83: =+Sheet1!AR123 -> 0 | Q83: =+Sheet1!AS123 -> 0 | R83: =+Sheet1!AT123 -> 0 | S83: =+Sheet1!AU123 -> 0 | T83: =+Sheet1!AV123 -> 0 | U83: =+Sheet1!AW123 -> 0 | V83: =+Sheet1!AX123 -> 0 | W83: =+Sheet1!AY123 -> 0 | X83: =+Sheet1!AZ123 -> 0 | Y83: =+Sheet1!BA123 -> 0 | Z83: =+Sheet1!BB123 -> 0 | AA83: =+Sheet1!BC123 -> 0 | AB83: =+Sheet1!BD123 -> 0 | AC83: =+Sheet1!BE123 -> 0 | AD83: =+Sheet1!BF123 -> 0 | AE83: =+Sheet1!BG123 -> 0 | AI83: =+直径階分布の計算!FM45 -> 0.0001 | AJ83: =+直径階分布の計算!FN45 ->  | AK83: =+直径階分布の計算!FO45 ->  | AL83: =+直径階分布の計算!FP45 ->  | AM83: =+直径階分布の計算!FQ45 ->  | AN83: =+直径階分布の計算!FR45 ->  | AO83: =+直径階分布の計算!FS45 ->  | AP83: =+直径階分布の計算!FT45 ->  | AQ83: =+直径階分布の計算!FU45 ->  | AR83: =+直径階分布の計算!FV45 ->  | AS83: =+直径階分布の計算!FW45 ->  | AT83: =+直径階分布の計算!FX45 ->  | AU83: =+直径階分布の計算!FY45 ->  | AV83: =+直径階分布の計算!FZ45 ->  | AW83: =+直径階分布の計算!GA45 ->  | AX83: =+直径階分布の計算!GB45 ->  | AY83: =+直径階分布の計算!GC45 ->  | AZ83: =+直径階分布の計算!GD45 ->  | BA83: =+直径階分布の計算!GE45 ->  | BB83: =+直径階分布の計算!GF45 ->  | BC83: =+直径階分布の計算!GG45 ->  | BD83: =+直径階分布の計算!GH45 ->  | BE83: =+直径階分布の計算!GI45 ->  | BF83: =+直径階分布の計算!GJ45 ->  | BG83: =+直径階分布の計算!GK45 ->  | BH83: =+直径階分布の計算!GL45 ->  | BI83: =+直径階分布の計算!GM45 ->  | BJ83: =+直径階分布の計算!GN45 ->  | BK83: =+直径階分布の計算!GO45 ->  | BM83: 0 | CP83: 0
B84: =+収穫予測!N46 -> 0 | C84: =+Sheet1!AE124 -> 0 | D84: =+Sheet1!AF124 -> 0 | E84: =+Sheet1!AG124 -> 0 | F84: =+Sheet1!AH124 -> 0 | G84: =+Sheet1!AI124 -> 0 | H84: =+Sheet1!AJ124 -> 0 | I84: =+Sheet1!AK124 -> 0 | J84: =+Sheet1!AL124 -> 0 | K84: =+Sheet1!AM124 -> 0 | L84: =+Sheet1!AN124 -> 0 | M84: =+Sheet1!AO124 -> 0 | N84: =+Sheet1!AP124 -> 0 | O84: =+Sheet1!AQ124 -> 0 | P84: =+Sheet1!AR124 -> 0 | Q84: =+Sheet1!AS124 -> 0 | R84: =+Sheet1!AT124 -> 0 | S84: =+Sheet1!AU124 -> 0 | T84: =+Sheet1!AV124 -> 0 | U84: =+Sheet1!AW124 -> 0 | V84: =+Sheet1!AX124 -> 0 | W84: =+Sheet1!AY124 -> 0 | X84: =+Sheet1!AZ124 -> 0 | Y84: =+Sheet1!BA124 -> 0 | Z84: =+Sheet1!BB124 -> 0 | AA84: =+Sheet1!BC124 -> 0 | AB84: =+Sheet1!BD124 -> 0 | AC84: =+Sheet1!BE124 -> 0 | AD84: =+Sheet1!BF124 -> 0 | AE84: =+Sheet1!BG124 -> 0 | AI84: =+直径階分布の計算!FM46 -> 0.0001 | AJ84: =+直径階分布の計算!FN46 ->  | AK84: =+直径階分布の計算!FO46 ->  | AL84: =+直径階分布の計算!FP46 ->  | AM84: =+直径階分布の計算!FQ46 ->  | AN84: =+直径階分布の計算!FR46 ->  | AO84: =+直径階分布の計算!FS46 ->  | AP84: =+直径階分布の計算!FT46 ->  | AQ84: =+直径階分布の計算!FU46 ->  | AR84: =+直径階分布の計算!FV46 ->  | AS84: =+直径階分布の計算!FW46 ->  | AT84: =+直径階分布の計算!FX46 ->  | AU84: =+直径階分布の計算!FY46 ->  | AV84: =+直径階分布の計算!FZ46 ->  | AW84: =+直径階分布の計算!GA46 ->  | AX84: =+直径階分布の計算!GB46 ->  | AY84: =+直径階分布の計算!GC46 ->  | AZ84: =+直径階分布の計算!GD46 ->  | BA84: =+直径階分布の計算!GE46 ->  | BB84: =+直径階分布の計算!GF46 ->  | BC84: =+直径階分布の計算!GG46 ->  | BD84: =+直径階分布の計算!GH46 ->  | BE84: =+直径階分布の計算!GI46 ->  | BF84: =+直径階分布の計算!GJ46 ->  | BG84: =+直径階分布の計算!GK46 ->  | BH84: =+直径階分布の計算!GL46 ->  | BI84: =+直径階分布の計算!GM46 ->  | BJ84: =+直径階分布の計算!GN46 ->  | BK84: =+直径階分布の計算!GO46 ->  | BM84: 0 | CP84: 0
B88: 間伐後胸高直径
B89: cm以上 | C89: =+C47 -> 0 | D89: 2 | E89: 4 | F89: 6 | G89: 8 | H89: 10 | I89: 12 | J89: 14 | K89: 16 | L89: 18 | M89: 20 | N89: 22 | O89: 24 | P89: 26 | Q89: 28 | R89: 30 | S89: 32 | T89: 34 | U89: 36 | V89: 38 | W89: 40 | X89: 42 | Y89: 44 | Z89: 46 | AA89: 48 | AB89: 50 | AC89: 52 | AD89: 54 | AE89: 56
B90: cm未満 | C90: =+C48 -> 2 | D90: 4 | E90: 6 | F90: 8 | G90: 10 | H90: 12 | I90: 14 | J90: 16 | K90: 18 | L90: 20 | M90: 22 | N90: 24 | O90: 26 | P90: 28 | Q90: 30 | R90: 32 | S90: 34 | T90: 36 | U90: 38 | V90: 40 | W90: 42 | X90: 44 | Y90: 46 | Z90: 48 | AA90: 50 | AB90: 52 | AC90: 54 | AD90: 56 | AE90: 以上
A91: 林 | B91: =+収穫予測!N11 -> 10 | C91: =+C7-C49 -> 0 | D91: =+D7-D49 -> 0 | E91: 0 | F91: 310 | G91: 380 | H91: 400 | I91: 320 | J91: 30 | K91: 0 | L91: 0 | M91: 0 | N91: 0 | O91: 0 | P91: 0 | Q91: 0 | R91: 0 | S91: 0 | T91: 0 | U91: 0 | V91: 0 | W91: 0 | X91: 0 | Y91: 0 | Z91: 0 | AA91: 0 | AB91: 0 | AC91: 0 | AD91: 0 | AE91: 0
B92: =+B50 -> 11 | C92: 0 | D92: =+D8-D50 -> 0 | E92: 0 | F92: 200 | G92: 350 | H92: 370 | I92: 340 | J92: 170 | K92: 0 | L92: 0 | M92: 0 | N92: 0 | O92: 0 | P92: 0 | Q92: 0 | R92: 0 | S92: 0 | T92: 0 | U92: 0 | V92: 0 | W92: 0 | X92: 0 | Y92: 0 | Z92: 0 | AA92: 0 | AB92: 0 | AC92: 0 | AD92: 0 | AE92: 0
A93: 齢 | B93: 12 | C93: 0 | D93: 0 | E93: 0 | F93: 120 | G93: 310 | H93: 350 | I93: 340 | J93: 260 | K93: 40 | L93: 0 | M93: 0 | N93: 0 | O93: 0 | P93: 0 | Q93: 0 | R93: 0 | S93: 0 | T93: 0 | U93: 0 | V93: 0 | W93: 0 | X93: 0 | Y93: 0 | Z93: 0 | AA93: 0 | AB93: 0 | AC93: 0 | AD93: 0 | AE93: 0
B94: 13 | C94: 0 | D94: 0 | E94: 0 | F94: 50 | G94: 280 | H94: 330 | I94: 330 | J94: 280 | K94: 130 | L94: 0 | M94: 0 | N94: 0 | O94: 0 | P94: 0 | Q94: 0 | R94: 0 | S94: 0 | T94: 0 | U94: 0 | V94: 0 | W94: 0 | X94: 0 | Y94: 0 | Z94: 0 | AA94: 0 | AB94: 0 | AC94: 0 | AD94: 0 | AE94: 0
A95: （年） | B95: 14 | C95: 0 | D95: 0 | E95: 0 | F95: 0 | G95: 250 | H95: 300 | I95: 320 | J95: 280 | K95: 210 | L95: 20 | M95: 0 | N95: 0 | O95: 0 | P95: 0 | Q95: 0 | R95: 0 | S95: 0 | T95: 0 | U95: 0 | V95: 0 | W95: 0 | X95: 0 | Y95: 0 | Z95: 0 | AA95: 0 | AB95: 0 | AC95: 0 | AD95: 0 | AE95: 0
B96: 15 | C96: 0 | D96: 0 | E96: 0 | F96: 0 | G96: 190 | H96: 280 | I96: 300 | J96: 290 | K96: 230 | L96: 80 | M96: 0 | N96: 0 | O96: 0 | P96: 0 | Q96: 0 | R96: 0 | S96: 0 | T96: 0 | U96: 0 | V96: 0 | W96: 0 | X96: 0 | Y96: 0 | Z96: 0 | AA96: 0 | AB96: 0 | AC96: 0 | AD96: 0 | AE96: 0
B97: 16 | C97: 0 | D97: 0 | E97: 0 | F97: 0 | G97: 130 | H97: 270 | I97: 280 | J97: 280 | K97: 240 | L97: 140 | M97: 10 | N97: 0 | O97: 0 | P97: 0 | Q97: 0 | R97: 0 | S97: 0 | T97: 0 | U97: 0 | V97: 0 | W97: 0 | X97: 0 | Y97: 0 | Z97: 0 | AA97: 0 | AB97: 0 | AC97: 0 | AD97: 0 | AE97: 0
B98: 17 | C98: 0 | D98: 0 | E98: 0 | F98: 0 | G98: 80 | H98: 250 | I98: 270 | J98: 280 | K98: 240 | L98: 170 | M98: 40 | N98: 0 | O98: 0 | P98: 0 | Q98: 0 | R98: 0 | S98: 0 | T98: 0 | U98: 0 | V98: 0 | W98: 0 | X98: 0 | Y98: 0 | Z98: 0 | AA98: 0 | AB98: 0 | AC98: 0 | AD98: 0 | AE98: 0
B99: 18 | C99: 0 | D99: 0 | E99: 0 | F99: 0 | G99: 30 | H99: 250 | I99: 260 | J99: 270 | K99: 240 | L99: 190 | M99: 80 | N99: 0 | O99: 0 | P99: 0 | Q99: 0 | R99: 0 | S99: 0 | T99: 0 | U99: 0 | V99: 0 | W99: 0 | X99: 0 | Y99: 0 | Z99: 0 | AA99: 0 | AB99: 0 | AC99: 0 | AD99: 0 | AE99: 0
B100: 19 | C100: 0 | D100: 0 | E100: 0 | F100: 0 | G100: 0 | H100: 160 | I100: 180 | J100: 180 | K100: 170 | L100: 130 | M100: 100 | N100: 10 | O100: 0 | P100: 0 | Q100: 0 | R100: 0 | S100: 0 | T100: 0 | U100: 0 | V100: =+V16-V58 -> 0 | W100: 0 | X100: 0 | Y100: 0 | Z100: 0 | AA100: 0 | AB100: 0 | AC100: 0 | AD100: 0 | AE100: 0
B101: 20 | C101: 0 | D101: 0 | E101: 0 | F101: 0 | G101: 0 | H101: 60 | I101: 160 | J101: 190 | K101: 180 | L101: 170 | M101: 130 | N101: 40 | O101: 0 | P101: 0 | Q101: 0 | R101: 0 | S101: 0 | T101: 0 | U101: 0 | V101: 0 | W101: 0 | X101: 0 | Y101: 0 | Z101: 0 | AA101: 0 | AB101: 0 | AC101: 0 | AD101: 0 | AE101: 0
B102: 21 | C102: 0 | D102: 0 | E102: 0 | F102: 0 | G102: 0 | H102: 30 | I102: 160 | J102: 180 | K102: 180 | L102: 170 | M102: 140 | N102: 70 | O102: 0 | P102: 0 | Q102: 0 | R102: 0 | S102: 0 | T102: 0 | U102: 0 | V102: 0 | W102: 0 | X102: 0 | Y102: 0 | Z102: 0 | AA102: 0 | AB102: 0 | AC102: 0 | AD102: 0 | AE102: 0
B103: 22 | C103: 0 | D103: 0 | E103: 0 | F103: 0 | G103: 0 | H103: 10 | I103: 160 | J103: 170 | K103: 180 | L103: 170 | M103: 140 | N103: 90 | O103: 10 | P103: 0 | Q103: 0 | R103: 0 | S103: 0 | T103: 0 | U103: 0 | V103: 0 | W103: 0 | X103: 0 | Y103: 0 | Z103: 0 | AA103: 0 | AB103: 0 | AC103: 0 | AD103: 0 | AE103: 0
B104: 23 | C104: 0 | D104: 0 | E104: 0 | F104: 0 | G104: 0 | H104: 0 | I104: 140 | J104: 170 | K104: 180 | L104: 160 | M104: 150 | N104: 110 | O104: 20 | P104: 0 | Q104: 0 | R104: 0 | S104: 0 | T104: 0 | U104: 0 | V104: 0 | W104: 0 | X104: 0 | Y104: 0 | Z104: 0 | AA104: 0 | AB104: 0 | AC104: 0 | AD104: 0 | AE104: 0
B105: 24 | C105: 0 | D105: 0 | E105: 0 | F105: 0 | G105: 0 | H105: 0 | I105: 120 | J105: 160 | K105: 180 | L105: 170 | M105: 150 | N105: 110 | O105: 40 | P105: 0 | Q105: 0 | R105: 0 | S105: 0 | T105: 0 | U105: 0 | V105: 0 | W105: 0 | X105: 0 | Y105: 0 | Z105: 0 | AA105: 0 | AB105: 0 | AC105: 0 | AD105: 0 | AE105: 0
B106: 25 | C106: 0 | D106: 0 | E106: 0 | F106: 0 | G106: 0 | H106: 0 | I106: 90 | J106: 170 | K106: 170 | L106: 170 | M106: 150 | N106: 120 | O106: 60 | P106: 0 | Q106: 0 | R106: 0 | S106: 0 | T106: 0 | U106: 0 | V106: 0 | W106: 0 | X106: 0 | Y106: 0 | Z106: 0 | AA106: 0 | AB106: 0 | AC106: 0 | AD106: 0 | AE106: 0
B107: 26 | C107: 0 | D107: 0 | E107: 0 | F107: 0 | G107: 0 | H107: 0 | I107: 70 | J107: 170 | K107: 170 | L107: 160 | M107: 160 | N107: 120 | O107: 70 | P107: 10 | Q107: 0 | R107: 0 | S107: 0 | T107: 0 | U107: 0 | V107: 0 | W107: 0 | X107: 0 | Y107: 0 | Z107: 0 | AA107: 0 | AB107: 0 | AC107: 0 | AD107: 0 | AE107: 0
B108: 27 | C108: 0 | D108: 0 | E108: 0 | F108: 0 | G108: 0 | H108: 0 | I108: 50 | J108: 170 | K108: 170 | L108: 160 | M108: 150 | N108: 130 | O108: 80 | P108: 20 | Q108: 0 | R108: 0 | S108: 0 | T108: 0 | U108: 0 | V108: 0 | W108: 0 | X108: 0 | Y108: 0 | Z108: 0 | AA108: 0 | AB108: 0 | AC108: 0 | AD108: 0 | AE108: 0
B109: 28 | C109: 0 | D109: 0 | E109: 0 | F109: 0 | G109: 0 | H109: 0 | I109: 40 | J109: 160 | K109: 170 | L109: 160 | M109: 150 | N109: 130 | O109: 90 | P109: 30 | Q109: 0 | R109: 0 | S109: 0 | T109: 0 | U109: 0 | V109: 0 | W109: 0 | X109: 0 | Y109: =+Y25-Y67 -> 0 | Z109: 0 | AA109: 0 | AB109: 0 | AC109: 0 | AD109: 0 | AE109: 0
B110: 29 | C110: 0 | D110: 0 | E110: 0 | F110: 0 | G110: 0 | H110: 0 | I110: 20 | J110: 160 | K110: 170 | L110: 160 | M110: 150 | N110: 130 | O110: 100 | P110: 40 | Q110: 0 | R110: 0 | S110: 0 | T110: 0 | U110: 0 | V110: 0 | W110: 0 | X110: 0 | Y110: 0 | Z110: 0 | AA110: 0 | AB110: 0 | AC110: 0 | AD110: 0 | AE110: 0
B111: 30 | C111: 0 | D111: 0 | E111: 0 | F111: 0 | G111: 0 | H111: 0 | I111: 10 | J111: 150 | K111: 170 | L111: 160 | M111: 160 | N111: 130 | O111: 90 | P111: 60 | Q111: 0 | R111: 0 | S111: 0 | T111: 0 | U111: 0 | V111: 0 | W111: 0 | X111: 0 | Y111: 0 | Z111: 0 | AA111: 0 | AB111: 0 | AC111: 0 | AD111: 0 | AE111: 0
B112: 31 | C112: 0 | D112: 0 | E112: 0 | F112: 0 | G112: 0 | H112: 0 | I112: 0 | J112: 150 | K112: 160 | L112: 170 | M112: 150 | N112: 130 | O112: 100 | P112: 60 | Q112: 10 | R112: 0 | S112: 0 | T112: 0 | U112: 0 | V112: 0 | W112: 0 | X112: 0 | Y112: 0 | Z112: 0 | AA112: 0 | AB112: 0 | AC112: 0 | AD112: 0 | AE112: 0
B113: 32 | C113: 0 | D113: 0 | E113: 0 | F113: 0 | G113: 0 | H113: 0 | I113: 0 | J113: 130 | K113: 170 | L113: 160 | M113: 150 | N113: 140 | O113: 100 | P113: 60 | Q113: 20 | R113: 0 | S113: 0 | T113: 0 | U113: 0 | V113: 0 | W113: 0 | X113: 0 | Y113: 0 | Z113: 0 | AA113: 0 | AB113: 0 | AC113: 0 | AD113: 0 | AE113: 0
B114: 33 | C114: 0 | D114: 0 | E114: 0 | F114: 0 | G114: 0 | H114: 0 | I114: 0 | J114: 120 | K114: 160 | L114: 170 | M114: 150 | N114: 130 | O114: 110 | P114: 70 | Q114: 20 | R114: 0 | S114: 0 | T114: 0 | U114: 0 | V114: 0 | W114: 0 | X114: 0 | Y114: 0 | Z114: 0 | AA114: 0 | AB114: 0 | AC114: 0 | AD114: 0 | AE114: 0
B115: 34 | C115: 0 | D115: 0 | E115: 0 | F115: 0 | G115: 0 | H115: 0 | I115: 0 | J115: 110 | K115: 160 | L115: 160 | M115: 160 | N115: 130 | O115: 110 | P115: 70 | Q115: 30 | R115: 0 | S115: 0 | T115: 0 | U115: 0 | V115: 0 | W115: 0 | X115: 0 | Y115: 0 | Z115: 0 | AA115: 0 | AB115: 0 | AC115: 0 | AD115: 0 | AE115: 0
B116: 35 | C116: 0 | D116: 0 | E116: 0 | F116: 0 | G116: 0 | H116: 0 | I116: 0 | J116: 90 | K116: 170 | L116: 160 | M116: 150 | N116: 140 | O116: 110 | P116: 70 | Q116: 40 | R116: 0 | S116: 0 | T116: 0 | U116: 0 | V116: 0 | W116: 0 | X116: 0 | Y116: 0 | Z116: 0 | AA116: 0 | AB116: 0 | AC116: 0 | AD116: 0 | AE116: 0
B117: 36 | C117: 0 | D117: =+D33-D75 -> 0 | E117: 0 | F117: 0 | G117: 0 | H117: 0 | I117: 0 | J117: 80 | K117: 170 | L117: 160 | M117: 150 | N117: 140 | O117: 110 | P117: 80 | Q117: 30 | R117: 10 | S117: =+S33-S75 -> 0 | T117: 0 | U117: 0 | V117: 0 | W117: 0 | X117: 0 | Y117: 0 | Z117: 0 | AA117: 0 | AB117: 0 | AC117: 0 | AD117: 0 | AE117: 0
B118: 37 | C118: =+C34-C76 -> 0 | D118: 0 | E118: 0 | F118: 0 | G118: 0 | H118: 0 | I118: 0 | J118: 70 | K118: 160 | L118: 170 | M118: 150 | N118: 140 | O118: 110 | P118: 80 | Q118: 40 | R118: 10 | S118: 0 | T118: 0 | U118: 0 | V118: 0 | W118: 0 | X118: 0 | Y118: 0 | Z118: 0 | AA118: 0 | AB118: 0 | AC118: 0 | AD118: 0 | AE118: 0
B119: 38 | C119: 0 | D119: 0 | E119: 0 | F119: 0 | G119: 0 | H119: 0 | I119: 0 | J119: 60 | K119: 160 | L119: 160 | M119: 160 | N119: 140 | O119: 110 | P119: 80 | Q119: 50 | R119: 10 | S119: 0 | T119: 0 | U119: 0 | V119: 0 | W119: 0 | X119: 0 | Y119: 0 | Z119: 0 | AA119: 0 | AB119: 0 | AC119: 0 | AD119: 0 | AE119: 0
B120: 39 | C120: 0 | D120: 0 | E120: 0 | F120: 0 | G120: 0 | H120: 0 | I120: 0 | J120: 50 | K120: 160 | L120: 160 | M120: 160 | N120: 140 | O120: 110 | P120: 90 | Q120: 40 | R120: 20 | S120: 0 | T120: 0 | U120: 0 | V120: 0 | W120: 0 | X120: 0 | Y120: 0 | Z120: 0 | AA120: 0 | AB120: 0 | AC120: 0 | AD120: 0 | AE120: 0
B121: 40 | C121: 0 | D121: 0 | E121: 0 | F121: 0 | G121: 0 | H121: 0 | I121: 0 | J121: 40 | K121: 160 | L121: 160 | M121: 160 | N121: 140 | O121: 110 | P121: 90 | Q121: 50 | R121: 20 | S121: 0 | T121: 0 | U121: 0 | V121: 0 | W121: 0 | X121: 0 | Y121: 0 | Z121: 0 | AA121: 0 | AB121: 0 | AC121: 0 | AD121: 0 | AE121: 0
B122: 0 | C122: 0 | D122: 0 | E122: 0 | F122: 0 | G122: 0 | H122: 0 | I122: 0 | J122: 0 | K122: 0 | L122: 0 | M122: 0 | N122: 0 | O122: 0 | P122: 0 | Q122: 0 | R122: 0 | S122: 0 | T122: 0 | U122: 0 | V122: 0 | W122: 0 | X122: 0 | Y122: 0 | Z122: 0 | AA122: 0 | AB122: 0 | AC122: 0 | AD122: 0 | AE122: 0
B123: 0 | C123: 0 | D123: 0 | E123: 0 | F123: 0 | G123: 0 | H123: 0 | I123: 0 | J123: 0 | K123: 0 | L123: 0 | M123: 0 | N123: 0 | O123: 0 | P123: 0 | Q123: 0 | R123: 0 | S123: 0 | T123: 0 | U123: 0 | V123: 0 | W123: 0 | X123: 0 | Y123: 0 | Z123: 0 | AA123: 0 | AB123: 0 | AC123: 0 | AD123: 0 | AE123: 0
B124: 0 | C124: 0 | D124: 0 | E124: 0 | F124: 0 | G124: 0 | H124: 0 | I124: 0 | J124: 0 | K124: 0 | L124: 0 | M124: 0 | N124: 0 | O124: 0 | P124: 0 | Q124: 0 | R124: 0 | S124: 0 | T124: 0 | U124: 0 | V124: 0 | W124: 0 | X124: 0 | Y124: 0 | Z124: 0 | AA124: 0 | AB124: 0 | AC124: 0 | AD124: 0 | AE124: 0
B125: 0 | C125: 0 | D125: 0 | E125: 0 | F125: 0 | G125: 0 | H125: 0 | I125: 0 | J125: 0 | K125: 0 | L125: 0 | M125: 0 | N125: 0 | O125: 0 | P125: 0 | Q125: 0 | R125: 0 | S125: 0 | T125: 0 | U125: 0 | V125: 0 | W125: 0 | X125: 0 | Y125: 0 | Z125: 0 | AA125: 0 | AB125: 0 | AC125: 0 | AD125: 0 | AE125: 0
B126: 0 | C126: 0 | D126: 0 | E126: 0 | F126: 0 | G126: 0 | H126: 0 | I126: 0 | J126: 0 | K126: 0 | L126: 0 | M126: 0 | N126: 0 | O126: 0 | P126: 0 | Q126: 0 | R126: 0 | S126: 0 | T126: 0 | U126: 0 | V126: 0 | W126: 0 | X126: 0 | Y126: 0 | Z126: =+Z42-Z84 -> 0 | AA126: 0 | AB126: 0 | AC126: 0 | AD126: 0 | AE126: 0

Sheet 間伐木末口径別丸太
P6: 末口径 | R6: 5 | S6: cm未満は黒
B7: 道立総合研究機構 森林研究本部 林業試験場 | M7: ユーザー入力 | P7: =+R6 -> 5 | Q7: 以上 | R7: 10 | S7: cm未満は青 | X7: ※デフォルトでは追い上げ0.3m、材長4mで入力
B8: 間伐木の末口径別丸太 | P8: =+R7 -> 10 | Q8: 以上 | R8: 15 | S8: cm未満は赤 | X8: ※採材長が肌色表示のセルは対象丸太がないとき
B9: 表－１ 採材パターン | P9: =+R8 -> 15 | Q9: 以上 | R9: 20 | S9: cm未満は黄 | X9: ※伐採高は0.3m
B10: 19 | C10: 年次 | D10: ← | E10: 間伐実施年をリストから入力 | K10: のび | L10: 0 | M10: cm | P10: =+R9 -> 20 | S10: cm以上は緑 | X10: ※のびを入力するとすべての丸太に適用
B11: 胸高直径 | C11: =+胸高直径別立木本数!B5 -> cm以上 | D11: 0 | E11: 2 | F11: 4 | G11: 6 | H11: 8 | I11: 10 | J11: 12 | K11: 14 | L11: 16 | M11: 18 | N11: 20 | O11: 22 | P11: 24 | Q11: 26 | R11: 28 | S11: 30 | T11: 32 | U11: 34 | V11: 36 | W11: 38 | X11: 40 | Y11: 42 | Z11: 44 | AA11: 46 | AB11: 48 | AC11: 50 | AD11: 52 | AE11: 54 | AF11: 56
C12: =+胸高直径別立木本数!B6 -> cm未満 | D12: 2 | E12: 4 | F12: 6 | G12: 8 | H12: 10 | I12: 12 | J12: 14 | K12: 16 | L12: 18 | M12: 20 | N12: 22 | O12: 24 | P12: 26 | Q12: 28 | R12: 30 | S12: 32 | T12: 34 | U12: 36 | V12: 38 | W12: 40 | X12: 42 | Y12: 44 | Z12: 46 | AA12: 48 | AB12: 50 | AC12: 52 | AD12: 54 | AE12: 56 | AF12: 58
B13: 立木本数 | C13: 本/ha | D13: =+IF(D62=0,"",D62) ->  | E13: =+IF(E62=0,"",E62) ->  | I13: 60 | J13: 80 | K13: 80 | L13: 70 | M13: 60 | N13: 20
B14: =+B63 -> 樹高 | C14: =+C63 -> m | D14: =IF(D13="","",IF(AND(収穫予測!$C3="データあり",収穫予測!$C4="データあり",$B10=収穫予測!$G5),LN(AVERAGE(D11:D12))*Sheet1!$B$310+Sheet1!$C$310,VLOOKUP($B$87,Sheet1!$AD$209:$BG$244,D$87))) ->  | E14: =IF(E13="","",IF(AND(収穫予測!$C3="データあり",収穫予測!$C4="データあり",$B10=収穫予測!$G5),LN(AVERAGE(E11:E12))*Sheet1!$B$310+Sheet1!$C$310,VLOOKUP($B$87,Sheet1!$AD$209:$BG$244,E$87))) ->  | F14: =IF(F13="","",IF(AND(収穫予測!$C3="データあり",収穫予測!$C4="データあり",$B10=収穫予測!$G5),LN(AVERAGE(F11:F12))*Sheet1!$B$310+Sheet1!$C$310,VLOOKUP($B$87,Sheet1!$AD$209:$BG$244,F$87))) ->  | G14: =IF(G13="","",IF(AND(収穫予測!$C3="データあり",収穫予測!$C4="データあり",$B10=収穫予測!$G5),LN(AVERAGE(G11:G12))*Sheet1!$B$310+Sheet1!$C$310,VLOOKUP($B$87,Sheet1!$AD$209:$BG$244,G$87))) ->  | H14: =IF(H13="","",IF(AND(収穫予測!$C3="データあり",収穫予測!$C4="データあり",$B10=収穫予測!$G5),LN(AVERAGE(H11:H12))*Sheet1!$B$310+Sheet1!$C$310,VLOOKUP($B$87,Sheet1!$AD$209:$BG$244,H$87))) ->  | I14: =IF(I13="","",IF(AND(収穫予測!$C3="データあり",収穫予測!$C4="データあり",$B10=収穫予測!$G5),LN(AVERAGE(I11:I12))*Sheet1!$B$310+Sheet1!$C$310,VLOOKUP($B$87,Sheet1!$AD$209:$BG$244,I$87))) -> 12 | J14: =IF(J13="","",IF(AND(収穫予測!$C3="データあり",収穫予測!$C4="データあり",$B10=収穫予測!$G5),LN(AVERAGE(J11:J12))*Sheet1!$B$310+Sheet1!$C$310,VLOOKUP($B$87,Sheet1!$AD$209:$BG$244,J$87))) -> 13 | K14: =IF(K13="","",IF(AND(収穫予測!$C3="データあり",収穫予測!$C4="データあり",$B10=収穫予測!$G5),LN(AVERAGE(K11:K12))*Sheet1!$B$310+Sheet1!$C$310,VLOOKUP($B$87,Sheet1!$AD$209:$BG$244,K$87))) -> 14 | L14: =IF(L13="","",IF(AND(収穫予測!$C3="データあり",収穫予測!$C4="データあり",$B10=収穫予測!$G5),LN(AVERAGE(L11:L12))*Sheet1!$B$310+Sheet1!$C$310,VLOOKUP($B$87,Sheet1!$AD$209:$BG$244,L$87))) -> 15 | M14: =IF(M13="","",IF(AND(収穫予測!$C3="データあり",収穫予測!$C4="データあり",$B10=収穫予測!$G5),LN(AVERAGE(M11:M12))*Sheet1!$B$310+Sheet1!$C$310,VLOOKUP($B$87,Sheet1!$AD$209:$BG$244,M$87))) -> 16 | N14: =IF(N13="","",IF(AND(収穫予測!$C3="データあり",収穫予測!$C4="データあり",$B10=収穫予測!$G5),LN(AVERAGE(N11:N12))*Sheet1!$B$310+Sheet1!$C$310,VLOOKUP($B$87,Sheet1!$AD$209:$BG$244,N$87))) -> 17 | O14: =IF(O13="","",IF(AND(収穫予測!$C3="データあり",収穫予測!$C4="データあり",$B10=収穫予測!$G5),LN(AVERAGE(O11:O12))*Sheet1!$B$310+Sheet1!$C$310,VLOOKUP($B$87,Sheet1!$AD$209:$BG$244,O$87))) ->  | P14: =IF(P13="","",IF(AND(収穫予測!$C3="データあり",収穫予測!$C4="データあり",$B10=収穫予測!$G5),LN(AVERAGE(P11:P12))*Sheet1!$B$310+Sheet1!$C$310,VLOOKUP($B$87,Sheet1!$AD$209:$BG$244,P$87))) ->  | Q14: =IF(Q13="","",IF(AND(収穫予測!$C3="データあり",収穫予測!$C4="データあり",$B10=収穫予測!$G5),LN(AVERAGE(Q11:Q12))*Sheet1!$B$310+Sheet1!$C$310,VLOOKUP($B$87,Sheet1!$AD$209:$BG$244,Q$87))) ->  | R14: =IF(R13="","",IF(AND(収穫予測!$C3="データあり",収穫予測!$C4="データあり",$B10=収穫予測!$G5),LN(AVERAGE(R11:R12))*Sheet1!$B$310+Sheet1!$C$310,VLOOKUP($B$87,Sheet1!$AD$209:$BG$244,R$87))) ->  | S14: =IF(S13="","",IF(AND(収穫予測!$C3="データあり",収穫予測!$C4="データあり",$B10=収穫予測!$G5),LN(AVERAGE(S11:S12))*Sheet1!$B$310+Sheet1!$C$310,VLOOKUP($B$87,Sheet1!$AD$209:$BG$244,S$87))) ->  | T14: =IF(T13="","",IF(AND(収穫予測!$C3="データあり",収穫予測!$C4="データあり",$B10=収穫予測!$G5),LN(AVERAGE(T11:T12))*Sheet1!$B$310+Sheet1!$C$310,VLOOKUP($B$87,Sheet1!$AD$209:$BG$244,T$87))) ->  | U14: =IF(U13="","",IF(AND(収穫予測!$C3="データあり",収穫予測!$C4="データあり",$B10=収穫予測!$G5),LN(AVERAGE(U11:U12))*Sheet1!$B$310+Sheet1!$C$310,VLOOKUP($B$87,Sheet1!$AD$209:$BG$244,U$87))) ->  | V14: =IF(V13="","",IF(AND(収穫予測!$C3="データあり",収穫予測!$C4="データあり",$B10=収穫予測!$G5),LN(AVERAGE(V11:V12))*Sheet1!$B$310+Sheet1!$C$310,VLOOKUP($B$87,Sheet1!$AD$209:$BG$244,V$87))) ->  | W14: =IF(W13="","",IF(AND(収穫予測!$C3="データあり",収穫予測!$C4="データあり",$B10=収穫予測!$G5),LN(AVERAGE(W11:W12))*Sheet1!$B$310+Sheet1!$C$310,VLOOKUP($B$87,Sheet1!$AD$209:$BG$244,W$87))) ->  | X14: =IF(X13="","",IF(AND(収穫予測!$C3="データあり",収穫予測!$C4="データあり",$B10=収穫予測!$G5),LN(AVERAGE(X11:X12))*Sheet1!$B$310+Sheet1!$C$310,VLOOKUP($B$87,Sheet1!$AD$209:$BG$244,X$87))) ->  | Y14: =IF(Y13="","",IF(AND(収穫予測!$C3="データあり",収穫予測!$C4="データあり",$B10=収穫予測!$G5),LN(AVERAGE(Y11:Y12))*Sheet1!$B$310+Sheet1!$C$310,VLOOKUP($B$87,Sheet1!$AD$209:$BG$244,Y$87))) ->  | Z14: =IF(Z13="","",IF(AND(収穫予測!$C3="データあり",収穫予測!$C4="データあり",$B10=収穫予測!$G5),LN(AVERAGE(Z11:Z12))*Sheet1!$B$310+Sheet1!$C$310,VLOOKUP($B$87,Sheet1!$AD$209:$BG$244,Z$87))) ->  | AA14: =IF(AA13="","",IF(AND(収穫予測!$C3="データあり",収穫予測!$C4="データあり",$B10=収穫予測!$G5),LN(AVERAGE(AA11:AA12))*Sheet1!$B$310+Sheet1!$C$310,VLOOKUP($B$87,Sheet1!$AD$209:$BG$244,AA$87))) ->  | AB14: =IF(AB13="","",IF(AND(収穫予測!$C3="データあり",収穫予測!$C4="データあり",$B10=収穫予測!$G5),LN(AVERAGE(AB11:AB12))*Sheet1!$B$310+Sheet1!$C$310,VLOOKUP($B$87,Sheet1!$AD$209:$BG$244,AB$87))) ->  | AC14: =IF(AC13="","",IF(AND(収穫予測!$C3="データあり",収穫予測!$C4="データあり",$B10=収穫予測!$G5),LN(AVERAGE(AC11:AC12))*Sheet1!$B$310+Sheet1!$C$310,VLOOKUP($B$87,Sheet1!$AD$209:$BG$244,AC$87))) ->  | AD14: =IF(AD13="","",IF(AND(収穫予測!$C3="データあり",収穫予測!$C4="データあり",$B10=収穫予測!$G5),LN(AVERAGE(AD11:AD12))*Sheet1!$B$310+Sheet1!$C$310,VLOOKUP($B$87,Sheet1!$AD$209:$BG$244,AD$87))) ->  | AE14: =IF(AE13="","",IF(AND(収穫予測!$C3="データあり",収穫予測!$C4="データあり",$B10=収穫予測!$G5),LN(AVERAGE(AE11:AE12))*Sheet1!$B$310+Sheet1!$C$310,VLOOKUP($B$87,Sheet1!$AD$209:$BG$244,AE$87))) ->  | AF14: =IF(AF13="","",IF(AND(収穫予測!$C3="データあり",収穫予測!$C4="データあり",$B10=収穫予測!$G5),LN(AVERAGE(AF11:AF12))*Sheet1!$B$310+Sheet1!$C$310,VLOOKUP($B$87,Sheet1!$AD$209:$BG$244,AF$87))) -> 
B15: 追上ｍ | C15: 0.3 | D15: =+$C15 -> 0.3 | E15: =+$C15 -> 0.3 | F15: 0.3 | G15: 0.3 | H15: 0.3 | I15: 0.3 | J15: 0.3 | K15: 0.3 | L15: 0.3 | M15: 0.3 | N15: 0.3 | O15: 0.3 | P15: 0.3 | Q15: 0.3 | R15: 0.3 | S15: 0.3 | T15: 0.3 | U15: 0.3 | V15: 0.3 | W15: 0.3 | X15: 0.3 | Y15: 0.3 | Z15: 0.3 | AA15: 0.3 | AB15: 0.3 | AC15: 0.3 | AD15: 0.3 | AE15: 0.3 | AF15: 0.3
B16: 材長ｍ | C16: 1番玉 | D16: 3.65 | E16: 3.65 | F16: 3.65 | G16: 3.65 | H16: 3.65 | I16: 3.65 | J16: 3.65 | K16: 3.65 | L16: 3.65 | M16: 3.65 | N16: 3.65 | O16: 3.65 | P16: 3.65 | Q16: 3.65 | R16: 3.65 | S16: 3.65 | T16: 3.65 | U16: 3.65 | V16: 3.65 | W16: 3.65 | X16: 3.65 | Y16: 3.65 | Z16: 3.65 | AA16: 3.65 | AB16: 3.65 | AC16: 3.65 | AD16: 3.65 | AE16: 3.65 | AF16: 3.65
C17: 2番玉 | D17: 3.65 | E17: 3.65 | F17: 3.65 | G17: 3.65 | H17: 3.65 | I17: 3.65 | J17: 3.65 | K17: 3.65 | L17: 3.65 | M17: 3.65 | N17: 3.65 | O17: 3.65 | P17: 3.65 | Q17: 3.65 | R17: 3.65 | S17: 3.65 | T17: 3.65 | U17: 3.65 | V17: 3.65 | W17: 3.65 | X17: 3.65 | Y17: 3.65 | Z17: 3.65 | AA17: 3.65 | AB17: 3.65 | AC17: 3.65 | AD17: 3.65 | AE17: 3.65 | AF17: 3.65
C18: 3番玉 | D18: 3.65 | E18: 3.65 | F18: 3.65 | G18: 3.65 | H18: 3.65 | I18: 3.65 | J18: 3.65 | K18: 3.65 | L18: 3.65 | M18: 3.65 | N18: 3.65 | O18: 3.65 | P18: 3.65 | Q18: 3.65 | R18: 3.65 | S18: 3.65 | T18: 3.65 | U18: 3.65 | V18: 3.65 | W18: 3.65 | X18: 3.65 | Y18: 3.65 | Z18: 3.65 | AA18: 3.65 | AB18: 3.65 | AC18: 3.65 | AD18: 3.65 | AE18: 3.65 | AF18: 3.65
C19: 4番玉 | D19: 3.65 | E19: 3.65 | F19: 3.65 | G19: 3.65 | H19: 3.65 | I19: 3.65 | J19: 3.65 | K19: 3.65 | L19: 3.65 | M19: 3.65 | N19: 3.65 | O19: 3.65 | P19: 3.65 | Q19: 3.65 | R19: 3.65 | S19: 3.65 | T19: 3.65 | U19: 3.65 | V19: 3.65 | W19: 3.65 | X19: 3.65 | Y19: 3.65 | Z19: 3.65 | AA19: 3.65 | AB19: 3.65 | AC19: 3.65 | AD19: 3.65 | AE19: 3.65 | AF19: 3.65
C20: 5番玉 | D20: 3.65 | E20: 3.65 | F20: 3.65 | G20: 3.65 | H20: 3.65 | I20: 3.65 | J20: 3.65 | K20: 3.65 | L20: 3.65 | M20: 3.65 | N20: 3.65 | O20: 3.65 | P20: 3.65 | Q20: 3.65 | R20: 3.65 | S20: 3.65 | T20: 3.65 | U20: 3.65 | V20: 3.65 | W20: 3.65 | X20: 3.65 | Y20: 3.65 | Z20: 3.65 | AA20: 3.65 | AB20: 3.65 | AC20: 3.65 | AD20: 3.65 | AE20: 3.65 | AF20: 3.65
C21: 6番玉 | D21: 3.65 | E21: 3.65 | F21: 3.65 | G21: 3.65 | H21: 3.65 | I21: 3.65 | J21: 3.65 | K21: 3.65 | L21: 3.65 | M21: 3.65 | N21: 3.65 | O21: 3.65 | P21: 3.65 | Q21: 3.65 | R21: 3.65 | S21: 3.65 | T21: 3.65 | U21: 3.65 | V21: 3.65 | W21: 3.65 | X21: 3.65 | Y21: 3.65 | Z21: 3.65 | AA21: 3.65 | AB21: 3.65 | AC21: 3.65 | AD21: 3.65 | AE21: 3.65 | AF21: 3.65
C22: 7番玉 | D22: 3.65 | E22: 3.65 | F22: 3.65 | G22: 3.65 | H22: 3.65 | I22: 3.65 | J22: 3.65 | K22: 3.65 | L22: 3.65 | M22: 3.65 | N22: 3.65 | O22: 3.65 | P22: 3.65 | Q22: 3.65 | R22: 3.65 | S22: 3.65 | T22: 3.65 | U22: 3.65 | V22: 3.65 | W22: 3.65 | X22: 3.65 | Y22: 3.65 | Z22: 3.65 | AA22: 3.65 | AB22: 3.65 | AC22: 3.65 | AD22: 3.65 | AE22: 3.65 | AF22: 3.65
C23: 8番玉 | D23: 3.65 | E23: 3.65 | F23: 3.65 | G23: 3.65 | H23: 3.65 | I23: 3.65 | J23: 3.65 | K23: 3.65 | L23: 3.65 | M23: 3.65 | N23: 3.65 | O23: 3.65 | P23: 3.65 | Q23: 3.65 | R23: 3.65 | S23: 3.65 | T23: 3.65 | U23: 3.65 | V23: 3.65 | W23: 3.65 | X23: 3.65 | Y23: 3.65 | Z23: 3.65 | AA23: 3.65 | AB23: 3.65 | AC23: 3.65 | AD23: 3.65 | AE23: 3.65 | AF23: 3.65
C24: 9番玉 | D24: 3.65 | E24: 3.65 | F24: 3.65 | G24: 3.65 | H24: 3.65 | I24: 3.65 | J24: 3.65 | K24: 3.65 | L24: 3.65 | M24: 3.65 | N24: 3.65 | O24: 3.65 | P24: 3.65 | Q24: 3.65 | R24: 3.65 | S24: 3.65 | T24: 3.65 | U24: 3.65 | V24: 3.65 | W24: 3.65 | X24: 3.65 | Y24: 3.65 | Z24: 3.65 | AA24: 3.65 | AB24: 3.65 | AC24: 3.65 | AD24: 3.65 | AE24: 3.65 | AF24: 3.65
C25: 10番玉 | D25: 3.65 | E25: 3.65 | F25: 3.65 | G25: 3.65 | H25: 3.65 | I25: 3.65 | J25: 3.65 | K25: 3.65 | L25: 3.65 | M25: 3.65 | N25: 3.65 | O25: 3.65 | P25: 3.65 | Q25: 3.65 | R25: 3.65 | S25: 3.65 | T25: 3.65 | U25: 3.65 | V25: 3.65 | W25: 3.65 | X25: 3.65 | Y25: 3.65 | Z25: 3.65 | AA25: 3.65 | AB25: 3.65 | AC25: 3.65 | AD25: 3.65 | AE25: 3.65 | AF25: 3.65
C26: 11番玉 | D26: 3.65 | E26: 3.65 | F26: 3.65 | G26: 3.65 | H26: 3.65 | I26: 3.65 | J26: 3.65 | K26: 3.65 | L26: 3.65 | M26: 3.65 | N26: 3.65 | O26: 3.65 | P26: 3.65 | Q26: 3.65 | R26: 3.65 | S26: 3.65 | T26: 3.65 | U26: 3.65 | V26: 3.65 | W26: 3.65 | X26: 3.65 | Y26: 3.65 | Z26: 3.65 | AA26: 3.65 | AB26: 3.65 | AC26: 3.65 | AD26: 3.65 | AE26: 3.65 | AF26: 3.65
C27: 12番玉 | D27: 3.65 | E27: 3.65 | F27: 3.65 | G27: 3.65 | H27: 3.65 | I27: 3.65 | J27: 3.65 | K27: 3.65 | L27: 3.65 | M27: 3.65 | N27: 3.65 | O27: 3.65 | P27: 3.65 | Q27: 3.65 | R27: 3.65 | S27: 3.65 | T27: 3.65 | U27: 3.65 | V27: 3.65 | W27: 3.65 | X27: 3.65 | Y27: 3.65 | Z27: 3.65 | AA27: 3.65 | AB27: 3.65 | AC27: 3.65 | AD27: 3.65 | AE27: 3.65 | AF27: 3.65
C28: 13番玉 | D28: 3.65 | E28: 3.65 | F28: 3.65 | G28: 3.65 | H28: 3.65 | I28: 3.65 | J28: 3.65 | K28: 3.65 | L28: 3.65 | M28: 3.65 | N28: 3.65 | O28: 3.65 | P28: 3.65 | Q28: 3.65 | R28: 3.65 | S28: 3.65 | T28: 3.65 | U28: 3.65 | V28: 3.65 | W28: 3.65 | X28: 3.65 | Y28: 3.65 | Z28: 3.65 | AA28: 3.65 | AB28: 3.65 | AC28: 3.65 | AD28: 3.65 | AE28: 3.65 | AF28: 3.65
C29: 14番玉 | D29: 3.65 | E29: 3.65 | F29: 3.65 | G29: 3.65 | H29: 3.65 | I29: 3.65 | J29: 3.65 | K29: 3.65 | L29: 3.65 | M29: 3.65 | N29: 3.65 | O29: 3.65 | P29: 3.65 | Q29: 3.65 | R29: 3.65 | S29: 3.65 | T29: 3.65 | U29: 3.65 | V29: 3.65 | W29: 3.65 | X29: 3.65 | Y29: 3.65 | Z29: 3.65 | AA29: 3.65 | AB29: 3.65 | AC29: 3.65 | AD29: 3.65 | AE29: 3.65 | AF29: 3.65
C30: 15番玉 | D30: 3.65 | E30: 3.65 | F30: 3.65 | G30: 3.65 | H30: 3.65 | I30: 3.65 | J30: 3.65 | K30: 3.65 | L30: 3.65 | M30: 3.65 | N30: 3.65 | O30: 3.65 | P30: 3.65 | Q30: 3.65 | R30: 3.65 | S30: 3.65 | T30: 3.65 | U30: 3.65 | V30: 3.65 | W30: 3.65 | X30: 3.65 | Y30: 3.65 | Z30: 3.65 | AA30: 3.65 | AB30: 3.65 | AC30: 3.65 | AD30: 3.65 | AE30: 3.65 | AF30: 3.65
C31: 16番玉 | D31: 3.65 | E31: 3.65 | F31: 3.65 | G31: 3.65 | H31: 3.65 | I31: 3.65 | J31: 3.65 | K31: 3.65 | L31: 3.65 | M31: 3.65 | N31: 3.65 | O31: 3.65 | P31: 3.65 | Q31: 3.65 | R31: 3.65 | S31: 3.65 | T31: 3.65 | U31: 3.65 | V31: 3.65 | W31: 3.65 | X31: 3.65 | Y31: 3.65 | Z31: 3.65 | AA31: 3.65 | AB31: 3.65 | AC31: 3.65 | AD31: 3.65 | AE31: 3.65 | AF31: 3.65
C32: 17番玉 | D32: 3.65 | E32: 3.65 | F32: 3.65 | G32: 3.65 | H32: 3.65 | I32: 3.65 | J32: 3.65 | K32: 3.65 | L32: 3.65 | M32: 3.65 | N32: 3.65 | O32: 3.65 | P32: 3.65 | Q32: 3.65 | R32: 3.65 | S32: 3.65 | T32: 3.65 | U32: 3.65 | V32: 3.65 | W32: 3.65 | X32: 3.65 | Y32: 3.65 | Z32: 3.65 | AA32: 3.65 | AB32: 3.65 | AC32: 3.65 | AD32: 3.65 | AE32: 3.65 | AF32: 3.65
C33: 18番玉 | D33: 3.65 | E33: 3.65 | F33: 3.65 | G33: 3.65 | H33: 3.65 | I33: 3.65 | J33: 3.65 | K33: 3.65 | L33: 3.65 | M33: 3.65 | N33: 3.65 | O33: 3.65 | P33: 3.65 | Q33: 3.65 | R33: 3.65 | S33: 3.65 | T33: 3.65 | U33: 3.65 | V33: 3.65 | W33: 3.65 | X33: 3.65 | Y33: 3.65 | Z33: 3.65 | AA33: 3.65 | AB33: 3.65 | AC33: 3.65 | AD33: 3.65 | AE33: 3.65 | AF33: 3.65
C34: 19番玉 | D34: 3.65 | E34: 3.65 | F34: 3.65 | G34: 3.65 | H34: 3.65 | I34: 3.65 | J34: 3.65 | K34: 3.65 | L34: 3.65 | M34: 3.65 | N34: 3.65 | O34: 3.65 | P34: 3.65 | Q34: 3.65 | R34: 3.65 | S34: 3.65 | T34: 3.65 | U34: 3.65 | V34: 3.65 | W34: 3.65 | X34: 3.65 | Y34: 3.65 | Z34: 3.65 | AA34: 3.65 | AB34: 3.65 | AC34: 3.65 | AD34: 3.65 | AE34: 3.65 | AF34: 3.65
C35: 20番玉 | D35: 3.65 | E35: 3.65 | F35: 3.65 | G35: 3.65 | H35: 3.65 | I35: 3.65 | J35: 3.65 | K35: 3.65 | L35: 3.65 | M35: 3.65 | N35: 3.65 | O35: 3.65 | P35: 3.65 | Q35: 3.65 | R35: 3.65 | S35: 3.65 | T35: 3.65 | U35: 3.65 | V35: 3.65 | W35: 3.65 | X35: 3.65 | Y35: 3.65 | Z35: 3.65 | AA35: 3.65 | AB35: 3.65 | AC35: 3.65 | AD35: 3.65 | AE35: 3.65 | AF35: 3.65
B36: 伐採＋追上 | C36: ｍ | D36: =SUM(D$15:D15)+$B$38 -> 0.6 | E36: =SUM(E$15:E15)+$B$38 -> 0.6 | F36: =SUM(F$15:F15)+$B$38 -> 0.6 | G36: =SUM(G$15:G15)+$B$38 -> 0.6 | H36: =SUM(H$15:H15)+$B$38 -> 0.6 | I36: =SUM(I$15:I15)+$B$38 -> 0.6 | J36: =SUM(J$15:J15)+$B$38 -> 0.6 | K36: =SUM(K$15:K15)+$B$38 -> 0.6 | L36: =SUM(L$15:L15)+$B$38 -> 0.6 | M36: =SUM(M$15:M15)+$B$38 -> 0.6 | N36: =SUM(N$15:N15)+$B$38 -> 0.6 | O36: =SUM(O$15:O15)+$B$38 -> 0.6 | P36: =SUM(P$15:P15)+$B$38 -> 0.6 | Q36: =SUM(Q$15:Q15)+$B$38 -> 0.6 | R36: =SUM(R$15:R15)+$B$38 -> 0.6 | S36: =SUM(S$15:S15)+$B$38 -> 0.6 | T36: =SUM(T$15:T15)+$B$38 -> 0.6 | U36: =SUM(U$15:U15)+$B$38 -> 0.6 | V36: =SUM(V$15:V15)+$B$38 -> 0.6 | W36: =SUM(W$15:W15)+$B$38 -> 0.6 | X36: =SUM(X$15:X15)+$B$38 -> 0.6 | Y36: =SUM(Y$15:Y15)+$B$38 -> 0.6 | Z36: =SUM(Z$15:Z15)+$B$38 -> 0.6 | AA36: =SUM(AA$15:AA15)+$B$38 -> 0.6 | AB36: =SUM(AB$15:AB15)+$B$38 -> 0.6 | AC36: =SUM(AC$15:AC15)+$B$38 -> 0.6 | AD36: =SUM(AD$15:AD15)+$B$38 -> 0.6 | AE36: =SUM(AE$15:AE15)+$B$38 -> 0.6 | AF36: =SUM(AF$15:AF15)+$B$38 -> 0.6
B37: 採材高ｍ | C37: 採材高1 | D37: =SUM(D$15:D16)+$B$38+$AJ37*$L$10/100 -> 4.3 | E37: =SUM(E$15:E16)+$B$38+$AJ37*$L$10/100 -> 4.3 | F37: =SUM(F$15:F16)+$B$38+$AJ37*$L$10/100 -> 4.3 | G37: =SUM(G$15:G16)+$B$38+$AJ37*$L$10/100 -> 4.3 | H37: =SUM(H$15:H16)+$B$38+$AJ37*$L$10/100 -> 4.3 | I37: =SUM(I$15:I16)+$B$38+$AJ37*$L$10/100 -> 4.3 | J37: =SUM(J$15:J16)+$B$38+$AJ37*$L$10/100 -> 4.3 | K37: =SUM(K$15:K16)+$B$38+$AJ37*$L$10/100 -> 4.3 | L37: =SUM(L$15:L16)+$B$38+$AJ37*$L$10/100 -> 4.3 | M37: =SUM(M$15:M16)+$B$38+$AJ37*$L$10/100 -> 4.3 | N37: =SUM(N$15:N16)+$B$38+$AJ37*$L$10/100 -> 4.3 | O37: =SUM(O$15:O16)+$B$38+$AJ37*$L$10/100 -> 4.3 | P37: =SUM(P$15:P16)+$B$38+$AJ37*$L$10/100 -> 4.3 | Q37: =SUM(Q$15:Q16)+$B$38+$AJ37*$L$10/100 -> 4.3 | R37: =SUM(R$15:R16)+$B$38+$AJ37*$L$10/100 -> 4.3 | S37: =SUM(S$15:S16)+$B$38+$AJ37*$L$10/100 -> 4.3 | T37: =SUM(T$15:T16)+$B$38+$AJ37*$L$10/100 -> 4.3 | U37: =SUM(U$15:U16)+$B$38+$AJ37*$L$10/100 -> 4.3 | V37: =SUM(V$15:V16)+$B$38+$AJ37*$L$10/100 -> 4.3 | W37: =SUM(W$15:W16)+$B$38+$AJ37*$L$10/100 -> 4.3 | X37: =SUM(X$15:X16)+$B$38+$AJ37*$L$10/100 -> 4.3 | Y37: =SUM(Y$15:Y16)+$B$38+$AJ37*$L$10/100 -> 4.3 | Z37: =SUM(Z$15:Z16)+$B$38+$AJ37*$L$10/100 -> 4.3 | AA37: =SUM(AA$15:AA16)+$B$38+$AJ37*$L$10/100 -> 4.3 | AB37: =SUM(AB$15:AB16)+$B$38+$AJ37*$L$10/100 -> 4.3 | AC37: =SUM(AC$15:AC16)+$B$38+$AJ37*$L$10/100 -> 4.3 | AD37: =SUM(AD$15:AD16)+$B$38+$AJ37*$L$10/100 -> 4.3 | AE37: =SUM(AE$15:AE16)+$B$38+$AJ37*$L$10/100 -> 4.3 | AF37: =SUM(AF$15:AF16)+$B$38+$AJ37*$L$10/100 -> 4.3 | AJ37: 1
B38: 0.3 | C38: 採材高2 | D38: =SUM(D$15:D17)+$B$38+$AJ38*$L$10/100 -> 7.9 | E38: =SUM(E$15:E17)+$B$38+$AJ38*$L$10/100 -> 7.9 | F38: =SUM(F$15:F17)+$B$38+$AJ38*$L$10/100 -> 7.9 | G38: =SUM(G$15:G17)+$B$38+$AJ38*$L$10/100 -> 7.9 | H38: =SUM(H$15:H17)+$B$38+$AJ38*$L$10/100 -> 7.9 | I38: =SUM(I$15:I17)+$B$38+$AJ38*$L$10/100 -> 7.9 | J38: =SUM(J$15:J17)+$B$38+$AJ38*$L$10/100 -> 7.9 | K38: =SUM(K$15:K17)+$B$38+$AJ38*$L$10/100 -> 7.9 | L38: =SUM(L$15:L17)+$B$38+$AJ38*$L$10/100 -> 7.9 | M38: =SUM(M$15:M17)+$B$38+$AJ38*$L$10/100 -> 7.9 | N38: =SUM(N$15:N17)+$B$38+$AJ38*$L$10/100 -> 7.9 | O38: =SUM(O$15:O17)+$B$38+$AJ38*$L$10/100 -> 7.9 | P38: =SUM(P$15:P17)+$B$38+$AJ38*$L$10/100 -> 7.9 | Q38: =SUM(Q$15:Q17)+$B$38+$AJ38*$L$10/100 -> 7.9 | R38: =SUM(R$15:R17)+$B$38+$AJ38*$L$10/100 -> 7.9 | S38: =SUM(S$15:S17)+$B$38+$AJ38*$L$10/100 -> 7.9 | T38: =SUM(T$15:T17)+$B$38+$AJ38*$L$10/100 -> 7.9 | U38: =SUM(U$15:U17)+$B$38+$AJ38*$L$10/100 -> 7.9 | V38: =SUM(V$15:V17)+$B$38+$AJ38*$L$10/100 -> 7.9 | W38: =SUM(W$15:W17)+$B$38+$AJ38*$L$10/100 -> 7.9 | X38: =SUM(X$15:X17)+$B$38+$AJ38*$L$10/100 -> 7.9 | Y38: =SUM(Y$15:Y17)+$B$38+$AJ38*$L$10/100 -> 7.9 | Z38: =SUM(Z$15:Z17)+$B$38+$AJ38*$L$10/100 -> 7.9 | AA38: =SUM(AA$15:AA17)+$B$38+$AJ38*$L$10/100 -> 7.9 | AB38: =SUM(AB$15:AB17)+$B$38+$AJ38*$L$10/100 -> 7.9 | AC38: =SUM(AC$15:AC17)+$B$38+$AJ38*$L$10/100 -> 7.9 | AD38: =SUM(AD$15:AD17)+$B$38+$AJ38*$L$10/100 -> 7.9 | AE38: =SUM(AE$15:AE17)+$B$38+$AJ38*$L$10/100 -> 7.9 | AF38: =SUM(AF$15:AF17)+$B$38+$AJ38*$L$10/100 -> 7.9 | AJ38: 2
C39: 採材高3 | D39: =SUM(D$15:D18)+$B$38+$AJ39*$L$10/100 -> 11.6 | E39: =SUM(E$15:E18)+$B$38+$AJ39*$L$10/100 -> 11.6 | F39: =SUM(F$15:F18)+$B$38+$AJ39*$L$10/100 -> 11.6 | G39: =SUM(G$15:G18)+$B$38+$AJ39*$L$10/100 -> 11.6 | H39: =SUM(H$15:H18)+$B$38+$AJ39*$L$10/100 -> 11.6 | I39: =SUM(I$15:I18)+$B$38+$AJ39*$L$10/100 -> 11.6 | J39: =SUM(J$15:J18)+$B$38+$AJ39*$L$10/100 -> 11.6 | K39: =SUM(K$15:K18)+$B$38+$AJ39*$L$10/100 -> 11.6 | L39: =SUM(L$15:L18)+$B$38+$AJ39*$L$10/100 -> 11.6 | M39: =SUM(M$15:M18)+$B$38+$AJ39*$L$10/100 -> 11.6 | N39: =SUM(N$15:N18)+$B$38+$AJ39*$L$10/100 -> 11.6 | O39: =SUM(O$15:O18)+$B$38+$AJ39*$L$10/100 -> 11.6 | P39: =SUM(P$15:P18)+$B$38+$AJ39*$L$10/100 -> 11.6 | Q39: =SUM(Q$15:Q18)+$B$38+$AJ39*$L$10/100 -> 11.6 | R39: =SUM(R$15:R18)+$B$38+$AJ39*$L$10/100 -> 11.6 | S39: =SUM(S$15:S18)+$B$38+$AJ39*$L$10/100 -> 11.6 | T39: =SUM(T$15:T18)+$B$38+$AJ39*$L$10/100 -> 11.6 | U39: =SUM(U$15:U18)+$B$38+$AJ39*$L$10/100 -> 11.6 | V39: =SUM(V$15:V18)+$B$38+$AJ39*$L$10/100 -> 11.6 | W39: =SUM(W$15:W18)+$B$38+$AJ39*$L$10/100 -> 11.6 | X39: =SUM(X$15:X18)+$B$38+$AJ39*$L$10/100 -> 11.6 | Y39: =SUM(Y$15:Y18)+$B$38+$AJ39*$L$10/100 -> 11.6 | Z39: =SUM(Z$15:Z18)+$B$38+$AJ39*$L$10/100 -> 11.6 | AA39: =SUM(AA$15:AA18)+$B$38+$AJ39*$L$10/100 -> 11.6 | AB39: =SUM(AB$15:AB18)+$B$38+$AJ39*$L$10/100 -> 11.6 | AC39: =SUM(AC$15:AC18)+$B$38+$AJ39*$L$10/100 -> 11.6 | AD39: =SUM(AD$15:AD18)+$B$38+$AJ39*$L$10/100 -> 11.6 | AE39: =SUM(AE$15:AE18)+$B$38+$AJ39*$L$10/100 -> 11.6 | AF39: =SUM(AF$15:AF18)+$B$38+$AJ39*$L$10/100 -> 11.6 | AJ39: 3
C40: 採材高4 | D40: =SUM(D$15:D19)+$B$38+$AJ40*$L$10/100 -> 15.2 | E40: =SUM(E$15:E19)+$B$38+$AJ40*$L$10/100 -> 15.2 | F40: =SUM(F$15:F19)+$B$38+$AJ40*$L$10/100 -> 15.2 | G40: =SUM(G$15:G19)+$B$38+$AJ40*$L$10/100 -> 15.2 | H40: =SUM(H$15:H19)+$B$38+$AJ40*$L$10/100 -> 15.2 | I40: =SUM(I$15:I19)+$B$38+$AJ40*$L$10/100 -> 15.2 | J40: =SUM(J$15:J19)+$B$38+$AJ40*$L$10/100 -> 15.2 | K40: =SUM(K$15:K19)+$B$38+$AJ40*$L$10/100 -> 15.2 | L40: =SUM(L$15:L19)+$B$38+$AJ40*$L$10/100 -> 15.2 | M40: =SUM(M$15:M19)+$B$38+$AJ40*$L$10/100 -> 15.2 | N40: =SUM(N$15:N19)+$B$38+$AJ40*$L$10/100 -> 15.2 | O40: =SUM(O$15:O19)+$B$38+$AJ40*$L$10/100 -> 15.2 | P40: =SUM(P$15:P19)+$B$38+$AJ40*$L$10/100 -> 15.2 | Q40: =SUM(Q$15:Q19)+$B$38+$AJ40*$L$10/100 -> 15.2 | R40: =SUM(R$15:R19)+$B$38+$AJ40*$L$10/100 -> 15.2 | S40: =SUM(S$15:S19)+$B$38+$AJ40*$L$10/100 -> 15.2 | T40: =SUM(T$15:T19)+$B$38+$AJ40*$L$10/100 -> 15.2 | U40: =SUM(U$15:U19)+$B$38+$AJ40*$L$10/100 -> 15.2 | V40: =SUM(V$15:V19)+$B$38+$AJ40*$L$10/100 -> 15.2 | W40: =SUM(W$15:W19)+$B$38+$AJ40*$L$10/100 -> 15.2 | X40: =SUM(X$15:X19)+$B$38+$AJ40*$L$10/100 -> 15.2 | Y40: =SUM(Y$15:Y19)+$B$38+$AJ40*$L$10/100 -> 15.2 | Z40: =SUM(Z$15:Z19)+$B$38+$AJ40*$L$10/100 -> 15.2 | AA40: =SUM(AA$15:AA19)+$B$38+$AJ40*$L$10/100 -> 15.2 | AB40: =SUM(AB$15:AB19)+$B$38+$AJ40*$L$10/100 -> 15.2 | AC40: =SUM(AC$15:AC19)+$B$38+$AJ40*$L$10/100 -> 15.2 | AD40: =SUM(AD$15:AD19)+$B$38+$AJ40*$L$10/100 -> 15.2 | AE40: =SUM(AE$15:AE19)+$B$38+$AJ40*$L$10/100 -> 15.2 | AF40: =SUM(AF$15:AF19)+$B$38+$AJ40*$L$10/100 -> 15.2 | AJ40: 4
C41: 採材高5 | D41: =SUM(D$15:D20)+$B$38+$AJ41*$L$10/100 -> 18.9 | E41: =SUM(E$15:E20)+$B$38+$AJ41*$L$10/100 -> 18.9 | F41: =SUM(F$15:F20)+$B$38+$AJ41*$L$10/100 -> 18.9 | G41: =SUM(G$15:G20)+$B$38+$AJ41*$L$10/100 -> 18.9 | H41: =SUM(H$15:H20)+$B$38+$AJ41*$L$10/100 -> 18.9 | I41: =SUM(I$15:I20)+$B$38+$AJ41*$L$10/100 -> 18.9 | J41: =SUM(J$15:J20)+$B$38+$AJ41*$L$10/100 -> 18.9 | K41: =SUM(K$15:K20)+$B$38+$AJ41*$L$10/100 -> 18.9 | L41: =SUM(L$15:L20)+$B$38+$AJ41*$L$10/100 -> 18.9 | M41: =SUM(M$15:M20)+$B$38+$AJ41*$L$10/100 -> 18.9 | N41: =SUM(N$15:N20)+$B$38+$AJ41*$L$10/100 -> 18.9 | O41: =SUM(O$15:O20)+$B$38+$AJ41*$L$10/100 -> 18.9 | P41: =SUM(P$15:P20)+$B$38+$AJ41*$L$10/100 -> 18.9 | Q41: =SUM(Q$15:Q20)+$B$38+$AJ41*$L$10/100 -> 18.9 | R41: =SUM(R$15:R20)+$B$38+$AJ41*$L$10/100 -> 18.9 | S41: =SUM(S$15:S20)+$B$38+$AJ41*$L$10/100 -> 18.9 | T41: =SUM(T$15:T20)+$B$38+$AJ41*$L$10/100 -> 18.9 | U41: =SUM(U$15:U20)+$B$38+$AJ41*$L$10/100 -> 18.9 | V41: =SUM(V$15:V20)+$B$38+$AJ41*$L$10/100 -> 18.9 | W41: =SUM(W$15:W20)+$B$38+$AJ41*$L$10/100 -> 18.9 | X41: =SUM(X$15:X20)+$B$38+$AJ41*$L$10/100 -> 18.9 | Y41: =SUM(Y$15:Y20)+$B$38+$AJ41*$L$10/100 -> 18.9 | Z41: =SUM(Z$15:Z20)+$B$38+$AJ41*$L$10/100 -> 18.9 | AA41: =SUM(AA$15:AA20)+$B$38+$AJ41*$L$10/100 -> 18.9 | AB41: =SUM(AB$15:AB20)+$B$38+$AJ41*$L$10/100 -> 18.9 | AC41: =SUM(AC$15:AC20)+$B$38+$AJ41*$L$10/100 -> 18.9 | AD41: =SUM(AD$15:AD20)+$B$38+$AJ41*$L$10/100 -> 18.9 | AE41: =SUM(AE$15:AE20)+$B$38+$AJ41*$L$10/100 -> 18.9 | AF41: =SUM(AF$15:AF20)+$B$38+$AJ41*$L$10/100 -> 18.9 | AJ41: 5
C42: 採材高6 | D42: =SUM(D$15:D21)+$B$38+$AJ42*$L$10/100 -> 22.5 | E42: =SUM(E$15:E21)+$B$38+$AJ42*$L$10/100 -> 22.5 | F42: =SUM(F$15:F21)+$B$38+$AJ42*$L$10/100 -> 22.5 | G42: =SUM(G$15:G21)+$B$38+$AJ42*$L$10/100 -> 22.5 | H42: =SUM(H$15:H21)+$B$38+$AJ42*$L$10/100 -> 22.5 | I42: =SUM(I$15:I21)+$B$38+$AJ42*$L$10/100 -> 22.5 | J42: =SUM(J$15:J21)+$B$38+$AJ42*$L$10/100 -> 22.5 | K42: =SUM(K$15:K21)+$B$38+$AJ42*$L$10/100 -> 22.5 | L42: =SUM(L$15:L21)+$B$38+$AJ42*$L$10/100 -> 22.5 | M42: =SUM(M$15:M21)+$B$38+$AJ42*$L$10/100 -> 22.5 | N42: =SUM(N$15:N21)+$B$38+$AJ42*$L$10/100 -> 22.5 | O42: =SUM(O$15:O21)+$B$38+$AJ42*$L$10/100 -> 22.5 | P42: =SUM(P$15:P21)+$B$38+$AJ42*$L$10/100 -> 22.5 | Q42: =SUM(Q$15:Q21)+$B$38+$AJ42*$L$10/100 -> 22.5 | R42: =SUM(R$15:R21)+$B$38+$AJ42*$L$10/100 -> 22.5 | S42: =SUM(S$15:S21)+$B$38+$AJ42*$L$10/100 -> 22.5 | T42: =SUM(T$15:T21)+$B$38+$AJ42*$L$10/100 -> 22.5 | U42: =SUM(U$15:U21)+$B$38+$AJ42*$L$10/100 -> 22.5 | V42: =SUM(V$15:V21)+$B$38+$AJ42*$L$10/100 -> 22.5 | W42: =SUM(W$15:W21)+$B$38+$AJ42*$L$10/100 -> 22.5 | X42: =SUM(X$15:X21)+$B$38+$AJ42*$L$10/100 -> 22.5 | Y42: =SUM(Y$15:Y21)+$B$38+$AJ42*$L$10/100 -> 22.5 | Z42: =SUM(Z$15:Z21)+$B$38+$AJ42*$L$10/100 -> 22.5 | AA42: =SUM(AA$15:AA21)+$B$38+$AJ42*$L$10/100 -> 22.5 | AB42: =SUM(AB$15:AB21)+$B$38+$AJ42*$L$10/100 -> 22.5 | AC42: =SUM(AC$15:AC21)+$B$38+$AJ42*$L$10/100 -> 22.5 | AD42: =SUM(AD$15:AD21)+$B$38+$AJ42*$L$10/100 -> 22.5 | AE42: =SUM(AE$15:AE21)+$B$38+$AJ42*$L$10/100 -> 22.5 | AF42: =SUM(AF$15:AF21)+$B$38+$AJ42*$L$10/100 -> 22.5 | AJ42: 6
C43: 採材高7 | D43: =SUM(D$15:D22)+$B$38+$AJ43*$L$10/100 -> 26.2 | E43: =SUM(E$15:E22)+$B$38+$AJ43*$L$10/100 -> 26.2 | F43: =SUM(F$15:F22)+$B$38+$AJ43*$L$10/100 -> 26.2 | G43: =SUM(G$15:G22)+$B$38+$AJ43*$L$10/100 -> 26.2 | H43: =SUM(H$15:H22)+$B$38+$AJ43*$L$10/100 -> 26.2 | I43: =SUM(I$15:I22)+$B$38+$AJ43*$L$10/100 -> 26.2 | J43: =SUM(J$15:J22)+$B$38+$AJ43*$L$10/100 -> 26.2 | K43: =SUM(K$15:K22)+$B$38+$AJ43*$L$10/100 -> 26.2 | L43: =SUM(L$15:L22)+$B$38+$AJ43*$L$10/100 -> 26.2 | M43: =SUM(M$15:M22)+$B$38+$AJ43*$L$10/100 -> 26.2 | N43: =SUM(N$15:N22)+$B$38+$AJ43*$L$10/100 -> 26.2 | O43: =SUM(O$15:O22)+$B$38+$AJ43*$L$10/100 -> 26.2 | P43: =SUM(P$15:P22)+$B$38+$AJ43*$L$10/100 -> 26.2 | Q43: =SUM(Q$15:Q22)+$B$38+$AJ43*$L$10/100 -> 26.2 | R43: =SUM(R$15:R22)+$B$38+$AJ43*$L$10/100 -> 26.2 | S43: =SUM(S$15:S22)+$B$38+$AJ43*$L$10/100 -> 26.2 | T43: =SUM(T$15:T22)+$B$38+$AJ43*$L$10/100 -> 26.2 | U43: =SUM(U$15:U22)+$B$38+$AJ43*$L$10/100 -> 26.2 | V43: =SUM(V$15:V22)+$B$38+$AJ43*$L$10/100 -> 26.2 | W43: =SUM(W$15:W22)+$B$38+$AJ43*$L$10/100 -> 26.2 | X43: =SUM(X$15:X22)+$B$38+$AJ43*$L$10/100 -> 26.2 | Y43: =SUM(Y$15:Y22)+$B$38+$AJ43*$L$10/100 -> 26.2 | Z43: =SUM(Z$15:Z22)+$B$38+$AJ43*$L$10/100 -> 26.2 | AA43: =SUM(AA$15:AA22)+$B$38+$AJ43*$L$10/100 -> 26.2 | AB43: =SUM(AB$15:AB22)+$B$38+$AJ43*$L$10/100 -> 26.2 | AC43: =SUM(AC$15:AC22)+$B$38+$AJ43*$L$10/100 -> 26.2 | AD43: =SUM(AD$15:AD22)+$B$38+$AJ43*$L$10/100 -> 26.2 | AE43: =SUM(AE$15:AE22)+$B$38+$AJ43*$L$10/100 -> 26.2 | AF43: =SUM(AF$15:AF22)+$B$38+$AJ43*$L$10/100 -> 26.2 | AJ43: 7
C44: 採材高8 | D44: =SUM(D$15:D23)+$B$38+$AJ44*$L$10/100 -> 29.8 | E44: =SUM(E$15:E23)+$B$38+$AJ44*$L$10/100 -> 29.8 | F44: =SUM(F$15:F23)+$B$38+$AJ44*$L$10/100 -> 29.8 | G44: =SUM(G$15:G23)+$B$38+$AJ44*$L$10/100 -> 29.8 | H44: =SUM(H$15:H23)+$B$38+$AJ44*$L$10/100 -> 29.8 | I44: =SUM(I$15:I23)+$B$38+$AJ44*$L$10/100 -> 29.8 | J44: =SUM(J$15:J23)+$B$38+$AJ44*$L$10/100 -> 29.8 | K44: =SUM(K$15:K23)+$B$38+$AJ44*$L$10/100 -> 29.8 | L44: =SUM(L$15:L23)+$B$38+$AJ44*$L$10/100 -> 29.8 | M44: =SUM(M$15:M23)+$B$38+$AJ44*$L$10/100 -> 29.8 | N44: =SUM(N$15:N23)+$B$38+$AJ44*$L$10/100 -> 29.8 | O44: =SUM(O$15:O23)+$B$38+$AJ44*$L$10/100 -> 29.8 | P44: =SUM(P$15:P23)+$B$38+$AJ44*$L$10/100 -> 29.8 | Q44: =SUM(Q$15:Q23)+$B$38+$AJ44*$L$10/100 -> 29.8 | R44: =SUM(R$15:R23)+$B$38+$AJ44*$L$10/100 -> 29.8 | S44: =SUM(S$15:S23)+$B$38+$AJ44*$L$10/100 -> 29.8 | T44: =SUM(T$15:T23)+$B$38+$AJ44*$L$10/100 -> 29.8 | U44: =SUM(U$15:U23)+$B$38+$AJ44*$L$10/100 -> 29.8 | V44: =SUM(V$15:V23)+$B$38+$AJ44*$L$10/100 -> 29.8 | W44: =SUM(W$15:W23)+$B$38+$AJ44*$L$10/100 -> 29.8 | X44: =SUM(X$15:X23)+$B$38+$AJ44*$L$10/100 -> 29.8 | Y44: =SUM(Y$15:Y23)+$B$38+$AJ44*$L$10/100 -> 29.8 | Z44: =SUM(Z$15:Z23)+$B$38+$AJ44*$L$10/100 -> 29.8 | AA44: =SUM(AA$15:AA23)+$B$38+$AJ44*$L$10/100 -> 29.8 | AB44: =SUM(AB$15:AB23)+$B$38+$AJ44*$L$10/100 -> 29.8 | AC44: =SUM(AC$15:AC23)+$B$38+$AJ44*$L$10/100 -> 29.8 | AD44: =SUM(AD$15:AD23)+$B$38+$AJ44*$L$10/100 -> 29.8 | AE44: =SUM(AE$15:AE23)+$B$38+$AJ44*$L$10/100 -> 29.8 | AF44: =SUM(AF$15:AF23)+$B$38+$AJ44*$L$10/100 -> 29.8 | AJ44: 8
C45: 採材高9 | D45: =SUM(D$15:D24)+$B$38+$AJ45*$L$10/100 -> 33.5 | E45: =SUM(E$15:E24)+$B$38+$AJ45*$L$10/100 -> 33.5 | F45: =SUM(F$15:F24)+$B$38+$AJ45*$L$10/100 -> 33.5 | G45: =SUM(G$15:G24)+$B$38+$AJ45*$L$10/100 -> 33.5 | H45: =SUM(H$15:H24)+$B$38+$AJ45*$L$10/100 -> 33.5 | I45: =SUM(I$15:I24)+$B$38+$AJ45*$L$10/100 -> 33.5 | J45: =SUM(J$15:J24)+$B$38+$AJ45*$L$10/100 -> 33.5 | K45: =SUM(K$15:K24)+$B$38+$AJ45*$L$10/100 -> 33.5 | L45: =SUM(L$15:L24)+$B$38+$AJ45*$L$10/100 -> 33.5 | M45: =SUM(M$15:M24)+$B$38+$AJ45*$L$10/100 -> 33.5 | N45: =SUM(N$15:N24)+$B$38+$AJ45*$L$10/100 -> 33.5 | O45: =SUM(O$15:O24)+$B$38+$AJ45*$L$10/100 -> 33.5 | P45: =SUM(P$15:P24)+$B$38+$AJ45*$L$10/100 -> 33.5 | Q45: =SUM(Q$15:Q24)+$B$38+$AJ45*$L$10/100 -> 33.5 | R45: =SUM(R$15:R24)+$B$38+$AJ45*$L$10/100 -> 33.5 | S45: =SUM(S$15:S24)+$B$38+$AJ45*$L$10/100 -> 33.5 | T45: =SUM(T$15:T24)+$B$38+$AJ45*$L$10/100 -> 33.5 | U45: =SUM(U$15:U24)+$B$38+$AJ45*$L$10/100 -> 33.5 | V45: =SUM(V$15:V24)+$B$38+$AJ45*$L$10/100 -> 33.5 | W45: =SUM(W$15:W24)+$B$38+$AJ45*$L$10/100 -> 33.5 | X45: =SUM(X$15:X24)+$B$38+$AJ45*$L$10/100 -> 33.5 | Y45: =SUM(Y$15:Y24)+$B$38+$AJ45*$L$10/100 -> 33.5 | Z45: =SUM(Z$15:Z24)+$B$38+$AJ45*$L$10/100 -> 33.5 | AA45: =SUM(AA$15:AA24)+$B$38+$AJ45*$L$10/100 -> 33.5 | AB45: =SUM(AB$15:AB24)+$B$38+$AJ45*$L$10/100 -> 33.5 | AC45: =SUM(AC$15:AC24)+$B$38+$AJ45*$L$10/100 -> 33.5 | AD45: =SUM(AD$15:AD24)+$B$38+$AJ45*$L$10/100 -> 33.5 | AE45: =SUM(AE$15:AE24)+$B$38+$AJ45*$L$10/100 -> 33.5 | AF45: =SUM(AF$15:AF24)+$B$38+$AJ45*$L$10/100 -> 33.5 | AJ45: 9
C46: 採材高10 | D46: =SUM(D$15:D25)+$B$38+$AJ46*$L$10/100 -> 37.1 | E46: =SUM(E$15:E25)+$B$38+$AJ46*$L$10/100 -> 37.1 | F46: =SUM(F$15:F25)+$B$38+$AJ46*$L$10/100 -> 37.1 | G46: =SUM(G$15:G25)+$B$38+$AJ46*$L$10/100 -> 37.1 | H46: =SUM(H$15:H25)+$B$38+$AJ46*$L$10/100 -> 37.1 | I46: =SUM(I$15:I25)+$B$38+$AJ46*$L$10/100 -> 37.1 | J46: =SUM(J$15:J25)+$B$38+$AJ46*$L$10/100 -> 37.1 | K46: =SUM(K$15:K25)+$B$38+$AJ46*$L$10/100 -> 37.1 | L46: =SUM(L$15:L25)+$B$38+$AJ46*$L$10/100 -> 37.1 | M46: =SUM(M$15:M25)+$B$38+$AJ46*$L$10/100 -> 37.1 | N46: =SUM(N$15:N25)+$B$38+$AJ46*$L$10/100 -> 37.1 | O46: =SUM(O$15:O25)+$B$38+$AJ46*$L$10/100 -> 37.1 | P46: =SUM(P$15:P25)+$B$38+$AJ46*$L$10/100 -> 37.1 | Q46: =SUM(Q$15:Q25)+$B$38+$AJ46*$L$10/100 -> 37.1 | R46: =SUM(R$15:R25)+$B$38+$AJ46*$L$10/100 -> 37.1 | S46: =SUM(S$15:S25)+$B$38+$AJ46*$L$10/100 -> 37.1 | T46: =SUM(T$15:T25)+$B$38+$AJ46*$L$10/100 -> 37.1 | U46: =SUM(U$15:U25)+$B$38+$AJ46*$L$10/100 -> 37.1 | V46: =SUM(V$15:V25)+$B$38+$AJ46*$L$10/100 -> 37.1 | W46: =SUM(W$15:W25)+$B$38+$AJ46*$L$10/100 -> 37.1 | X46: =SUM(X$15:X25)+$B$38+$AJ46*$L$10/100 -> 37.1 | Y46: =SUM(Y$15:Y25)+$B$38+$AJ46*$L$10/100 -> 37.1 | Z46: =SUM(Z$15:Z25)+$B$38+$AJ46*$L$10/100 -> 37.1 | AA46: =SUM(AA$15:AA25)+$B$38+$AJ46*$L$10/100 -> 37.1 | AB46: =SUM(AB$15:AB25)+$B$38+$AJ46*$L$10/100 -> 37.1 | AC46: =SUM(AC$15:AC25)+$B$38+$AJ46*$L$10/100 -> 37.1 | AD46: =SUM(AD$15:AD25)+$B$38+$AJ46*$L$10/100 -> 37.1 | AE46: =SUM(AE$15:AE25)+$B$38+$AJ46*$L$10/100 -> 37.1 | AF46: =SUM(AF$15:AF25)+$B$38+$AJ46*$L$10/100 -> 37.1 | AJ46: 10
C47: 採材高11 | D47: =SUM(D$15:D26)+$B$38+$AJ47*$L$10/100 -> 40.8 | E47: =SUM(E$15:E26)+$B$38+$AJ47*$L$10/100 -> 40.8 | F47: =SUM(F$15:F26)+$B$38+$AJ47*$L$10/100 -> 40.8 | G47: =SUM(G$15:G26)+$B$38+$AJ47*$L$10/100 -> 40.8 | H47: =SUM(H$15:H26)+$B$38+$AJ47*$L$10/100 -> 40.8 | I47: =SUM(I$15:I26)+$B$38+$AJ47*$L$10/100 -> 40.8 | J47: =SUM(J$15:J26)+$B$38+$AJ47*$L$10/100 -> 40.8 | K47: =SUM(K$15:K26)+$B$38+$AJ47*$L$10/100 -> 40.8 | L47: =SUM(L$15:L26)+$B$38+$AJ47*$L$10/100 -> 40.8 | M47: =SUM(M$15:M26)+$B$38+$AJ47*$L$10/100 -> 40.8 | N47: =SUM(N$15:N26)+$B$38+$AJ47*$L$10/100 -> 40.8 | O47: =SUM(O$15:O26)+$B$38+$AJ47*$L$10/100 -> 40.8 | P47: =SUM(P$15:P26)+$B$38+$AJ47*$L$10/100 -> 40.8 | Q47: =SUM(Q$15:Q26)+$B$38+$AJ47*$L$10/100 -> 40.8 | R47: =SUM(R$15:R26)+$B$38+$AJ47*$L$10/100 -> 40.8 | S47: =SUM(S$15:S26)+$B$38+$AJ47*$L$10/100 -> 40.8 | T47: =SUM(T$15:T26)+$B$38+$AJ47*$L$10/100 -> 40.8 | U47: =SUM(U$15:U26)+$B$38+$AJ47*$L$10/100 -> 40.8 | V47: =SUM(V$15:V26)+$B$38+$AJ47*$L$10/100 -> 40.8 | W47: =SUM(W$15:W26)+$B$38+$AJ47*$L$10/100 -> 40.8 | X47: =SUM(X$15:X26)+$B$38+$AJ47*$L$10/100 -> 40.8 | Y47: =SUM(Y$15:Y26)+$B$38+$AJ47*$L$10/100 -> 40.8 | Z47: =SUM(Z$15:Z26)+$B$38+$AJ47*$L$10/100 -> 40.8 | AA47: =SUM(AA$15:AA26)+$B$38+$AJ47*$L$10/100 -> 40.8 | AB47: =SUM(AB$15:AB26)+$B$38+$AJ47*$L$10/100 -> 40.8 | AC47: =SUM(AC$15:AC26)+$B$38+$AJ47*$L$10/100 -> 40.8 | AD47: =SUM(AD$15:AD26)+$B$38+$AJ47*$L$10/100 -> 40.8 | AE47: =SUM(AE$15:AE26)+$B$38+$AJ47*$L$10/100 -> 40.8 | AF47: =SUM(AF$15:AF26)+$B$38+$AJ47*$L$10/100 -> 40.8 | AJ47: 11
C48: 採材高12 | D48: =SUM(D$15:D27)+$B$38+$AJ48*$L$10/100 -> 44.4 | E48: =SUM(E$15:E27)+$B$38+$AJ48*$L$10/100 -> 44.4 | F48: =SUM(F$15:F27)+$B$38+$AJ48*$L$10/100 -> 44.4 | G48: =SUM(G$15:G27)+$B$38+$AJ48*$L$10/100 -> 44.4 | H48: =SUM(H$15:H27)+$B$38+$AJ48*$L$10/100 -> 44.4 | I48: =SUM(I$15:I27)+$B$38+$AJ48*$L$10/100 -> 44.4 | J48: =SUM(J$15:J27)+$B$38+$AJ48*$L$10/100 -> 44.4 | K48: =SUM(K$15:K27)+$B$38+$AJ48*$L$10/100 -> 44.4 | L48: =SUM(L$15:L27)+$B$38+$AJ48*$L$10/100 -> 44.4 | M48: =SUM(M$15:M27)+$B$38+$AJ48*$L$10/100 -> 44.4 | N48: =SUM(N$15:N27)+$B$38+$AJ48*$L$10/100 -> 44.4 | O48: =SUM(O$15:O27)+$B$38+$AJ48*$L$10/100 -> 44.4 | P48: =SUM(P$15:P27)+$B$38+$AJ48*$L$10/100 -> 44.4 | Q48: =SUM(Q$15:Q27)+$B$38+$AJ48*$L$10/100 -> 44.4 | R48: =SUM(R$15:R27)+$B$38+$AJ48*$L$10/100 -> 44.4 | S48: =SUM(S$15:S27)+$B$38+$AJ48*$L$10/100 -> 44.4 | T48: =SUM(T$15:T27)+$B$38+$AJ48*$L$10/100 -> 44.4 | U48: =SUM(U$15:U27)+$B$38+$AJ48*$L$10/100 -> 44.4 | V48: =SUM(V$15:V27)+$B$38+$AJ48*$L$10/100 -> 44.4 | W48: =SUM(W$15:W27)+$B$38+$AJ48*$L$10/100 -> 44.4 | X48: =SUM(X$15:X27)+$B$38+$AJ48*$L$10/100 -> 44.4 | Y48: =SUM(Y$15:Y27)+$B$38+$AJ48*$L$10/100 -> 44.4 | Z48: =SUM(Z$15:Z27)+$B$38+$AJ48*$L$10/100 -> 44.4 | AA48: =SUM(AA$15:AA27)+$B$38+$AJ48*$L$10/100 -> 44.4 | AB48: =SUM(AB$15:AB27)+$B$38+$AJ48*$L$10/100 -> 44.4 | AC48: =SUM(AC$15:AC27)+$B$38+$AJ48*$L$10/100 -> 44.4 | AD48: =SUM(AD$15:AD27)+$B$38+$AJ48*$L$10/100 -> 44.4 | AE48: =SUM(AE$15:AE27)+$B$38+$AJ48*$L$10/100 -> 44.4 | AF48: =SUM(AF$15:AF27)+$B$38+$AJ48*$L$10/100 -> 44.4 | AJ48: 12
C49: 採材高13 | D49: =SUM(D$15:D28)+$B$38+$AJ49*$L$10/100 -> 48.1 | E49: =SUM(E$15:E28)+$B$38+$AJ49*$L$10/100 -> 48.1 | F49: =SUM(F$15:F28)+$B$38+$AJ49*$L$10/100 -> 48.1 | G49: =SUM(G$15:G28)+$B$38+$AJ49*$L$10/100 -> 48.1 | H49: =SUM(H$15:H28)+$B$38+$AJ49*$L$10/100 -> 48.1 | I49: =SUM(I$15:I28)+$B$38+$AJ49*$L$10/100 -> 48.1 | J49: =SUM(J$15:J28)+$B$38+$AJ49*$L$10/100 -> 48.1 | K49: =SUM(K$15:K28)+$B$38+$AJ49*$L$10/100 -> 48.1 | L49: =SUM(L$15:L28)+$B$38+$AJ49*$L$10/100 -> 48.1 | M49: =SUM(M$15:M28)+$B$38+$AJ49*$L$10/100 -> 48.1 | N49: =SUM(N$15:N28)+$B$38+$AJ49*$L$10/100 -> 48.1 | O49: =SUM(O$15:O28)+$B$38+$AJ49*$L$10/100 -> 48.1 | P49: =SUM(P$15:P28)+$B$38+$AJ49*$L$10/100 -> 48.1 | Q49: =SUM(Q$15:Q28)+$B$38+$AJ49*$L$10/100 -> 48.1 | R49: =SUM(R$15:R28)+$B$38+$AJ49*$L$10/100 -> 48.1 | S49: =SUM(S$15:S28)+$B$38+$AJ49*$L$10/100 -> 48.1 | T49: =SUM(T$15:T28)+$B$38+$AJ49*$L$10/100 -> 48.1 | U49: =SUM(U$15:U28)+$B$38+$AJ49*$L$10/100 -> 48.1 | V49: =SUM(V$15:V28)+$B$38+$AJ49*$L$10/100 -> 48.1 | W49: =SUM(W$15:W28)+$B$38+$AJ49*$L$10/100 -> 48.1 | X49: =SUM(X$15:X28)+$B$38+$AJ49*$L$10/100 -> 48.1 | Y49: =SUM(Y$15:Y28)+$B$38+$AJ49*$L$10/100 -> 48.1 | Z49: =SUM(Z$15:Z28)+$B$38+$AJ49*$L$10/100 -> 48.1 | AA49: =SUM(AA$15:AA28)+$B$38+$AJ49*$L$10/100 -> 48.1 | AB49: =SUM(AB$15:AB28)+$B$38+$AJ49*$L$10/100 -> 48.1 | AC49: =SUM(AC$15:AC28)+$B$38+$AJ49*$L$10/100 -> 48.1 | AD49: =SUM(AD$15:AD28)+$B$38+$AJ49*$L$10/100 -> 48.1 | AE49: =SUM(AE$15:AE28)+$B$38+$AJ49*$L$10/100 -> 48.1 | AF49: =SUM(AF$15:AF28)+$B$38+$AJ49*$L$10/100 -> 48.1 | AJ49: 13
C50: 採材高14 | D50: =SUM(D$15:D29)+$B$38+$AJ50*$L$10/100 -> 51.7 | E50: =SUM(E$15:E29)+$B$38+$AJ50*$L$10/100 -> 51.7 | F50: =SUM(F$15:F29)+$B$38+$AJ50*$L$10/100 -> 51.7 | G50: =SUM(G$15:G29)+$B$38+$AJ50*$L$10/100 -> 51.7 | H50: =SUM(H$15:H29)+$B$38+$AJ50*$L$10/100 -> 51.7 | I50: =SUM(I$15:I29)+$B$38+$AJ50*$L$10/100 -> 51.7 | J50: =SUM(J$15:J29)+$B$38+$AJ50*$L$10/100 -> 51.7 | K50: =SUM(K$15:K29)+$B$38+$AJ50*$L$10/100 -> 51.7 | L50: =SUM(L$15:L29)+$B$38+$AJ50*$L$10/100 -> 51.7 | M50: =SUM(M$15:M29)+$B$38+$AJ50*$L$10/100 -> 51.7 | N50: =SUM(N$15:N29)+$B$38+$AJ50*$L$10/100 -> 51.7 | O50: =SUM(O$15:O29)+$B$38+$AJ50*$L$10/100 -> 51.7 | P50: =SUM(P$15:P29)+$B$38+$AJ50*$L$10/100 -> 51.7 | Q50: =SUM(Q$15:Q29)+$B$38+$AJ50*$L$10/100 -> 51.7 | R50: =SUM(R$15:R29)+$B$38+$AJ50*$L$10/100 -> 51.7 | S50: =SUM(S$15:S29)+$B$38+$AJ50*$L$10/100 -> 51.7 | T50: =SUM(T$15:T29)+$B$38+$AJ50*$L$10/100 -> 51.7 | U50: =SUM(U$15:U29)+$B$38+$AJ50*$L$10/100 -> 51.7 | V50: =SUM(V$15:V29)+$B$38+$AJ50*$L$10/100 -> 51.7 | W50: =SUM(W$15:W29)+$B$38+$AJ50*$L$10/100 -> 51.7 | X50: =SUM(X$15:X29)+$B$38+$AJ50*$L$10/100 -> 51.7 | Y50: =SUM(Y$15:Y29)+$B$38+$AJ50*$L$10/100 -> 51.7 | Z50: =SUM(Z$15:Z29)+$B$38+$AJ50*$L$10/100 -> 51.7 | AA50: =SUM(AA$15:AA29)+$B$38+$AJ50*$L$10/100 -> 51.7 | AB50: =SUM(AB$15:AB29)+$B$38+$AJ50*$L$10/100 -> 51.7 | AC50: =SUM(AC$15:AC29)+$B$38+$AJ50*$L$10/100 -> 51.7 | AD50: =SUM(AD$15:AD29)+$B$38+$AJ50*$L$10/100 -> 51.7 | AE50: =SUM(AE$15:AE29)+$B$38+$AJ50*$L$10/100 -> 51.7 | AF50: =SUM(AF$15:AF29)+$B$38+$AJ50*$L$10/100 -> 51.7 | AJ50: 14
C51: 採材高15 | D51: =SUM(D$15:D30)+$B$38+$AJ51*$L$10/100 -> 55.4 | E51: =SUM(E$15:E30)+$B$38+$AJ51*$L$10/100 -> 55.4 | F51: =SUM(F$15:F30)+$B$38+$AJ51*$L$10/100 -> 55.4 | G51: =SUM(G$15:G30)+$B$38+$AJ51*$L$10/100 -> 55.4 | H51: =SUM(H$15:H30)+$B$38+$AJ51*$L$10/100 -> 55.4 | I51: =SUM(I$15:I30)+$B$38+$AJ51*$L$10/100 -> 55.4 | J51: =SUM(J$15:J30)+$B$38+$AJ51*$L$10/100 -> 55.4 | K51: =SUM(K$15:K30)+$B$38+$AJ51*$L$10/100 -> 55.4 | L51: =SUM(L$15:L30)+$B$38+$AJ51*$L$10/100 -> 55.4 | M51: =SUM(M$15:M30)+$B$38+$AJ51*$L$10/100 -> 55.4 | N51: =SUM(N$15:N30)+$B$38+$AJ51*$L$10/100 -> 55.4 | O51: =SUM(O$15:O30)+$B$38+$AJ51*$L$10/100 -> 55.4 | P51: =SUM(P$15:P30)+$B$38+$AJ51*$L$10/100 -> 55.4 | Q51: =SUM(Q$15:Q30)+$B$38+$AJ51*$L$10/100 -> 55.4 | R51: =SUM(R$15:R30)+$B$38+$AJ51*$L$10/100 -> 55.4 | S51: =SUM(S$15:S30)+$B$38+$AJ51*$L$10/100 -> 55.4 | T51: =SUM(T$15:T30)+$B$38+$AJ51*$L$10/100 -> 55.4 | U51: =SUM(U$15:U30)+$B$38+$AJ51*$L$10/100 -> 55.4 | V51: =SUM(V$15:V30)+$B$38+$AJ51*$L$10/100 -> 55.4 | W51: =SUM(W$15:W30)+$B$38+$AJ51*$L$10/100 -> 55.4 | X51: =SUM(X$15:X30)+$B$38+$AJ51*$L$10/100 -> 55.4 | Y51: =SUM(Y$15:Y30)+$B$38+$AJ51*$L$10/100 -> 55.4 | Z51: =SUM(Z$15:Z30)+$B$38+$AJ51*$L$10/100 -> 55.4 | AA51: =SUM(AA$15:AA30)+$B$38+$AJ51*$L$10/100 -> 55.4 | AB51: =SUM(AB$15:AB30)+$B$38+$AJ51*$L$10/100 -> 55.4 | AC51: =SUM(AC$15:AC30)+$B$38+$AJ51*$L$10/100 -> 55.4 | AD51: =SUM(AD$15:AD30)+$B$38+$AJ51*$L$10/100 -> 55.4 | AE51: =SUM(AE$15:AE30)+$B$38+$AJ51*$L$10/100 -> 55.4 | AF51: =SUM(AF$15:AF30)+$B$38+$AJ51*$L$10/100 -> 55.4 | AJ51: 15
C52: 採材高16 | D52: =SUM(D$15:D31)+$B$38+$AJ52*$L$10/100 -> 59.0 | E52: =SUM(E$15:E31)+$B$38+$AJ52*$L$10/100 -> 59.0 | F52: =SUM(F$15:F31)+$B$38+$AJ52*$L$10/100 -> 59.0 | G52: =SUM(G$15:G31)+$B$38+$AJ52*$L$10/100 -> 59.0 | H52: =SUM(H$15:H31)+$B$38+$AJ52*$L$10/100 -> 59.0 | I52: =SUM(I$15:I31)+$B$38+$AJ52*$L$10/100 -> 59.0 | J52: =SUM(J$15:J31)+$B$38+$AJ52*$L$10/100 -> 59.0 | K52: =SUM(K$15:K31)+$B$38+$AJ52*$L$10/100 -> 59.0 | L52: =SUM(L$15:L31)+$B$38+$AJ52*$L$10/100 -> 59.0 | M52: =SUM(M$15:M31)+$B$38+$AJ52*$L$10/100 -> 59.0 | N52: =SUM(N$15:N31)+$B$38+$AJ52*$L$10/100 -> 59.0 | O52: =SUM(O$15:O31)+$B$38+$AJ52*$L$10/100 -> 59.0 | P52: =SUM(P$15:P31)+$B$38+$AJ52*$L$10/100 -> 59.0 | Q52: =SUM(Q$15:Q31)+$B$38+$AJ52*$L$10/100 -> 59.0 | R52: =SUM(R$15:R31)+$B$38+$AJ52*$L$10/100 -> 59.0 | S52: =SUM(S$15:S31)+$B$38+$AJ52*$L$10/100 -> 59.0 | T52: =SUM(T$15:T31)+$B$38+$AJ52*$L$10/100 -> 59.0 | U52: =SUM(U$15:U31)+$B$38+$AJ52*$L$10/100 -> 59.0 | V52: =SUM(V$15:V31)+$B$38+$AJ52*$L$10/100 -> 59.0 | W52: =SUM(W$15:W31)+$B$38+$AJ52*$L$10/100 -> 59.0 | X52: =SUM(X$15:X31)+$B$38+$AJ52*$L$10/100 -> 59.0 | Y52: =SUM(Y$15:Y31)+$B$38+$AJ52*$L$10/100 -> 59.0 | Z52: =SUM(Z$15:Z31)+$B$38+$AJ52*$L$10/100 -> 59.0 | AA52: =SUM(AA$15:AA31)+$B$38+$AJ52*$L$10/100 -> 59.0 | AB52: =SUM(AB$15:AB31)+$B$38+$AJ52*$L$10/100 -> 59.0 | AC52: =SUM(AC$15:AC31)+$B$38+$AJ52*$L$10/100 -> 59.0 | AD52: =SUM(AD$15:AD31)+$B$38+$AJ52*$L$10/100 -> 59.0 | AE52: =SUM(AE$15:AE31)+$B$38+$AJ52*$L$10/100 -> 59.0 | AF52: =SUM(AF$15:AF31)+$B$38+$AJ52*$L$10/100 -> 59.0 | AJ52: 16
C53: 採材高17 | D53: =SUM(D$15:D32)+$B$38+$AJ53*$L$10/100 -> 62.7 | E53: =SUM(E$15:E32)+$B$38+$AJ53*$L$10/100 -> 62.7 | F53: =SUM(F$15:F32)+$B$38+$AJ53*$L$10/100 -> 62.7 | G53: =SUM(G$15:G32)+$B$38+$AJ53*$L$10/100 -> 62.7 | H53: =SUM(H$15:H32)+$B$38+$AJ53*$L$10/100 -> 62.7 | I53: =SUM(I$15:I32)+$B$38+$AJ53*$L$10/100 -> 62.7 | J53: =SUM(J$15:J32)+$B$38+$AJ53*$L$10/100 -> 62.7 | K53: =SUM(K$15:K32)+$B$38+$AJ53*$L$10/100 -> 62.7 | L53: =SUM(L$15:L32)+$B$38+$AJ53*$L$10/100 -> 62.7 | M53: =SUM(M$15:M32)+$B$38+$AJ53*$L$10/100 -> 62.7 | N53: =SUM(N$15:N32)+$B$38+$AJ53*$L$10/100 -> 62.7 | O53: =SUM(O$15:O32)+$B$38+$AJ53*$L$10/100 -> 62.7 | P53: =SUM(P$15:P32)+$B$38+$AJ53*$L$10/100 -> 62.7 | Q53: =SUM(Q$15:Q32)+$B$38+$AJ53*$L$10/100 -> 62.7 | R53: =SUM(R$15:R32)+$B$38+$AJ53*$L$10/100 -> 62.7 | S53: =SUM(S$15:S32)+$B$38+$AJ53*$L$10/100 -> 62.7 | T53: =SUM(T$15:T32)+$B$38+$AJ53*$L$10/100 -> 62.7 | U53: =SUM(U$15:U32)+$B$38+$AJ53*$L$10/100 -> 62.7 | V53: =SUM(V$15:V32)+$B$38+$AJ53*$L$10/100 -> 62.7 | W53: =SUM(W$15:W32)+$B$38+$AJ53*$L$10/100 -> 62.7 | X53: =SUM(X$15:X32)+$B$38+$AJ53*$L$10/100 -> 62.7 | Y53: =SUM(Y$15:Y32)+$B$38+$AJ53*$L$10/100 -> 62.7 | Z53: =SUM(Z$15:Z32)+$B$38+$AJ53*$L$10/100 -> 62.7 | AA53: =SUM(AA$15:AA32)+$B$38+$AJ53*$L$10/100 -> 62.7 | AB53: =SUM(AB$15:AB32)+$B$38+$AJ53*$L$10/100 -> 62.7 | AC53: =SUM(AC$15:AC32)+$B$38+$AJ53*$L$10/100 -> 62.7 | AD53: =SUM(AD$15:AD32)+$B$38+$AJ53*$L$10/100 -> 62.7 | AE53: =SUM(AE$15:AE32)+$B$38+$AJ53*$L$10/100 -> 62.7 | AF53: =SUM(AF$15:AF32)+$B$38+$AJ53*$L$10/100 -> 62.7 | AJ53: 17
C54: 採材高18 | D54: =SUM(D$15:D33)+$B$38+$AJ54*$L$10/100 -> 66.3 | E54: =SUM(E$15:E33)+$B$38+$AJ54*$L$10/100 -> 66.3 | F54: =SUM(F$15:F33)+$B$38+$AJ54*$L$10/100 -> 66.3 | G54: =SUM(G$15:G33)+$B$38+$AJ54*$L$10/100 -> 66.3 | H54: =SUM(H$15:H33)+$B$38+$AJ54*$L$10/100 -> 66.3 | I54: =SUM(I$15:I33)+$B$38+$AJ54*$L$10/100 -> 66.3 | J54: =SUM(J$15:J33)+$B$38+$AJ54*$L$10/100 -> 66.3 | K54: =SUM(K$15:K33)+$B$38+$AJ54*$L$10/100 -> 66.3 | L54: =SUM(L$15:L33)+$B$38+$AJ54*$L$10/100 -> 66.3 | M54: =SUM(M$15:M33)+$B$38+$AJ54*$L$10/100 -> 66.3 | N54: =SUM(N$15:N33)+$B$38+$AJ54*$L$10/100 -> 66.3 | O54: =SUM(O$15:O33)+$B$38+$AJ54*$L$10/100 -> 66.3 | P54: =SUM(P$15:P33)+$B$38+$AJ54*$L$10/100 -> 66.3 | Q54: =SUM(Q$15:Q33)+$B$38+$AJ54*$L$10/100 -> 66.3 | R54: =SUM(R$15:R33)+$B$38+$AJ54*$L$10/100 -> 66.3 | S54: =SUM(S$15:S33)+$B$38+$AJ54*$L$10/100 -> 66.3 | T54: =SUM(T$15:T33)+$B$38+$AJ54*$L$10/100 -> 66.3 | U54: =SUM(U$15:U33)+$B$38+$AJ54*$L$10/100 -> 66.3 | V54: =SUM(V$15:V33)+$B$38+$AJ54*$L$10/100 -> 66.3 | W54: =SUM(W$15:W33)+$B$38+$AJ54*$L$10/100 -> 66.3 | X54: =SUM(X$15:X33)+$B$38+$AJ54*$L$10/100 -> 66.3 | Y54: =SUM(Y$15:Y33)+$B$38+$AJ54*$L$10/100 -> 66.3 | Z54: =SUM(Z$15:Z33)+$B$38+$AJ54*$L$10/100 -> 66.3 | AA54: =SUM(AA$15:AA33)+$B$38+$AJ54*$L$10/100 -> 66.3 | AB54: =SUM(AB$15:AB33)+$B$38+$AJ54*$L$10/100 -> 66.3 | AC54: =SUM(AC$15:AC33)+$B$38+$AJ54*$L$10/100 -> 66.3 | AD54: =SUM(AD$15:AD33)+$B$38+$AJ54*$L$10/100 -> 66.3 | AE54: =SUM(AE$15:AE33)+$B$38+$AJ54*$L$10/100 -> 66.3 | AF54: =SUM(AF$15:AF33)+$B$38+$AJ54*$L$10/100 -> 66.3 | AJ54: 18
C55: 採材高19 | D55: =SUM(D$15:D34)+$B$38+$AJ55*$L$10/100 -> 70.0 | E55: =SUM(E$15:E34)+$B$38+$AJ55*$L$10/100 -> 70.0 | F55: =SUM(F$15:F34)+$B$38+$AJ55*$L$10/100 -> 70.0 | G55: =SUM(G$15:G34)+$B$38+$AJ55*$L$10/100 -> 70.0 | H55: =SUM(H$15:H34)+$B$38+$AJ55*$L$10/100 -> 70.0 | I55: =SUM(I$15:I34)+$B$38+$AJ55*$L$10/100 -> 70.0 | J55: =SUM(J$15:J34)+$B$38+$AJ55*$L$10/100 -> 70.0 | K55: =SUM(K$15:K34)+$B$38+$AJ55*$L$10/100 -> 70.0 | L55: =SUM(L$15:L34)+$B$38+$AJ55*$L$10/100 -> 70.0 | M55: =SUM(M$15:M34)+$B$38+$AJ55*$L$10/100 -> 70.0 | N55: =SUM(N$15:N34)+$B$38+$AJ55*$L$10/100 -> 70.0 | O55: =SUM(O$15:O34)+$B$38+$AJ55*$L$10/100 -> 70.0 | P55: =SUM(P$15:P34)+$B$38+$AJ55*$L$10/100 -> 70.0 | Q55: =SUM(Q$15:Q34)+$B$38+$AJ55*$L$10/100 -> 70.0 | R55: =SUM(R$15:R34)+$B$38+$AJ55*$L$10/100 -> 70.0 | S55: =SUM(S$15:S34)+$B$38+$AJ55*$L$10/100 -> 70.0 | T55: =SUM(T$15:T34)+$B$38+$AJ55*$L$10/100 -> 70.0 | U55: =SUM(U$15:U34)+$B$38+$AJ55*$L$10/100 -> 70.0 | V55: =SUM(V$15:V34)+$B$38+$AJ55*$L$10/100 -> 70.0 | W55: =SUM(W$15:W34)+$B$38+$AJ55*$L$10/100 -> 70.0 | X55: =SUM(X$15:X34)+$B$38+$AJ55*$L$10/100 -> 70.0 | Y55: =SUM(Y$15:Y34)+$B$38+$AJ55*$L$10/100 -> 70.0 | Z55: =SUM(Z$15:Z34)+$B$38+$AJ55*$L$10/100 -> 70.0 | AA55: =SUM(AA$15:AA34)+$B$38+$AJ55*$L$10/100 -> 70.0 | AB55: =SUM(AB$15:AB34)+$B$38+$AJ55*$L$10/100 -> 70.0 | AC55: =SUM(AC$15:AC34)+$B$38+$AJ55*$L$10/100 -> 70.0 | AD55: =SUM(AD$15:AD34)+$B$38+$AJ55*$L$10/100 -> 70.0 | AE55: =SUM(AE$15:AE34)+$B$38+$AJ55*$L$10/100 -> 70.0 | AF55: =SUM(AF$15:AF34)+$B$38+$AJ55*$L$10/100 -> 70.0 | AJ55: 19
C56: 採材高20 | D56: =SUM(D$15:D35)+$B$38+$AJ56*$L$10/100 -> 73.6 | E56: =SUM(E$15:E35)+$B$38+$AJ56*$L$10/100 -> 73.6 | F56: =SUM(F$15:F35)+$B$38+$AJ56*$L$10/100 -> 73.6 | G56: =SUM(G$15:G35)+$B$38+$AJ56*$L$10/100 -> 73.6 | H56: =SUM(H$15:H35)+$B$38+$AJ56*$L$10/100 -> 73.6 | I56: =SUM(I$15:I35)+$B$38+$AJ56*$L$10/100 -> 73.6 | J56: =SUM(J$15:J35)+$B$38+$AJ56*$L$10/100 -> 73.6 | K56: =SUM(K$15:K35)+$B$38+$AJ56*$L$10/100 -> 73.6 | L56: =SUM(L$15:L35)+$B$38+$AJ56*$L$10/100 -> 73.6 | M56: =SUM(M$15:M35)+$B$38+$AJ56*$L$10/100 -> 73.6 | N56: =SUM(N$15:N35)+$B$38+$AJ56*$L$10/100 -> 73.6 | O56: =SUM(O$15:O35)+$B$38+$AJ56*$L$10/100 -> 73.6 | P56: =SUM(P$15:P35)+$B$38+$AJ56*$L$10/100 -> 73.6 | Q56: =SUM(Q$15:Q35)+$B$38+$AJ56*$L$10/100 -> 73.6 | R56: =SUM(R$15:R35)+$B$38+$AJ56*$L$10/100 -> 73.6 | S56: =SUM(S$15:S35)+$B$38+$AJ56*$L$10/100 -> 73.6 | T56: =SUM(T$15:T35)+$B$38+$AJ56*$L$10/100 -> 73.6 | U56: =SUM(U$15:U35)+$B$38+$AJ56*$L$10/100 -> 73.6 | V56: =SUM(V$15:V35)+$B$38+$AJ56*$L$10/100 -> 73.6 | W56: =SUM(W$15:W35)+$B$38+$AJ56*$L$10/100 -> 73.6 | X56: =SUM(X$15:X35)+$B$38+$AJ56*$L$10/100 -> 73.6 | Y56: =SUM(Y$15:Y35)+$B$38+$AJ56*$L$10/100 -> 73.6 | Z56: =SUM(Z$15:Z35)+$B$38+$AJ56*$L$10/100 -> 73.6 | AA56: =SUM(AA$15:AA35)+$B$38+$AJ56*$L$10/100 -> 73.6 | AB56: =SUM(AB$15:AB35)+$B$38+$AJ56*$L$10/100 -> 73.6 | AC56: =SUM(AC$15:AC35)+$B$38+$AJ56*$L$10/100 -> 73.6 | AD56: =SUM(AD$15:AD35)+$B$38+$AJ56*$L$10/100 -> 73.6 | AE56: =SUM(AE$15:AE35)+$B$38+$AJ56*$L$10/100 -> 73.6 | AF56: =SUM(AF$15:AF35)+$B$38+$AJ56*$L$10/100 -> 73.6 | AJ56: 20
B58: 材長（延びを除いた）
B59: =+B10 -> 19 | C59: 年生
B60: 胸高直径 | C60: cm以上 | D60: =+D11 -> 0 | E60: =+E11 -> 2 | F60: 4 | G60: 6 | H60: 8 | I60: 10 | J60: 12 | K60: 14 | L60: 16 | M60: 18 | N60: 20 | O60: 22 | P60: 24 | Q60: 26 | R60: 28 | S60: 30 | T60: 32 | U60: 34 | V60: 36 | W60: 38 | X60: 40 | Y60: 42 | Z60: 44 | AA60: 46 | AB60: 48 | AC60: 50 | AD60: 52 | AE60: 54 | AF60: 56
C61: cm未満 | D61: =+D12 -> 2 | E61: 4 | F61: 6 | G61: 8 | H61: 10 | I61: 12 | J61: 14 | K61: 16 | L61: 18 | M61: 20 | N61: 22 | O61: 24 | P61: 26 | Q61: 28 | R61: 30 | S61: 32 | T61: 34 | U61: 36 | V61: 38 | W61: 40 | X61: 42 | Y61: 44 | Z61: 46 | AA61: 48 | AB61: 50 | AC61: 52 | AD61: 54 | AE61: 56 | AF61: 58
B62: 立木本数 | C62: 本/ha | D62: =VLOOKUP($B$87,Sheet1!$AD$89:$BG$124,D$87) -> 0 | E62: =VLOOKUP($B$87,Sheet1!$AD$89:$BG$124,E$87) -> 0 | F62: =VLOOKUP($B$87,Sheet1!$AD$89:$BG$124,F$87) -> 0 | G62: =VLOOKUP($B$87,Sheet1!$AD$89:$BG$124,G$87) -> 0 | H62: =VLOOKUP($B$87,Sheet1!$AD$89:$BG$124,H$87) -> 0 | I62: =VLOOKUP($B$87,Sheet1!$AD$89:$BG$124,I$87) -> 60 | J62: =VLOOKUP($B$87,Sheet1!$AD$89:$BG$124,J$87) -> 80 | K62: =VLOOKUP($B$87,Sheet1!$AD$89:$BG$124,K$87) -> 80 | L62: =VLOOKUP($B$87,Sheet1!$AD$89:$BG$124,L$87) -> 70 | M62: =VLOOKUP($B$87,Sheet1!$AD$89:$BG$124,M$87) -> 60 | N62: =VLOOKUP($B$87,Sheet1!$AD$89:$BG$124,N$87) -> 20 | O62: =VLOOKUP($B$87,Sheet1!$AD$89:$BG$124,O$87) -> 0 | P62: =VLOOKUP($B$87,Sheet1!$AD$89:$BG$124,P$87) -> 0 | Q62: =VLOOKUP($B$87,Sheet1!$AD$89:$BG$124,Q$87) -> 0 | R62: =VLOOKUP($B$87,Sheet1!$AD$89:$BG$124,R$87) -> 0 | S62: =VLOOKUP($B$87,Sheet1!$AD$89:$BG$124,S$87) -> 0 | T62: =VLOOKUP($B$87,Sheet1!$AD$89:$BG$124,T$87) -> 0 | U62: =VLOOKUP($B$87,Sheet1!$AD$89:$BG$124,U$87) -> 0 | V62: =VLOOKUP($B$87,Sheet1!$AD$89:$BG$124,V$87) -> 0 | W62: =VLOOKUP($B$87,Sheet1!$AD$89:$BG$124,W$87) -> 0 | X62: =VLOOKUP($B$87,Sheet1!$AD$89:$BG$124,X$87) -> 0 | Y62: =VLOOKUP($B$87,Sheet1!$AD$89:$BG$124,Y$87) -> 0 | Z62: =VLOOKUP($B$87,Sheet1!$AD$89:$BG$124,Z$87) -> 0 | AA62: =VLOOKUP($B$87,Sheet1!$AD$89:$BG$124,AA$87) -> 0 | AB62: =VLOOKUP($B$87,Sheet1!$AD$89:$BG$124,AB$87) -> 0 | AC62: =VLOOKUP($B$87,Sheet1!$AD$89:$BG$124,AC$87) -> 0 | AD62: =VLOOKUP($B$87,Sheet1!$AD$89:$BG$124,AD$87) -> 0 | AE62: =VLOOKUP($B$87,Sheet1!$AD$89:$BG$124,AE$87) -> 0 | AF62: =VLOOKUP($B$87,Sheet1!$AD$89:$BG$124,AF$87) -> 0
B63: 樹高 | C63: m | D63: =+D14 ->  | E63: =+E14 ->  | I63: 12 | J63: 13 | K63: 14 | L63: 15 | M63: 16 | N63: 17
C64: 追上 | D64: =IF(OR(D$62=0,D36>D$63),"",D15) ->  | E64: =IF(OR(E$62=0,E36>E$63),"",E15) ->  | I64: 0.3 | J64: 0.3 | K64: 0.3 | L64: 0.3 | M64: 0.3 | N64: 0.3
C65: 1番玉 | E65: =IF(OR(E$62=0,E37>E$63),"",E16) ->  | I65: 3.7 | J65: 3.7 | K65: 3.7 | L65: 3.7 | M65: 3.7 | N65: 3.7
C66: 2番玉 | E66: =IF(OR(E$62=0,E38>E$63),"",E17) ->  | I66: 3.7 | J66: 3.7 | K66: 3.7 | L66: 3.7 | M66: 3.7 | N66: 3.7
C67: 3番玉 | E67: =IF(OR(E$62=0,E39>E$63),"",E18) ->  | I67: 3.7 | J67: 3.7 | K67: 3.7 | L67: 3.7 | M67: 3.7 | N67: 3.7
C68: 4番玉 | E68: =IF(OR(E$62=0,E40>E$63),"",E19) ->  | L68: 3.7 | M68: 3.7 | N68: 3.7
C69: 5番玉 | E69: =IF(OR(E$62=0,E41>E$63),"",E20) -> 
C70: 6番玉 | E70: =IF(OR(E$62=0,E42>E$63),"",E21) -> 
C71: 7番玉 | E71: =IF(OR(E$62=0,E43>E$63),"",E22) -> 
C72: 8番玉 | E72: =IF(OR(E$62=0,E44>E$63),"",E23) -> 
C73: 9番玉 | E73: =IF(OR(E$62=0,E45>E$63),"",E24) -> 
C74: 10番玉 | E74: =IF(OR(E$62=0,E46>E$63),"",E25) ->  | AA74: =IF(OR(AA$62=0,AA46>AA$63),"",AA25) -> 
C75: 11番玉 | E75: =IF(OR(E$62=0,E47>E$63),"",E26) ->  | AA75: =IF(OR(AA$62=0,AA47>AA$63),"",AA26) -> 
C76: 12番玉 | E76: =IF(OR(E$62=0,E48>E$63),"",E27) -> 
C77: 13番玉 | E77: =IF(OR(E$62=0,E49>E$63),"",E28) -> 
C78: 14番玉 | E78: =IF(OR(E$62=0,E50>E$63),"",E29) -> 
C79: 15番玉 | E79: =IF(OR(E$62=0,E51>E$63),"",E30) -> 
C80: 16番玉 | E80: =IF(OR(E$62=0,E52>E$63),"",E31) -> 
C81: 17番玉 | E81: =IF(OR(E$62=0,E53>E$63),"",E32) -> 
C82: 18番玉 | E82: =IF(OR(E$62=0,E54>E$63),"",E33) -> 
C83: 19番玉 | E83: =IF(OR(E$62=0,E55>E$63),"",E34) ->  | AA83: =IF(OR(AA$62=0,AA55>AA$63),"",AA34) -> 
C84: 20番玉 | D84: =IF(OR(D$62=0,D56>D$63),"",D35) -> 
B86: 末口径
B87: =+B10 -> 19 | C87: 年生 | D87: 2 | E87: 3 | F87: 4 | G87: 5 | H87: 6 | I87: 7 | J87: 8 | K87: 9 | L87: 10 | M87: 11 | N87: 12 | O87: 13 | P87: 14 | Q87: 15 | R87: 16 | S87: 17 | T87: 18 | U87: 19 | V87: 20 | W87: 21 | X87: 22 | Y87: 23 | Z87: 24 | AA87: 25 | AB87: 26 | AC87: 27 | AD87: 28 | AE87: 29 | AF87: 30
B88: 胸高直径 | C88: cm以上 | D88: =D60 -> 0 | E88: =E60 -> 2 | F88: 4 | G88: 6 | H88: 8 | I88: 10 | J88: 12 | K88: 14 | L88: 16 | M88: 18 | N88: 20 | O88: 22 | P88: 24 | Q88: 26 | R88: 28 | S88: 30 | T88: 32 | U88: 34 | V88: 36 | W88: 38 | X88: 40 | Y88: 42 | Z88: 44 | AA88: 46 | AB88: 48 | AC88: 50 | AD88: 52 | AE88: 54 | AF88: 56
C89: cm未満 | D89: =D61 -> 2 | E89: =E61 -> 4 | F89: 6 | G89: 8 | H89: 10 | I89: 12 | J89: 14 | K89: 16 | L89: 18 | M89: 20 | N89: 22 | O89: 24 | P89: 26 | Q89: 28 | R89: 30 | S89: 32 | T89: 34 | U89: 36 | V89: 38 | W89: 40 | X89: 42 | Y89: 44 | Z89: 46 | AA89: 48 | AB89: 50 | AC89: 52 | AD89: 54 | AE89: 56 | AF89: 58
B90: 立木本数 | C90: 本/ha | D90: =D62 -> 0 | E90: =E62 -> 0 | F90: 0 | G90: 0 | H90: 0 | I90: 60 | J90: 80 | K90: 80 | L90: 70 | M90: 60 | N90: 20 | O90: 0 | P90: 0 | Q90: 0 | R90: 0 | S90: 0 | T90: 0 | U90: 0 | V90: 0 | W90: 0 | X90: 0 | Y90: 0 | Z90: 0 | AA90: 0 | AB90: 0 | AC90: 0 | AD90: 0 | AE90: 0 | AF90: 0
B91: 樹高 | C91: m | D91: =+D63 ->  | E91: =+E63 ->  | I91: 12 | J91: 13 | K91: 14 | L91: 15 | M91: 16 | N91: 17
B92: 追上m | C92: =+C15 -> 0.3 | D92: =IF(D64="","",VLOOKUP($B$87,Sheet1!$BH$209:$CK$244,D$87)) ->  | E92: =IF(E64="","",VLOOKUP($B$87,Sheet1!$BH$209:$CK$244,E$87)) ->  | F92: =IF(F64="","",VLOOKUP($B$87,Sheet1!$BH$209:$CK$244,F$87)) ->  | G92: =IF(G64="","",VLOOKUP($B$87,Sheet1!$BH$209:$CK$244,G$87)) ->  | H92: =IF(H64="","",VLOOKUP($B$87,Sheet1!$BH$209:$CK$244,H$87)) ->  | I92: =IF(I64="","",VLOOKUP($B$87,Sheet1!$BH$209:$CK$244,I$87)) -> 11 | J92: =IF(J64="","",VLOOKUP($B$87,Sheet1!$BH$209:$CK$244,J$87)) -> 13 | K92: =IF(K64="","",VLOOKUP($B$87,Sheet1!$BH$209:$CK$244,K$87)) -> 15 | L92: =IF(L64="","",VLOOKUP($B$87,Sheet1!$BH$209:$CK$244,L$87)) -> 17 | M92: =IF(M64="","",VLOOKUP($B$87,Sheet1!$BH$209:$CK$244,M$87)) -> 19 | N92: =IF(N64="","",VLOOKUP($B$87,Sheet1!$BH$209:$CK$244,N$87)) -> 21 | O92: =IF(O64="","",VLOOKUP($B$87,Sheet1!$BH$209:$CK$244,O$87)) ->  | P92: =IF(P64="","",VLOOKUP($B$87,Sheet1!$BH$209:$CK$244,P$87)) ->  | Q92: =IF(Q64="","",VLOOKUP($B$87,Sheet1!$BH$209:$CK$244,Q$87)) ->  | R92: =IF(R64="","",VLOOKUP($B$87,Sheet1!$BH$209:$CK$244,R$87)) ->  | S92: =IF(S64="","",VLOOKUP($B$87,Sheet1!$BH$209:$CK$244,S$87)) ->  | T92: =IF(T64="","",VLOOKUP($B$87,Sheet1!$BH$209:$CK$244,T$87)) ->  | U92: =IF(U64="","",VLOOKUP($B$87,Sheet1!$BH$209:$CK$244,U$87)) ->  | V92: =IF(V64="","",VLOOKUP($B$87,Sheet1!$BH$209:$CK$244,V$87)) ->  | W92: =IF(W64="","",VLOOKUP($B$87,Sheet1!$BH$209:$CK$244,W$87)) ->  | X92: =IF(X64="","",VLOOKUP($B$87,Sheet1!$BH$209:$CK$244,X$87)) ->  | Y92: =IF(Y64="","",VLOOKUP($B$87,Sheet1!$BH$209:$CK$244,Y$87)) ->  | Z92: =IF(Z64="","",VLOOKUP($B$87,Sheet1!$BH$209:$CK$244,Z$87)) ->  | AA92: =IF(AA64="","",VLOOKUP($B$87,Sheet1!$BH$209:$CK$244,AA$87)) ->  | AB92: =IF(AB64="","",VLOOKUP($B$87,Sheet1!$BH$209:$CK$244,AB$87)) ->  | AC92: =IF(AC64="","",VLOOKUP($B$87,Sheet1!$BH$209:$CK$244,AC$87)) ->  | AD92: =IF(AD64="","",VLOOKUP($B$87,Sheet1!$BH$209:$CK$244,AD$87)) ->  | AE92: =IF(AE64="","",VLOOKUP($B$87,Sheet1!$BH$209:$CK$244,AE$87)) ->  | AF92: =IF(AF64="","",VLOOKUP($B$87,Sheet1!$BH$209:$CK$244,AF$87)) -> 
C93: 1番玉 | D93: =IF(D65="","",VLOOKUP($B$87,Sheet1t!$AD$301:$BG$336,D$87)) ->  | E93: =IF(E65="","",VLOOKUP($B$87,Sheet1t!$AD$301:$BG$336,E$87)) ->  | F93: =IF(F65="","",VLOOKUP($B$87,Sheet1t!$AD$301:$BG$336,F$87)) ->  | G93: =IF(G65="","",VLOOKUP($B$87,Sheet1t!$AD$301:$BG$336,G$87)) ->  | H93: =IF(H65="","",VLOOKUP($B$87,Sheet1t!$AD$301:$BG$336,H$87)) ->  | I93: =IF(I65="","",VLOOKUP($B$87,Sheet1t!$AD$301:$BG$336,I$87)) -> 7 | J93: =IF(J65="","",VLOOKUP($B$87,Sheet1t!$AD$301:$BG$336,J$87)) -> 9 | K93: =IF(K65="","",VLOOKUP($B$87,Sheet1t!$AD$301:$BG$336,K$87)) -> 11 | L93: =IF(L65="","",VLOOKUP($B$87,Sheet1t!$AD$301:$BG$336,L$87)) -> 12 | M93: =IF(M65="","",VLOOKUP($B$87,Sheet1t!$AD$301:$BG$336,M$87)) -> 14 | N93: =IF(N65="","",VLOOKUP($B$87,Sheet1t!$AD$301:$BG$336,N$87)) -> 16 | O93: =IF(O65="","",VLOOKUP($B$87,Sheet1t!$AD$301:$BG$336,O$87)) ->  | P93: =IF(P65="","",VLOOKUP($B$87,Sheet1t!$AD$301:$BG$336,P$87)) ->  | Q93: =IF(Q65="","",VLOOKUP($B$87,Sheet1t!$AD$301:$BG$336,Q$87)) ->  | R93: =IF(R65="","",VLOOKUP($B$87,Sheet1t!$AD$301:$BG$336,R$87)) ->  | S93: =IF(S65="","",VLOOKUP($B$87,Sheet1t!$AD$301:$BG$336,S$87)) ->  | T93: =IF(T65="","",VLOOKUP($B$87,Sheet1t!$AD$301:$BG$336,T$87)) ->  | U93: =IF(U65="","",VLOOKUP($B$87,Sheet1t!$AD$301:$BG$336,U$87)) ->  | V93: =IF(V65="","",VLOOKUP($B$87,Sheet1t!$AD$301:$BG$336,V$87)) ->  | W93: =IF(W65="","",VLOOKUP($B$87,Sheet1t!$AD$301:$BG$336,W$87)) ->  | X93: =IF(X65="","",VLOOKUP($B$87,Sheet1t!$AD$301:$BG$336,X$87)) ->  | Y93: =IF(Y65="","",VLOOKUP($B$87,Sheet1t!$AD$301:$BG$336,Y$87)) ->  | Z93: =IF(Z65="","",VLOOKUP($B$87,Sheet1t!$AD$301:$BG$336,Z$87)) ->  | AA93: =IF(AA65="","",VLOOKUP($B$87,Sheet1t!$AD$301:$BG$336,AA$87)) ->  | AB93: =IF(AB65="","",VLOOKUP($B$87,Sheet1t!$AD$301:$BG$336,AB$87)) ->  | AC93: =IF(AC65="","",VLOOKUP($B$87,Sheet1t!$AD$301:$BG$336,AC$87)) ->  | AD93: =IF(AD65="","",VLOOKUP($B$87,Sheet1t!$AD$301:$BG$336,AD$87)) ->  | AE93: =IF(AE65="","",VLOOKUP($B$87,Sheet1t!$AD$301:$BG$336,AE$87)) ->  | AF93: =IF(AF65="","",VLOOKUP($B$87,Sheet1t!$AD$301:$BG$336,AF$87)) ->  | BP93: =IF(D65="","",VLOOKUP($B$87,Sheet1!$AD$301:$BG$336,D$87)) -> 
C94: 2番玉 | D94: =IF(D66="","",VLOOKUP($B$87,Sheet1t!$AD$636:$BG$671,D$87)) ->  | E94: =IF(E66="","",VLOOKUP($B$87,Sheet1t!$AD$636:$BG$671,E$87)) ->  | F94: =IF(F66="","",VLOOKUP($B$87,Sheet1t!$AD$636:$BG$671,F$87)) ->  | G94: =IF(G66="","",VLOOKUP($B$87,Sheet1t!$AD$636:$BG$671,G$87)) ->  | H94: =IF(H66="","",VLOOKUP($B$87,Sheet1t!$AD$636:$BG$671,H$87)) ->  | I94: =IF(I66="","",VLOOKUP($B$87,Sheet1t!$AD$636:$BG$671,I$87)) -> 4 | J94: =IF(J66="","",VLOOKUP($B$87,Sheet1t!$AD$636:$BG$671,J$87)) -> 6 | K94: =IF(K66="","",VLOOKUP($B$87,Sheet1t!$AD$636:$BG$671,K$87)) -> 7 | L94: =IF(L66="","",VLOOKUP($B$87,Sheet1t!$AD$636:$BG$671,L$87)) -> 9 | M94: =IF(M66="","",VLOOKUP($B$87,Sheet1t!$AD$636:$BG$671,M$87)) -> 10 | N94: =IF(N66="","",VLOOKUP($B$87,Sheet1t!$AD$636:$BG$671,N$87)) -> 11 | O94: =IF(O66="","",VLOOKUP($B$87,Sheet1t!$AD$636:$BG$671,O$87)) ->  | P94: =IF(P66="","",VLOOKUP($B$87,Sheet1t!$AD$636:$BG$671,P$87)) ->  | Q94: =IF(Q66="","",VLOOKUP($B$87,Sheet1t!$AD$636:$BG$671,Q$87)) ->  | R94: =IF(R66="","",VLOOKUP($B$87,Sheet1t!$AD$636:$BG$671,R$87)) ->  | S94: =IF(S66="","",VLOOKUP($B$87,Sheet1t!$AD$636:$BG$671,S$87)) ->  | T94: =IF(T66="","",VLOOKUP($B$87,Sheet1t!$AD$636:$BG$671,T$87)) ->  | U94: =IF(U66="","",VLOOKUP($B$87,Sheet1t!$AD$636:$BG$671,U$87)) ->  | V94: =IF(V66="","",VLOOKUP($B$87,Sheet1t!$AD$636:$BG$671,V$87)) ->  | W94: =IF(W66="","",VLOOKUP($B$87,Sheet1t!$AD$636:$BG$671,W$87)) ->  | X94: =IF(X66="","",VLOOKUP($B$87,Sheet1t!$AD$636:$BG$671,X$87)) ->  | Y94: =IF(Y66="","",VLOOKUP($B$87,Sheet1t!$AD$636:$BG$671,Y$87)) ->  | Z94: =IF(Z66="","",VLOOKUP($B$87,Sheet1t!$AD$636:$BG$671,Z$87)) ->  | AA94: =IF(AA66="","",VLOOKUP($B$87,Sheet1t!$AD$636:$BG$671,AA$87)) ->  | AB94: =IF(AB66="","",VLOOKUP($B$87,Sheet1t!$AD$636:$BG$671,AB$87)) ->  | AC94: =IF(AC66="","",VLOOKUP($B$87,Sheet1t!$AD$636:$BG$671,AC$87)) ->  | AD94: =IF(AD66="","",VLOOKUP($B$87,Sheet1t!$AD$636:$BG$671,AD$87)) ->  | AE94: =IF(AE66="","",VLOOKUP($B$87,Sheet1t!$AD$636:$BG$671,AE$87)) ->  | AF94: =IF(AF66="","",VLOOKUP($B$87,Sheet1t!$AD$636:$BG$671,AF$87)) -> 
C95: 3番玉 | D95: =IF(D67="","",VLOOKUP($B$87,Sheet1t!$AD$966:$BG$1001,D$87)) ->  | E95: =IF(E67="","",VLOOKUP($B$87,Sheet1t!$AD$966:$BG$1001,E$87)) ->  | F95: =IF(F67="","",VLOOKUP($B$87,Sheet1t!$AD$966:$BG$1001,F$87)) ->  | G95: =IF(G67="","",VLOOKUP($B$87,Sheet1t!$AD$966:$BG$1001,G$87)) ->  | H95: =IF(H67="","",VLOOKUP($B$87,Sheet1t!$AD$966:$BG$1001,H$87)) ->  | I95: =IF(I67="","",VLOOKUP($B$87,Sheet1t!$AD$966:$BG$1001,I$87)) -> -4 | J95: =IF(J67="","",VLOOKUP($B$87,Sheet1t!$AD$966:$BG$1001,J$87)) -> -1 | K95: =IF(K67="","",VLOOKUP($B$87,Sheet1t!$AD$966:$BG$1001,K$87)) -> 1 | L95: =IF(L67="","",VLOOKUP($B$87,Sheet1t!$AD$966:$BG$1001,L$87)) -> 3 | M95: =IF(M67="","",VLOOKUP($B$87,Sheet1t!$AD$966:$BG$1001,M$87)) -> 4 | N95: =IF(N67="","",VLOOKUP($B$87,Sheet1t!$AD$966:$BG$1001,N$87)) -> 6 | O95: =IF(O67="","",VLOOKUP($B$87,Sheet1t!$AD$966:$BG$1001,O$87)) ->  | P95: =IF(P67="","",VLOOKUP($B$87,Sheet1t!$AD$966:$BG$1001,P$87)) ->  | Q95: =IF(Q67="","",VLOOKUP($B$87,Sheet1t!$AD$966:$BG$1001,Q$87)) ->  | R95: =IF(R67="","",VLOOKUP($B$87,Sheet1t!$AD$966:$BG$1001,R$87)) ->  | S95: =IF(S67="","",VLOOKUP($B$87,Sheet1t!$AD$966:$BG$1001,S$87)) ->  | T95: =IF(T67="","",VLOOKUP($B$87,Sheet1t!$AD$966:$BG$1001,T$87)) ->  | U95: =IF(U67="","",VLOOKUP($B$87,Sheet1t!$AD$966:$BG$1001,U$87)) ->  | V95: =IF(V67="","",VLOOKUP($B$87,Sheet1t!$AD$966:$BG$1001,V$87)) ->  | W95: =IF(W67="","",VLOOKUP($B$87,Sheet1t!$AD$966:$BG$1001,W$87)) ->  | X95: =IF(X67="","",VLOOKUP($B$87,Sheet1t!$AD$966:$BG$1001,X$87)) ->  | Y95: =IF(Y67="","",VLOOKUP($B$87,Sheet1t!$AD$966:$BG$1001,Y$87)) ->  | Z95: =IF(Z67="","",VLOOKUP($B$87,Sheet1t!$AD$966:$BG$1001,Z$87)) ->  | AA95: =IF(AA67="","",VLOOKUP($B$87,Sheet1t!$AD$966:$BG$1001,AA$87)) ->  | AB95: =IF(AB67="","",VLOOKUP($B$87,Sheet1t!$AD$966:$BG$1001,AB$87)) ->  | AC95: =IF(AC67="","",VLOOKUP($B$87,Sheet1t!$AD$966:$BG$1001,AC$87)) ->  | AD95: =IF(AD67="","",VLOOKUP($B$87,Sheet1t!$AD$966:$BG$1001,AD$87)) ->  | AE95: =IF(AE67="","",VLOOKUP($B$87,Sheet1t!$AD$966:$BG$1001,AE$87)) ->  | AF95: =IF(AF67="","",VLOOKUP($B$87,Sheet1t!$AD$966:$BG$1001,AF$87)) -> 
C96: 4番玉 | D96: =IF(D68="","",VLOOKUP($B$87,Sheet1t!$AD$1296:$BG$1331,D$87)) ->  | E96: =IF(E68="","",VLOOKUP($B$87,Sheet1t!$AD$1296:$BG$1331,E$87)) ->  | F96: =IF(F68="","",VLOOKUP($B$87,Sheet1t!$AD$1296:$BG$1331,F$87)) ->  | G96: =IF(G68="","",VLOOKUP($B$87,Sheet1t!$AD$1296:$BG$1331,G$87)) ->  | H96: =IF(H68="","",VLOOKUP($B$87,Sheet1t!$AD$1296:$BG$1331,H$87)) ->  | I96: =IF(I68="","",VLOOKUP($B$87,Sheet1t!$AD$1296:$BG$1331,I$87)) ->  | J96: =IF(J68="","",VLOOKUP($B$87,Sheet1t!$AD$1296:$BG$1331,J$87)) ->  | K96: =IF(K68="","",VLOOKUP($B$87,Sheet1t!$AD$1296:$BG$1331,K$87)) ->  | L96: =IF(L68="","",VLOOKUP($B$87,Sheet1t!$AD$1296:$BG$1331,L$87)) -> -8 | M96: =IF(M68="","",VLOOKUP($B$87,Sheet1t!$AD$1296:$BG$1331,M$87)) -> -6 | N96: =IF(N68="","",VLOOKUP($B$87,Sheet1t!$AD$1296:$BG$1331,N$87)) -> -5 | O96: =IF(O68="","",VLOOKUP($B$87,Sheet1t!$AD$1296:$BG$1331,O$87)) ->  | P96: =IF(P68="","",VLOOKUP($B$87,Sheet1t!$AD$1296:$BG$1331,P$87)) ->  | Q96: =IF(Q68="","",VLOOKUP($B$87,Sheet1t!$AD$1296:$BG$1331,Q$87)) ->  | R96: =IF(R68="","",VLOOKUP($B$87,Sheet1t!$AD$1296:$BG$1331,R$87)) ->  | S96: =IF(S68="","",VLOOKUP($B$87,Sheet1t!$AD$1296:$BG$1331,S$87)) ->  | T96: =IF(T68="","",VLOOKUP($B$87,Sheet1t!$AD$1296:$BG$1331,T$87)) ->  | U96: =IF(U68="","",VLOOKUP($B$87,Sheet1t!$AD$1296:$BG$1331,U$87)) ->  | V96: =IF(V68="","",VLOOKUP($B$87,Sheet1t!$AD$1296:$BG$1331,V$87)) ->  | W96: =IF(W68="","",VLOOKUP($B$87,Sheet1t!$AD$1296:$BG$1331,W$87)) ->  | X96: =IF(X68="","",VLOOKUP($B$87,Sheet1t!$AD$1296:$BG$1331,X$87)) ->  | Y96: =IF(Y68="","",VLOOKUP($B$87,Sheet1t!$AD$1296:$BG$1331,Y$87)) ->  | Z96: =IF(Z68="","",VLOOKUP($B$87,Sheet1t!$AD$1296:$BG$1331,Z$87)) ->  | AA96: =IF(AA68="","",VLOOKUP($B$87,Sheet1t!$AD$1296:$BG$1331,AA$87)) ->  | AB96: =IF(AB68="","",VLOOKUP($B$87,Sheet1t!$AD$1296:$BG$1331,AB$87)) ->  | AC96: =IF(AC68="","",VLOOKUP($B$87,Sheet1t!$AD$1296:$BG$1331,AC$87)) ->  | AD96: =IF(AD68="","",VLOOKUP($B$87,Sheet1t!$AD$1296:$BG$1331,AD$87)) ->  | AE96: =IF(AE68="","",VLOOKUP($B$87,Sheet1t!$AD$1296:$BG$1331,AE$87)) ->  | AF96: =IF(AF68="","",VLOOKUP($B$87,Sheet1t!$AD$1296:$BG$1331,AF$87)) -> 
C97: 5番玉 | D97: =IF(D69="","",VLOOKUP($B$87,Sheet1t!$AD$1636:$BG$1671,D$87)) ->  | E97: =IF(E69="","",VLOOKUP($B$87,Sheet1t!$AD$1636:$BG$1671,E$87)) ->  | F97: =IF(F69="","",VLOOKUP($B$87,Sheet1t!$AD$1636:$BG$1671,F$87)) ->  | G97: =IF(G69="","",VLOOKUP($B$87,Sheet1t!$AD$1636:$BG$1671,G$87)) ->  | H97: =IF(H69="","",VLOOKUP($B$87,Sheet1t!$AD$1636:$BG$1671,H$87)) ->  | I97: =IF(I69="","",VLOOKUP($B$87,Sheet1t!$AD$1636:$BG$1671,I$87)) ->  | J97: =IF(J69="","",VLOOKUP($B$87,Sheet1t!$AD$1636:$BG$1671,J$87)) ->  | K97: =IF(K69="","",VLOOKUP($B$87,Sheet1t!$AD$1636:$BG$1671,K$87)) ->  | L97: =IF(L69="","",VLOOKUP($B$87,Sheet1t!$AD$1636:$BG$1671,L$87)) ->  | M97: =IF(M69="","",VLOOKUP($B$87,Sheet1t!$AD$1636:$BG$1671,M$87)) ->  | N97: =IF(N69="","",VLOOKUP($B$87,Sheet1t!$AD$1636:$BG$1671,N$87)) ->  | O97: =IF(O69="","",VLOOKUP($B$87,Sheet1t!$AD$1636:$BG$1671,O$87)) ->  | P97: =IF(P69="","",VLOOKUP($B$87,Sheet1t!$AD$1636:$BG$1671,P$87)) ->  | Q97: =IF(Q69="","",VLOOKUP($B$87,Sheet1t!$AD$1636:$BG$1671,Q$87)) ->  | R97: =IF(R69="","",VLOOKUP($B$87,Sheet1t!$AD$1636:$BG$1671,R$87)) ->  | S97: =IF(S69="","",VLOOKUP($B$87,Sheet1t!$AD$1636:$BG$1671,S$87)) ->  | T97: =IF(T69="","",VLOOKUP($B$87,Sheet1t!$AD$1636:$BG$1671,T$87)) ->  | U97: =IF(U69="","",VLOOKUP($B$87,Sheet1t!$AD$1636:$BG$1671,U$87)) ->  | V97: =IF(V69="","",VLOOKUP($B$87,Sheet1t!$AD$1636:$BG$1671,V$87)) ->  | W97: =IF(W69="","",VLOOKUP($B$87,Sheet1t!$AD$1636:$BG$1671,W$87)) ->  | X97: =IF(X69="","",VLOOKUP($B$87,Sheet1t!$AD$1636:$BG$1671,X$87)) ->  | Y97: =IF(Y69="","",VLOOKUP($B$87,Sheet1t!$AD$1636:$BG$1671,Y$87)) ->  | Z97: =IF(Z69="","",VLOOKUP($B$87,Sheet1t!$AD$1636:$BG$1671,Z$87)) ->  | AA97: =IF(AA69="","",VLOOKUP($B$87,Sheet1t!$AD$1636:$BG$1671,AA$87)) ->  | AB97: =IF(AB69="","",VLOOKUP($B$87,Sheet1t!$AD$1636:$BG$1671,AB$87)) ->  | AC97: =IF(AC69="","",VLOOKUP($B$87,Sheet1t!$AD$1636:$BG$1671,AC$87)) ->  | AD97: =IF(AD69="","",VLOOKUP($B$87,Sheet1t!$AD$1636:$BG$1671,AD$87)) ->  | AE97: =IF(AE69="","",VLOOKUP($B$87,Sheet1t!$AD$1636:$BG$1671,AE$87)) ->  | AF97: =IF(AF69="","",VLOOKUP($B$87,Sheet1t!$AD$1636:$BG$1671,AF$87)) -> 
C98: 6番玉 | D98: =IF(D70="","",VLOOKUP($B$87,Sheet1t!$AD$1966:$BG$2001,D$87)) ->  | E98: =IF(E70="","",VLOOKUP($B$87,Sheet1t!$AD$1966:$BG$2001,E$87)) ->  | F98: =IF(F70="","",VLOOKUP($B$87,Sheet1t!$AD$1966:$BG$2001,F$87)) ->  | G98: =IF(G70="","",VLOOKUP($B$87,Sheet1t!$AD$1966:$BG$2001,G$87)) ->  | H98: =IF(H70="","",VLOOKUP($B$87,Sheet1t!$AD$1966:$BG$2001,H$87)) ->  | I98: =IF(I70="","",VLOOKUP($B$87,Sheet1t!$AD$1966:$BG$2001,I$87)) ->  | J98: =IF(J70="","",VLOOKUP($B$87,Sheet1t!$AD$1966:$BG$2001,J$87)) ->  | K98: =IF(K70="","",VLOOKUP($B$87,Sheet1t!$AD$1966:$BG$2001,K$87)) ->  | L98: =IF(L70="","",VLOOKUP($B$87,Sheet1t!$AD$1966:$BG$2001,L$87)) ->  | M98: =IF(M70="","",VLOOKUP($B$87,Sheet1t!$AD$1966:$BG$2001,M$87)) ->  | N98: =IF(N70="","",VLOOKUP($B$87,Sheet1t!$AD$1966:$BG$2001,N$87)) ->  | O98: =IF(O70="","",VLOOKUP($B$87,Sheet1t!$AD$1966:$BG$2001,O$87)) ->  | P98: =IF(P70="","",VLOOKUP($B$87,Sheet1t!$AD$1966:$BG$2001,P$87)) ->  | Q98: =IF(Q70="","",VLOOKUP($B$87,Sheet1t!$AD$1966:$BG$2001,Q$87)) ->  | R98: =IF(R70="","",VLOOKUP($B$87,Sheet1t!$AD$1966:$BG$2001,R$87)) ->  | S98: =IF(S70="","",VLOOKUP($B$87,Sheet1t!$AD$1966:$BG$2001,S$87)) ->  | T98: =IF(T70="","",VLOOKUP($B$87,Sheet1t!$AD$1966:$BG$2001,T$87)) ->  | U98: =IF(U70="","",VLOOKUP($B$87,Sheet1t!$AD$1966:$BG$2001,U$87)) ->  | V98: =IF(V70="","",VLOOKUP($B$87,Sheet1t!$AD$1966:$BG$2001,V$87)) ->  | W98: =IF(W70="","",VLOOKUP($B$87,Sheet1t!$AD$1966:$BG$2001,W$87)) ->  | X98: =IF(X70="","",VLOOKUP($B$87,Sheet1t!$AD$1966:$BG$2001,X$87)) ->  | Y98: =IF(Y70="","",VLOOKUP($B$87,Sheet1t!$AD$1966:$BG$2001,Y$87)) ->  | Z98: =IF(Z70="","",VLOOKUP($B$87,Sheet1t!$AD$1966:$BG$2001,Z$87)) ->  | AA98: =IF(AA70="","",VLOOKUP($B$87,Sheet1t!$AD$1966:$BG$2001,AA$87)) ->  | AB98: =IF(AB70="","",VLOOKUP($B$87,Sheet1t!$AD$1966:$BG$2001,AB$87)) ->  | AC98: =IF(AC70="","",VLOOKUP($B$87,Sheet1t!$AD$1966:$BG$2001,AC$87)) ->  | AD98: =IF(AD70="","",VLOOKUP($B$87,Sheet1t!$AD$1966:$BG$2001,AD$87)) ->  | AE98: =IF(AE70="","",VLOOKUP($B$87,Sheet1t!$AD$1966:$BG$2001,AE$87)) ->  | AF98: =IF(AF70="","",VLOOKUP($B$87,Sheet1t!$AD$1966:$BG$2001,AF$87)) -> 
C99: 7番玉 | D99: =IF(D71="","",VLOOKUP($B$87,Sheet1t!$AD$2296:$BG$2331,D$87)) ->  | E99: =IF(E71="","",VLOOKUP($B$87,Sheet1t!$AD$2296:$BG$2331,E$87)) ->  | F99: =IF(F71="","",VLOOKUP($B$87,Sheet1t!$AD$2296:$BG$2331,F$87)) ->  | G99: =IF(G71="","",VLOOKUP($B$87,Sheet1t!$AD$2296:$BG$2331,G$87)) ->  | H99: =IF(H71="","",VLOOKUP($B$87,Sheet1t!$AD$2296:$BG$2331,H$87)) ->  | I99: =IF(I71="","",VLOOKUP($B$87,Sheet1t!$AD$2296:$BG$2331,I$87)) ->  | J99: =IF(J71="","",VLOOKUP($B$87,Sheet1t!$AD$2296:$BG$2331,J$87)) ->  | K99: =IF(K71="","",VLOOKUP($B$87,Sheet1t!$AD$2296:$BG$2331,K$87)) ->  | L99: =IF(L71="","",VLOOKUP($B$87,Sheet1t!$AD$2296:$BG$2331,L$87)) ->  | M99: =IF(M71="","",VLOOKUP($B$87,Sheet1t!$AD$2296:$BG$2331,M$87)) ->  | N99: =IF(N71="","",VLOOKUP($B$87,Sheet1t!$AD$2296:$BG$2331,N$87)) ->  | O99: =IF(O71="","",VLOOKUP($B$87,Sheet1t!$AD$2296:$BG$2331,O$87)) ->  | P99: =IF(P71="","",VLOOKUP($B$87,Sheet1t!$AD$2296:$BG$2331,P$87)) ->  | Q99: =IF(Q71="","",VLOOKUP($B$87,Sheet1t!$AD$2296:$BG$2331,Q$87)) ->  | R99: =IF(R71="","",VLOOKUP($B$87,Sheet1t!$AD$2296:$BG$2331,R$87)) ->  | S99: =IF(S71="","",VLOOKUP($B$87,Sheet1t!$AD$2296:$BG$2331,S$87)) ->  | T99: =IF(T71="","",VLOOKUP($B$87,Sheet1t!$AD$2296:$BG$2331,T$87)) ->  | U99: =IF(U71="","",VLOOKUP($B$87,Sheet1t!$AD$2296:$BG$2331,U$87)) ->  | V99: =IF(V71="","",VLOOKUP($B$87,Sheet1t!$AD$2296:$BG$2331,V$87)) ->  | W99: =IF(W71="","",VLOOKUP($B$87,Sheet1t!$AD$2296:$BG$2331,W$87)) ->  | X99: =IF(X71="","",VLOOKUP($B$87,Sheet1t!$AD$2296:$BG$2331,X$87)) ->  | Y99: =IF(Y71="","",VLOOKUP($B$87,Sheet1t!$AD$2296:$BG$2331,Y$87)) ->  | Z99: =IF(Z71="","",VLOOKUP($B$87,Sheet1t!$AD$2296:$BG$2331,Z$87)) ->  | AA99: =IF(AA71="","",VLOOKUP($B$87,Sheet1t!$AD$2296:$BG$2331,AA$87)) ->  | AB99: =IF(AB71="","",VLOOKUP($B$87,Sheet1t!$AD$2296:$BG$2331,AB$87)) ->  | AC99: =IF(AC71="","",VLOOKUP($B$87,Sheet1t!$AD$2296:$BG$2331,AC$87)) ->  | AD99: =IF(AD71="","",VLOOKUP($B$87,Sheet1t!$AD$2296:$BG$2331,AD$87)) ->  | AE99: =IF(AE71="","",VLOOKUP($B$87,Sheet1t!$AD$2296:$BG$2331,AE$87)) ->  | AF99: =IF(AF71="","",VLOOKUP($B$87,Sheet1t!$AD$2296:$BG$2331,AF$87)) -> 
C100: 8番玉 | D100: =IF(D72="","",VLOOKUP($B$87,Sheet1t!$AD$2626:$BG$2661,D$87)) ->  | E100: =IF(E72="","",VLOOKUP($B$87,Sheet1t!$AD$2626:$BG$2661,E$87)) ->  | F100: =IF(F72="","",VLOOKUP($B$87,Sheet1t!$AD$2626:$BG$2661,F$87)) ->  | G100: =IF(G72="","",VLOOKUP($B$87,Sheet1t!$AD$2626:$BG$2661,G$87)) ->  | H100: =IF(H72="","",VLOOKUP($B$87,Sheet1t!$AD$2626:$BG$2661,H$87)) ->  | I100: =IF(I72="","",VLOOKUP($B$87,Sheet1t!$AD$2626:$BG$2661,I$87)) ->  | J100: =IF(J72="","",VLOOKUP($B$87,Sheet1t!$AD$2626:$BG$2661,J$87)) ->  | K100: =IF(K72="","",VLOOKUP($B$87,Sheet1t!$AD$2626:$BG$2661,K$87)) ->  | L100: =IF(L72="","",VLOOKUP($B$87,Sheet1t!$AD$2626:$BG$2661,L$87)) ->  | M100: =IF(M72="","",VLOOKUP($B$87,Sheet1t!$AD$2626:$BG$2661,M$87)) ->  | N100: =IF(N72="","",VLOOKUP($B$87,Sheet1t!$AD$2626:$BG$2661,N$87)) ->  | O100: =IF(O72="","",VLOOKUP($B$87,Sheet1t!$AD$2626:$BG$2661,O$87)) ->  | P100: =IF(P72="","",VLOOKUP($B$87,Sheet1t!$AD$2626:$BG$2661,P$87)) ->  | Q100: =IF(Q72="","",VLOOKUP($B$87,Sheet1t!$AD$2626:$BG$2661,Q$87)) ->  | R100: =IF(R72="","",VLOOKUP($B$87,Sheet1t!$AD$2626:$BG$2661,R$87)) ->  | S100: =IF(S72="","",VLOOKUP($B$87,Sheet1t!$AD$2626:$BG$2661,S$87)) ->  | T100: =IF(T72="","",VLOOKUP($B$87,Sheet1t!$AD$2626:$BG$2661,T$87)) ->  | U100: =IF(U72="","",VLOOKUP($B$87,Sheet1t!$AD$2626:$BG$2661,U$87)) ->  | V100: =IF(V72="","",VLOOKUP($B$87,Sheet1t!$AD$2626:$BG$2661,V$87)) ->  | W100: =IF(W72="","",VLOOKUP($B$87,Sheet1t!$AD$2626:$BG$2661,W$87)) ->  | X100: =IF(X72="","",VLOOKUP($B$87,Sheet1t!$AD$2626:$BG$2661,X$87)) ->  | Y100: =IF(Y72="","",VLOOKUP($B$87,Sheet1t!$AD$2626:$BG$2661,Y$87)) ->  | Z100: =IF(Z72="","",VLOOKUP($B$87,Sheet1t!$AD$2626:$BG$2661,Z$87)) ->  | AA100: =IF(AA72="","",VLOOKUP($B$87,Sheet1t!$AD$2626:$BG$2661,AA$87)) ->  | AB100: =IF(AB72="","",VLOOKUP($B$87,Sheet1t!$AD$2626:$BG$2661,AB$87)) ->  | AC100: =IF(AC72="","",VLOOKUP($B$87,Sheet1t!$AD$2626:$BG$2661,AC$87)) ->  | AD100: =IF(AD72="","",VLOOKUP($B$87,Sheet1t!$AD$2626:$BG$2661,AD$87)) ->  | AE100: =IF(AE72="","",VLOOKUP($B$87,Sheet1t!$AD$2626:$BG$2661,AE$87)) ->  | AF100: =IF(AF72="","",VLOOKUP($B$87,Sheet1t!$AD$2626:$BG$2661,AF$87)) -> 
C101: 9番玉 | D101: =IF(D73="","",VLOOKUP($B$87,Sheet1t!$AD$2956:$BG$2991,D$87)) ->  | E101: =IF(E73="","",VLOOKUP($B$87,Sheet1t!$AD$2956:$BG$2991,E$87)) ->  | F101: =IF(F73="","",VLOOKUP($B$87,Sheet1t!$AD$2956:$BG$2991,F$87)) ->  | G101: =IF(G73="","",VLOOKUP($B$87,Sheet1t!$AD$2956:$BG$2991,G$87)) ->  | H101: =IF(H73="","",VLOOKUP($B$87,Sheet1t!$AD$2956:$BG$2991,H$87)) ->  | I101: =IF(I73="","",VLOOKUP($B$87,Sheet1t!$AD$2956:$BG$2991,I$87)) ->  | J101: =IF(J73="","",VLOOKUP($B$87,Sheet1t!$AD$2956:$BG$2991,J$87)) ->  | K101: =IF(K73="","",VLOOKUP($B$87,Sheet1t!$AD$2956:$BG$2991,K$87)) ->  | L101: =IF(L73="","",VLOOKUP($B$87,Sheet1t!$AD$2956:$BG$2991,L$87)) ->  | M101: =IF(M73="","",VLOOKUP($B$87,Sheet1t!$AD$2956:$BG$2991,M$87)) ->  | N101: =IF(N73="","",VLOOKUP($B$87,Sheet1t!$AD$2956:$BG$2991,N$87)) ->  | O101: =IF(O73="","",VLOOKUP($B$87,Sheet1t!$AD$2956:$BG$2991,O$87)) ->  | P101: =IF(P73="","",VLOOKUP($B$87,Sheet1t!$AD$2956:$BG$2991,P$87)) ->  | Q101: =IF(Q73="","",VLOOKUP($B$87,Sheet1t!$AD$2956:$BG$2991,Q$87)) ->  | R101: =IF(R73="","",VLOOKUP($B$87,Sheet1t!$AD$2956:$BG$2991,R$87)) ->  | S101: =IF(S73="","",VLOOKUP($B$87,Sheet1t!$AD$2956:$BG$2991,S$87)) ->  | T101: =IF(T73="","",VLOOKUP($B$87,Sheet1t!$AD$2956:$BG$2991,T$87)) ->  | U101: =IF(U73="","",VLOOKUP($B$87,Sheet1t!$AD$2956:$BG$2991,U$87)) ->  | V101: =IF(V73="","",VLOOKUP($B$87,Sheet1t!$AD$2956:$BG$2991,V$87)) ->  | W101: =IF(W73="","",VLOOKUP($B$87,Sheet1t!$AD$2956:$BG$2991,W$87)) ->  | X101: =IF(X73="","",VLOOKUP($B$87,Sheet1t!$AD$2956:$BG$2991,X$87)) ->  | Y101: =IF(Y73="","",VLOOKUP($B$87,Sheet1t!$AD$2956:$BG$2991,Y$87)) ->  | Z101: =IF(Z73="","",VLOOKUP($B$87,Sheet1t!$AD$2956:$BG$2991,Z$87)) ->  | AA101: =IF(AA73="","",VLOOKUP($B$87,Sheet1t!$AD$2956:$BG$2991,AA$87)) ->  | AB101: =IF(AB73="","",VLOOKUP($B$87,Sheet1t!$AD$2956:$BG$2991,AB$87)) ->  | AC101: =IF(AC73="","",VLOOKUP($B$87,Sheet1t!$AD$2956:$BG$2991,AC$87)) ->  | AD101: =IF(AD73="","",VLOOKUP($B$87,Sheet1t!$AD$2956:$BG$2991,AD$87)) ->  | AE101: =IF(AE73="","",VLOOKUP($B$87,Sheet1t!$AD$2956:$BG$2991,AE$87)) ->  | AF101: =IF(AF73="","",VLOOKUP($B$87,Sheet1t!$AD$2956:$BG$2991,AF$87)) -> 
C102: 10番玉 | D102: =IF(D74="","",VLOOKUP($B$87,Sheet1t!$AD$3286:$BG$3321,D$87)) ->  | E102: =IF(E74="","",VLOOKUP($B$87,Sheet1t!$AD$3286:$BG$3321,E$87)) ->  | F102: =IF(F74="","",VLOOKUP($B$87,Sheet1t!$AD$3286:$BG$3321,F$87)) ->  | G102: =IF(G74="","",VLOOKUP($B$87,Sheet1t!$AD$3286:$BG$3321,G$87)) ->  | H102: =IF(H74="","",VLOOKUP($B$87,Sheet1t!$AD$3286:$BG$3321,H$87)) ->  | I102: =IF(I74="","",VLOOKUP($B$87,Sheet1t!$AD$3286:$BG$3321,I$87)) ->  | J102: =IF(J74="","",VLOOKUP($B$87,Sheet1t!$AD$3286:$BG$3321,J$87)) ->  | K102: =IF(K74="","",VLOOKUP($B$87,Sheet1t!$AD$3286:$BG$3321,K$87)) ->  | L102: =IF(L74="","",VLOOKUP($B$87,Sheet1t!$AD$3286:$BG$3321,L$87)) ->  | M102: =IF(M74="","",VLOOKUP($B$87,Sheet1t!$AD$3286:$BG$3321,M$87)) ->  | N102: =IF(N74="","",VLOOKUP($B$87,Sheet1t!$AD$3286:$BG$3321,N$87)) ->  | O102: =IF(O74="","",VLOOKUP($B$87,Sheet1t!$AD$3286:$BG$3321,O$87)) ->  | P102: =IF(P74="","",VLOOKUP($B$87,Sheet1t!$AD$3286:$BG$3321,P$87)) ->  | Q102: =IF(Q74="","",VLOOKUP($B$87,Sheet1t!$AD$3286:$BG$3321,Q$87)) ->  | R102: =IF(R74="","",VLOOKUP($B$87,Sheet1t!$AD$3286:$BG$3321,R$87)) ->  | S102: =IF(S74="","",VLOOKUP($B$87,Sheet1t!$AD$3286:$BG$3321,S$87)) ->  | T102: =IF(T74="","",VLOOKUP($B$87,Sheet1t!$AD$3286:$BG$3321,T$87)) ->  | U102: =IF(U74="","",VLOOKUP($B$87,Sheet1t!$AD$3286:$BG$3321,U$87)) ->  | V102: =IF(V74="","",VLOOKUP($B$87,Sheet1t!$AD$3286:$BG$3321,V$87)) ->  | W102: =IF(W74="","",VLOOKUP($B$87,Sheet1t!$AD$3286:$BG$3321,W$87)) ->  | X102: =IF(X74="","",VLOOKUP($B$87,Sheet1t!$AD$3286:$BG$3321,X$87)) ->  | Y102: =IF(Y74="","",VLOOKUP($B$87,Sheet1t!$AD$3286:$BG$3321,Y$87)) ->  | Z102: =IF(Z74="","",VLOOKUP($B$87,Sheet1t!$AD$3286:$BG$3321,Z$87)) ->  | AA102: =IF(AA74="","",VLOOKUP($B$87,Sheet1t!$AD$3286:$BG$3321,AA$87)) ->  | AB102: =IF(AB74="","",VLOOKUP($B$87,Sheet1t!$AD$3286:$BG$3321,AB$87)) ->  | AC102: =IF(AC74="","",VLOOKUP($B$87,Sheet1t!$AD$3286:$BG$3321,AC$87)) ->  | AD102: =IF(AD74="","",VLOOKUP($B$87,Sheet1t!$AD$3286:$BG$3321,AD$87)) ->  | AE102: =IF(AE74="","",VLOOKUP($B$87,Sheet1t!$AD$3286:$BG$3321,AE$87)) ->  | AF102: =IF(AF74="","",VLOOKUP($B$87,Sheet1t!$AD$3286:$BG$3321,AF$87)) -> 
C103: 11番玉 | D103: =IF(D75="","",VLOOKUP($B$87,Sheet1t!$AD$3616:$BG$3651,D$87)) ->  | E103: =IF(E75="","",VLOOKUP($B$87,Sheet1t!$AD$3616:$BG$3651,E$87)) ->  | F103: =IF(F75="","",VLOOKUP($B$87,Sheet1t!$AD$3616:$BG$3651,F$87)) ->  | G103: =IF(G75="","",VLOOKUP($B$87,Sheet1t!$AD$3616:$BG$3651,G$87)) ->  | H103: =IF(H75="","",VLOOKUP($B$87,Sheet1t!$AD$3616:$BG$3651,H$87)) ->  | I103: =IF(I75="","",VLOOKUP($B$87,Sheet1t!$AD$3616:$BG$3651,I$87)) ->  | J103: =IF(J75="","",VLOOKUP($B$87,Sheet1t!$AD$3616:$BG$3651,J$87)) ->  | K103: =IF(K75="","",VLOOKUP($B$87,Sheet1t!$AD$3616:$BG$3651,K$87)) ->  | L103: =IF(L75="","",VLOOKUP($B$87,Sheet1t!$AD$3616:$BG$3651,L$87)) ->  | M103: =IF(M75="","",VLOOKUP($B$87,Sheet1t!$AD$3616:$BG$3651,M$87)) ->  | N103: =IF(N75="","",VLOOKUP($B$87,Sheet1t!$AD$3616:$BG$3651,N$87)) ->  | O103: =IF(O75="","",VLOOKUP($B$87,Sheet1t!$AD$3616:$BG$3651,O$87)) ->  | P103: =IF(P75="","",VLOOKUP($B$87,Sheet1t!$AD$3616:$BG$3651,P$87)) ->  | Q103: =IF(Q75="","",VLOOKUP($B$87,Sheet1t!$AD$3616:$BG$3651,Q$87)) ->  | R103: =IF(R75="","",VLOOKUP($B$87,Sheet1t!$AD$3616:$BG$3651,R$87)) ->  | S103: =IF(S75="","",VLOOKUP($B$87,Sheet1t!$AD$3616:$BG$3651,S$87)) ->  | T103: =IF(T75="","",VLOOKUP($B$87,Sheet1t!$AD$3616:$BG$3651,T$87)) ->  | U103: =IF(U75="","",VLOOKUP($B$87,Sheet1t!$AD$3616:$BG$3651,U$87)) ->  | V103: =IF(V75="","",VLOOKUP($B$87,Sheet1t!$AD$3616:$BG$3651,V$87)) ->  | W103: =IF(W75="","",VLOOKUP($B$87,Sheet1t!$AD$3616:$BG$3651,W$87)) ->  | X103: =IF(X75="","",VLOOKUP($B$87,Sheet1t!$AD$3616:$BG$3651,X$87)) ->  | Y103: =IF(Y75="","",VLOOKUP($B$87,Sheet1t!$AD$3616:$BG$3651,Y$87)) ->  | Z103: =IF(Z75="","",VLOOKUP($B$87,Sheet1t!$AD$3616:$BG$3651,Z$87)) ->  | AA103: =IF(AA75="","",VLOOKUP($B$87,Sheet1t!$AD$3616:$BG$3651,AA$87)) ->  | AB103: =IF(AB75="","",VLOOKUP($B$87,Sheet1t!$AD$3616:$BG$3651,AB$87)) ->  | AC103: =IF(AC75="","",VLOOKUP($B$87,Sheet1t!$AD$3616:$BG$3651,AC$87)) ->  | AD103: =IF(AD75="","",VLOOKUP($B$87,Sheet1t!$AD$3616:$BG$3651,AD$87)) ->  | AE103: =IF(AE75="","",VLOOKUP($B$87,Sheet1t!$AD$3616:$BG$3651,AE$87)) ->  | AF103: =IF(AF75="","",VLOOKUP($B$87,Sheet1t!$AD$3616:$BG$3651,AF$87)) -> 
C104: 12番玉 | D104: =IF(D76="","",VLOOKUP($B$87,Sheet1t!$AD$3946:$BG$3981,D$87)) ->  | E104: =IF(E76="","",VLOOKUP($B$87,Sheet1t!$AD$3946:$BG$3981,E$87)) ->  | F104: =IF(F76="","",VLOOKUP($B$87,Sheet1t!$AD$3946:$BG$3981,F$87)) ->  | G104: =IF(G76="","",VLOOKUP($B$87,Sheet1t!$AD$3946:$BG$3981,G$87)) ->  | H104: =IF(H76="","",VLOOKUP($B$87,Sheet1t!$AD$3946:$BG$3981,H$87)) ->  | I104: =IF(I76="","",VLOOKUP($B$87,Sheet1t!$AD$3946:$BG$3981,I$87)) ->  | J104: =IF(J76="","",VLOOKUP($B$87,Sheet1t!$AD$3946:$BG$3981,J$87)) ->  | K104: =IF(K76="","",VLOOKUP($B$87,Sheet1t!$AD$3946:$BG$3981,K$87)) ->  | L104: =IF(L76="","",VLOOKUP($B$87,Sheet1t!$AD$3946:$BG$3981,L$87)) ->  | M104: =IF(M76="","",VLOOKUP($B$87,Sheet1t!$AD$3946:$BG$3981,M$87)) ->  | N104: =IF(N76="","",VLOOKUP($B$87,Sheet1t!$AD$3946:$BG$3981,N$87)) ->  | O104: =IF(O76="","",VLOOKUP($B$87,Sheet1t!$AD$3946:$BG$3981,O$87)) ->  | P104: =IF(P76="","",VLOOKUP($B$87,Sheet1t!$AD$3946:$BG$3981,P$87)) ->  | Q104: =IF(Q76="","",VLOOKUP($B$87,Sheet1t!$AD$3946:$BG$3981,Q$87)) ->  | R104: =IF(R76="","",VLOOKUP($B$87,Sheet1t!$AD$3946:$BG$3981,R$87)) ->  | S104: =IF(S76="","",VLOOKUP($B$87,Sheet1t!$AD$3946:$BG$3981,S$87)) ->  | T104: =IF(T76="","",VLOOKUP($B$87,Sheet1t!$AD$3946:$BG$3981,T$87)) ->  | U104: =IF(U76="","",VLOOKUP($B$87,Sheet1t!$AD$3946:$BG$3981,U$87)) ->  | V104: =IF(V76="","",VLOOKUP($B$87,Sheet1t!$AD$3946:$BG$3981,V$87)) ->  | W104: =IF(W76="","",VLOOKUP($B$87,Sheet1t!$AD$3946:$BG$3981,W$87)) ->  | X104: =IF(X76="","",VLOOKUP($B$87,Sheet1t!$AD$3946:$BG$3981,X$87)) ->  | Y104: =IF(Y76="","",VLOOKUP($B$87,Sheet1t!$AD$3946:$BG$3981,Y$87)) ->  | Z104: =IF(Z76="","",VLOOKUP($B$87,Sheet1t!$AD$3946:$BG$3981,Z$87)) ->  | AA104: =IF(AA76="","",VLOOKUP($B$87,Sheet1t!$AD$3946:$BG$3981,AA$87)) ->  | AB104: =IF(AB76="","",VLOOKUP($B$87,Sheet1t!$AD$3946:$BG$3981,AB$87)) ->  | AC104: =IF(AC76="","",VLOOKUP($B$87,Sheet1t!$AD$3946:$BG$3981,AC$87)) ->  | AD104: =IF(AD76="","",VLOOKUP($B$87,Sheet1t!$AD$3946:$BG$3981,AD$87)) ->  | AE104: =IF(AE76="","",VLOOKUP($B$87,Sheet1t!$AD$3946:$BG$3981,AE$87)) ->  | AF104: =IF(AF76="","",VLOOKUP($B$87,Sheet1t!$AD$3946:$BG$3981,AF$87)) -> 
C105: 13番玉 | D105: =IF(D77="","",VLOOKUP($B$87,Sheet1t!$AD$4276:$BG$4311,D$87)) ->  | E105: =IF(E77="","",VLOOKUP($B$87,Sheet1t!$AD$4276:$BG$4311,E$87)) ->  | F105: =IF(F77="","",VLOOKUP($B$87,Sheet1t!$AD$4276:$BG$4311,F$87)) ->  | G105: =IF(G77="","",VLOOKUP($B$87,Sheet1t!$AD$4276:$BG$4311,G$87)) ->  | H105: =IF(H77="","",VLOOKUP($B$87,Sheet1t!$AD$4276:$BG$4311,H$87)) ->  | I105: =IF(I77="","",VLOOKUP($B$87,Sheet1t!$AD$4276:$BG$4311,I$87)) ->  | J105: =IF(J77="","",VLOOKUP($B$87,Sheet1t!$AD$4276:$BG$4311,J$87)) ->  | K105: =IF(K77="","",VLOOKUP($B$87,Sheet1t!$AD$4276:$BG$4311,K$87)) ->  | L105: =IF(L77="","",VLOOKUP($B$87,Sheet1t!$AD$4276:$BG$4311,L$87)) ->  | M105: =IF(M77="","",VLOOKUP($B$87,Sheet1t!$AD$4276:$BG$4311,M$87)) ->  | N105: =IF(N77="","",VLOOKUP($B$87,Sheet1t!$AD$4276:$BG$4311,N$87)) ->  | O105: =IF(O77="","",VLOOKUP($B$87,Sheet1t!$AD$4276:$BG$4311,O$87)) ->  | P105: =IF(P77="","",VLOOKUP($B$87,Sheet1t!$AD$4276:$BG$4311,P$87)) ->  | Q105: =IF(Q77="","",VLOOKUP($B$87,Sheet1t!$AD$4276:$BG$4311,Q$87)) ->  | R105: =IF(R77="","",VLOOKUP($B$87,Sheet1t!$AD$4276:$BG$4311,R$87)) ->  | S105: =IF(S77="","",VLOOKUP($B$87,Sheet1t!$AD$4276:$BG$4311,S$87)) ->  | T105: =IF(T77="","",VLOOKUP($B$87,Sheet1t!$AD$4276:$BG$4311,T$87)) ->  | U105: =IF(U77="","",VLOOKUP($B$87,Sheet1t!$AD$4276:$BG$4311,U$87)) ->  | V105: =IF(V77="","",VLOOKUP($B$87,Sheet1t!$AD$4276:$BG$4311,V$87)) ->  | W105: =IF(W77="","",VLOOKUP($B$87,Sheet1t!$AD$4276:$BG$4311,W$87)) ->  | X105: =IF(X77="","",VLOOKUP($B$87,Sheet1t!$AD$4276:$BG$4311,X$87)) ->  | Y105: =IF(Y77="","",VLOOKUP($B$87,Sheet1t!$AD$4276:$BG$4311,Y$87)) ->  | Z105: =IF(Z77="","",VLOOKUP($B$87,Sheet1t!$AD$4276:$BG$4311,Z$87)) ->  | AA105: =IF(AA77="","",VLOOKUP($B$87,Sheet1t!$AD$4276:$BG$4311,AA$87)) ->  | AB105: =IF(AB77="","",VLOOKUP($B$87,Sheet1t!$AD$4276:$BG$4311,AB$87)) ->  | AC105: =IF(AC77="","",VLOOKUP($B$87,Sheet1t!$AD$4276:$BG$4311,AC$87)) ->  | AD105: =IF(AD77="","",VLOOKUP($B$87,Sheet1t!$AD$4276:$BG$4311,AD$87)) ->  | AE105: =IF(AE77="","",VLOOKUP($B$87,Sheet1t!$AD$4276:$BG$4311,AE$87)) ->  | AF105: =IF(AF77="","",VLOOKUP($B$87,Sheet1t!$AD$4276:$BG$4311,AF$87)) -> 
C106: 14番玉 | D106: =IF(D78="","",VLOOKUP($B$87,Sheet1t!$AD$4606:$BG$4641,D$87)) ->  | E106: =IF(E78="","",VLOOKUP($B$87,Sheet1t!$AD$4606:$BG$4641,E$87)) ->  | F106: =IF(F78="","",VLOOKUP($B$87,Sheet1t!$AD$4606:$BG$4641,F$87)) ->  | G106: =IF(G78="","",VLOOKUP($B$87,Sheet1t!$AD$4606:$BG$4641,G$87)) ->  | H106: =IF(H78="","",VLOOKUP($B$87,Sheet1t!$AD$4606:$BG$4641,H$87)) ->  | I106: =IF(I78="","",VLOOKUP($B$87,Sheet1t!$AD$4606:$BG$4641,I$87)) ->  | J106: =IF(J78="","",VLOOKUP($B$87,Sheet1t!$AD$4606:$BG$4641,J$87)) ->  | K106: =IF(K78="","",VLOOKUP($B$87,Sheet1t!$AD$4606:$BG$4641,K$87)) ->  | L106: =IF(L78="","",VLOOKUP($B$87,Sheet1t!$AD$4606:$BG$4641,L$87)) ->  | M106: =IF(M78="","",VLOOKUP($B$87,Sheet1t!$AD$4606:$BG$4641,M$87)) ->  | N106: =IF(N78="","",VLOOKUP($B$87,Sheet1t!$AD$4606:$BG$4641,N$87)) ->  | O106: =IF(O78="","",VLOOKUP($B$87,Sheet1t!$AD$4606:$BG$4641,O$87)) ->  | P106: =IF(P78="","",VLOOKUP($B$87,Sheet1t!$AD$4606:$BG$4641,P$87)) ->  | Q106: =IF(Q78="","",VLOOKUP($B$87,Sheet1t!$AD$4606:$BG$4641,Q$87)) ->  | R106: =IF(R78="","",VLOOKUP($B$87,Sheet1t!$AD$4606:$BG$4641,R$87)) ->  | S106: =IF(S78="","",VLOOKUP($B$87,Sheet1t!$AD$4606:$BG$4641,S$87)) ->  | T106: =IF(T78="","",VLOOKUP($B$87,Sheet1t!$AD$4606:$BG$4641,T$87)) ->  | U106: =IF(U78="","",VLOOKUP($B$87,Sheet1t!$AD$4606:$BG$4641,U$87)) ->  | V106: =IF(V78="","",VLOOKUP($B$87,Sheet1t!$AD$4606:$BG$4641,V$87)) ->  | W106: =IF(W78="","",VLOOKUP($B$87,Sheet1t!$AD$4606:$BG$4641,W$87)) ->  | X106: =IF(X78="","",VLOOKUP($B$87,Sheet1t!$AD$4606:$BG$4641,X$87)) ->  | Y106: =IF(Y78="","",VLOOKUP($B$87,Sheet1t!$AD$4606:$BG$4641,Y$87)) ->  | Z106: =IF(Z78="","",VLOOKUP($B$87,Sheet1t!$AD$4606:$BG$4641,Z$87)) ->  | AA106: =IF(AA78="","",VLOOKUP($B$87,Sheet1t!$AD$4606:$BG$4641,AA$87)) ->  | AB106: =IF(AB78="","",VLOOKUP($B$87,Sheet1t!$AD$4606:$BG$4641,AB$87)) ->  | AC106: =IF(AC78="","",VLOOKUP($B$87,Sheet1t!$AD$4606:$BG$4641,AC$87)) ->  | AD106: =IF(AD78="","",VLOOKUP($B$87,Sheet1t!$AD$4606:$BG$4641,AD$87)) ->  | AE106: =IF(AE78="","",VLOOKUP($B$87,Sheet1t!$AD$4606:$BG$4641,AE$87)) ->  | AF106: =IF(AF78="","",VLOOKUP($B$87,Sheet1t!$AD$4606:$BG$4641,AF$87)) -> 
C107: 15番玉 | D107: =IF(D79="","",VLOOKUP($B$87,Sheet1t!$AD$4936:$BG$4971,D$87)) ->  | E107: =IF(E79="","",VLOOKUP($B$87,Sheet1t!$AD$4936:$BG$4971,E$87)) ->  | F107: =IF(F79="","",VLOOKUP($B$87,Sheet1t!$AD$4936:$BG$4971,F$87)) ->  | G107: =IF(G79="","",VLOOKUP($B$87,Sheet1t!$AD$4936:$BG$4971,G$87)) ->  | H107: =IF(H79="","",VLOOKUP($B$87,Sheet1t!$AD$4936:$BG$4971,H$87)) ->  | I107: =IF(I79="","",VLOOKUP($B$87,Sheet1t!$AD$4936:$BG$4971,I$87)) ->  | J107: =IF(J79="","",VLOOKUP($B$87,Sheet1t!$AD$4936:$BG$4971,J$87)) ->  | K107: =IF(K79="","",VLOOKUP($B$87,Sheet1t!$AD$4936:$BG$4971,K$87)) ->  | L107: =IF(L79="","",VLOOKUP($B$87,Sheet1t!$AD$4936:$BG$4971,L$87)) ->  | M107: =IF(M79="","",VLOOKUP($B$87,Sheet1t!$AD$4936:$BG$4971,M$87)) ->  | N107: =IF(N79="","",VLOOKUP($B$87,Sheet1t!$AD$4936:$BG$4971,N$87)) ->  | O107: =IF(O79="","",VLOOKUP($B$87,Sheet1t!$AD$4936:$BG$4971,O$87)) ->  | P107: =IF(P79="","",VLOOKUP($B$87,Sheet1t!$AD$4936:$BG$4971,P$87)) ->  | Q107: =IF(Q79="","",VLOOKUP($B$87,Sheet1t!$AD$4936:$BG$4971,Q$87)) ->  | R107: =IF(R79="","",VLOOKUP($B$87,Sheet1t!$AD$4936:$BG$4971,R$87)) ->  | S107: =IF(S79="","",VLOOKUP($B$87,Sheet1t!$AD$4936:$BG$4971,S$87)) ->  | T107: =IF(T79="","",VLOOKUP($B$87,Sheet1t!$AD$4936:$BG$4971,T$87)) ->  | U107: =IF(U79="","",VLOOKUP($B$87,Sheet1t!$AD$4936:$BG$4971,U$87)) ->  | V107: =IF(V79="","",VLOOKUP($B$87,Sheet1t!$AD$4936:$BG$4971,V$87)) ->  | W107: =IF(W79="","",VLOOKUP($B$87,Sheet1t!$AD$4936:$BG$4971,W$87)) ->  | X107: =IF(X79="","",VLOOKUP($B$87,Sheet1t!$AD$4936:$BG$4971,X$87)) ->  | Y107: =IF(Y79="","",VLOOKUP($B$87,Sheet1t!$AD$4936:$BG$4971,Y$87)) ->  | Z107: =IF(Z79="","",VLOOKUP($B$87,Sheet1t!$AD$4936:$BG$4971,Z$87)) ->  | AA107: =IF(AA79="","",VLOOKUP($B$87,Sheet1t!$AD$4936:$BG$4971,AA$87)) ->  | AB107: =IF(AB79="","",VLOOKUP($B$87,Sheet1t!$AD$4936:$BG$4971,AB$87)) ->  | AC107: =IF(AC79="","",VLOOKUP($B$87,Sheet1t!$AD$4936:$BG$4971,AC$87)) ->  | AD107: =IF(AD79="","",VLOOKUP($B$87,Sheet1t!$AD$4936:$BG$4971,AD$87)) ->  | AE107: =IF(AE79="","",VLOOKUP($B$87,Sheet1t!$AD$4936:$BG$4971,AE$87)) ->  | AF107: =IF(AF79="","",VLOOKUP($B$87,Sheet1t!$AD$4936:$BG$4971,AF$87)) -> 
